Workbook

Sheet PlotDat3 (hidden)
A1: Source sheet | B1: U-Pb datatable | C1: 0.06779912623 | D1: 0.01043006877 | E1: 0 | F1: 0 | G1: 0.2177075089 | H1: 0.03151129135 | I1: 0.07028636819 | J1: 0.01068199699 | K1: 0.07634440343 | L1: 0.01092463356 | M1: 0.06845725959 | N1: 0.01076131551 | O1: 0.0722007232 | P1: 0.01103786196 | Q1: 0.07606585322 | R1: 0.01089993252 | S1: 0.0763746109 | T1: 0.01098495604 | U1: 0.07830788009 | V1: 0.0109346009 | W1: 0.07492736677 | X1: 0.01088997305 | Y1: 0.07642017874 | Z1: 0.01106406114 | AA1: 0.06437675487 | AB1: 0.01095695808 | AC1: 0.07447785269 | AD1: 0.01104428728 | AE1: 0.06658689069 | AF1: 0.01103200428 | AG1: 0.06832816747 | AH1: 0.01111347784 | AI1: 0.0670218461 | AJ1: 0.01105078912 | AK1: 0.0734341343 | AL1: 0.01096802488 | AM1: 0.06978522114 | AN1: 0.01097915826 | AO1: 0.07186780196 | AP1: 0.01121792474 | AQ1: 0.07706518113 | AR1: 0.0112405946 | AS1: 0.06633301471 | AT1: 0.01112269031 | AU1: 0.07459127603 | AV1: 0.01113841142 | AW1: 0.09685178913 | AX1: 0.01265636933 | AY1: 2.559246141 | AZ1: 0.2079763442 | BA1: 3.059011631 | BB1: 0.2425727184 | BC1: 3.225365569 | BD1: 0.2553323366 | BE1: 3.323141634 | BF1: 0.2586468958 | BG1: 3.586076598 | BH1: 0.2740578136 | BI1: 3.903841128 | BJ1: 0.2853308577 | BK1: 3.957745755 | BL1: 0.2843775086 | BM1: 3.990095215 | BN1: 0.2852667911 | BO1: 3.916020772 | BP1: 0.2739661301 | BQ1: 4.39111052 | BR1: 0.3074219091 | BS1: 4.613284652 | BT1: 0.3116685446
A2: Plot name | B2: Concordia2 | C2: 0.07276844676 | D2: 0.01051859315 | E2: 0.06940275101 | F2: 0.01062510753 | G2: 0.4828115773 | H2: 0.06401554418 | I2: 0.0701804791 | J2: 0.01072252177 | K2: 0.07619281996 | L2: 0.01096747502 | M2: 0.06830986797 | N2: 0.01083029558 | O2: 0.07204201471 | P2: 0.01108442165 | Q2: 0.07590030689 | R2: 0.01096809951 | S2: 0.07621638102 | T2: 0.01104005437 | U2: 0.07809392408 | V2: 0.01102472343 | W2: 0.07474224531 | X2: 0.01097079344 | Y2: 0.07627315238 | Z2: 0.01110705303 | AA2: 0.06422151141 | AB2: 0.01103532546 | AC2: 0.07430059737 | AD2: 0.01111921257 | AE2: 0.06646436779 | AF2: 0.01108164223 | AG2: 0.0681772505 | AH2: 0.01117214581 | AI2: 0.06688507283 | AJ2: 0.01111074867 | AK2: 0.07328124712 | AL2: 0.01103622431 | AM2: 0.06964890225 | AN2: 0.01104285972 | AO2: 0.07170676386 | AP2: 0.01128114672 | AQ2: 0.07690222263 | AR2: 0.0112976554 | AS2: 0.06618976262 | AT2: 0.01119327107 | AU2: 0.07445487791 | AV2: 0.01119633503 | AW2: 0.09664160681 | AX2: 0.01272053498 | AY2: 2.554350204 | AZ2: 0.2083794396 | BA2: 3.05316468 | BB2: 0.2431706094 | BC2: 3.218745762 | BD2: 0.2556706152 | BE2: 3.317676857 | BF2: 0.2591575418 | BG2: 3.580348171 | BH2: 0.2746927161 | BI2: 3.896969228 | BJ2: 0.2861992119 | BK2: 3.951732463 | BL2: 0.2849154282 | BM2: 3.983268132 | BN2: 0.2861283926 | BO2: 3.909717376 | BP2: 0.2749225241 | BQ2: 4.384247172 | BR2: 0.308269289 | BS2: 4.607375775 | BT2: 0.3122614221
A3: Plot Type | B3: 1 | C3: 0.06494654613 | D3: 0.01052917181 | E3: 0.1436222439 | F3: 0.02136310796 | G3: 0.805630792 | H3: 0.09754404798 | I3: 0.06988166696 | J3: 0.01073935374 | K3: 0.07576381413 | L3: 0.01097395075 | M3: 0.06789000001 | N3: 0.01087488039 | O3: 0.07159468368 | P3: 0.01109026793 | Q3: 0.07542972671 | R3: 0.01100577569 | S3: 0.07576872462 | T3: 0.01106015983 | U3: 0.07748247241 | V3: 0.01108126604 | W3: 0.07421197479 | X3: 0.01102504947 | Y3: 0.07585737931 | Z3: 0.01111466953 | AA3: 0.06378113733 | AB3: 0.0110859819 | AC3: 0.07379793819 | AD3: 0.01115991953 | AE3: 0.06612090443 | AF3: 0.01110115082 | AG3: 0.06775383632 | AH3: 0.01119354962 | AI3: 0.06650077119 | AJ3: 0.01113944963 | AK3: 0.07284468551 | AL3: 0.01108033938 | AM3: 0.06926022405 | AN3: 0.01108453933 | AO3: 0.0712533415 | AP3: 0.01130717404 | AQ3: 0.07644161635 | AR3: 0.01131804984 | AS3: 0.0657842114 | AT3: 0.01123688466 | AU3: 0.07406800138 | AV3: 0.01122810472 | AW3: 0.09604396955 | AX3: 0.0127409975 | AY3: 2.54017312 | AZ3: 0.2080275475 | BA3: 3.036240049 | BB3: 0.2429023307 | BC3: 3.199547008 | BD3: 0.2549985732 | BE3: 3.301849988 | BF3: 0.2588691924 | BG3: 3.563762456 | BH3: 0.2745193398 | BI3: 3.877068459 | BJ3: 0.2861616222 | BK3: 3.934298466 | BL3: 0.2846426872 | BM3: 3.963491334 | BN3: 0.2861126038 | BO3: 3.891457782 | BP3: 0.2751271295 | BQ3: 4.364358932 | BR3: 0.3082528833 | BS3: 4.59023804 | BT3: 0.3121178994
A4: 1st free col | B4: 73 | C4: 0.06847939148 | D4: 0.01058187411 | E4: 0.2229927737 | F4: 0.03221520081 | G4: 1.198730174 | H4: 0.1321290782 | I4: 0.06941413976 | J4: 0.01073112928 | K4: 0.07509214146 | L4: 0.01094353611 | M4: 0.06723167093 | N4: 0.01089145795 | O4: 0.0708949702 | P4: 0.01105492716 | Q4: 0.07469223628 | R4: 0.01100990876 | S4: 0.07506790815 | T4: 0.0110436436 | U4: 0.07652306127 | V4: 0.01109964797 | W4: 0.07337951459 | X4: 0.01104834563 | Y4: 0.075206543 | Z4: 0.0110862936 | AA4: 0.0630913091 | AB4: 0.01110482352 | AC4: 0.07301059763 | AD4: 0.01116311031 | AE4: 0.06558432598 | AF4: 0.0110889496 | AG4: 0.06709222743 | AH4: 0.01117595527 | AI4: 0.06590007502 | AJ4: 0.01113456681 | AK4: 0.07215981708 | AL4: 0.01109679616 | AM4: 0.06865067495 | AN4: 0.01110082045 | AO4: 0.07054426847 | AP4: 0.01129389812 | AQ4: 0.07572067786 | AR4: 0.0113001257 | AS4: 0.0651492164 | AT4: 0.01124999776 | AU4: 0.07346198887 | AV4: 0.0112311467 | AW4: 0.09510729437 | AX4: 0.01271609914 | AY4: 2.517863431 | AZ4: 0.2069491762 | BA4: 3.009608872 | BB4: 0.2417896167 | BC4: 3.169324676 | BD4: 0.2533706554 | BE4: 3.276943224 | BF4: 0.257805208 | BG4: 3.537663129 | BH4: 0.2735517307 | BI4: 3.845751065 | BJ4: 0.2852211339 | BK4: 3.906856163 | BL4: 0.2835813816 | BM4: 3.932367022 | BN4: 0.2852207038 | BO4: 3.862721274 | BP4: 0.2745633704 | BQ4: 4.333057028 | BR4: 0.3073740211 | BS4: 4.563259843 | BT4: 0.3112496039
A5: Sigma Level | B5: 1 | C5: 0.07213511006 | D5: 0.01059173505 | E5: 0.3078718367 | F5: 0.04318259831 | G5: 1.677410243 | H5: 0.1678039275 | I5: 0.06881577377 | J5: 0.01069851469 | K5: 0.07423221685 | L5: 0.01087869511 | M5: 0.06638821462 | N5: 0.01087868525 | O5: 0.0699995609 | P5: 0.01098126245 | Q5: 0.0737475827 | R5: 0.01098016388 | S5: 0.0741707076 | T5: 0.01099184372 | U5: 0.07529341644 | V5: 0.01107838005 | W5: 0.07231230568 | X5: 0.01103879462 | Y5: 0.07437337032 | Z5: 0.01102422409 | AA5: 0.06220791252 | AB5: 0.01109032387 | AC5: 0.07200236133 | AD5: 0.01112852643 | AE5: 0.06489810282 | AF5: 0.01104602702 | AG5: 0.06624602344 | AH5: 0.01112078814 | AI5: 0.06513164916 | AJ5: 0.01109649578 | AK5: 0.07128212581 | AL5: 0.0110842614 | AM5: 0.06786963699 | AN5: 0.01109038409 | AO5: 0.06963698965 | AP5: 0.01124239449 | AQ5: 0.07479781332 | AR5: 0.01124533508 | AS5: 0.06433622112 | AT5: 0.01123154803 | AU5: 0.07268593593 | AV5: 0.01120521453 | AW5: 0.09390746512 | AX5: 0.01264785701 | AY5: 2.489228535 | AZ5: 0.2052316889 | BA5: 2.975428649 | BB5: 0.2399226127 | BC5: 3.130527199 | BD5: 0.250918746 | BE5: 3.244974364 | BF5: 0.2560517863 | BG5: 3.504164602 | BH5: 0.2718682788 | BI5: 3.805554193 | BJ5: 0.2834539396 | BK5: 3.871628766 | BL5: 0.2818174919 | BM5: 3.892416701 | BN5: 0.2835249491 | BO5: 3.825835914 | BP5: 0.273276919 | BQ5: 4.292877354 | BR5: 0.3057039026 | BS5: 4.528626798 | BT5: 0.3097268798
A6: Absolute Errs | B6: FALSE | C6: 0.07264383388 | D6: 0.0106081186 | E6: 0.3986417401 | F6: 0.05426652559 | G6: 2.260302557 | H6: 0.2046029373 | I6: 0.06813504504 | J6: 0.01064415221 | K6: 0.0732537063 | L6: 0.0107846808 | M6: 0.06542796291 | N6: 0.01083759704 | O6: 0.06898099651 | P6: 0.01087524168 | Q6: 0.07267229617 | R6: 0.0109189508 | S6: 0.07314980882 | T6: 0.01090895672 | U6: 0.07389315643 | V6: 0.01101918526 | W6: 0.07109680698 | X6: 0.01099717019 | Y6: 0.07342535998 | Z6: 0.0109334895 | AA6: 0.06120251512 | AB6: 0.01104365764 | AC6: 0.07085491059 | AD6: 0.01105896966 | AE6: 0.06411782869 | AF6: 0.01097586043 | AG6: 0.06528377877 | AH6: 0.01103251755 | AI6: 0.06425774688 | AJ6: 0.01102832084 | AK6: 0.07028271702 | AL6: 0.01104375061 | AM6: 0.0669803852 | AN6: 0.01105407573 | AO6: 0.06860500736 | AP6: 0.01115683567 | AQ6: 0.07374778773 | AR6: 0.01115811679 | AS6: 0.06341108961 | AT6: 0.01118303015 | AU6: 0.07180271373 | AV6: 0.01115240906 | AW6: 0.09254168485 | AX6: 0.01254179969 | AY6: 2.456588262 | AZ6: 0.2030142262 | BA6: 2.936468457 | BB6: 0.2374525724 | BC6: 3.086297718 | BD6: 0.2478414842 | BE6: 3.208533334 | BF6: 0.2537509791 | BG6: 3.465980726 | BH6: 0.2696053672 | BI6: 3.759734356 | BJ6: 0.281003207 | BK6: 3.831470189 | BL6: 0.2794939181 | BM6: 3.846876909 | BN6: 0.2811627196 | BO6: 3.783789932 | BP6: 0.2713719961 | BQ6: 4.247075028 | BR6: 0.3033778309 | BS6: 4.489144669 | BT6: 0.3076730891
A7: Symbol Type | B7: 1 | C7: 0.07318742159 | D7: 0.0106102284 | E7: 0.4957113245 | F7: 0.06546822078 | G7: 2.970094905 | H7: 0.2425615314 | I7: 0.06742710217 | J7: 0.01057244597 | K7: 0.07223588291 | L7: 0.01066910965 | M7: 0.06442870968 | N7: 0.01077152205 | O7: 0.06792179507 | P7: 0.01074545401 | Q7: 0.07155349001 | R7: 0.01083122866 | S7: 0.07208791897 | T7: 0.0108016976 | U7: 0.07243572198 | V7: 0.01092685922 | W7: 0.06983149097 | X7: 0.01092684451 | Y7: 0.07243931413 | Z7: 0.01082144061 | AA7: 0.06015656822 | AB7: 0.01096860544 | AC7: 0.06966120505 | AD7: 0.01096007507 | AE7: 0.06330671674 | AF7: 0.0108841343 | AG7: 0.06428344876 | AH7: 0.01091829466 | AI7: 0.06334916657 | AJ7: 0.01093556511 | AK7: 0.06924255687 | AL7: 0.01097854573 | AM7: 0.0660549615 | AN7: 0.01099483686 | AO7: 0.06753192669 | AP7: 0.01104415313 | AQ7: 0.07265566791 | AR7: 0.01104553674 | AS7: 0.06244877052 | AT7: 0.01110837476 | AU7: 0.0708838757 | AV7: 0.0110770083 | AW7: 0.09112060093 | AX7: 0.01240651931 | AY7: 2.422586932 | AZ7: 0.2004764337 | BA7: 2.89588462 | BB7: 0.2345796038 | BC7: 3.040219442 | BD7: 0.2443881715 | BE7: 3.17057237 | BF7: 0.251089184 | BG7: 3.426204933 | BH7: 0.2669463237 | BI7: 3.712003605 | BJ7: 0.2780674799 | BK7: 3.789633841 | BL7: 0.2767989022 | BM7: 3.799437009 | BN7: 0.2783253891 | BO7: 3.739989646 | BP7: 0.2690029273 | BQ7: 4.199360682 | BR7: 0.3005842504 | BS7: 4.448012061 | BT7: 0.3052546177
A8: Inverse Plot | B8: FALSE | C8: 0.07048188508 | D8: 0.01064289523 | E8: 0.5995178052 | F8: 0.07678893519 | G8: 3.834414377 | H8: 0.2817162498 | I8: 0.06674929847 | J8: 0.01048920516 | K8: 0.07126120467 | L8: 0.01054134455 | M8: 0.06347140847 | N8: 0.01068581329 | O8: 0.06690776677 | P8: 0.01060241406 | Q8: 0.07048180326 | R8: 0.01072410416 | S8: 0.07107106603 | T8: 0.01067875586 | U8: 0.07103918576 | V8: 0.01080888163 | W8: 0.06861886602 | X8: 0.01083351494 | Y8: 0.07149511635 | Z8: 0.01069715495 | AA8: 0.05915480821 | AB8: 0.01087124755 | AC8: 0.06851795164 | AD8: 0.01083985452 | AE8: 0.06253047844 | AF8: 0.01077827973 | AG8: 0.0633260742 | AH8: 0.01078737312 | AI8: 0.06247951598 | AJ8: 0.01082574311 | AK8: 0.06824591295 | AL8: 0.01089392926 | AM8: 0.0651683382 | AN8: 0.01091746666 | AO8: 0.06650468223 | AP8: 0.01091347573 | AQ8: 0.07160993091 | AR8: 0.01091671549 | AS8: 0.06152722524 | AT8: 0.01101362999 | AU8: 0.07000386062 | AV8: 0.01098512076 | AW8: 0.08975934114 | AX8: 0.01225297548 | AY8: 2.389979132 | AZ8: 0.1978239083 | BA8: 2.856964999 | BB8: 0.2315364576 | BC8: 2.99602536 | BD8: 0.2408385746 | BE8: 3.134166845 | BF8: 0.248282044 | BG8: 3.38805962 | BH8: 0.2641065681 | BI8: 3.666228799 | BJ8: 0.2748845934 | BK8: 3.749509055 | BL8: 0.2739507784 | BM8: 3.753940299 | BN8: 0.2752428212 | BO8: 3.697983493 | BP8: 0.2663616402 | BQ8: 4.153599849 | BR8: 0.2975494805 | BS8: 4.408561296 | BT8: 0.3026673957
A9: Color Plot | B9: TRUE | C9: 0.0729558673 | D9: 0.01067039561 | E9: 0.7105287411 | F9: 0.08822993341 | G9: 4.886902688 | H9: 0.322104784 | I9: 0.06615654558 | J9: 0.01040117348 | K9: 0.07040863423 | L9: 0.01041173626 | M9: 0.06263361414 | N9: 0.01058741437 | O9: 0.06602106216 | P9: 0.0104577101 | Q9: 0.06954405759 | R9: 0.01060625591 | S9: 0.07018162939 | T9: 0.01055009151 | U9: 0.06981668684 | V9: 0.01067481034 | W9: 0.06755717179 | X9: 0.01072474251 | Y9: 0.07066925993 | Z9: 0.01057070141 | AA9: 0.05827839173 | AB9: 0.01075947134 | AC9: 0.06751776995 | AD9: 0.01070804757 | AE9: 0.06185200001 | AF9: 0.01066687244 | AG9: 0.06248921588 | AH9: 0.01065035942 | AI9: 0.06171924905 | AJ9: 0.01070775196 | AK9: 0.06737352742 | AL9: 0.01079675634 | AM9: 0.06439234425 | AN9: 0.01082823321 | AO9: 0.06560649524 | AP9: 0.01077539019 | AQ9: 0.07069529613 | AR9: 0.01078208937 | AS9: 0.06072111186 | AT9: 0.01090647149 | AU9: 0.06923396208 | AV9: 0.01088419063 | AW9: 0.08856818665 | AX9: 0.01209360741 | AY9: 2.36140655 | AZ9: 0.1952715419 | BA9: 2.82286263 | BB9: 0.2285696715 | BC9: 2.957295813 | BD9: 0.2374802608 | BE9: 3.102266115 | BF9: 0.2455569768 | BG9: 3.354635094 | BH9: 0.2613161605 | BI9: 3.626118343 | BJ9: 0.271712406 | BK9: 3.714346501 | BL9: 0.2711802849 | BM9: 3.714072653 | BN9: 0.2721647473 | BO9: 3.661174563 | BP9: 0.2636621165 | BQ9: 4.113499799 | BR9: 0.2945193801 | BS9: 4.373988438 | BT9: 0.3001210246
A10: 3D plot | B10: FALSE | C10: 0.06070199082 | D10: 0.01069327439 | E10: 0.8292441414 | F10: 0.09979249347 | G10: IsoLine | H10: IsoLine | I10: 0.0656968648 | J10: 0.01031548273 | K10: 0.06974724176 | L10: 0.01029078488 | M10: 0.06198319981 | N10: 0.01048429698 | O10: 0.06533351677 | P10: 0.01032306516 | Q10: 0.06881622358 | R10: 0.01048723126 | S10: 0.06949166591 | T10: 0.01042612818 | U10: 0.06886726479 | V10: 0.01053550701 | W10: 0.06673242044 | X10: 0.01060933929 | Y10: 0.07002865083 | Z10: 0.0104523245 | AA10: 0.05759832084 | AB10: 0.01064233225 | AC10: 0.06674168875 | AD10: 0.01057533242 | AE10: 0.06132624773 | AF10: 0.01055893797 | AG10: 0.06184067108 | AH10: 0.0105183536 | AI10: 0.06112995807 | AJ10: 0.01059115061 | AK10: 0.06669607577 | AL10: 0.01069489933 | AM10: 0.06378984606 | AN10: 0.01073436567 | AO10: 0.06491013148 | AP10: 0.01064108337 | AQ10: 0.06998586184 | AR10: 0.010652565 | AS10: 0.06009573691 | AT10: 0.01079558062 | AU10: 0.06863655269 | AV10: 0.01078239465 | AW10: 0.08764363771 | AX10: 0.01194132615 | AY10: 2.339183967 | AZ10: 0.1930261119 | BA10: 2.796340284 | BB10: 0.2259195968 | BC10: 2.927168438 | BD10: 0.2345853007 | BE10: 3.07745459 | BF10: 0.2431347511 | BG10: 3.32863921 | BH10: 0.2588011631 | BI10: 3.594921747 | BJ10: 0.2688079095 | BK10: 3.686994841 | BL10: 0.2687118704 | BM10: 3.68306391 | BN10: 0.2693405346 | BO10: 3.632544895 | BP10: 0.2611230553 | BQ10: 4.082309199 | BR10: 0.29173943 | BS10: 4.347094376 | BT10: 0.2978217961
A11: Linear | B11: FALSE | C11: 0.07028396275 | D11: 0.01069683726 | E11: 0.9561987171 | F11: 0.111477907 | I11: 0.06540749674 | J11: 0.01023907505 | K11: 0.06933060935 | L11: 0.01018828918 | M11: 0.06157285817 | N11: 0.01038481508 | O11: 0.06490083144 | P11: 0.01020938739 | Q11: 0.06835726601 | R11: 0.01037667289 | S11: 0.06905707234 | T11: 0.01031690862 | U11: 0.06826783616 | V11: 0.01040225716 | W11: 0.06621142841 | X11: 0.01049665457 | Y11: 0.06962518741 | Z11: 0.01035161441 | AA11: 0.05716969083 | AB11: 0.01052932018 | AC11: 0.06625258152 | AD11: 0.01045246087 | AE11: 0.06099581493 | AF11: 0.01046322055 | AG11: 0.06143298105 | AH11: 0.01040204998 | AI11: 0.0607593839 | AJ11: 0.01048538541 | AK11: 0.06626844111 | AL11: 0.01059661008 | AM11: 0.06340965445 | AN11: 0.01064346863 | AO11: 0.06447200619 | AP11: 0.01052143601 | AQ11: 0.06953910219 | AR11: 0.01053863566 | AS11: 0.05970176454 | AT11: 0.01068994109 | AU11: 0.06826003099 | AV11: 0.01068797974 | AW11: 0.08706059578 | AX11: 0.01180846863 | AY11: 2.325111726 | AZ11: 0.1912695298 | BA11: 2.779546644 | BB11: 0.2238009268 | BC11: 2.908083977 | BD11: 0.2323882268 | BE11: 3.061742352 | BF11: 0.2412116013 | BG11: 3.312178002 | BH11: 0.2567653262 | BI11: 3.575166374 | BJ11: 0.266406409 | BK11: 3.669669944 | BL11: 0.2667455112 | BM11: 3.663426214 | BN11: 0.2669989841 | BO11: 3.614413896 | BP11: 0.2589501563 | BQ11: 4.062554928 | BR11: 0.2894348452 | BS11: 4.330057906 | BT11: 0.2959559801
A12: Data Range | B12: G77:K108 | C12: 0.063737181 | D12: 0.01070973945 | E12: 1.09196429 | F12: 0.1232874792 | I12: 0.06531188428 | J12: 0.01017814055 | K12: 0.06919249008 | L12: 0.01011255273 | M12: 0.06143583267 | N12: 0.01029702811 | O12: 0.06475805976 | P12: 0.01012588627 | Q12: 0.0682043669 | R12: 0.01028353757 | S12: 0.06891305686 | T12: 0.01023128116 | U12: 0.06806696308 | V12: 0.0102858559 | W12: 0.06603640339 | X12: 0.01039581741 | Y12: 0.06949155586 | Z12: 0.01027673008 | AA12: 0.05702722676 | AB12: 0.01042959071 | AC12: 0.06609007282 | AD12: 0.01034938725 | AE12: 0.0608874713 | AF12: 0.01038747462 | AG12: 0.06129917441 | AH12: 0.01031087078 | AI12: 0.06063754826 | AJ12: 0.01039902481 | AK12: 0.06612526784 | AL12: 0.01050985141 | AM12: 0.0632825703 | AN12: 0.01056290603 | AO12: 0.06432761369 | AP12: 0.01042614123 | AQ12: 0.06939121098 | AR12: 0.01044953124 | AS12: 0.05957111205 | AT12: 0.01059811119 | AU12: 0.06813490054 | AV12: 0.01060859483 | AW12: 0.08686629545 | AX12: 0.01170579817 | AY12: 2.320329876 | AZ12: 0.1901441033 | BA12: 2.773842231 | BB12: 0.2223853037 | BC12: 2.901588539 | BD12: 0.2310670329 | BE12: 3.056402312 | BF12: 0.2399433295 | BG12: 3.306585058 | BH12: 0.255373581 | BI12: 3.568452685 | BJ12: 0.2647024597 | BK12: 3.66377537 | BL12: 0.2654405101 | BM12: 3.656750495 | BN12: 0.2653297941 | BO12: 3.60825043 | BP12: 0.2573194549 | BQ12: 4.055837358 | BR12: 0.2877923294 | BS12: 4.324259222 | BT12: 0.2946747339
A13: Filled Symbols | B13: FALSE | C13: 0.06481367094 | D13: 0.01071217431 | E13: 1.237152366 | F13: 0.1352225295 | I13: 0.06541777337 | J13: 0.01013761577 | K13: 0.06934407356 | L13: 0.01006971127 | M13: 0.0615832243 | N13: 0.01022804804 | O13: 0.06491676825 | P13: 0.01007932658 | Q13: 0.06836991323 | R13: 0.01021537059 | S13: 0.06907128674 | T13: 0.01017618283 | U13: 0.0682809191 | V13: 0.01019573337 | W13: 0.06622152486 | X13: 0.01031499701 | Y13: 0.06963858222 | Z13: 0.01023373819 | AA13: 0.05718247022 | AB13: 0.01035122333 | AC13: 0.06626732814 | AD13: 0.01027446196 | AE13: 0.0610099942 | AF13: 0.01033783667 | AG13: 0.06145009138 | AH13: 0.01025220282 | AI13: 0.06077432153 | AJ13: 0.01033906526 | AK13: 0.06627815502 | AL13: 0.01044165198 | AM13: 0.06341888919 | AN13: 0.01049920457 | AO13: 0.06448865179 | AP13: 0.01036291925 | AQ13: 0.06955416948 | AR13: 0.01039247044 | AS13: 0.05971436414 | AT13: 0.01052753043 | AU13: 0.06827129866 | AV13: 0.01055067122 | AW13: 0.08707647778 | AX13: 0.01164163252 | AY13: 2.325225812 | AZ13: 0.189741008 | BA13: 2.779689183 | BB13: 0.2217874126 | BC13: 2.908208346 | BD13: 0.2307287543 | BE13: 3.061867088 | BF13: 0.2394326835 | BG13: 3.312313485 | BH13: 0.2547386786 | BI13: 3.575324586 | BJ13: 0.2638341054 | BK13: 3.669788661 | BL13: 0.2649025905 | BM13: 3.663577578 | BN13: 0.2644681926 | BO13: 3.614553826 | BP13: 0.2563630608 | BQ13: 4.062700706 | BR13: 0.2869449495 | BS13: 4.330168099 | BT13: 0.2940818564
A14: ConcAge | B14: FALSE | C14: 0.06382969718 | D14: 0.01072490697 | E14: 1.392416895 | F14: 0.1472843909 | I14: 0.0657165855 | J14: 0.0101207838 | K14: 0.06977307938 | L14: 0.01006323555 | M14: 0.06200309225 | N14: 0.01018346322 | O14: 0.06536409928 | P14: 0.0100734803 | Q14: 0.06884049341 | R14: 0.01017769441 | S14: 0.06951894314 | T14: 0.01015607737 | U14: 0.06889237076 | V14: 0.01013919076 | W14: 0.06675179537 | X14: 0.01026074099 | Y14: 0.07005435529 | Z14: 0.01022612169 | AA14: 0.05762284431 | AB14: 0.01030056688 | AC14: 0.06676998732 | AD14: 0.010233755 | AE14: 0.06135345756 | AF14: 0.01031832807 | AG14: 0.06187350556 | AH14: 0.01023079901 | AI14: 0.06115862317 | AJ14: 0.0103103643 | AK14: 0.06671471664 | AL14: 0.0103975369 | AM14: 0.06380756738 | AN14: 0.01045752496 | AO14: 0.06494207415 | AP14: 0.01033689193 | AQ14: 0.07001477576 | AR14: 0.01037207599 | AS14: 0.06011991536 | AT14: 0.01048391684 | AU14: 0.06865817519 | AV14: 0.01051890153 | AW14: 0.08767411504 | AX14: 0.01162117 | AY14: 2.339402897 | AZ14: 0.1900929 | BA14: 2.796613814 | BB14: 0.2220556913 | BC14: 2.927407099 | BD14: 0.2314007964 | BE14: 3.077693958 | BF14: 0.2397210329 | BG14: 3.3288992 | BH14: 0.2549120548 | BI14: 3.595225354 | BJ14: 0.2638716951 | BK14: 3.687222658 | BL14: 0.2651753315 | BM14: 3.683354376 | BN14: 0.2644839814 | BO14: 3.63281342 | BP14: 0.2561584554 | BQ14: 4.082588946 | BR14: 0.2869613552 | BS14: 4.347305834 | BT14: 0.294225379
A15: ConcSwap | B15: FALSE | C15: 0.06977970107 | D15: 0.01073893814 | E15: 1.558457209 | F15: 0.159474411 | I15: 0.0661841127 | J15: 0.01012900825 | K15: 0.07044475206 | L15: 0.01009365019 | M15: 0.06266142134 | N15: 0.01016688566 | O15: 0.06606381276 | P15: 0.01010882106 | Q15: 0.06957798383 | R15: 0.01017356134 | S15: 0.07021975961 | T15: 0.0101725936 | U15: 0.06985178191 | V15: 0.01012080883 | W15: 0.06758425557 | X15: 0.01023744482 | Y15: 0.07070519161 | Z15: 0.01025449762 | AA15: 0.05831267253 | AB15: 0.01028172527 | AC15: 0.06755732788 | AD15: 0.01023056422 | AE15: 0.06189003601 | AF15: 0.0103305293 | AG15: 0.06253511446 | AH15: 0.01024839336 | AI15: 0.06175931934 | AJ15: 0.01031524713 | AK15: 0.06739958506 | AL15: 0.01038108013 | AM15: 0.06441711648 | AN15: 0.01044124384 | AO15: 0.06565114718 | AP15: 0.01035016785 | AQ15: 0.07073571425 | AR15: 0.01039000013 | AS15: 0.06075491037 | AT15: 0.01047080374 | AU15: 0.0692641877 | AV15: 0.01051585955 | AW15: 0.08861079022 | AX15: 0.01164606836 | AY15: 2.361712586 | AZ15: 0.1911712713 | BA15: 2.82324499 | BB15: 0.2231684053 | BC15: 2.957629432 | BD15: 0.2330287142 | BE15: 3.102600722 | BF15: 0.2407850173 | BG15: 3.354998528 | BH15: 0.2558796639 | BI15: 3.626542748 | BJ15: 0.2648121835 | BK15: 3.714664961 | BL15: 0.2662366371 | BM15: 3.714478688 | BN15: 0.2653758814 | BO15: 3.661549928 | BP15: 0.2567222146 | BQ15: 4.11389085 | BR15: 0.2878402174 | BS15: 4.374284031 | BT15: 0.2950936745
A16: 1st Symbol-row | B16: 1 | C16: 0.06653389572 | D16: 0.01077103215 | E16: 1.736021178 | F16: 0.1717939512 | I16: 0.06678247869 | J16: 0.01016162284 | K16: 0.07130467666 | L16: 0.01015849118 | M16: 0.06350487764 | N16: 0.01017965837 | O16: 0.06695922206 | P16: 0.01018248577 | Q16: 0.07052263742 | R16: 0.01020330622 | S16: 0.07111696016 | T16: 0.01022439348 | U16: 0.07108142674 | V16: 0.01014207675 | W16: 0.06865146448 | X16: 0.01024699584 | Y16: 0.07153836429 | Z16: 0.01031656713 | AA16: 0.05919606911 | AB16: 0.01029622492 | AC16: 0.06856556418 | AD16: 0.0102651481 | AE16: 0.06257625917 | AF16: 0.01037345187 | AG16: 0.06338131845 | AH16: 0.01030356048 | AI16: 0.0625277452 | AJ16: 0.01035331815 | AK16: 0.06827727634 | AL16: 0.01039361488 | AM16: 0.06519815445 | AN16: 0.01045168021 | AO16: 0.06655842601 | AP16: 0.01040167148 | AQ16: 0.07165857879 | AR16: 0.01044479075 | AS16: 0.06156790565 | AT16: 0.01048925347 | AU16: 0.07004024064 | AV16: 0.01054179172 | AW16: 0.08981061946 | AX16: 0.01171431049 | AY16: 2.390347481 | AZ16: 0.1928887586 | BA16: 2.857425214 | BB16: 0.2250354093 | BC16: 2.996426909 | BD16: 0.2354806235 | BE16: 3.134569582 | BF16: 0.242538439 | BG16: 3.388497055 | BH16: 0.2575631158 | BI16: 3.66673962 | BJ16: 0.2665793777 | BK16: 3.749892358 | BL16: 0.2680005268 | BM16: 3.754429009 | BN16: 0.2670716361 | BO16: 3.698435289 | BP16: 0.258008666 | BQ16: 4.154070525 | BR16: 0.2895103359 | BS16: 4.408917076 | BT16: 0.2966163986
C17: 0.06809770783 | D17: 0.01082203299 | E17: 1.925908574 | F17: 0.184244388 | I17: 0.06746320742 | J17: 0.01021598532 | K17: 0.07228318721 | L17: 0.01025250549 | M17: 0.06446512935 | N17: 0.01022074658 | O17: 0.06797778645 | P17: 0.01028850655 | Q17: 0.07159792395 | R17: 0.01026451929 | S17: 0.07213785893 | T17: 0.01030728048 | U17: 0.07248168675 | V17: 0.01020127154 | W17: 0.06986696318 | X17: 0.01028862027 | Y17: 0.07248637463 | Z17: 0.01040730172 | AA17: 0.06020146651 | AB17: 0.01034289115 | AC17: 0.06971301492 | AD17: 0.01033470487 | AE17: 0.0633565333 | AF17: 0.01044361847 | AG17: 0.06434356311 | AH17: 0.01039183107 | AI17: 0.06340164748 | AJ17: 0.0104214931 | AK17: 0.06927668512 | AL17: 0.01043412567 | AM17: 0.06608740623 | AN17: 0.01048798857 | AO17: 0.06759040829 | AP17: 0.0104872303 | AQ17: 0.07270860438 | AR17: 0.01053200904 | AS17: 0.06249303715 | AT17: 0.01053777135 | AU17: 0.07092346284 | AV17: 0.01059459719 | AW17: 0.09117639974 | AX17: 0.01182036781 | AY17: 2.422987754 | AZ17: 0.1951062213 | BA17: 2.896385406 | BB17: 0.2275054496 | BC17: 3.04065639 | BD17: 0.2385578853 | BE17: 3.171010612 | BF17: 0.2448392462 | BG17: 3.42668093 | BH17: 0.2598260274 | BI17: 3.712559457 | BJ17: 0.2690301103 | BK17: 3.790050935 | BL17: 0.2703241006 | BM17: 3.799968801 | BN17: 0.2694338656 | BO17: 3.74048127 | BP17: 0.2599135888 | BQ17: 4.199872851 | BR17: 0.2918364076 | BS17: 4.448399205 | BT17: 0.2986701893
C18: 0.07322819605 | D18: 0.01084506292 | E18: 2.128974678 | F18: 0.1968271119 | I18: 0.06817115029 | J18: 0.01028769157 | K18: 0.0733010106 | L18: 0.01036807664 | M18: 0.06546438259 | N18: 0.01028682156 | O18: 0.06903698789 | P18: 0.01041829422 | Q18: 0.0727167301 | R18: 0.01035224144 | S18: 0.07319974879 | T18: 0.0104145396 | U18: 0.0739391212 | V18: 0.01029359758 | W18: 0.07113227919 | X18: 0.01035894595 | Y18: 0.07347242047 | Z18: 0.01051935061 | AA18: 0.06124741342 | AB18: 0.01041794335 | AC18: 0.07090672046 | AD18: 0.01043359946 | AE18: 0.06416764525 | AF18: 0.0105353446 | AG18: 0.06534389313 | AH18: 0.01050605397 | AI18: 0.06431022779 | AJ18: 0.01051424883 | AK18: 0.07031684527 | AL18: 0.01049933056 | AM18: 0.06701282993 | AN18: 0.01054722743 | AO18: 0.06866348897 | AP18: 0.01059991284 | AQ18: 0.0738007242 | AR18: 0.0106445891 | AS18: 0.06345535624 | AT18: 0.01061242675 | AU18: 0.07184230087 | AV18: 0.01066999795 | AW18: 0.09259748366 | AX18: 0.01195564819 | AY18: 2.456989084 | AZ18: 0.1976440138 | BA18: 2.936969243 | BB18: 0.2303784182 | BC18: 3.086734665 | BD18: 0.2420111981 | BE18: 3.208971575 | BF18: 0.2475010413 | BG18: 3.466456724 | BH18: 0.262485071 | BI18: 3.760290209 | BJ18: 0.2719658374 | BK18: 3.831887283 | BL18: 0.2730191165 | BM18: 3.847408701 | BN18: 0.2722711961 | BO18: 3.784281556 | BP18: 0.2622826577 | BQ18: 4.247587197 | BR18: 0.294629988 | BS18: 4.489531813 | BT18: 0.3010886608
C19: 0.06295206338 | D19: 0.01086040075 | E19: 2.346134129 | F19: 0.2095435287 | I19: 0.06884895399 | J19: 0.01037093237 | K19: 0.07427568884 | L19: 0.01049584174 | M19: 0.0664216838 | N19: 0.01037253032 | O19: 0.07005101619 | P19: 0.01056133417 | Q19: 0.07378841686 | R19: 0.01045936593 | S19: 0.07421660173 | T19: 0.01053748134 | U19: 0.07533565741 | V19: 0.01041157517 | W19: 0.07234490415 | X19: 0.01045227551 | Y19: 0.07441661825 | Z19: 0.01064363627 | AA19: 0.06224917342 | AB19: 0.01051530124 | AC19: 0.07204997387 | AD19: 0.01055382001 | AE19: 0.06494388355 | AF19: 0.01064119917 | AG19: 0.06630126769 | AH19: 0.0106369755 | AI19: 0.06517987838 | AJ19: 0.01062407083 | AK19: 0.07131348919 | AL19: 0.01058394702 | AM19: 0.06789945323 | AN19: 0.01062459763 | AO19: 0.06969073342 | AP19: 0.01073059024 | AQ19: 0.0748464612 | AR19: 0.01077341035 | AS19: 0.06437690152 | AT19: 0.01070717152 | AU19: 0.07272231595 | AV19: 0.01076188549 | AW19: 0.09395874345 | AX19: 0.01210919202 | AY19: 2.489596885 | AZ19: 0.2002965392 | BA19: 2.975888864 | BB19: 0.2334215644 | BC19: 3.130928748 | BD19: 0.245560795 | BE19: 3.245377101 | BF19: 0.2503081813 | BG19: 3.504602037 | BH19: 0.2653248266 | BI19: 3.806065014 | BJ19: 0.275148724 | BK19: 3.87201207 | BL19: 0.2758672403 | BM19: 3.892905411 | BN19: 0.275353764 | BO19: 3.826287709 | BP19: 0.2649239447 | BQ19: 4.29334803 | BR19: 0.297664758 | BS19: 4.528982579 | BT19: 0.3036758827
C20: 0.07136308829 | D20: 0.01087350312 | E20: 2.578365043 | F20: 0.2223950587 | I20: 0.06944170689 | J20: 0.01045896405 | K20: 0.07512825929 | L20: 0.01062545003 | M20: 0.06725947812 | N20: 0.01047092925 | O20: 0.0709377208 | P20: 0.01070603813 | Q20: 0.07472616253 | R20: 0.01057721419 | S20: 0.07510603837 | T20: 0.01066614569 | U20: 0.07655815634 | V20: 0.01054564646 | W20: 0.07340659837 | X20: 0.01056104795 | Y20: 0.07524247468 | Z20: 0.01077008981 | AA20: 0.0631255899 | AB20: 0.01062707745 | AC20: 0.07305015556 | AD20: 0.01068562696 | AE20: 0.06562236198 | AF20: 0.01075260646 | AG20: 0.06713812601 | AH20: 0.0107739892 | AI20: 0.06594014531 | AJ20: 0.01074206197 | AK20: 0.07218587472 | AL20: 0.01068111995 | AM20: 0.06867544719 | AN20: 0.01071383108 | AO20: 0.07058892041 | AP20: 0.01086867578 | AQ20: 0.07576109598 | AR20: 0.01090803646 | AS20: 0.0651830149 | AT20: 0.01081433001 | AU20: 0.07349221449 | AV20: 0.01086281562 | AW20: 0.09514989794 | AX20: 0.01226856009 | AY20: 2.518169467 | AZ20: 0.2028489056 | BA20: 3.009991233 | BB20: 0.2363883506 | BC20: 3.169658295 | BD20: 0.2489191088 | BE20: 3.27727783 | BF20: 0.2530332485 | BG20: 3.538026563 | BH20: 0.2681152342 | BI20: 3.84617547 | BJ20: 0.2783209113 | BK20: 3.907174624 | BL20: 0.2786377339 | BM20: 3.932773057 | BN20: 0.2784318379 | BO20: 3.86309664 | BP20: 0.2676234685 | BQ20: 4.33344808 | BR20: 0.3006948583 | BS20: 4.563555436 | BT20: 0.3062222538
C21: 0.09185904229 | D21: 0.01218108375 | E21: 2.826713421 | F21: 0.2353831377 | I21: 0.06990138766 | J21: 0.01054465481 | K21: 0.07578965176 | L21: 0.01074640141 | M21: 0.06790989245 | N21: 0.01057404663 | O21: 0.07162526619 | P21: 0.01084068307 | Q21: 0.07545399654 | R21: 0.01069623884 | S21: 0.07579600184 | T21: 0.01079010903 | U21: 0.07750757838 | V21: 0.01068494979 | W21: 0.07423134972 | X21: 0.01067645117 | Y21: 0.07588308377 | Z21: 0.01088846672 | AA21: 0.06380566079 | AB21: 0.01074421654 | AC21: 0.07382623676 | AD21: 0.01081834211 | AE21: 0.06614811426 | AF21: 0.01086054093 | AG21: 0.0677866708 | AH21: 0.01090599502 | AI21: 0.06652943629 | AJ21: 0.01085866332 | AK21: 0.07286332637 | AL21: 0.01078297696 | AM21: 0.06927794537 | AN21: 0.01080769862 | AO21: 0.07128528418 | AP21: 0.0110029826 | AQ21: 0.07647053027 | AR21: 0.01103756084 | AS21: 0.06580838985 | AT21: 0.01092522088 | AU21: 0.07408962388 | AV21: 0.0109646116 | AW21: 0.09607444688 | AX21: 0.01242084135 | AY21: 2.540392049 | AZ21: 0.2050943356 | BA21: 3.036513579 | BB21: 0.2390384252 | BC21: 3.199785669 | BD21: 0.2518140688 | BE21: 3.302089355 | BF21: 0.2554554742 | BG21: 3.564022446 | BH21: 0.2706302315 | BI21: 3.877372066 | BJ21: 0.2812254078 | BK21: 3.934526283 | BL21: 0.2811061484 | BM21: 3.9637818 | BN21: 0.2812560505 | BO21: 3.891726307 | BP21: 0.2701625297 | BQ21: 4.364638679 | BR21: 0.3034748085 | BS21: 4.590449498 | BT21: 0.3085214823
C22: 2.439788008 | D22: 0.1990602238 | E22: 3.09229786 | F22: 0.2485092164 | I22: 0.07019075572 | J22: 0.01062106249 | K22: 0.07620628417 | L22: 0.01084889711 | M22: 0.06832023409 | N22: 0.01067352853 | O22: 0.07205795152 | P22: 0.01095436084 | Q22: 0.07591295411 | R22: 0.01080679721 | S22: 0.07623059542 | T22: 0.01089932858 | U22: 0.07810700701 | V22: 0.01081819964 | W22: 0.07475234175 | X22: 0.01078913588 | Y22: 0.0762865472 | Z22: 0.01098917681 | AA22: 0.0642342908 | AB22: 0.01085722861 | AC22: 0.07431534399 | AD22: 0.01094121366 | AE22: 0.06647854706 | AF22: 0.01095625835 | AG22: 0.06819436083 | AH22: 0.01102229865 | AI22: 0.06690001046 | AJ22: 0.01096442852 | AK22: 0.07329096104 | AL22: 0.01088126621 | AM22: 0.06965813698 | AN22: 0.01089859566 | AO22: 0.07172340946 | AP22: 0.01112262996 | AQ22: 0.07691728992 | AR22: 0.01115149017 | AS22: 0.06620236222 | AT22: 0.01103086041 | AU22: 0.07446614558 | AV22: 0.01105902651 | AW22: 0.09665748881 | AX22: 0.01255369887 | AY22: 2.55446429 | AZ22: 0.2068509177 | BA22: 3.053307218 | BB22: 0.2411570952 | BC22: 3.21887013 | BD22: 0.2540111427 | BE22: 3.317801594 | BF22: 0.257378624 | BG22: 3.580483654 | BH22: 0.2726660685 | BI22: 3.89712744 | BJ22: 0.2836269084 | BK22: 3.951851181 | BL22: 0.2830725075 | BM22: 3.983419496 | BN22: 0.2835976011 | BO22: 3.909857307 | BP22: 0.2723354287 | BQ22: 4.38439295 | BR22: 0.3057793933 | BS22: 4.607485968 | BT22: 0.3103872983
C23: 2.916426931 | D23: 0.232479011 | E23: 3.376314589 | F23: 0.261774761 | I23: 0.07028636819 | J23: 0.01068199699 | K23: 0.07634440343 | L23: 0.01092463356 | M23: 0.06845725959 | N23: 0.01076131551 | O23: 0.0722007232 | P23: 0.01103786196 | Q23: 0.07606585322 | R23: 0.01089993252 | S23: 0.0763746109 | T23: 0.01098495604 | U23: 0.07830788009 | V23: 0.0109346009 | W23: 0.07492736677 | X23: 0.01088997305 | Y23: 0.07642017874 | Z23: 0.01106406114 | AA23: 0.06437675487 | AB23: 0.01095695808 | AC23: 0.07447785269 | AD23: 0.01104428728 | AE23: 0.06658689069 | AF23: 0.01103200428 | AG23: 0.06832816747 | AH23: 0.01111347784 | AI23: 0.0670218461 | AJ23: 0.01105078911 | AK23: 0.0734341343 | AL23: 0.01096802488 | AM23: 0.06978522114 | AN23: 0.01097915826 | AO23: 0.07186780197 | AP23: 0.01121792474 | AQ23: 0.07706518113 | AR23: 0.0112405946 | AS23: 0.06633301471 | AT23: 0.01112269031 | AU23: 0.07459127603 | AV23: 0.01113841142 | AW23: 0.09685178913 | AX23: 0.01265636933 | AY23: 2.559246141 | AZ23: 0.2079763442 | BA23: 3.059011631 | BB23: 0.2425727184 | BC23: 3.225365569 | BD23: 0.2553323366 | BE23: 3.323141634 | BF23: 0.2586468958 | BG23: 3.586076598 | BH23: 0.2740578136 | BI23: 3.903841128 | BJ23: 0.2853308577 | BK23: 3.957745755 | BL23: 0.2843775086 | BM23: 3.990095215 | BN23: 0.2852667911 | BO23: 3.916020772 | BP23: 0.2739661301 | BQ23: 4.39111052 | BR23: 0.3074219091 | BS23: 4.613284652 | BT23: 0.3116685446
C24: 3.063477054 | D24: 0.2431996848 | E24: 3.680042861 | F24: 0.2751812535
C25: 3.189771973 | D25: 0.2492951127 | E25: 4.00485071 | F25: 0.2887301915
C26: 3.446330828 | D26: 0.2647156973 | E26: 4.352201118 | F26: 0.3024230883
C27: 3.736146907 | D27: 0.2750166587 | E27: 4.723658599 | F27: 0.3162614737
C28: 3.810760562 | D28: 0.2749090094 | E28: 5.120896252 | F28: 0.3302468934
C29: 3.823422855 | D29: 0.2752982926 | E29: 5.54570329 | F29: 0.3443809097
C30: 3.762135601 | D30: 0.2656427925 | E30: 5.999993106 | F30: 0.3586651014
C31: 4.223473939 | D31: 0.2976071192 | E31: 6 | F31: 0.3586653062
C32: 4.468771937 | D32: 0.3031716392 | E32: IsoLine | F32: IsoLine
C33: IsoLine | D33: IsoLine

Sheet PlotDat8 (hidden)
A1: Source sheet | B1: U-Pb datatable | C1: 0.07157434512 | D1: 0.01038712352 | E1: 0 | F1: 0 | G1: 0.2177075089 | H1: 0.03151129135 | I1: 0.07486302011 | J1: 0.01071885184 | K1: 0.04913277433 | L1: 0.01072446203 | M1: 0.04781709192 | N1: 0.01072938071 | O1: 0.06815090542 | P1: 0.01085163165 | Q1: 0.07395575251 | R1: 0.01084066843 | S1: 0.06013669211 | T1: 0.01092726575 | U1: 0.05898719824 | V1: 0.01092323111 | W1: 0.06991841769 | X1: 0.01109066813 | Y1: 0.07412445006 | Z1: 0.01098037659 | AA1: 0.07038367771 | AB1: 0.01099498148 | AC1: 0.07374037471 | AD1: 0.01106996439 | AE1: 0.0765624956 | AF1: 0.01105414933 | AG1: 0.07453551615 | AH1: 0.01116317771 | AI1: 0.1062425512 | AJ1: 0.01105429441 | AK1: 0.05774475692 | AL1: 0.01095442718 | AM1: 0.07349674059 | AN1: 0.01119963275 | AO1: 0.07625393834 | AP1: 0.01110705895 | AQ1: 0.07588223657 | AR1: 0.01116189806 | AS1: 0.07591153107 | AT1: 0.01131974399 | AU1: 0.07361267159 | AV1: 0.01127536826 | AW1: 0.06528863302 | AX1: 0.01134287112 | AY1: 0.07564293665 | AZ1: 0.01130763329 | BA1: 2.534997938 | BB1: 0.207984904 | BC1: 3.114625124 | BD1: 0.2474933453 | BE1: 3.062491458 | BF1: 0.2433078069 | BG1: 2.650018098 | BH1: 0.2103180375 | BI1: 3.650514659 | BJ1: 0.2705322833
A2: Plot name | B2: Concordia4 | C2: 0.04652679004 | D2: 0.01040477896 | E2: 0.06054654424 | F2: 0.009302203404 | G2: 0.4828115773 | H2: 0.06401554418 | I2: 0.0747236067 | J2: 0.01076686957 | K2: 0.04901732533 | L2: 0.01079211995 | M2: 0.0477160238 | N2: 0.01079210267 | O2: 0.06802860418 | P2: 0.01089658256 | Q2: 0.07383732972 | R2: 0.01088347851 | S2: 0.06000957266 | T2: 0.01099090077 | U2: 0.05885739862 | V2: 0.01099210288 | W2: 0.069756766 | X2: 0.01114973024 | Y2: 0.07400201054 | Z2: 0.01102172298 | AA2: 0.07026017856 | AB2: 0.01104257221 | AC2: 0.0736223162 | AD2: 0.01109503965 | AE2: 0.07639593171 | AF2: 0.01112041714 | AG2: 0.07437866628 | AH2: 0.0112098767 | AI2: 0.106001541 | AJ2: 0.0111290573 | AK2: 0.05754170549 | AL2: 0.01105027537 | AM2: 0.0733576998 | AN2: 0.01124017466 | AO2: 0.07612429314 | AP2: 0.01115437446 | AQ2: 0.07572494837 | AR2: 0.0112256403 | AS2: 0.07575447711 | AT2: 0.01136827574 | AU2: 0.07345379163 | AV2: 0.01133859947 | AW2: 0.06514340687 | AX2: 0.01140895248 | AY2: 0.07549998327 | AZ2: 0.01136727876 | BA2: 2.530987655 | BB2: 0.2085030146 | BC2: 3.108996309 | BD2: 0.2483820749 | BE2: 3.057336285 | BF2: 0.2438875645 | BG2: 2.644472195 | BH2: 0.2108667953 | BI2: 3.64376472 | BJ2: 0.2711893768
A3: Plot Type | B3: 1 | C3: 0.04552690254 | D3: 0.0104698447 | E3: 0.1247589725 | F3: 0.0186909378 | G3: 0.805630792 | H3: 0.09754404798 | I3: 0.07432905884 | J3: 0.01078412254 | K3: 0.04870010799 | L3: 0.0108283978 | M3: 0.04743760608 | N3: 0.0108287172 | O3: 0.06768495416 | P3: 0.01091138058 | Q3: 0.07350252746 | R3: 0.01090013593 | S3: 0.0596541302 | T3: 0.01102483348 | U3: 0.05849336662 | V3: 0.01103273465 | W3: 0.06930254966 | X3: 0.01116883047 | Y3: 0.07365628345 | Z3: 0.01103449626 | AA3: 0.06991246552 | AB3: 0.01106138594 | AC3: 0.07328812574 | AD3: 0.01108856314 | AE3: 0.07592362148 | AF3: 0.01115364348 | AG3: 0.07393605501 | AH3: 0.01121747402 | AI3: 0.1053075496 | AJ3: 0.0111721025 | AK3: 0.05695541022 | AL3: 0.01112581619 | AM3: 0.07296567422 | AN3: 0.01124518057 | AO3: 0.07575756923 | AP3: 0.01117349524 | AQ3: 0.07527933953 | AR3: 0.01125778642 | AS3: 0.07531124495 | AT3: 0.01137833838 | AU3: 0.07300558 | AV3: 0.01136666827 | AW3: 0.0647371835 | AX3: 0.0114398876 | AY3: 0.07509501579 | AZ3: 0.01139851541 | BA3: 2.519394119 | BB3: 0.2084213936 | BC3: 3.092724625 | BD3: 0.2484901167 | BE3: 3.042418965 | BF3: 0.2437097023 | BG3: 2.628417556 | BH3: 0.2105905637 | BI3: 3.624206603 | BJ3: 0.2709120142
A4: 1st free col | B4: 63 | C4: 0.06529637716 | D4: 0.01052438914 | E4: 0.1928592414 | F4: 0.0281670081 | G4: 1.198730174 | H4: 0.1321290782 | I4: 0.07371134047 | J4: 0.01076921301 | K4: 0.04820682134 | L4: 0.01083035658 | M4: 0.04700439453 | N4: 0.01083625802 | O4: 0.06714779584 | P4: 0.01089482685 | Q4: 0.07297846942 | R4: 0.01088929119 | S4: 0.05909916055 | T4: 0.01102631485 | U4: 0.05792459396 | V4: 0.01104183467 | W4: 0.06859256659 | X4: 0.01114642144 | Y4: 0.07311527754 | Z4: 0.01101766161 | AA4: 0.06936870824 | AB4: 0.0110498985 | AC4: 0.07276487746 | AD4: 0.01105105955 | AE4: 0.07518382866 | AF4: 0.01115113657 | AG4: 0.07324354006 | AH4: 0.01118535415 | AI4: 0.1042168 | AJ4: 0.01117994273 | AK4: 0.05603336926 | AL4: 0.01117492976 | AM4: 0.07235242346 | AN4: 0.01121424495 | AO4: 0.0751834764 | AP4: 0.01116287223 | AQ4: 0.07458151065 | AR4: 0.01125573215 | AS4: 0.07461774263 | AT4: 0.0113491167 | AU4: 0.07230434814 | AV4: 0.01135730071 | AW4: 0.06410287272 | AX4: 0.01143317027 | AY4: 0.07446084226 | AZ4: 0.01139881262 | BA4: 2.501156569 | BB4: 0.2077466536 | BC4: 3.067128307 | BD4: 0.2478087177 | BE4: 3.01894801 | BF4: 0.2427886298 | BG4: 2.603154831 | BH4: 0.2095117214 | BI4: 3.593424792 | BJ4: 0.2697226655
A5: Sigma Level | B5: 1 | C5: 0.07116644165 | D5: 0.01056066209 | E5: 0.2650827462 | F5: 0.03773122675 | G5: 1.677410243 | H5: 0.1678039275 | I5: 0.07292049544 | J5: 0.01072334886 | K5: 0.04757742855 | L5: 0.01079783759 | M5: 0.04645148537 | N5: 0.01081411421 | O5: 0.06646064658 | P5: 0.01084826247 | Q5: 0.07230761167 | R5: 0.01085182288 | S5: 0.05838962406 | T5: 0.01099522487 | U5: 0.05719715922 | V5: 0.01101866573 | W5: 0.0676843354 | X5: 0.01108431859 | Y5: 0.07242282188 | Z5: 0.01097258288 | AA5: 0.06867295869 | AB5: 0.01100904054 | AC5: 0.07209496181 | AD5: 0.0109855672 | AE5: 0.07423648688 | AF5: 0.01111309949 | AG5: 0.07235722489 | AH5: 0.01111611928 | AI5: 0.1028176583 | AJ5: 0.01115194284 | AK5: 0.05485028088 | AL5: 0.01119363719 | AM5: 0.07156762942 | AN5: 0.01114987401 | AO5: 0.07444852423 | AP5: 0.01112336606 | AQ5: 0.07368799567 | AR5: 0.01121964391 | AS5: 0.07373015358 | AT5: 0.01128297807 | AU5: 0.07140690567 | AV5: 0.01131125568 | AW5: 0.06329186261 | AX5: 0.01138934471 | AY5: 0.07364883966 | AZ5: 0.01136814633 | BA5: 2.477752503 | BB5: 0.2065334579 | BC5: 3.034281015 | BD5: 0.2463930809 | BE5: 2.988824897 | BF5: 0.2411989666 | BG5: 2.570730656 | BH5: 0.2077176697 | BI5: 3.553913046 | BJ5: 0.2677176849
A6: Absolute Errs | B6: FALSE | C6: 0.05719125891 | D6: 0.01062426919 | E6: 0.3416791347 | F6: 0.0473844137 | G6: 2.260302557 | H6: 0.2046029373 | I6: 0.07202059331 | J6: 0.01065024574 | K6: 0.04686291928 | L6: 0.01073347532 | M6: 0.045823672 | N6: 0.01076407973 | O6: 0.06567917515 | P6: 0.01077545979 | Q6: 0.07154430311 | R6: 0.01079076645 | S6: 0.05758300315 | T6: 0.01093408227 | U6: 0.05636999482 | V6: 0.01096510482 | W6: 0.06665143558 | X6: 0.01098755312 | Y6: 0.07163501512 | Z6: 0.01090291208 | AA6: 0.06788158237 | AB6: 0.01094212212 | AC6: 0.07133265139 | AD6: 0.0108973919 | AE6: 0.07315834413 | AF6: 0.01104261378 | AG6: 0.07134891347 | AH6: 0.01101537839 | AI6: 0.1012234747 | AJ6: 0.01109037121 | AK6: 0.05350199186 | AL6: 0.01118042293 | AM6: 0.07067487146 | AN6: 0.01105728271 | AO6: 0.07361225419 | AP6: 0.01105817727 | AQ6: 0.07267118185 | AR6: 0.01115244535 | AS6: 0.07272038499 | AT6: 0.01118528063 | AU6: 0.07038595806 | AV6: 0.01123226348 | AW6: 0.06236985639 | AX6: 0.0113119614 | AY6: 0.0727247916 | AZ6: 0.01130900092 | BA6: 2.451077978 | BB6: 0.2048800925 | BC6: 2.996843842 | BD6: 0.2443578927 | BE6: 2.954490022 | BF6: 0.239069498 | BG6: 2.533771846 | BH6: 0.2053537521 | BI6: 3.508872371 | BJ6: 0.2650595038
A7: Symbol Type | B7: 1 | C7: 0.05596614255 | D7: 0.01064352139 | E7: 0.4229131697 | F7: 0.05712739655 | G7: 2.970094905 | H7: 0.2425615314 | I7: 0.07108453881 | J7: 0.01055582601 | K7: 0.04612117882 | L7: 0.01064248403 | M7: 0.04517181614 | N7: 0.01069020808 | O7: 0.06486669169 | P7: 0.01068231686 | Q7: 0.07075038246 | R7: 0.01071106833 | S7: 0.05674464546 | T7: 0.01084784045 | U7: 0.05551011272 | V7: 0.01088549113 | W7: 0.06557754652 | X7: 0.0108639644 | Y7: 0.07081568067 | Z7: 0.01081429352 | AA7: 0.06705869188 | AB7: 0.01085456457 | AC7: 0.07053970404 | AD7: 0.01079367707 | AE7: 0.07203674513 | AF7: 0.01094538978 | AG7: 0.0703002932 | AH7: 0.01089129291 | AI7: 0.09956340037 | AJ7: 0.01100021601 | AK7: 0.05209773257 | AL7: 0.01113635751 | AM7: 0.06974647551 | AN7: 0.01094397224 | AO7: 0.07274241589 | AP7: 0.01097258708 | AQ7: 0.07161344541 | AR7: 0.0110595805 | AS7: 0.07167024229 | AT7: 0.01106393926 | AU7: 0.06932421641 | AV7: 0.01112672358 | AW7: 0.06141154952 | AX7: 0.01120728947 | AY7: 0.07176355896 | AZ7: 0.01122616801 | BA7: 2.423294007 | BB7: 0.2029205031 | BC7: 2.957849726 | BD7: 0.241868032 | BE7: 2.918724992 | BF7: 0.2365727407 | BG7: 2.495272582 | BH7: 0.202611479 | BI7: 3.461951696 | BJ7: 0.2619634723
A8: Inverse Plot | B8: FALSE | C8: 0.06614548342 | D8: 0.01065645929 | E8: 0.5090656449 | F8: 0.06696101062 | G8: 3.834414377 | H8: 0.2817162498 | I8: 0.07018816551 | J8: 0.01044773902 | K8: 0.04541229856 | L8: 0.0105322353 | M8: 0.04454872727 | N8: 0.0105984839 | O8: 0.0640890188 | P8: 0.01057637957 | Q8: 0.06999016845 | R8: 0.0106191852 | S8: 0.05594246972 | T8: 0.01074348623 | U8: 0.05468717544 | V8: 0.01078627449 | W8: 0.06454966833 | X8: 0.01072356485 | Y8: 0.07003119615 | Z8: 0.01071390655 | AA8: 0.06627095291 | AB8: 0.01075346128 | AC8: 0.06978035965 | AD8: 0.01068282508 | AE8: 0.07096255515 | AF8: 0.01082930399 | AG8: 0.06929631705 | AH8: 0.01075391551 | AI8: 0.09797192471 | AJ8: 0.01088878106 | AK8: 0.05075126774 | AL8: 0.01106501085 | AM8: 0.0688576547 | AN8: 0.01081912234 | AO8: 0.07190947847 | AP8: 0.01087352949 | AQ8: 0.07060047786 | AR8: 0.01094857271 | AS8: 0.07066480182 | AT8: 0.01092878431 | AU8: 0.0683076967 | AV8: 0.01100318621 | AW8: 0.06049457832 | AX8: 0.01108380883 | AY8: 0.0708430151 | AZ8: 0.01112635823 | BA8: 2.396651482 | BB8: 0.2008134441 | BC8: 2.920457737 | BD8: 0.2391252125 | BE8: 2.884427277 | BF8: 0.2339109671 | BG8: 2.458351847 | BH8: 0.1997130132 | BI8: 3.416952253 | BJ8: 0.2586804125
A9: Color Plot | B9: TRUE | C9: 0.07124585197 | D9: 0.01066902972 | E9: 0.6004343547 | F9: 0.07688609896 | G9: IsoLine | H9: IsoLine | I9: 0.06940409223 | J9: 0.01033474131 | K9: 0.04479370778 | L9: 0.0104116608 | M9: 0.04400488433 | N9: 0.01049633813 | O9: 0.0634091589 | P9: 0.01046623032 | Q9: 0.0693252491 | R9: 0.01052256087 | S9: 0.05524146347 | T9: 0.01062947374 | U9: 0.05396785246 | V9: 0.01067549285 | W9: 0.06365107358 | X9: 0.01057772881 | Y9: 0.06934511582 | Z9: 0.01060988393 | AA9: 0.06558218339 | AB9: 0.01064700305 | AC9: 0.06911613578 | AD9: 0.0105738165 | AE9: 0.07002279868 | AF9: 0.01070376099 | AG9: 0.06841832121 | AH9: 0.01061437568 | AI9: 0.0965779796 | AJ9: 0.01076509418 | AK9: 0.04957167995 | AL9: 0.01097216303 | AM9: 0.06808041601 | AN9: 0.01069284761 | AO9: 0.07118092155 | AP9: 0.01076902956 | AQ9: 0.06971434381 | AR9: 0.01082841519 | AS9: 0.06978551838 | AT9: 0.01079076523 | AU9: 0.06741875133 | AV9: 0.01087165963 | AW9: 0.05969323035 | AX9: 0.01095152313 | AY9: 0.070037737 | AZ9: 0.01101765758 | BA9: 2.37330882 | BB9: 0.1987296168 | BC9: 2.887697153 | BD9: 0.2363516411 | BE9: 2.854375474 | BF9: 0.2312998185 | BG9: 2.426000739 | BH9: 0.1968931711 | BI9: 3.377519631 | BJ9: 0.2554762983
A10: 3D plot | B10: FALSE | C10: 0.06749258602 | D10: 0.01068736229 | E10: 0.6973351242 | F10: 0.0869035125 | I10: 0.06879583994 | J10: 0.0102259873 | K10: 0.04431552101 | L10: 0.01029052878 | M10: 0.04358434627 | N10: 0.01039204603 | O10: 0.0628821902 | P10: 0.01036079275 | Q10: 0.06880949223 | R10: 0.01042902328 | S10: 0.05469841804 | T10: 0.01051503961 | U10: 0.05341041907 | V10: 0.01056212107 | W10: 0.06295456109 | X10: 0.01043827104 | Y10: 0.06881302182 | Z10: 0.01051065295 | AA10: 0.06504818333 | AB10: 0.01054381449 | AC10: 0.0686008439 | AD10: 0.01047548255 | AE10: 0.06929360919 | AF10: 0.01057893154 | AG10: 0.06773743568 | AH10: 0.01048397813 | AI10: 0.09549449419 | AJ10: 0.01063917573 | AK10: 0.04865453237 | AL10: 0.01086533603 | AM10: 0.06747772668 | AN10: 0.01057537807 | AO10: 0.07061576848 | AP10: 0.01066755325 | AQ10: 0.06902683257 | AR10: 0.01070884237 | AS10: 0.06910362627 | AT10: 0.01066106351 | AU10: 0.06672939735 | AV10: 0.01074279933 | AW10: 0.05907242605 | AX10: 0.01082114938 | AY10: 0.0694129635 | AZ10: 0.01090887233 | BA10: 2.355157107 | BB10: 0.1968378406 | BC10: 2.86222204 | BD10: 0.233772016 | BE10: 2.831004202 | BF10: 0.2289508344 | BG10: 2.400840152 | BH10: 0.1943803995 | BI10: 3.346848426 | BJ10: 0.252610708
A11: Linear | B11: FALSE | C11: 0.07095448339 | D11: 0.01070557925 | E11: 0.8001029004 | F11: 0.09701411005 | I11: 0.06841268561 | J11: 0.01013028759 | K11: 0.04401647811 | L11: 0.01017865264 | M11: 0.04332118255 | N11: 0.01029405671 | O11: 0.06255080457 | P11: 0.01026860879 | Q11: 0.06848468137 | R11: 0.01034615028 | S11: 0.05435732776 | T11: 0.01040945462 | U11: 0.05306003519 | V11: 0.01045534386 | W11: 0.06251655815 | X11: 0.01031648958 | Y11: 0.06847802126 | Z11: 0.01042425271 | AA11: 0.06471221424 | AB11: 0.01045225531 | AC11: 0.06827622989 | AD11: 0.01039578967 | AE11: 0.0688340613 | AF11: 0.01046492857 | AG11: 0.06730882175 | AH11: 0.01037328687 | AI11: 0.09480924602 | AJ11: 0.01052122688 | AK11: 0.04807412686 | AL11: 0.01075318434 | AM11: 0.06709841302 | AN11: 0.01047623042 | AO11: 0.07025980462 | AP11: 0.01057732157 | AQ11: 0.0685936422 | AR11: 0.01059954134 | AS11: 0.06867436835 | AT11: 0.01055018681 | AU11: 0.06629548214 | AV11: 0.01062704481 | AW11: 0.0586824593 | AX11: 0.01070324969 | AY11: 0.06901931005 | AZ11: 0.01080881561 | BA11: 2.343666886 | BB11: 0.1952913758 | BC11: 2.846096242 | BD11: 0.2315953232 | BE11: 2.816206861 | BF11: 0.2270543156 | BG11: 2.384908447 | BH11: 0.1923782683 | BI11: 3.327423436 | BJ11: 0.2503157948
A12: Data Range | B12: G112:K139 | C12: 0.07262194021 | D12: 0.01071256863 | E12: 0.9090929102 | F12: 0.1072187584 | I12: 0.06828567013 | J12: 0.0100553952 | K12: 0.04392080575 | L12: 0.0100850959 | M12: 0.04323671316 | N12: 0.01021030869 | O12: 0.06244184891 | P12: 0.01019714664 | Q12: 0.06837713079 | R12: 0.01028065575 | S12: 0.05424582572 | T12: 0.01032127262 | U12: 0.05294508685 | V12: 0.01036381167 | W12: 0.06237254916 | X12: 0.01022225046 | Y12: 0.06836725388 | Z12: 0.01035768285 | AA12: 0.06460149434 | AB12: 0.0103797431 | AC12: 0.06816859206 | AD12: 0.0103411941 | AE12: 0.06868138482 | AF12: 0.01037098793 | AG12: 0.06716720317 | AH12: 0.01029126947 | AI12: 0.09457774983 | AJ12: 0.01042080314 | AK12: 0.04787748442 | AL12: 0.01064479383 | AM12: 0.06697320478 | AN12: 0.01040343699 | AO12: 0.07014186802 | AP12: 0.01050564455 | AQ12: 0.06844986723 | AR12: 0.01050936701 | AS12: 0.06853252054 | AT12: 0.0104671177 | AU12: 0.06615215891 | AV12: 0.01053377382 | AW12: 0.05855492288 | AX12: 0.01060737558 | AY12: 0.06888866809 | AZ12: 0.01072559344 | BA12: 2.339769026 | BB12: 0.194215508 | BC12: 2.840626173 | BD12: 0.2299979053 | BE12: 2.811182245 | BF12: 0.2257639068 | BG12: 2.379496317 | BH12: 0.1910489783 | BI12: 3.320818359 | BJ12: 0.2487774788
A13: Filled Symbols | B13: FALSE | C13: 0.07085135966 | D13: 0.01072722359 | E13: 1.024681889 | F13: 0.1175183325 | I13: 0.06842508354 | J13: 0.01000737746 | K13: 0.04403625474 | L13: 0.01001743798 | M13: 0.04333778128 | N13: 0.01014758673 | O13: 0.06256415014 | P13: 0.01015219572 | Q13: 0.06849555359 | R13: 0.01023784566 | S13: 0.05437294517 | T13: 0.0102576376 | U13: 0.05307488648 | V13: 0.0102949399 | W13: 0.06253420085 | X13: 0.01016318834 | Y13: 0.0684896934 | Z13: 0.01031633646 | AA13: 0.06472499349 | AB13: 0.01033215238 | AC13: 0.06828665057 | AD13: 0.01031611885 | AE13: 0.06884794871 | AF13: 0.01030472012 | AG13: 0.06732405303 | AH13: 0.01024457047 | AI13: 0.09481876005 | AJ13: 0.01034604025 | AK13: 0.04808053584 | AL13: 0.01054894564 | AM13: 0.06711224557 | AN13: 0.01036289509 | AO13: 0.07027151322 | AP13: 0.01045832905 | AQ13: 0.06860715544 | AR13: 0.01044562478 | AS13: 0.06868957451 | AT13: 0.01041858595 | AU13: 0.06631103886 | AV13: 0.01047054262 | AW13: 0.05870014903 | AX13: 0.01054129422 | AY13: 0.06903162147 | AZ13: 0.01066594797 | BA13: 2.343779308 | BB13: 0.1936973974 | BC13: 2.846254988 | BD13: 0.2291091757 | BE13: 2.816337417 | BF13: 0.2251841492 | BG13: 2.385042219 | BH13: 0.1905002204 | BI13: 3.327568299 | BJ13: 0.2481203852
A14: ConcAge | B14: FALSE | C14: 0.1004101505 | D14: 0.01073754878 | E14: 1.14726938 | F14: 0.1279137154 | I14: 0.0688196314 | J14: 0.009990124494 | K14: 0.04435347209 | L14: 0.009981160126 | M14: 0.04361619899 | N14: 0.0101109722 | O14: 0.06290780016 | P14: 0.0101373977 | Q14: 0.06883035585 | R14: 0.01022118825 | S14: 0.05472838763 | T14: 0.0102237049 | U14: 0.05343891847 | V14: 0.01025430813 | W14: 0.06298841719 | X14: 0.01014408811 | Y14: 0.06883542049 | Z14: 0.01030356318 | AA14: 0.06507270652 | AB14: 0.01031333864 | AC14: 0.06862084103 | AD14: 0.01032259536 | AE14: 0.06932025894 | AF14: 0.01027149377 | AG14: 0.06776666431 | AH14: 0.01023697316 | AI14: 0.09551275147 | AJ14: 0.01030299506 | AK14: 0.04866683111 | AL14: 0.01047340483 | AM14: 0.06750427114 | AN14: 0.01035788918 | AO14: 0.07063823713 | AP14: 0.01043920827 | AQ14: 0.06905276427 | AR14: 0.01041347865 | AS14: 0.06913280667 | AT14: 0.0104085233 | AU14: 0.06675925049 | AV14: 0.01044247381 | AW14: 0.0591063724 | AX14: 0.01051035911 | AY14: 0.06943658895 | AZ14: 0.01063471132 | BA14: 2.355372844 | BB14: 0.1937790183 | BC14: 2.862526672 | BD14: 0.229001134 | BE14: 2.831254738 | BF14: 0.2253620113 | BG14: 2.401096858 | BH14: 0.190776452 | BI14: 3.347126416 | BJ14: 0.2483977478
A15: ConcSwap | B15: FALSE | C15: 0.05281112067 | D15: 0.01079961051 | E15: 1.277279121 | F15: 0.1384057982 | I15: 0.06943734977 | J15: 0.01000503402 | K15: 0.04484675873 | L15: 0.009979201351 | M15: 0.04404941054 | N15: 0.01010343138 | O15: 0.06344495849 | P15: 0.01015395143 | Q15: 0.06935441389 | R15: 0.01023203299 | S15: 0.05528335728 | T15: 0.01022222353 | U15: 0.05400769113 | V15: 0.01024520811 | W15: 0.06369840026 | X15: 0.01016649714 | Y15: 0.0693764264 | Z15: 0.01032039783 | AA15: 0.06561646381 | AB15: 0.01032482608 | AC15: 0.06914408931 | AD15: 0.01036009895 | AE15: 0.07006005176 | AF15: 0.01027400069 | AG15: 0.06845917925 | AH15: 0.01026909302 | AI15: 0.09660350104 | AJ15: 0.01029515482 | AK15: 0.04958887207 | AL15: 0.01042429126 | AM15: 0.06811752191 | AN15: 0.0103888248 | AO15: 0.07121232996 | AP15: 0.01044983128 | AQ15: 0.06975059315 | AR15: 0.01041553292 | AS15: 0.06982630899 | AT15: 0.01043774499 | AU15: 0.06746048236 | AV15: 0.01045184138 | AW15: 0.05974068318 | AX15: 0.01051707643 | AY15: 0.07007076248 | AZ15: 0.01063441411 | BA15: 2.373610394 | BB15: 0.1944537584 | BC15: 2.88812299 | BD15: 0.2296825329 | BE15: 2.854725693 | BF15: 0.2262830839 | BG15: 2.426359583 | BH15: 0.1918552944 | BI15: 3.377908227 | BJ15: 0.2495870965
A16: 1st Symbol-row | B16: 1 | C16: 0.07023497268 | D16: 0.01080153487 | E16: 1.415160502 | F16: 0.1489954805 | I16: 0.07022819481 | J16: 0.01005089817 | K16: 0.04547615152 | L16: 0.01001172034 | M16: 0.04460231971 | N16: 0.01012557519 | O16: 0.06413210774 | P16: 0.01020051582 | Q16: 0.07002527164 | R16: 0.0102695013 | S16: 0.05599289377 | T16: 0.0102533135 | U16: 0.05473512588 | V16: 0.01026837705 | W16: 0.06460663145 | X16: 0.01022859999 | Y16: 0.07006888206 | Z16: 0.01036547656 | AA16: 0.06631221335 | AB16: 0.01036568404 | AC16: 0.06981400496 | AD16: 0.01042559129 | AE16: 0.07100739354 | AF16: 0.01031203777 | AG16: 0.06934549443 | AH16: 0.01033832789 | AI16: 0.09800264271 | AJ16: 0.01032315471 | AK16: 0.05077196045 | AL16: 0.01040558382 | AM16: 0.06890231595 | AN16: 0.01045319573 | AO16: 0.07194728213 | AP16: 0.01048933745 | AQ16: 0.07064410813 | AR16: 0.01045162116 | AS16: 0.07071389804 | AT16: 0.01050388362 | AU16: 0.06835792482 | AV16: 0.01049788641 | AW16: 0.06055169329 | AX16: 0.01056090199 | AY16: 0.07088276508 | AZ16: 0.0106650804 | BA16: 2.397014461 | BB16: 0.1956669541 | BC16: 2.920970282 | BD16: 0.2310981697 | BE16: 2.884848806 | BF16: 0.227872747 | BG16: 2.458783758 | BH16: 0.193649346 | BI16: 3.417419973 | BJ16: 0.2515920772
C17: 0.07319790318 | D17: 0.01080635175 | E17: 1.561390124 | F17: 0.1596836701 | I17: 0.07112809693 | J17: 0.0101240013 | K17: 0.04619066079 | L17: 0.01007608261 | M17: 0.04523013307 | N17: 0.01017560967 | O17: 0.06491357918 | P17: 0.0102733185 | Q17: 0.0707885802 | R17: 0.01033055773 | S17: 0.05679951468 | T17: 0.0103144561 | U17: 0.05556229027 | V17: 0.01032193796 | W17: 0.06563953127 | X17: 0.01032536546 | Y17: 0.07085668882 | Z17: 0.01043514736 | AA17: 0.06710358967 | AB17: 0.01043260247 | AC17: 0.07057631538 | AD17: 0.0105137666 | AE17: 0.07208553629 | AF17: 0.01038252348 | AG17: 0.07035380585 | AH17: 0.01043906878 | AI17: 0.09959682634 | AJ17: 0.01038472634 | AK17: 0.05212024947 | AL17: 0.01041879808 | AM17: 0.06979507391 | AN17: 0.01054578704 | AO17: 0.07278355217 | AP17: 0.01055452624 | AQ17: 0.07166092195 | AR17: 0.01051881973 | AS17: 0.07172366663 | AT17: 0.01060158106 | AU17: 0.06937887243 | AV17: 0.01057687861 | AW17: 0.06147369951 | AX17: 0.0106382853 | AY17: 0.07180681314 | AZ17: 0.01072422581 | BA17: 2.423688985 | BB17: 0.1973203195 | BC17: 2.958407454 | BD17: 0.2331333579 | BE17: 2.919183681 | BF17: 0.2300022157 | BG17: 2.495742568 | BH17: 0.1960132637 | BI17: 3.462460647 | BJ17: 0.2542502582
C18: 0.0721660519 | D18: 0.01083563254 | E18: 1.716473444 | F18: 0.1704712835 | I18: 0.07206415143 | J18: 0.01021842102 | K18: 0.04693240126 | L18: 0.01016707389 | M18: 0.04588198894 | N18: 0.01024948132 | O18: 0.06572606263 | P18: 0.01036646142 | Q18: 0.07158250085 | R18: 0.01041025584 | S18: 0.05763787237 | T18: 0.01040069792 | U18: 0.05642217238 | V18: 0.01040155165 | W18: 0.06671342033 | X18: 0.01044895418 | Y18: 0.07167602326 | Z18: 0.01052376592 | AA18: 0.06792648017 | AB18: 0.01052016002 | AC18: 0.07136926273 | AD18: 0.01061748143 | AE18: 0.07320713529 | AF18: 0.01047974748 | AG18: 0.07140242612 | AH18: 0.01056315426 | AI18: 0.1012569007 | AJ18: 0.01047488155 | AK18: 0.05352450876 | AL18: 0.01046286351 | AM18: 0.07072346985 | AN18: 0.01065909751 | AO18: 0.07365339047 | AP18: 0.01064011643 | AQ18: 0.07271865839 | AR18: 0.01061168458 | AS18: 0.07277380932 | AT18: 0.01072292243 | AU18: 0.07044061409 | AV18: 0.0106824185 | AW18: 0.06243200638 | AX18: 0.01074295723 | AY18: 0.07276804578 | AZ18: 0.01080705872 | BA18: 2.451472956 | BB18: 0.1992799089 | BC18: 2.997401571 | BD18: 0.2356232186 | BE18: 2.954948711 | BF18: 0.232498973 | BG18: 2.534241832 | BH18: 0.1987555367 | BI18: 3.509381323 | BJ18: 0.2573462897
C19: 0.07222202581 | D19: 0.01089343084 | E19: 1.880946524 | F19: 0.1813592455 | I19: 0.07296052473 | J19: 0.01032650802 | K19: 0.04764128152 | L19: 0.01027732263 | M19: 0.04650507781 | N19: 0.0103412055 | O19: 0.06650373552 | P19: 0.01047239872 | Q19: 0.07234271486 | R19: 0.01050213898 | S19: 0.0584400481 | T19: 0.01050505215 | U19: 0.05724510966 | V19: 0.01050076829 | W19: 0.06774129852 | X19: 0.01058935373 | Y19: 0.07246050779 | Z19: 0.01062415289 | AA19: 0.06871421913 | AB19: 0.0106212633 | AC19: 0.07212860712 | AD19: 0.01072833341 | AE19: 0.07428132527 | AF19: 0.01059583327 | AG19: 0.07240640226 | AH19: 0.01070053167 | AI19: 0.1028483763 | AJ19: 0.01058631649 | AK19: 0.05487097359 | AL19: 0.01053421017 | AM19: 0.07161229066 | AN19: 0.01078394741 | AO19: 0.07448632789 | AP19: 0.01073917402 | AQ19: 0.07373162594 | AR19: 0.01072269236 | AS19: 0.07377924979 | AT19: 0.01085807738 | AU19: 0.07145713379 | AV19: 0.01080595587 | AW19: 0.06334897758 | AX19: 0.01086643788 | AY19: 0.07368858964 | AZ19: 0.0109068685 | BA19: 2.478115482 | BB19: 0.2013869679 | BC19: 3.034793559 | BD19: 0.2383660381 | BE19: 2.989246426 | BF19: 0.2351607465 | BG19: 2.571162567 | BH19: 0.2016540025 | BI19: 3.554380765 | BJ19: 0.2606293495
C20: 0.06988241525 | D20: 0.01090457104 | E20: 2.05537788 | F20: 0.1923484895 | I20: 0.07374459801 | J20: 0.01043950573 | K20: 0.0482598723 | L20: 0.01039789712 | M20: 0.04704892074 | N20: 0.01044335127 | O20: 0.06718359542 | P20: 0.01058254797 | Q20: 0.0730076342 | R20: 0.01059876331 | S20: 0.05914105436 | T20: 0.01061906463 | U20: 0.05796443263 | V20: 0.01061154993 | W20: 0.06863989327 | X20: 0.01073518978 | Y20: 0.07314658812 | Z20: 0.01072817551 | AA20: 0.06940298865 | AB20: 0.01072772153 | AC20: 0.07279283099 | AD20: 0.01083734199 | AE20: 0.07522108174 | AF20: 0.01072137626 | AG20: 0.0732843981 | AH20: 0.01084007149 | AI20: 0.1042423214 | AJ20: 0.01071000338 | AK20: 0.05605056138 | AL20: 0.01062705798 | AM20: 0.07238952936 | AN20: 0.01091022214 | AO20: 0.07521488481 | AP20: 0.01084367395 | AQ20: 0.07461775999 | AR20: 0.01084284988 | AS20: 0.07465853324 | AT20: 0.01099609646 | AU20: 0.07234607917 | AV20: 0.01093748246 | AW20: 0.06415032555 | AX20: 0.01099872357 | AY20: 0.07449386774 | AZ20: 0.01101556915 | BA20: 2.501458143 | BB20: 0.2034707952 | BC20: 3.067554144 | BD20: 0.2411396096 | BE20: 3.019298228 | BF20: 0.2377718952 | BG20: 2.603513675 | BH20: 0.2044738446 | BI20: 3.593813388 | BJ20: 0.2638334637
C21: 0.06192177795 | D21: 0.01097512335 | E21: 2.240370452 | F21: 0.2034399577 | I21: 0.0743528503 | J21: 0.01054825973 | K21: 0.04873805907 | L21: 0.01051902914 | M21: 0.04746945881 | N21: 0.01054764337 | O21: 0.06771056412 | P21: 0.01068798553 | Q21: 0.07352339108 | R21: 0.0106923009 | S21: 0.05968409979 | T21: 0.01073349876 | U21: 0.05852186602 | V21: 0.01072492171 | W21: 0.06933640576 | X21: 0.01087464755 | Y21: 0.07367868211 | Z21: 0.0108274065 | AA21: 0.06993698871 | AB21: 0.01083091009 | AC21: 0.07330812287 | AD21: 0.01093567594 | AE21: 0.07595027123 | AF21: 0.01084620571 | AG21: 0.07396528364 | AH21: 0.01097046904 | AI21: 0.1053258068 | AJ21: 0.01083592182 | AK21: 0.05696770896 | AL21: 0.01073388498 | AM21: 0.07299221869 | AN21: 0.01102769167 | AO21: 0.07578003788 | AP21: 0.01094515026 | AQ21: 0.07530527124 | AR21: 0.0109624227 | AS21: 0.07534042534 | AT21: 0.01112579818 | AU21: 0.07303543314 | AV21: 0.01106634276 | AW21: 0.06477112985 | AX21: 0.01112909732 | AY21: 0.07511864124 | AZ21: 0.0111243544 | BA21: 2.519609856 | BB21: 0.2053625714 | BC21: 3.093029257 | BD21: 0.2437192346 | BE21: 3.042669501 | BF21: 0.2401208793 | BG21: 2.628674262 | BH21: 0.2069866162 | BI21: 3.624484593 | BJ21: 0.266699054
C22: 0.07226580237 | D22: 0.01101661337 | E22: 2.436563685 | F22: 0.2146346009 | I22: 0.07473600463 | J22: 0.01064395945 | K22: 0.04903710197 | L22: 0.01063090529 | M22: 0.04773262252 | N22: 0.01064563269 | O22: 0.06804194975 | P22: 0.01078016949 | Q22: 0.07384820193 | R22: 0.0107751739 | S22: 0.06002519007 | T22: 0.01083908375 | U22: 0.0588722499 | V22: 0.01083169892 | W22: 0.0697744087 | X22: 0.010996429 | Y22: 0.07401368268 | Z22: 0.01091380673 | AA22: 0.0702729578 | AB22: 0.01092246927 | AC22: 0.07363273688 | AD22: 0.01101536882 | AE22: 0.07640981912 | AF22: 0.01096020868 | AG22: 0.07439389757 | AH22: 0.0110811603 | AI22: 0.106011055 | AJ22: 0.01095387067 | AK22: 0.05754811447 | AL22: 0.01084603667 | AM22: 0.07337153234 | AN22: 0.01112683933 | AO22: 0.07613600174 | AP22: 0.01103538194 | AQ22: 0.0757384616 | AR22: 0.01107172373 | AS22: 0.07576968326 | AT22: 0.01123667488 | AU22: 0.07346934836 | AV22: 0.01118209727 | AW22: 0.0651610966 | AX22: 0.01124699701 | AY22: 0.07551229469 | AZ22: 0.01122441112 | BA22: 2.531100078 | BB22: 0.2069090362 | BC22: 3.109155055 | BD22: 0.2458959274 | BE22: 3.057466842 | BF22: 0.2420173981 | BG22: 2.644605967 | BH22: 0.2089887474 | BI22: 3.643909582 | BJ22: 0.2689939672
C23: 2.437383482 | D23: 0.201100206 | E23: 2.64463574 | F23: 0.225933379 | I23: 0.07486302011 | J23: 0.01071885183 | K23: 0.04913277433 | L23: 0.01072446203 | M23: 0.04781709192 | N23: 0.01072938071 | O23: 0.06815090542 | P23: 0.01085163165 | Q23: 0.07395575251 | R23: 0.01084066843 | S23: 0.06013669211 | T23: 0.01092726575 | U23: 0.05898719824 | V23: 0.01092323111 | W23: 0.06991841769 | X23: 0.01109066813 | Y23: 0.07412445006 | Z23: 0.01098037659 | AA23: 0.07038367771 | AB23: 0.01099498148 | AC23: 0.07374037471 | AD23: 0.01106996439 | AE23: 0.0765624956 | AF23: 0.01105414933 | AG23: 0.07453551615 | AH23: 0.01116317771 | AI23: 0.1062425512 | AJ23: 0.01105429441 | AK23: 0.05774475692 | AL23: 0.01095442718 | AM23: 0.07349674059 | AN23: 0.01119963275 | AO23: 0.07625393834 | AP23: 0.01110705895 | AQ23: 0.07588223657 | AR23: 0.01116189806 | AS23: 0.07591153107 | AT23: 0.01131974399 | AU23: 0.07361267159 | AV23: 0.01127536826 | AW23: 0.06528863302 | AX23: 0.01134287111 | AY23: 0.07564293665 | AZ23: 0.01130763329 | BA23: 2.534997938 | BB23: 0.207984904 | BC23: 3.114625124 | BD23: 0.2474933453 | BE23: 3.062491458 | BF23: 0.2433078069 | BG23: 2.650018098 | BH23: 0.2103180375 | BI23: 3.650514659 | BJ23: 0.2705322833
C24: 2.977625648 | D24: 0.2387456253 | E24: 2.865305839 | F24: 0.2373372607
C25: 2.936836851 | D25: 0.2345358568 | E25: 3.09933675 | F25: 0.2488472236
C26: 2.514757207 | D26: 0.2006835079 | E26: 3.347537424 | F26: 0.2604642545
C27: 3.485666509 | D27: 0.259654881 | E27: 3.610765791 | F27: 0.2721893493
C28: IsoLine | D28: IsoLine | E28: 3.889931726 | F28: 0.2840235134
E29: 4.186000193 | F29: 0.2959677613
E30: 4.499994583 | F30: 0.3080231171
E31: 4.5 | F31: 0.308023315
E32: IsoLine | F32: IsoLine

Sheet PlotDat10 (hidden)
A1: Source sheet | B1: U-Pb datatable | C1: 0.06585193416 | D1: 0.01020863481 | E1: 0 | F1: 0 | G1: 0.2177075089 | H1: 0.03151129135 | I1: 0.06924948316 | J1: 0.01044187433 | K1: 0.06918004939 | L1: 0.01071463677 | M1: 0.0691543748 | N1: 0.01063493502 | O1: 0.06161811129 | P1: 0.01084045776 | Q1: 0.07506891435 | R1: 0.01071848768 | S1: 0.06724660091 | T1: 0.01079189636 | U1: 0.06961724851 | V1: 0.01095124487 | W1: 0.07198536395 | X1: 0.01088965176 | Y1: 0.07207623026 | Z1: 0.01098474285 | AA1: 0.07430964947 | AB1: 0.01088888327 | AC1: 0.06370387632 | AD1: 0.01090691722 | AE1: 0.07667232155 | AF1: 0.01103047204 | AG1: 0.07412694134 | AH1: 0.01100489094 | AI1: 0.07125942825 | AJ1: 0.01086608916 | AK1: 0.06903661621 | AL1: 0.01089435201 | AM1: 0.07678947382 | AN1: 0.01106255191 | AO1: 0.07257236241 | AP1: 0.01085994096 | AQ1: 0.07998935836 | AR1: 0.01102242215 | AS1: 0.05666194171 | AT1: 0.01102036267 | AU1: 0.07359066599 | AV1: 0.01107598999 | AW1: 0.07249159694 | AX1: 0.01112912722 | AY1: 0.07538413584 | AZ1: 0.01115831815 | BA1: 0.07713960613 | BB1: 0.01134218297 | BC1: 3.049135879 | BD1: 0.250028866 | BE1: 2.954076369 | BF1: 0.2380843474 | BG1: 3.310201678 | BH1: 0.2562779948 | BI1: 4.101417897 | BJ1: 0.2977802332
A2: Plot name | B2: Concordia6 | C2: 0.06501576678 | D2: 0.01034495492 | E2: 0.06373337842 | F2: 0.009779307996 | G2: 0.4828115773 | H2: 0.06401554418 | I2: 0.06910682526 | J2: 0.01050574532 | K2: 0.069003194 | L2: 0.01079172332 | M2: 0.06894238998 | N2: 0.0107322905 | O2: 0.06146255679 | P2: 0.01091744514 | Q2: 0.07493661858 | R2: 0.0107747359 | S2: 0.06713168908 | T2: 0.01084334401 | U2: 0.06948458804 | V2: 0.01099220217 | W2: 0.07186456877 | X2: 0.01092985979 | Y2: 0.07192644334 | Z2: 0.01103517202 | AA2: 0.07414711178 | AB2: 0.01095892446 | AC2: 0.06357437571 | AD2: 0.01096834493 | AE2: 0.07650305301 | AF2: 0.0110871579 | AG2: 0.07399417531 | AH2: 0.01104019247 | AI2: 0.071149859 | AJ2: 0.01091086212 | AK2: 0.0689275606 | AL2: 0.01093753985 | AM2: 0.07662844538 | AN2: 0.01110868324 | AO2: 0.07224299532 | AP2: 0.01099096431 | AQ2: 0.07981859399 | AR2: 0.01109125858 | AS2: 0.05653253861 | AT2: 0.01109354285 | AU2: 0.07345568182 | AV2: 0.01113115357 | AW2: 0.07237769922 | AX2: 0.0111701894 | AY2: 0.07526902389 | AZ2: 0.01119790178 | BA2: 0.07694700034 | BB2: 0.0114255014 | BC2: 3.044049973 | BD2: 0.2506374123 | BE2: 2.949585239 | BF2: 0.2387126093 | BG2: 3.304869573 | BH2: 0.2566934489 | BI2: 4.094886447 | BJ2: 0.2983344723
A3: Plot Type | B3: 1 | C3: 0.064060434 | D3: 0.01036902176 | E3: 0.1315287004 | F3: 0.01965425086 | G3: 0.805630792 | H3: 0.09754404798 | I3: 0.06870047545 | J3: 0.0105455462 | K3: 0.06850330097 | L3: 0.01083261536 | M3: 0.06833489813 | N3: 0.0108002161 | O3: 0.06102619977 | P3: 0.01095972382 | Q3: 0.07455852835 | R3: 0.01081031319 | S3: 0.06680735975 | T3: 0.01087083924 | U3: 0.06911144091 | V3: 0.01099857249 | W3: 0.0715239734 | X3: 0.0109408924 | Y3: 0.07150438249 | Z3: 0.01104914282 | AA3: 0.0736845947 | AB3: 0.01100037533 | AC3: 0.06321063225 | AD3: 0.01100098897 | AE3: 0.07602431415 | AF3: 0.01110551975 | AG3: 0.07361900059 | AH3: 0.01104177524 | AI3: 0.07084023968 | AJ3: 0.01093245248 | AK3: 0.06862059867 | AL3: 0.01095548746 | AM3: 0.07617292556 | AN3: 0.01111600816 | AO3: 0.07128949921 | AP3: 0.01109298838 | AQ3: 0.07933171134 | AR3: 0.01113084503 | AS3: 0.05616914124 | AT3: 0.01113985587 | AU3: 0.07307387697 | AV3: 0.01115833037 | AW3: 0.07205677845 | AX3: 0.01118431316 | AY3: 0.07494392794 | AZ3: 0.01121093003 | BA3: 0.07639929463 | BB3: 0.01147439241 | BC3: 3.02934295 | BD3: 0.2504779581 | BE3: 2.936601118 | BF3: 0.2386912226 | BG3: 3.289417685 | BH3: 0.2563248619 | BI3: 4.075949721 | BJ3: 0.2979948124
A4: 1st free col | B4: 63 | C4: 0.05799646042 | D4: 0.01048901682 | E4: 0.2036448472 | F4: 0.02962576383 | G4: 1.198730174 | H4: 0.1321290782 | I4: 0.06806335375 | J4: 0.01055805251 | K4: 0.06772086865 | L4: 0.01083400004 | M4: 0.06738111461 | N4: 0.0108332089 | O4: 0.06034439128 | P4: 0.01096386861 | Q4: 0.07396527428 | R4: 0.01082233731 | S4: 0.06629988817 | T4: 0.01087215456 | U4: 0.0685280373 | V4: 0.01096983974 | W4: 0.07099117084 | X4: 0.01092185577 | Y4: 0.07084424058 | Z4: 0.01102552342 | AA4: 0.07295956862 | AB4: 0.01100987777 | AC4: 0.06264211427 | AD4: 0.0110022047 | AE4: 0.07527488955 | AF4: 0.01108407004 | AG4: 0.07303181159 | AH4: 0.01100951104 | AI4: 0.0703556538 | AJ4: 0.01092911113 | AK4: 0.06814059863 | AL4: 0.01094674083 | AM4: 0.07545981785 | AN4: 0.01108393327 | AO4: 0.06978912066 | AP4: 0.01115774777 | AQ4: 0.07856815477 | AR4: 0.01113797446 | AS4: 0.05560118991 | AT4: 0.01115554971 | AU4: 0.07247618298 | AV4: 0.01115531868 | AW4: 0.07155483371 | AX4: 0.01117035428 | AY4: 0.07443518533 | AZ4: 0.01119634742 | BA4: 0.07554086087 | BB4: 0.01148489514 | BC4: 3.006206287 | BD4: 0.2495634215 | BE4: 2.916175901 | BF4: 0.23802192 | BG4: 3.265097835 | BH4: 0.2552020945 | BI4: 4.046141862 | BJ4: 0.2967887709
A5: Sigma Level | B5: 1 | C5: 0.07190264548 | D5: 0.01051958355 | E5: 0.2803571997 | F5: 0.03969479129 | G5: 1.677410243 | H5: 0.1678039275 | I5: 0.067247076 | J5: 0.01054225108 | K5: 0.06671928508 | L5: 0.0107957652 | M5: 0.06615830929 | N5: 0.01082859602 | O5: 0.05947236741 | P5: 0.01092954373 | Q5: 0.0732049183 | R5: 0.01080983411 | S5: 0.06565038666 | T5: 0.0108471834 | U5: 0.06778164109 | V5: 0.01090833167 | W5: 0.0703093256 | X5: 0.01087429216 | Y5: 0.06999949838 | Z5: 0.01096622731 | AA5: 0.07203077083 | AB5: 0.01098666195 | AC5: 0.06191487971 | AD5: 0.01097189362 | AE5: 0.07431549313 | AF5: 0.01102454648 | AG5: 0.07228017887 | AH5: 0.0109460137 | AI5: 0.06973535964 | AJ5: 0.01090110876 | AK5: 0.06752644724 | AL5: 0.01091200856 | AM5: 0.07454689402 | AN5: 0.01101505706 | AO5: 0.06786341143 | AP5: 0.01117999607 | AQ5: 0.07758978307 | AR5: 0.01111206927 | AS5: 0.05487469665 | AT5: 0.01113935297 | AU5: 0.07171102149 | AV5: 0.01112236251 | AW5: 0.07091252957 | AX5: 0.01112944361 | AY5: 0.07378401138 | AZ5: 0.01115533533 | BA5: 0.07444124425 | BB5: 0.0114561587 | BC5: 2.976514377 | BD5: 0.2479678928 | BE5: 2.889964318 | BF5: 0.2367589243 | BG5: 3.233880273 | BH5: 0.2534161067 | BI5: 4.007877724 | BJ5: 0.2948140541
A6: Absolute Errs | B6: FALSE | C6: 0.06454673644 | D6: 0.01054768647 | E6: 0.3619586897 | F6: 0.04986228688 | G6: 2.260302557 | H6: 0.2046029373 | I6: 0.06631777215 | J6: 0.01049942205 | K6: 0.06557969258 | L6: 0.01072100839 | M6: 0.0647655466 | N6: 0.01078675117 | O6: 0.05848077432 | P6: 0.01085952999 | Q6: 0.07233905992 | R6: 0.01077381653 | S6: 0.06491147398 | T6: 0.01079794878 | U6: 0.06693272087 | V6: 0.01081903131 | W6: 0.06953367672 | X6: 0.01080205486 | Y6: 0.06903859187 | Z6: 0.01087605833 | AA6: 0.07097344702 | AB6: 0.01093260868 | AC6: 0.0610878448 | AD6: 0.01091251137 | AE6: 0.07322384948 | AF6: 0.01093177132 | AG6: 0.07142499524 | AH6: 0.01085642742 | AI6: 0.06902960974 | AJ6: 0.01085071395 | AK6: 0.06682789938 | AL6: 0.01085410446 | AM6: 0.07350811371 | AN6: 0.01091495949 | AO6: 0.06566838101 | AP6: 0.01115793085 | AQ6: 0.07647585811 | AR6: 0.01105522816 | AS6: 0.05404851762 | AT6: 0.0110925778 | AU6: 0.07084038131 | AV6: 0.01106213176 | AW6: 0.07018190171 | AX6: 0.01106489551 | AY6: 0.07304316031 | AZ6: 0.01109121634 | BA6: 0.07318952917 | BB6: 0.01139051118 | BC6: 2.942672682 | BD6: 0.2458206322 | BE6: 2.860089875 | BF6: 0.2350045559 | BG6: 3.198294058 | BH6: 0.2511115886 | BI6: 3.96425724 | BJ6: 0.2922306417
A7: Symbol Type | B7: 1 | C7: 0.06651613207 | D7: 0.01056527643 | E7: 0.4487609182 | F7: 0.06012921353 | G7: 2.970094905 | H7: 0.2425615314 | I7: 0.06535072888 | J7: 0.01043303516 | K7: 0.06439441416 | L7: 0.01061578597 | M7: 0.06331565988 | N7: 0.01071106436 | O7: 0.05744994501 | P7: 0.01075949947 | Q7: 0.07143784583 | R7: 0.01071720252 | S7: 0.06414301243 | T7: 0.0107284394 | U7: 0.0660500511 | V7: 0.01070917324 | W7: 0.06872706265 | X7: 0.01071099614 | Y7: 0.06803936799 | Z7: 0.01076232141 | AA7: 0.06987325527 | AB7: 0.01085209704 | AC7: 0.06022801099 | AD7: 0.01082886873 | AE7: 0.07208839708 | AF7: 0.01081326066 | AG7: 0.07053554261 | AH7: 0.01074800994 | AI7: 0.06829557975 | AJ7: 0.0107820094 | AK7: 0.06610154727 | AL7: 0.01077771957 | AM7: 0.07242763272 | AN7: 0.01079174987 | AO7: 0.06338185773 | AP7: 0.01109333971 | AQ7: 0.07531662347 | AR7: 0.01097205604 | AS7: 0.05318958495 | AT7: 0.01101901365 | AU7: 0.06993479654 | AV7: 0.01097950596 | AW7: 0.06942214125 | AX7: 0.01098193927 | AY7: 0.07227265148 | AZ7: 0.01100918498 | BA7: 0.07188712215 | BB7: 0.01129327092 | BC7: 2.907422857 | BD7: 0.243295598 | BE7: 2.828972823 | BF7: 0.2329009434 | BG7: 3.161222176 | BH7: 0.2484752385 | BI7: 3.918814282 | BJ7: 0.2892478264
A8: Inverse Plot | B8: FALSE | C8: 0.06915145685 | D8: 0.01056973175 | E8: 0.541095346 | F8: 0.07049654363 | G8: 3.834414377 | H8: 0.2817162498 | I8: 0.06442429028 | J8: 0.01034846869 | K8: 0.06325947404 | L8: 0.01048862242 | M8: 0.06192611032 | N8: 0.0106076673 | O8: 0.05646339112 | P8: 0.01063755605 | Q8: 0.07057428705 | R8: 0.01064457859 | S8: 0.06340725819 | T8: 0.01064428649 | U8: 0.06520514044 | V8: 0.0105876575 | W8: 0.06795483048 | X8: 0.01060849301 | Y8: 0.06708277792 | Z8: 0.01063423086 | AA8: 0.06881932656 | AB8: 0.01075164959 | AC8: 0.05940503689 | AD8: 0.01072774195 | AE8: 0.07100112353 | AF8: 0.01067861552 | AG8: 0.06968387912 | AH8: 0.01062954459 | AI8: 0.06759273642 | AJ8: 0.01070056114 | AK8: 0.06540623561 | AL8: 0.01068904214 | AM8: 0.07139298521 | AN8: 0.0106554099 | AO8: 0.06118908209 | AP8: 0.01099145543 | AQ8: 0.07420599343 | AR8: 0.01086929104 | AS8: 0.05236748424 | AT8: 0.01092462025 | AU8: 0.06906763228 | AV8: 0.01088117898 | AW8: 0.06869479945 | AX8: 0.01088729551 | AY8: 0.07153490692 | AZ8: 0.01091588694 | BA8: 0.07063953644 | BB8: 0.01117231577 | BC8: 2.873620631 | BD8: 0.2405973534 | BE8: 2.79913408 | BF8: 0.2306185088 | BG8: 3.12566797 | BH8: 0.2457206378 | BI8: 3.875230369 | BJ8: 0.2861072583
A9: Color Plot | B9: TRUE | C9: 0.06856561995 | D9: 0.01058514673 | E9: 0.6393145589 | F9: 0.08096525904 | G9: 4.886902688 | H9: 0.322104784 | I9: 0.06361351089 | J9: 0.01025257371 | K9: 0.06226681832 | L9: 0.01034981979 | M9: 0.06070947098 | N9: 0.01048493659 | O9: 0.05560103739 | P9: 0.01050357887 | Q9: 0.06981834397 | R9: 0.0105618283 | S9: 0.06276381771 | T9: 0.01055230762 | U9: 0.06446643852 | V9: 0.01046432858 | W9: 0.06727954187 | X9: 0.01050284968 | Y9: 0.06624631889 | Z9: 0.0105021638 | AA9: 0.06789704395 | AB9: 0.010639404 | AC9: 0.05868559497 | AD9: 0.0106173237 | AE9: 0.07005011327 | AF9: 0.01053874405 | AG9: 0.06893900149 | AH9: 0.01051062874 | AI9: 0.06697801993 | AJ9: 0.01061296763 | AK9: 0.06479829444 | AL9: 0.01059525629 | AM9: 0.07048799216 | AN9: 0.01051698503 | AO9: 0.05926769975 | AP9: 0.01086053208 | AQ9: 0.07323394464 | AR9: 0.01075525856 | AS9: 0.0516488172 | AT9: 0.01081704478 | AU9: 0.068309141 | AV9: 0.01077511667 | AW9: 0.06805880123 | AX9: 0.01078863171 | AY9: 0.07088969432 | AZ9: 0.01081888067 | BA9: 0.06954784404 | BB9: 0.01103744478 | BC9: 2.84400446 | BD9: 0.2379444943 | BE9: 2.772991003 | BF9: 0.2283421616 | BG9: 3.094511829 | BH9: 0.2430709479 | BI9: 3.83703641 | BJ9: 0.2830633675
A10: 3D plot | B10: FALSE | C10: 0.07044430498 | D10: 0.01060601872 | E10: 0.743793614 | F10: 0.09153635124 | G10: IsoLine | H10: IsoLine | I10: 0.06298407525 | J10: 0.01015311907 | K10: 0.06149686604 | L10: 0.01021062303 | M10: 0.05976430674 | N10: 0.01035281515 | O10: 0.05493274659 | P10: 0.01036842196 | Q10: 0.0692312586 | R10: 0.0104756556 | S10: 0.0622648187 | T10: 0.01045995437 | U10: 0.06389379058 | V10: 0.01034917786 | W10: 0.06675590467 | X10: 0.01040262473 | Y10: 0.06559775584 | Z10: 0.01037681952 | AA10: 0.06718112527 | AB10: 0.01052445372 | AC10: 0.05812797014 | AD10: 0.01050655942 | AE10: 0.06931241149 | AF10: 0.01040497781 | AG10: 0.06836125528 | AH10: 0.01040089624 | AI10: 0.06650123097 | AJ10: 0.01052632516 | AK10: 0.06432697551 | AL10: 0.01050395998 | AM10: 0.06978597073 | AN10: 0.01038768964 | AO10: 0.05777336966 | AP10: 0.01071117628 | AQ10: 0.07247922671 | AR10: 0.01063919683 | AS10: 0.05109180596 | AT10: 0.01070500239 | AU10: 0.06772077117 | AV10: 0.01066991157 | AW10: 0.06756567138 | AX10: 0.01069394102 | AY10: 0.07038928497 | AZ10: 0.01072602505 | BA10: 0.06870048735 | BB10: 0.01089958441 | BC10: 2.820973671 | BD10: 0.2355519394 | BE10: 2.752661548 | BF10: 0.2262563178 | BG10: 3.070277839 | BH10: 0.240740831 | BI10: 3.807326652 | BJ10: 0.2803627518
A11: Linear | B11: FALSE | C11: 0.06068299028 | D11: 0.01061305244 | E11: 0.8549314723 | F11: 0.1022108214 | I11: 0.06258697648 | J11: 0.01005816198 | K11: 0.06101199418 | L11: 0.01008230905 | M11: 0.05916718917 | N11: 0.01022200668 | O11: 0.05451265966 | P11: 0.01024303493 | Q11: 0.06886059311 | R11: 0.01039304168 | S11: 0.06195068709 | T11: 0.01037470865 | U11: 0.06353358916 | V11: 0.01025153416 | W11: 0.06642634086 | X11: 0.0103159378 | Y11: 0.06518963149 | Z11: 0.01026835268 | AA11: 0.06672957001 | AB11: 0.01041611136 | AC11: 0.05777733785 | AD11: 0.01040442257 | AE11: 0.0688477824 | AF11: 0.01028815374 | AG11: 0.06799744605 | AH11: 0.01030923696 | AI11: 0.06620099613 | AJ11: 0.010447653 | AK11: 0.0640304623 | AL11: 0.01042254952 | AM11: 0.06934379451 | AN11: 0.01027799846 | AO11: 0.05682715357 | AP11: 0.01055548796 | AQ11: 0.07200298241 | AR11: 0.01053050848 | AS11: 0.05074157627 | AT11: 0.01059757007 | AU11: 0.06735018902 | AV11: 0.01057408678 | AW11: 0.06725536035 | AX11: 0.01061089472 | AY11: 0.07007421905 | AZ11: 0.01064484268 | BA11: 0.06816611419 | BB11: 0.01076990328 | BC11: 2.80639408 | BD11: 0.2336135194 | BE11: 2.739792688 | BF11: 0.22452996 | BG11: 3.054929294 | BH11: 0.2389190591 | BI11: 3.788508004 | BJ11: 0.2782241992
A12: Data Range | B12: G143:K170 | C12: 0.07268309452 | D12: 0.01061410413 | E12: 0.9731525218 | F12: 0.1129896805 | I12: 0.06245438516 | J12: 0.009975395302 | K12: 0.06085148416 | L12: 0.009975273072 | M12: 0.0589664932 | N12: 0.01010310849 | O12: 0.05437480955 | P12: 0.01013757588 | Q12: 0.06873637661 | R12: 0.01032067943 | S12: 0.06184687196 | T12: 0.01030347657 | U12: 0.06341501563 | V12: 0.01017930799 | W12: 0.06631754974 | X12: 0.01024981175 | Y12: 0.06505500965 | Z12: 0.01018555061 | AA12: 0.06657896048 | AB12: 0.01032315417 | AC12: 0.05766210424 | AD12: 0.01031918767 | AE12: 0.06869386749 | AF12: 0.01019773623 | AG12: 0.06787704746 | AH12: 0.0102430766 | AI12: 0.06610163866 | AJ12: 0.01038332469 | AK12: 0.06393277654 | AL12: 0.01035762027 | AM12: 0.06919728599 | AN12: 0.01019679802 | AO12: 0.05650570828 | AP12: 0.01040608005 | AQ12: 0.0718437942 | AR12: 0.01043799881 | AS12: 0.05062650165 | AT12: 0.01050345135 | AU12: 0.06722741689 | AV12: 0.01049540545 | AW12: 0.06715300769 | AX12: 0.01054622073 | AY12: 0.06997002132 | AZ12: 0.01058191048 | BA12: 0.06798801629 | BB12: 0.01065890738 | BC12: 2.80144684 | BD12: 0.2322862734 | BE12: 2.735426981 | BF12: 0.2233029475 | BG12: 3.049709641 | BH12: 0.2377532215 | BI12: 3.78210504 | BJ12: 0.2768209624
A13: Filled Symbols | B13: FALSE | C13: 0.0710019944 | D13: 0.01062398377 | E13: 1.098908198 | F13: 0.1238739494 | I13: 0.06259704306 | J13: 0.009911524304 | K13: 0.06102833955 | L13: 0.00989818652 | M13: 0.05917847802 | N13: 0.01000575301 | O13: 0.05453036406 | P13: 0.01006058849 | Q13: 0.06886867239 | R13: 0.01026443121 | S13: 0.0619617838 | T13: 0.01025202892 | U13: 0.0635476761 | V13: 0.01013835069 | W13: 0.06643834492 | X13: 0.01020960371 | Y13: 0.06520479657 | Z13: 0.01013512143 | AA13: 0.06674149817 | AB13: 0.01025311297 | AC13: 0.05779160485 | AD13: 0.01025775995 | AE13: 0.06886313603 | AF13: 0.01014105037 | AG13: 0.06800981348 | AH13: 0.01020777508 | AI13: 0.06621120791 | AJ13: 0.01033855174 | AK13: 0.06404183215 | AL13: 0.01031443244 | AM13: 0.06935831443 | AN13: 0.01015066669 | AO13: 0.05683507537 | AP13: 0.0102750567 | AQ13: 0.07201455858 | AR13: 0.01036916238 | AS13: 0.05075590475 | AT13: 0.01043027117 | AU13: 0.06736240106 | AV13: 0.01044024188 | AW13: 0.06726690541 | AX13: 0.01050515854 | AY13: 0.07008513328 | AZ13: 0.01054232685 | BA13: 0.06818062208 | BB13: 0.01057558895 | BC13: 2.806532746 | BD13: 0.2316777272 | BE13: 2.739918111 | BF13: 0.2226746856 | BG13: 3.055041747 | BH13: 0.2373377674 | BI13: 3.78863649 | BJ13: 0.2762667233
A14: ConcAge | B14: FALSE | C14: 0.06868053345 | D14: 0.01062470693 | E14: 1.232678709 | F14: 0.1348646589 | I14: 0.06300339287 | J14: 0.009871723433 | K14: 0.06152823259 | L14: 0.009857294486 | M14: 0.05978596987 | N14: 0.009937827408 | O14: 0.05496672108 | P14: 0.01001830982 | Q14: 0.06924676262 | R14: 0.01022885391 | S14: 0.06228611312 | T14: 0.01022453369 | U14: 0.06392082323 | V14: 0.01013198037 | W14: 0.0667789403 | X14: 0.01019857111 | Y14: 0.06562685742 | Z14: 0.01012115063 | AA14: 0.06720401525 | AB14: 0.0102116621 | AC14: 0.05815534831 | AD14: 0.01022511592 | AE14: 0.06934187489 | AF14: 0.01012268851 | AG14: 0.06838498821 | AH14: 0.0102061923 | AI14: 0.06652082723 | AJ14: 0.01031696137 | AK14: 0.06434879409 | AL14: 0.01029648483 | AM14: 0.06981383425 | AN14: 0.01014334176 | AO14: 0.05778857148 | AP14: 0.01017303263 | AQ14: 0.07250144122 | AR14: 0.01032957593 | AS14: 0.05111930212 | AT14: 0.01038395815 | AU14: 0.06774420592 | AV14: 0.01041306508 | AW14: 0.06758782618 | AX14: 0.01049103478 | AY14: 0.07041022923 | AZ14: 0.0105292986 | BA14: 0.06872832779 | BB14: 0.01052669794 | BC14: 2.821239768 | BD14: 0.2318371813 | BE14: 2.752902232 | BF14: 0.2226960723 | BG14: 3.070493634 | BH14: 0.2377063544 | BI14: 3.807573215 | BJ14: 0.2766063831
A15: ConcSwap | B15: FALSE | C15: 0.06648469638 | D15: 0.01062598614 | E15: 1.374974866 | F15: 0.1459628499 | I15: 0.06364051457 | J15: 0.009859217118 | K15: 0.0623106649 | L15: 0.009855909801 | M15: 0.06073975339 | N15: 0.009904834606 | O15: 0.05564852956 | P15: 0.01001416503 | Q15: 0.06984001668 | R15: 0.0102168298 | S15: 0.0627935847 | T15: 0.01022321837 | U15: 0.06450422684 | V15: 0.01016071313 | W15: 0.06731174285 | X15: 0.01021760773 | Y15: 0.06628699933 | Z15: 0.01014477004 | AA15: 0.06792904134 | AB15: 0.01020215966 | AC15: 0.0587238663 | AD15: 0.01022390019 | AE15: 0.07009129949 | AF15: 0.01014413823 | AG15: 0.06897217721 | AH15: 0.01023845651 | AI15: 0.0670054131 | AJ15: 0.01032030273 | AK15: 0.06482879413 | AL15: 0.01030523146 | AM15: 0.07052694196 | AN15: 0.01017541666 | AO15: 0.05928895002 | AP15: 0.01010827324 | AQ15: 0.0732649978 | AR15: 0.0103224465 | AS15: 0.05168725345 | AT15: 0.0103682643 | AU15: 0.0683418999 | AV15: 0.01041607676 | AW15: 0.06808977092 | AX15: 0.01050499367 | AY15: 0.07091897183 | AZ15: 0.01054388122 | BA15: 0.06958676155 | BB15: 0.01051619521 | BC15: 2.844376432 | BD15: 0.232751718 | BE15: 2.773327449 | BF15: 0.2233653749 | BG15: 3.094813484 | BH15: 0.2388291217 | BI15: 3.837381075 | BJ15: 0.2778124246
A16: 1st Symbol-row | B16: 1 | C16: 0.0729933799 | D16: 0.01062967496 | E16: 1.526340037 | F16: 0.1571695736 | I16: 0.06445679232 | J16: 0.009875018547 | K16: 0.06331224847 | L16: 0.009894144643 | M16: 0.06196255871 | N16: 0.009909447486 | O16: 0.05652055344 | P16: 0.0100484899 | Q16: 0.07060037266 | R16: 0.010229333 | S16: 0.06344308621 | T16: 0.01024818953 | U16: 0.06525062305 | V16: 0.01022222119 | W16: 0.06799358809 | X16: 0.01026517135 | Y16: 0.06713174153 | Z16: 0.01020406614 | AA16: 0.06885783912 | AB16: 0.01022537548 | AC16: 0.05945110085 | AD16: 0.01025421127 | AE16: 0.07105069591 | AF16: 0.01020366179 | AG16: 0.06972380993 | AH16: 0.01030195384 | AI16: 0.06762570727 | AJ16: 0.0103483051 | AK16: 0.06544294552 | AL16: 0.01033996373 | AM16: 0.07143986579 | AN16: 0.01024429287 | AO16: 0.06121465926 | AP16: 0.01008602494 | AQ16: 0.07424336949 | AR16: 0.01034835169 | AS16: 0.05241374671 | AT16: 0.01038446105 | AU16: 0.0691070614 | AV16: 0.01044903294 | AW16: 0.06873207506 | AX16: 0.01054590433 | AY16: 0.07157014579 | AZ16: 0.0105848933 | BA16: 0.07068637817 | BB16: 0.01054493164 | BC16: 2.874068342 | BD16: 0.2343472467 | BE16: 2.799539032 | BF16: 0.2246283706 | BG16: 3.126031047 | BH16: 0.2406151095 | BI16: 3.875645213 | BJ16: 0.2797871415
C17: 0.06453903534 | D17: 0.0106330105 | E17: 1.687352223 | F17: 0.1684858912 | I17: 0.06538609617 | J17: 0.009917847582 | K17: 0.06445184097 | L17: 0.009968901452 | M17: 0.0633553214 | N17: 0.00995129234 | O17: 0.05751214652 | P17: 0.01011850365 | Q17: 0.07146623105 | R17: 0.01026535057 | S17: 0.0641819989 | T17: 0.01029742415 | U17: 0.06609954327 | V17: 0.01031152155 | W17: 0.06876923698 | X17: 0.01033740864 | Y17: 0.06809264804 | Z17: 0.01029423513 | AA17: 0.06991516293 | AB17: 0.01027942875 | AC17: 0.06027813576 | AD17: 0.01031359352 | AE17: 0.07214233956 | AF17: 0.01029643694 | AG17: 0.07057899355 | AH17: 0.01039154013 | AI17: 0.06833145717 | AJ17: 0.0103986999 | AK17: 0.06614149337 | AL17: 0.01039786783 | AM17: 0.0724786461 | AN17: 0.01034439044 | AO17: 0.06340968967 | AP17: 0.01010809015 | AQ17: 0.07535729445 | AR17: 0.0104051928 | AS17: 0.05323992574 | AT17: 0.01043123622 | AU17: 0.06997770157 | AV17: 0.01050926369 | AW17: 0.06946270292 | AX17: 0.01061045244 | AY17: 0.07231099686 | AZ17: 0.01064901229 | BA17: 0.07193809325 | BB17: 0.01061057917 | BC17: 2.907910036 | BD17: 0.2364945073 | BE17: 2.829413475 | BF17: 0.226382739 | BG17: 3.161617261 | BH17: 0.2429196277 | BI17: 3.919265697 | BJ17: 0.2823705539
C18: 0.07591657628 | D18: 0.01073021048 | E18: 1.858626259 | F18: 0.1799128747 | I18: 0.06635313944 | J18: 0.009984234469 | K18: 0.06563711939 | L18: 0.01007412388 | M18: 0.06480520812 | N18: 0.01002697915 | O18: 0.05854297584 | P18: 0.01021853417 | Q18: 0.07236744513 | R18: 0.01032196459 | S18: 0.06495046045 | T18: 0.01036693354 | U18: 0.06698221304 | V18: 0.01042137963 | W18: 0.06957585104 | X18: 0.01042846737 | Y18: 0.06909187191 | Z18: 0.01040797205 | AA18: 0.07101535469 | AB18: 0.0103599404 | AC18: 0.06113796958 | AD18: 0.01039723615 | AE18: 0.07327779196 | AF18: 0.0104149476 | AG18: 0.07146844619 | AH18: 0.01049995761 | AI18: 0.06906548716 | AJ18: 0.01046740445 | AK18: 0.06686784548 | AL18: 0.01047425272 | AM18: 0.07355912709 | AN18: 0.01046760006 | AO18: 0.06569621296 | AP18: 0.0101726813 | AQ18: 0.0765165291 | AR18: 0.01048836492 | AS18: 0.05409885841 | AT18: 0.01050480037 | AU18: 0.07088328634 | AV18: 0.01059188948 | AW18: 0.07022246338 | AX18: 0.01069340868 | AY18: 0.07308150569 | AZ18: 0.01073104365 | BA18: 0.07324050027 | BB18: 0.01070781943 | BC18: 2.943159862 | BD18: 0.2390195415 | BE18: 2.860530527 | BF18: 0.2284863515 | BG18: 3.198689143 | BH18: 0.2455559778 | BI18: 3.964708655 | BJ18: 0.2853533691
C19: 0.05364422168 | D19: 0.01076190701 | E19: 2.040816168 | F19: 0.1914516061 | I19: 0.06727957804 | J19: 0.01006880094 | K19: 0.06677205951 | L19: 0.01020128742 | M19: 0.06619475768 | N19: 0.01013037621 | O19: 0.05952952972 | P19: 0.01034047759 | Q19: 0.07323100391 | R19: 0.01039458851 | S19: 0.06568621468 | T19: 0.01045108645 | U19: 0.0678271237 | V19: 0.01054289536 | W19: 0.07034808321 | X19: 0.0105309705 | Y19: 0.07004846199 | Z19: 0.0105360626 | AA19: 0.07206928339 | AB19: 0.01046038784 | AC19: 0.06196094368 | AD19: 0.01049836294 | AE19: 0.07436506551 | AF19: 0.01054959274 | AG19: 0.07232010968 | AH19: 0.01061842296 | AI19: 0.06976833049 | AJ19: 0.01054885271 | AK19: 0.06756315714 | AL19: 0.01056293015 | AM19: 0.0745937746 | AN19: 0.01060394003 | AO19: 0.06788898859 | AP19: 0.01027456557 | AQ19: 0.07762715913 | AR19: 0.01059112992 | AS19: 0.05492095913 | AT19: 0.01059919377 | AU19: 0.07175045061 | AV19: 0.01069021647 | AW19: 0.07094980518 | AX19: 0.01078805244 | AY19: 0.07381925024 | AZ19: 0.01082434169 | BA19: 0.07448808598 | BB19: 0.01082877458 | BC19: 2.976962088 | BD19: 0.241717786 | BE19: 2.890369271 | BF19: 0.2307687861 | BG19: 3.23424335 | BH19: 0.2483105784 | BI19: 4.008292568 | BJ19: 0.2884939373
C20: 0.07040904144 | D20: 0.01078569772 | E20: 2.234617656 | F20: 0.2031031783 | I20: 0.06809035743 | J20: 0.01016469591 | K20: 0.06776471524 | L20: 0.01034009005 | M20: 0.06741139702 | N20: 0.01025310692 | O20: 0.06039188345 | P20: 0.01047445477 | Q20: 0.07398694699 | R20: 0.0104773388 | S20: 0.06632965517 | T20: 0.01054306532 | U20: 0.06856582562 | V20: 0.01066622428 | W20: 0.07102337183 | X20: 0.01063661383 | Y20: 0.07088492102 | Z20: 0.01066812966 | AA20: 0.072991566 | AB20: 0.01057263344 | AC20: 0.06268038559 | AD20: 0.01060878119 | AE20: 0.07531607578 | AF20: 0.01068946421 | AG20: 0.0730649873 | AH20: 0.01073733881 | AI20: 0.07038304698 | AJ20: 0.01063644622 | AK20: 0.06817109832 | AL20: 0.010656716 | AM20: 0.07549876765 | AN20: 0.01074236489 | AO20: 0.06981037094 | AP20: 0.01040548892 | AQ20: 0.07859920792 | AR20: 0.0107051624 | AS20: 0.05563962616 | AT20: 0.01070676923 | AU20: 0.07250894188 | AV20: 0.01079627878 | AW20: 0.0715858034 | AX20: 0.01088671624 | AY20: 0.07446446284 | AZ20: 0.01092134796 | BA20: 0.07557977838 | BB20: 0.01096364557 | BC20: 3.006578258 | BD20: 0.2443706451 | BE20: 2.916512348 | BF20: 0.2330451333 | BG20: 3.265399491 | BH20: 0.2509602683 | BI20: 4.046486527 | BJ20: 0.2915378281
C21: 0.06982230231 | D21: 0.01083767397 | E21: 2.440770767 | F21: 0.2148686948 | I21: 0.06871979307 | J21: 0.01026415056 | K21: 0.06853466751 | L21: 0.01047928681 | M21: 0.06835656126 | N21: 0.01038522836 | O21: 0.06106017425 | P21: 0.01060961168 | Q21: 0.07457403236 | R21: 0.0105635115 | S21: 0.06682865418 | T21: 0.01063541856 | U21: 0.06913847356 | V21: 0.010781375 | W21: 0.07154700903 | X21: 0.01073683878 | Y21: 0.07153348407 | Z21: 0.01079347393 | AA21: 0.07370748468 | AB21: 0.01068758371 | AC21: 0.06323801042 | AD21: 0.01071954547 | AE21: 0.07605377756 | AF21: 0.01082323046 | AG21: 0.07364273351 | AH21: 0.01084707131 | AI21: 0.07085983594 | AJ21: 0.01072308869 | AK21: 0.06864241724 | AL21: 0.0107480123 | AM21: 0.07620078908 | AN21: 0.01087166029 | AO21: 0.07130470103 | AP21: 0.01055484472 | AQ21: 0.07935392585 | AR21: 0.01082122413 | AS21: 0.0561966374 | AT21: 0.01081881163 | AU21: 0.07309731171 | AV21: 0.01090148387 | AW21: 0.07207893324 | AX21: 0.01098140693 | AY21: 0.0749648722 | AZ21: 0.01101420358 | BA21: 0.07642713507 | BB21: 0.01110150594 | BC21: 3.029609048 | BD21: 0.2467632 | BE21: 2.936841802 | BF21: 0.2351309771 | BG21: 3.289633481 | BH21: 0.2532903853 | BI21: 4.076196284 | BJ21: 0.2942384438
C22: 0.07267707858 | D22: 0.01087011432 | E22: 2.660062712 | F22: 0.22674927 | I22: 0.06911689184 | J22: 0.01035910765 | K22: 0.06901953937 | L22: 0.01060760079 | M22: 0.06895367883 | N22: 0.01051603683 | O22: 0.06148026118 | P22: 0.01073499871 | Q22: 0.07494469785 | R22: 0.01064612542 | S22: 0.06714278578 | T22: 0.01072066428 | U22: 0.06949867498 | V22: 0.0108790187 | W22: 0.07187657284 | X22: 0.0108235257 | Y22: 0.07194160842 | Z22: 0.01090194078 | AA22: 0.07415903995 | AB22: 0.01079592607 | AC22: 0.06358864271 | AD22: 0.01082168232 | AE22: 0.07651840665 | AF22: 0.01094005453 | AG22: 0.07400654274 | AH22: 0.01093873058 | AI22: 0.07116007078 | AJ22: 0.01080176086 | AK22: 0.06893893045 | AL22: 0.01082942277 | AM22: 0.0766429653 | AN22: 0.01098135147 | AO22: 0.07225091712 | AP22: 0.01071053305 | AQ22: 0.07983017015 | AR22: 0.01092991248 | AS22: 0.05654686709 | AT22: 0.01092624395 | AU22: 0.07346789387 | AV22: 0.01099730866 | AW22: 0.07238924428 | AX22: 0.01106445322 | AY22: 0.07527993812 | AZ22: 0.01109538595 | BA22: 0.07696150822 | BB22: 0.01123118707 | BC22: 3.044188639 | BD22: 0.2487016201 | BE22: 2.949710662 | BF22: 0.2368573349 | BG22: 3.304982026 | BH22: 0.2551121572 | BI22: 4.095014933 | BJ22: 0.2963769964
C23: 0.07256381121 | D23: 0.01100054517 | E23: 2.893330874 | F23: 0.2387460289 | I23: 0.06924948316 | J23: 0.01044187433 | K23: 0.06918004939 | L23: 0.01071463677 | M23: 0.0691543748 | N23: 0.01063493502 | O23: 0.06161811129 | P23: 0.01084045776 | Q23: 0.07506891435 | R23: 0.01071848768 | S23: 0.06724660091 | T23: 0.01079189636 | U23: 0.06961724851 | V23: 0.01095124487 | W23: 0.07198536395 | X23: 0.01088965175 | Y23: 0.07207623026 | Z23: 0.01098474285 | AA23: 0.07430964947 | AB23: 0.01088888327 | AC23: 0.06370387632 | AD23: 0.01090691721 | AE23: 0.07667232155 | AF23: 0.01103047204 | AG23: 0.07412694134 | AH23: 0.01100489094 | AI23: 0.07125942825 | AJ23: 0.01086608916 | AK23: 0.06903661621 | AL23: 0.01089435201 | AM23: 0.07678947382 | AN23: 0.01106255191 | AO23: 0.07257236241 | AP23: 0.01085994096 | AQ23: 0.07998935836 | AR23: 0.01102242215 | AS23: 0.05666194171 | AT23: 0.01102036267 | AU23: 0.07359066599 | AV23: 0.01107598999 | AW23: 0.07249159694 | AX23: 0.01112912722 | AY23: 0.07538413584 | AZ23: 0.01115831815 | BA23: 0.07713960613 | BB23: 0.01134218297 | BC23: 3.049135879 | BD23: 0.250028866 | BE23: 2.954076369 | BF23: 0.2380843474 | BG23: 3.310201678 | BH23: 0.2562779948 | BI23: 4.101417897 | BJ23: 0.2977802332
C24: 2.925291359 | D24: 0.2411575697 | E24: 3.141466004 | F24: 0.2508601079
C25: 2.844751675 | D25: 0.2306936475 | E25: 3.405415624 | F25: 0.2630926541
C26: 3.17995566 | D26: 0.2470156081 | E26: 3.686187645 | F26: 0.2754448262
C27: 3.941761468 | D27: 0.2873005978 | E27: 3.984854216 | F27: 0.287917794
C28: IsoLine | D28: IsoLine | E28: 4.302555816 | F28: 0.3005127388
E29: 4.640505612 | F29: 0.3132308534
E30: 4.999994091 | F30: 0.3260733424
E31: 5 | F31: 0.3260735428
E32: IsoLine | F32: IsoLine

Sheet PlotDat13 (hidden)
A1: Source sheet | B1: U-Pb datatable | C1: 0.002223969732 | D1: 0.0006623010343 | E1: 0.003496953281 | F1: 0.00055 | G1: 0.002958918985 | H1: 0.0004654833037 | I1: 0.003769621038 | J1: 0.0006669312726 | K1: 0.003195225014 | L1: 0.0006847928585 | M1: 0.001582613642 | N1: 0.0006897852164 | O1: 0.001159650033 | P1: 0.0006935068333 | Q1: 0.002401848086 | R1: 0.0007067101342 | S1: 0.0007220060231 | T1: 0.0007084697672 | U1: 0.003369393219 | V1: 0.0007192048508 | W1: 0.003658224607 | X1: 0.0007131398364 | Y1: 0.00574870937 | Z1: 0.0007306020503 | AA1: 0.004521097982 | AB1: 0.0007317590426 | AC1: 0.002718771508 | AD1: 0.0007364189643 | AE1: 0.003406744108 | AF1: 0.0007333732151 | AG1: 0.003957468316 | AH1: 0.0007307181573 | AI1: 0.004106638193 | AJ1: 0.0007301447852 | AK1: 0.005961578471 | AL1: 0.0007351933198 | AM1: 0.004862657364 | AN1: 0.0007432017487 | AO1: 0.005020239955 | AP1: 0.0007350861691 | AQ1: 0.005635839955 | AR1: 0.0007550102032 | AS1: 0.003669544854 | AT1: 0.0007624248967 | AU1: 0.006254402007 | AV1: 0.0007680572894 | AW1: 0.004792142137 | AX1: 0.0007593503344 | AY1: 0.005714668908 | AZ1: 0.000764985293 | BA1: 0.002559944021 | BB1: 0.0007586995272 | BC1: 0.00446471309 | BD1: 0.0007686749821 | BE1: 0.004959864611 | BF1: 0.0007789895519 | BG1: 0.004124770176 | BH1: 0.0007730757263 | BI1: 0.004395871764 | BJ1: 0.0007873588743 | BK1: 0.005986858375 | BL1: 0.0008020129772 | BM1: 0.005295159221 | BN1: 0.0007954925672 | BO1: 0.00559981249 | BP1: 0.0007963907703
A2: Plot name | B2: Concordia9 | C2: 0.0003900743015 | D2: 0.0006846707479 | E2: 0.003496953281 | F2: 0.00055 | G2: 0.00315649126 | H2: 0.0004965232269 | I2: 0.003754559724 | J2: 0.0006732760074 | K2: 0.003156966238 | L2: 0.0006888268554 | M2: 0.001576455063 | N2: 0.0006940680766 | O2: 0.001151993024 | P2: 0.0006991627286 | Q2: 0.002375676466 | R2: 0.0007131830376 | S2: 0.0007138396273 | T2: 0.0007141124554 | U2: 0.003362092313 | V2: 0.0007245737654 | W2: 0.003623417604 | X2: 0.0007198814748 | Y2: 0.005742032836 | Z2: 0.0007350139219 | AA2: 0.004515481291 | AB2: 0.0007360755928 | AC2: 0.002710999274 | AD2: 0.0007436611069 | AE2: 0.003398116369 | AF2: 0.0007392173586 | AG2: 0.003946230833 | AH2: 0.0007358645162 | AI2: 0.004092997791 | AJ2: 0.0007352895215 | AK2: 0.005942477465 | AL2: 0.0007408141996 | AM2: 0.004853827782 | AN2: 0.0007482358513 | AO2: 0.004994729172 | AP2: 0.0007397673585 | AQ2: 0.005629944044 | AR2: 0.0007591123254 | AS2: 0.003660822596 | AT2: 0.0007695062168 | AU2: 0.006244649524 | AV2: 0.0007744609885 | AW2: 0.004784354641 | AX2: 0.0007649179869 | AY2: 0.005708878372 | AZ2: 0.0007691817793 | BA2: 0.002550032547 | BB2: 0.0007647006668 | BC2: 0.004458023103 | BD2: 0.0007738691276 | BE2: 0.004953558606 | BF2: 0.0007841880443 | BG2: 0.004116274388 | BH2: 0.0007786405165 | BI2: 0.004389091477 | BJ2: 0.0007923506389 | BK2: 0.005978348149 | BL2: 0.0008090995785 | BM2: 0.005289258929 | BN2: 0.0008001348391 | BO2: 0.005592944922 | BP2: 0.0008013086488
A3: Plot Type | B3: 1 | C3: 0.001132860002 | D3: 0.0006872304359 | E3: 0.003584766471 | F3: 0.0005637904421 | G3: 0.003354102455 | H3: 0.000527564113 | I3: 0.003709707217 | J3: 0.0006794071268 | K3: 0.003043233864 | L3: 0.0006927474849 | M3: 0.001558196366 | N3: 0.0006981644238 | O3: 0.001129268531 | P3: 0.0007046137016 | Q3: 0.002297879234 | R3: 0.0007194642928 | S3: 0.0006895696922 | T3: 0.0007195918386 | U3: 0.003340577867 | V3: 0.0007295481172 | W3: 0.003519674355 | X3: 0.0007264904319 | Y3: 0.005722507006 | Z3: 0.0007388535569 | AA3: 0.004499081711 | AB3: 0.0007399129435 | AC3: 0.002688706457 | AD3: 0.0007499158461 | AE3: 0.003372937198 | AF3: 0.0007443502935 | AG3: 0.003912894343 | AH3: 0.0007407215139 | AI3: 0.004052494266 | AJ3: 0.0007401745887 | AK3: 0.005885740187 | AL3: 0.0007461319797 | AM3: 0.004828060159 | AN3: 0.0007525028571 | AO3: 0.004918902194 | AP3: 0.0007442693733 | AQ3: 0.005612741651 | AR3: 0.0007626716016 | AS3: 0.003635829669 | AT3: 0.0007754004707 | AU3: 0.006216128976 | AV3: 0.0007800247574 | AW3: 0.004761508137 | AX3: 0.000769931952 | AY3: 0.005692089524 | AZ3: 0.0007727327269 | BA3: 0.002520646426 | BB3: 0.0007704112271 | BC3: 0.004438451647 | BD3: 0.0007785383173 | BE3: 0.004935329522 | BF3: 0.0007886746488 | BG3: 0.00409153109 | BH3: 0.0007834308465 | BI3: 0.004369732169 | BJ3: 0.0007963073741 | BK3: 0.005953471606 | BL3: 0.0008154996879 | BM3: 0.005272160433 | BN3: 0.0008041386306 | BO3: 0.00557288745 | BP3: 0.0008056275786
A4: 1st free col | B4: 69 | C4: 0.0005996130778 | D4: 0.0006916501954 | E4: 0.003672587346 | F4: 0.0005775810743 | G4: 0.003551752578 | H4: 0.0005586059622 | I4: 0.003635936519 | J4: 0.0006852052956 | K4: 0.002857130213 | L4: 0.0006964478021 | M4: 0.001528335602 | N4: 0.0007019625204 | O4: 0.001092096417 | P4: 0.0007097110639 | Q4: 0.002170578495 | R4: 0.0007253825635 | S4: 0.0006498582384 | T4: 0.0007247584536 | U4: 0.003305436739 | V4: 0.0007339922187 | W4: 0.003349014106 | X4: 0.0007328380718 | Y4: 0.005690664494 | Z4: 0.00074201622 | AA4: 0.00447234658 | AB4: 0.0007431664217 | AC4: 0.002652867359 | AD4: 0.0007549098198 | AE4: 0.003332307045 | AF4: 0.000748547686 | AG4: 0.003858368179 | AH4: 0.0007451566642 | AI4: 0.00398623245 | AJ4: 0.0007446667348 | AK4: 0.005792914282 | AL4: 0.0007510016051 | AM4: 0.004786480663 | AN4: 0.0007558162774 | AO4: 0.004794827383 | AP4: 0.0007484694103 | AQ4: 0.005584702014 | AR4: 0.0007655909442 | AS4: 0.003595658384 | AT4: 0.0007798500512 | AU4: 0.006169618329 | AV4: 0.0007845968308 | AW4: 0.004724225817 | AX4: 0.0007742554617 | AY4: 0.00566476032 | AZ4: 0.0007755412754 | BA4: 0.002472587236 | BB4: 0.0007756754387 | BC4: 0.004406532579 | BD4: 0.0007825551877 | BE4: 0.0049056746 | BF4: 0.0007923269826 | BG4: 0.004051621684 | BH4: 0.0007872373558 | BI4: 0.004338639935 | BJ4: 0.0007990561515 | BK4: 0.005912712941 | BL4: 0.0008210887345 | BM4: 0.005244330134 | BN4: 0.0008073947282 | BO4: 0.005540187189 | BP4: 0.0008092297508
A5: Sigma Level | B5: 1 | C5: 0.0004830611578 | D5: 0.0007061571392 | E5: 0.003760415905 | F5: 0.0005913718966 | G5: 0.003749441635 | H5: 0.0005896487745 | I5: 0.003534683495 | J5: 0.000690557659 | K5: 0.002603731708 | L5: 0.0006998268719 | M5: 0.001487687295 | N5: 0.000705358764 | O5: 0.001041490642 | P5: 0.0007143157728 | Q5: 0.001997246683 | R5: 0.0007307764148 | S5: 0.0005957884906 | T5: 0.0007294713686 | U5: 0.003257627488 | V5: 0.0007377848464 | W5: 0.003114758564 | X5: 0.0007388008449 | Y5: 0.005647373879 | Z5: 0.0007444156419 | AA5: 0.004436005163 | AB5: 0.000745747281 | AC5: 0.002605048322 | AD5: 0.0007584247676 | AE5: 0.003278001645 | AF5: 0.0007516260897 | AG5: 0.003784139673 | AH5: 0.0007490489877 | AI5: 0.003896019791 | AJ5: 0.0007486434258 | AK5: 0.005666531799 | AL5: 0.000755290245 | AM5: 0.004730906517 | AN5: 0.0007580312998 | AO5: 0.004625889175 | AP5: 0.0007522529034 | AQ5: 0.005546589981 | AR5: 0.000767790721 | AS5: 0.003542064418 | AT5: 0.0007826604903 | AU5: 0.006106386273 | AV5: 0.0007880524946 | AW5: 0.004673524645 | AX5: 0.0007777705819 | AY5: 0.00562763623 | AZ5: 0.0007775308147 | BA5: 0.002407165907 | BB5: 0.0007803497078 | BC5: 0.004363136568 | BD5: 0.0007858101691 | BE5: 0.004865402749 | BF5: 0.0007950454196 | BG5: 0.003998290402 | BH5: 0.0007898936818 | BI5: 0.004297173655 | BJ5: 0.0008004768364 | BK5: 0.005856865474 | BL5: 0.0008257579338 | BM5: 0.00520652717 | BN5: 0.0008098143142 | BO5: 0.005495736117 | BP5: 0.0008120169074
A6: Absolute Errs | B6: FALSE | C6: 0.000123477519 | D6: 0.000708125632 | E6: 0.00384825215 | F6: 0.0006051629089 | G6: 0.003947169635 | H6: 0.0006206925499 | I6: 0.003407918918 | J6: 0.0006953600393 | K6: 0.002289950399 | L6: 0.0007027925222 | M6: 0.001437360224 | N6: 0.0007082605142 | O6: 0.0009788315985 | P6: 0.0007183022239 | Q6: 0.001782611836 | R6: 0.0007354987164 | S6: 0.0005288353308 | T6: 0.0007336020275 | U6: 0.003198454224 | V6: 0.0007408225474 | W6: 0.002821467247 | X6: 0.0007442626927 | Y6: 0.005593816018 | Z6: 0.0007459863727 | AA6: 0.004391048758 | AB6: 0.0007475851223 | AC6: 0.002547339267 | AD6: 0.0007603070692 | AE6: 0.003212394402 | AF6: 0.0007534509637 | AG6: 0.003692233584 | AH6: 0.0007522923122 | AI6: 0.003784317057 | AJ6: 0.0007519961879 | AK6: 0.005510040123 | AL6: 0.0007588809165 | AM6: 0.004663766579 | AN6: 0.0007590511172 | AO6: 0.004416695765 | AP6: 0.0007555166488 | AQ6: 0.005499445149 | AR6: 0.0007692109278 | AS6: 0.003477390085 | AT6: 0.0007837089584 | AU6: 0.006028157612 | AV6: 0.0007902974873 | AW6: 0.004610787619 | AX6: 0.0007803814294 | AY6: 0.005581729901 | AZ6: 0.0007786470756 | BA6: 0.00232616696 | BB6: 0.0007843065324 | BC6: 0.004309447345 | BD6: 0.0007882144742 | BE6: 0.004815612481 | BF6: 0.0007967558078 | BG6: 0.003933868078 | BH6: 0.0007912837301 | BI6: 0.004247145604 | BJ6: 0.000800507338 | BK6: 0.005787016213 | BL6: 0.0008294164054 | BM6: 0.005159782708 | BN6: 0.0008113313884 | BO6: 0.005440746742 | BP6: 0.000813913022
A7: Symbol Type | B7: 1 | C7: 0.002841018324 | D7: 0.0007101089337 | E7: 0.003936096082 | F7: 0.0006189541113 | G7: 0.004144936586 | H7: 0.0006517372885 | I7: 0.003258110117 | J7: 0.0006995189637 | K7: 0.001924345423 | L7: 0.0007052638577 | M7: 0.001378727181 | N7: 0.0007105886186 | O7: 0.0009058284625 | P7: 0.0007215616771 | Q7: 0.001532528635 | R7: 0.0007394206563 | S7: 0.0004508250665 | T7: 0.0007370377568 | U7: 0.003129531041 | V7: 0.0007430224611 | W7: 0.002474848736 | X7: 0.0007491173064 | Y7: 0.005531451829 | Z7: 0.000746685567 | AA7: 0.00433870366 | AB7: 0.0007486298142 | AC7: 0.002482262356 | AD7: 0.0007604744591 | AE7: 0.003138352668 | AF7: 0.0007539425522 | AG7: 0.003585156872 | AH7: 0.000754798168 | AI7: 0.003654171205 | AJ7: 0.0007546335665 | AK7: 0.005327707938 | AL7: 0.0007616756754 | AM7: 0.004587995186 | AN7: 0.0007588311588 | AO7: 0.004172953404 | AP7: 0.0007581716201 | AQ7: 0.005444553505 | AR7: 0.0007698128252 | AS7: 0.003404461964 | AT7: 0.0007829496323 | AU7: 0.005937066222 | AV7: 0.0007912705713 | AW7: 0.00453772604 | AX7: 0.000782016787 | AY7: 0.005528293539 | AZ7: 0.0007788596092 | BA7: 0.002231799837 | BB7: 0.0007874379807 | BC7: 0.004246929411 | BD7: 0.0007897025197 | BE7: 0.004757661944 | BF7: 0.0007974114923 | BG7: 0.003861170275 | BH7: 0.0007913467491 | BI7: 0.004190742247 | BJ7: 0.0007991463234 | BK7: 0.005704524694 | BL7: 0.0008319929411 | BM7: 0.005105371815 | BN7: 0.0008119045691 | BO7: 0.005376719033 | BP7: 0.0008148663736
A8: Inverse Plot | B8: FALSE | C8: 8.166195896e-05 | D8: 0.0007130646706 | E8: 0.0040239477 | F8: 0.0006327455038 | G8: 0.004342742494 | H8: 0.0006827829903 | I8: 0.003088172949 | J8: 0.0007029534835 | K8: 0.001516889531 | L8: 0.0007071734669 | M8: 0.001313387522 | N8: 0.0007122795727 | O8: 0.0008244725691 | P8: 0.000724005223 | Q8: 0.001253818697 | R8: 0.0007424352541 | S8: 0.0003638856145 | T8: 0.0007396848387 | U8: 0.003052737983 | V8: 0.0007443245795 | W8: 0.002081649567 | X8: 0.0007532701967 | Y8: 0.005461982444 | Z8: 0.0007464941525 | AA8: 0.004280397706 | AB8: 0.00074885286 | AC8: 0.002412661763 | AD8: 0.0007589196215 | AE8: 0.003059112423 | AF8: 0.0007530793706 | AG8: 0.003465830309 | AH8: 0.0007564982019 | AI8: 0.003509132277 | AJ8: 0.0007564836208 | AK8: 0.005124508792 | AL8: 0.0007635982881 | AM8: 0.004506903911 | AN8: 0.0007573810377 | AO8: 0.003901310748 | AP8: 0.0007601453965 | AQ8: 0.005383412352 | AR8: 0.0007695799949 | AS8: 0.003326467363 | AT8: 0.0007804156982 | AU8: 0.005835596837 | AV8: 0.0007909452035 | AW8: 0.004456332838 | AX8: 0.0007826320465 | AY8: 0.005468784749 | AZ8: 0.0007781626183 | BA8: 0.002126638627 | BB8: 0.000789658635 | BC8: 0.004177288093 | BD8: 0.0007902337156 | BE8: 0.004693131877 | BF8: 0.0007969945877 | BG8: 0.003783374236 | BH8: 0.0007900799845 | BI8: 0.004130428683 | BJ8: 0.0007964532752 | BK8: 0.00561099652 | BL8: 0.0008334373916 | BM8: 0.005044778678 | BN8: 0.0008115182213 | BO8: 0.005305399497 | BP8: 0.0008148509572
A9: Color Plot | B9: TRUE | C9: 0.005270972562 | D9: 0.0007140354988 | E9: 0.004111807006 | F9: 0.0006465370864 | G9: 0.004540587368 | H9: 0.0007138296552 | I9: 0.002901415049 | J9: 0.0007055967495 | K9: 0.001078697056 | L9: 0.0007084692605 | M9: 0.001243123543 | N9: 0.0007132872516 | O9: 0.0007369830949 | P9: 0.0007255662082 | Q9: 0.0009540845018 | R9: 0.0007444602796 | S9: 0.0002703884564 | T9: 0.0007414710677 | U9: 0.002970169764 | V9: 0.0007446933843 | W9: 0.001649522914 | X9: 0.000756640532 | Y9: 0.005387302808 | Z9: 0.0007454173506 | AA9: 0.00421772133 | AB9: 0.0007482481758 | AC9: 0.002341579367 | AD9: 0.0007557105104 | AE9: 0.002978136846 | AF9: 0.0007508991438 | AG9: 0.003337508814 | AH9: 0.0007573460416 | AI9: 0.003353156556 | AJ9: 0.0007574958862 | AK9: 0.004905985426 | AL9: 0.0007645963106 | AM9: 0.004424036832 | AN9: 0.0007547641312 | AO9: 0.0036091775 | AP9: 0.0007613841386 | AQ9: 0.005317689459 | AR9: 0.000768518788 | AS9: 0.003246815022 | AT9: 0.0007762179012 | AU9: 0.005726517278 | AV9: 0.0007893302589 | AW9: 0.004368828206 | AX9: 0.0007822104251 | AY9: 0.005404826774 | AZ9: 0.0007765751149 | BA9: 0.002013551853 | BB9: 0.0007909079216 | BC9: 0.004102423025 | BD9: 0.0007897935722 | BE9: 0.004623782493 | BF9: 0.0007955164662 | BG9: 0.003703880023 | BH9: 0.0007875388 | BI9: 0.004068840903 | BJ9: 0.0007925458928 | BK9: 0.005508252112 | BL9: 0.0008337216423 | BM9: 0.00497965612 | BN9: 0.0008101828838 | BO9: 0.005228733546 | BP9: 0.0008138671934
A10: 3D plot | B10: FALSE | C10: 0.004120176329 | D10: 0.0007185079485 | E10: 0.004199674 | F10: 0.0006603288591 | G10: 0.004738471216 | H10: 0.0007448772834 | I10: 0.002701471446 | J10: 0.0007073973138 | K10: 0.0006217207476 | L10: 0.0007091158928 | M10: 0.001169851862 | N10: 0.0007135841685 | O10: 0.0006457465247 | P10: 0.0007262020529 | Q10: 0.0006415020181 | R10: 0.0007454404952 | S10: 0.0001728839508 | T10: 0.0007423477201 | U10: 0.002884078631 | V10: 0.0007441188155 | W10: 0.00118687963 | X10: 0.0007591627128 | Y10: 0.005309449986 | Z10: 0.0007434845335 | AA10: 0.004152384181 | AB10: 0.0007468322557 | AC10: 0.002272121811 | AD10: 0.0007509873791 | AE10: 0.002898964957 | AF10: 0.0007474971584 | AG10: 0.003203692662 | AH10: 0.0007573185601 | AI10: 0.003190498652 | AJ10: 0.0007576427506 | AK10: 0.00467809859 | AL10: 0.0007646425195 | AM10: 0.004343015639 | AN10: 0.0007510948107 | AO10: 0.003304522294 | AP10: 0.0007618540566 | AQ10: 0.005249177577 | AR10: 0.0007666581513 | AS10: 0.003168986129 | AT10: 0.0007705397053 | AU10: 0.00561280295 | AV10: 0.0007864697892 | AW10: 0.004277599044 | AX10: 0.0007807634237 | AY10: 0.005338164223 | AZ10: 0.0007741404019 | BA10: 0.001895624228 | BB10: 0.0007911517632 | BC10: 0.00402437633 | BD10: 0.0007883940957 | BE10: 0.004551505463 | BF10: 0.0007930174471 | BG10: 0.003626161913 | BH10: 0.0007838342576 | BI10: 0.004008670589 | BJ10: 0.0007875949473 | BK10: 0.005398291272 | BL10: 0.0008328401607 | BM10: 0.004911780514 | BN10: 0.0008079349808 | BO10: 0.005148812428 | BP10: 0.0008119419166
A11: Linear | B11: FALSE | C11: 0.002378756963 | D11: 0.0007210685464 | E11: 0.004287548683 | F11: 0.0006741208218 | G11: 0.004936394044 | H11: 0.0007759258749 | I11: 0.002492233816 | J11: 0.0007083201302 | K11: 0.0001584257281 | L11: 0.0007090957252 | M11: 0.001095571139 | N11: 0.0007131622243 | O11: 0.0005532515544 | P11: 0.000725895413 | Q11: 0.0003245976808 | R11: 0.0007453491633 | S11: 7.403176655e-05 | T11: 0.0007422908832 | U11: 0.002796812925 | V11: 0.0007426165457 | W11: 0.0007027245425 | X11: 0.0007607876477 | Y11: 0.0052305476 | Z11: 0.0007407484236 | AA11: 0.004086168486 | AB11: 0.0007446437224 | AC11: 0.002207324722 | AD11: 0.0007449566513 | AE11: 0.002825056948 | AF11: 0.0007430220974 | AG11: 0.003068032009 | AH11: 0.000756416507 | AI11: 0.00302559545 | AJ11: 0.0007569202081 | AK11: 0.004447064442 | AL11: 0.0007637356543 | AM11: 0.004267381345 | AN11: 0.0007465334431 | AO11: 0.00299565533 | AP11: 0.0007615423325 | AQ11: 0.005179745531 | AR11: 0.0007640488383 | AS11: 0.00309638218 | AT11: 0.0007636292747 | AU11: 0.005497555686 | AV11: 0.0007824418204 | AW11: 0.004185133845 | AX11: 0.0007783305125 | AY11: 0.005270615476 | AZ11: 0.0007709248921 | BA11: 0.001776072509 | BB11: 0.0007903835085 | BC11: 0.003945276919 | BD11: 0.0007860734599 | BE11: 0.004478272314 | BF11: 0.0007895656969 | BG11: 0.00355361656 | BH11: 0.0007791282635 | BI11: 0.003952547472 | BJ11: 0.000781816819 | BK11: 0.005283254263 | BL11: 0.0008308101037 | BM11: 0.004843003331 | BN11: 0.0008048358296 | BO11: 0.005067816181 | BP11: 0.0008091276434
A12: Data Range | B12: G9:K38 | C12: 0.003019406654 | D12: 0.0007229443488 | E12: 0.004375431056 | F12: 0.0006879129747 | G12: 0.005134355861 | H12: 0.0008069754296 | I12: 0.002277774731 | J12: 0.0007083472373 | K12: -0.0002985505222 | L12: 0.000708409308 | M12: 0.00102230756 | N12: 0.0007120329285 | O12: 0.0004620212055 | P12: 0.0007246546529 | Q12: 1.201581402e-05 | R12: 0.0007441887751 | S12: -2.347166645e-05 | T12: 0.0007413021073 | U12: 0.002710753027 | V12: 0.0007402275531 | W12: 0.0002064811778 | X12: 0.0007614837091 | Y12: 0.005152747902 | Z12: 0.0007372836547 | AA12: 0.004020880436 | AB12: 0.0007417422732 | AC12: 0.002150020045 | AD12: 0.0007378818987 | AE12: 0.002759642954 | AF12: 0.0007376695424 | AG12: 0.002934227324 | AH12: 0.0007546644881 | AI12: 0.002862945079 | AJ12: 0.0007553479676 | AK12: 0.00421918499 | AL12: 0.000761900452 | AM12: 0.004200439534 | AN12: 0.000741279382 | AO12: 0.002691001693 | AP12: 0.0007604574694 | AQ12: 0.005111287246 | AR12: 0.0007607620241 | AS12: 0.003032176317 | AT12: 0.0007557886285 | AU12: 0.005383919128 | AV12: 0.0007773562251 | AW12: 0.004093954819 | AX12: 0.0007749780552 | AY12: 0.005204023085 | AZ12: 0.0007670162961 | BA12: 0.001658157757 | BB12: 0.0007886241133 | BC12: 0.003867282417 | BD12: 0.0007828949659 | BE12: 0.004406080657 | BF12: 0.0007852553706 | BG12: 0.003489414546 | BH12: 0.0007736264922 | BI12: 0.003902924402 | BJ12: 0.0007754640397 | BK12: 0.005165380149 | BL12: 0.0008276709841 | BM12: 0.004775200631 | BN12: 0.0008009699666 | BO12: 0.004987954173 | BP12: 0.0008055011399
A13: Filled Symbols | B13: FALSE | C13: 0.003136072529 | D13: 0.0007252564221 | E13: 0.004463321119 | F13: 0.0007017053176 | G13: 0.005332356675 | H13: 0.0008380259477 | I13: 0.002062268392 | J13: 0.0007074781074 | K13: -0.0007367428824 | L13: 0.0007070753647 | M13: 0.0009520595628 | N13: 0.0007102270854 | O13: 0.0003745440043 | P13: 0.0007225136172 | Q13: -0.0002877171637 | R13: 0.000741990983 | S13: -0.0001169667087 | T13: 0.0007394083636 | U13: 0.002628246427 | V13: 0.000737017003 | W13: -0.000292191651 | X13: 0.000761237349 | Y13: 0.005078173064 | Z13: 0.0007331847367 | AA13: 0.003958300919 | AB13: 0.0007382070523 | AC13: 0.002102712269 | AD13: 0.0007300723219 | AE13: 0.00270558188 | AF13: 0.0007316734258 | AG13: 0.00280592845 | AH13: 0.0007521102938 | AI13: 0.002706984217 | AJ13: 0.0007529689159 | AK13: 0.004000676193 | AL13: 0.000759186972 | AM13: 0.004145115882 | AN13: 0.0007355622552 | AO13: 0.002398871541 | AP13: 0.0007586290593 | AQ13: 0.005045670085 | AR13: 0.0007568873645 | AS13: 0.002979174643 | AT13: 0.0007473604406 | AU13: 0.005274992987 | AV13: 0.000771351725 | AW13: 0.004006549092 | AX13: 0.0007707974979 | AY13: 0.005140203519 | AZ13: 0.0007625212302 | BA13: 0.001545096378 | BB13: 0.0007859215696 | BC13: 0.003792520312 | BD13: 0.0007789453146 | BE13: 0.004336899692 | BF13: 0.0007802040426 | BG13: 0.003436361805 | BH13: 0.0007675693977 | BI13: 0.003861970146 | BJ13: 0.0007688142564 | BK13: 0.005046963217 | BL13: 0.0008234839013 | BM13: 0.004710221897 | BN13: 0.0007964428428 | BO13: 0.00491140483 | BP13: 0.0008011613276
A14: ConcAge | B14: TRUE | C14: 0.003108185122 | D14: 0.0007257699471 | E14: 0.004551218874 | F14: 0.0007154978507 | G14: 0.005530396493 | H14: 0.0008690774291 | I14: 0.001849909386 | J14: 0.0007057296571 | K14: -0.001144198607 | L14: 0.0007051302818 | M14: 0.0008867433304 | N14: 0.0007077939536 | O14: 0.0002932061007 | P14: 0.0007195307078 | Q14: -0.0005664253181 | R14: 0.0007388157371 | S14: -0.0002039030593 | T14: 0.0007366613086 | U14: 0.002551543689 | V14: 0.0007330724709 | W14: -0.0007835878446 | X14: 0.0007600533624 | Y14: 0.005008857294 | Z14: 0.0007285634774 | AA14: 0.003900136941 | AB14: 0.0007341344912 | AC14: 0.002067468971 | AD14: 0.0007218692369 | AE14: 0.002665236455 | AF14: 0.0007252958067 | AG14: 0.002686635046 | AH14: 0.0007488235958 | AI14: 0.00256196707 | AJ14: 0.0007498479472 | AK14: 0.003797498402 | AL14: 0.0007556692312 | AM14: 0.004103828299 | AN14: 0.0007296319285 | AO14: 0.002127233422 | AP14: 0.0007561069766 | AQ14: 0.004984683914 | AR14: 0.0007525305501 | AS14: 0.002939693587 | AT14: 0.0007387130631 | AU14: 0.005173748483 | AV14: 0.0007645921072 | AW14: 0.003925300863 | AX14: 0.0007659028755 | AY14: 0.005080897609 | AZ14: 0.0007575623082 | BA14: 0.001439972392 | BB14: 0.0007823495955 | BC14: 0.003723029917 | BD14: 0.0007743322423 | BE14: 0.004272616495 | BF14: 0.0007745494998 | BG14: 0.003396776997 | BH14: 0.0007612217038 | BI14: 0.0038314746 | BJ14: 0.0007621580965 | BK14: 0.004930308316 | BL14: 0.0008183303521 | BM14: 0.004649839579 | BN14: 0.000791377946 | BO14: 0.00484025622 | BP14: 0.0007962265852
A15: ConcSwap | B15: FALSE | C15: 0.004562716884 | D15: 0.0007297024481 | E15: 0.004639124319 | F15: 0.0007292905738 | G15: 0.005728475322 | H15: 0.000900129874 | I15: 0.001644831039 | J15: 0.0007031359182 | K15: -0.001509803367 | L15: 0.0007026271162 | M15: 0.0008281405192 | N15: 0.0007047999027 | O15: 0.0002202261806 | P15: 0.0007157872907 | Q15: -0.0008165062172 | R15: 0.0007347496498 | S15: -0.0002819093211 | T15: 0.0007331358746 | U15: 0.002482737065 | V15: 0.0007285015534 | W15: -0.001258142935 | X15: 0.0007579547945 | Y15: 0.004946691345 | Z15: 0.0007235459327 | AA15: 0.003847975064 | AB15: 0.0007296356787 | AC15: 0.002045830452 | AD15: 0.0007136311579 | AE15: 0.002640369966 | AF15: 0.0007188154176 | AG15: 0.002579601125 | AH15: 0.0007448940468 | AI15: 0.002431849327 | AJ15: 0.0007460701934 | AK15: 0.003615193775 | AL15: 0.0007514431841 | AM15: 0.004078381251 | AN15: 0.0007237475856 | AO15: 0.001883496917 | AP15: 0.0007529600172 | AQ15: 0.004929992277 | AR15: 0.0007478104235 | AS15: 0.00291545866 | AT15: 0.000730224428 | AU15: 0.005082947303 | AV15: 0.0007572617565 | AW15: 0.003852426374 | AX15: 0.0007604277003 | AY15: 0.005027723065 | AZ15: 0.0007522747964 | BA15: 0.001345653307 | BB15: 0.0007780056253 | BC15: 0.003660706752 | BD15: 0.0007691815815 | BE15: 0.004214984544 | BF15: 0.0007684459836 | BG15: 0.003372390169 | BH15: 0.0007548608355 | BI15: 0.003812770566 | BJ15: 0.0007557864662 | BK15: 0.004817686002 | BL15: 0.0008123106445 | BM15: 0.004595700749 | BN15: 0.0007859134337 | BO15: 0.004776449091 | BP15: 0.0007908315197
A16: 1st Symbol-row | B16: 1 | C16: 0.00446627213 | D16: 0.0007306840746 | E16: 0.004727037458 | F16: 0.0007430834871 | G16: 0.005926593171 | H16: 0.0009311832822 | I16: 0.001451024968 | J16: 0.0006997473746 | K16: -0.001823584416 | L16: 0.0006996341477 | M16: 0.0007778496612 | N16: 0.0007013266025 | O16: 0.0001575949462 | P16: 0.0007113854765 | Q16: -0.001031138306 | R16: 0.0007299036333 | S16: -0.0003488576867 | T16: 0.0007289282265 | U16: 0.00242370342 | V16: 0.0007234289331 | W16: -0.001706620247 | X16: 0.0007549824913 | Y16: 0.004893370943 | Z16: 0.0007182689682 | AA16: 0.003803238129 | AB16: 0.0007248333307 | AC16: 0.002038742418 | AD16: 0.0007057181285 | AE16: 0.0026320692 | AF16: 0.0007125154825 | AG16: 0.002487746293 | AH16: 0.0007404288346 | AI16: 0.002320180262 | AJ16: 0.0007417387018 | AK16: 0.003458735109 | AL16: 0.0007466241065 | AM16: 0.004069886896 | AN16: 0.0007181664005 | AO16: 0.001674310521 | AP16: 0.0007492740218 | AQ16: 0.004883087018 | AR16: 0.0007428557374 | AS16: 0.002907529044 | AT16: 0.0007222655294 | AU16: 0.005005066267 | AV16: 0.0007495606258 | AW16: 0.00378991345 | AX16: 0.0007545213211 | AY16: 0.004982130349 | AZ16: 0.0007468029244 | BA16: 0.001264711902 | BB16: 0.0007730081511 | BC16: 0.003607250828 | BD16: 0.0007636338288 | BE16: 0.004165575889 | BF16: 0.0007620599819 | BG16: 0.003364267142 | BH16: 0.000748764793 | BI16: 0.003806675501 | BJ16: 0.0007499778362 | BK16: 0.00471128834 | BL16: 0.0008055419452 | BM16: 0.004549282173 | BN16: 0.0007801983634 | BO16: 0.004721723935 | BP16: 0.0007851232944
C17: 0.003150117575 | D17: 0.0007331987476 | E17: 0.004814958289 | F17: 0.0007568765904 | G17: IsoLine | H17: IsoLine | I17: 0.001272263388 | J17: 0.0006956299807 | K17: -0.002076982626 | L17: 0.0006962330166 | M17: 0.0007372425598 | N17: 0.0006974687956 | O17: 0.0001070208141 | P17: 0.0007064453354 | Q17: -0.001204466981 | R17: 0.0007244098744 | S17: -0.0004029219791 | T17: 0.0007241531378 | U17: 0.002376053037 | V17: 0.0007179929781 | W17: -0.00212029068 | X17: 0.0007511943055 | Y17: 0.004850350528 | Z17: 0.0007128765257 | AA17: 0.003767146441 | AB17: 0.0007198584428 | AC17: 0.002046514652 | AD17: 0.000698475986 | AE17: 0.00264069694 | AF17: 0.000706671339 | AG17: 0.002413576111 | AH17: 0.0007355497585 | AI17: 0.002230005915 | AJ17: 0.0007369716242 | AK17: 0.003332390188 | AL17: 0.0007413434501 | AM17: 0.004078716478 | AN17: 0.0007131322979 | AO17: 0.001505380294 | AP17: 0.0007451495349 | AQ17: 0.004845247592 | AR17: 0.0007378016427 | AS17: 0.002916251301 | AT17: 0.0007151842093 | AU17: 0.004942229765 | AV17: 0.0007416987817 | AW17: 0.003739467281 | AX17: 0.0007483448483 | AY17: 0.004945363114 | AZ17: 0.0007412959507 | BA17: 0.001199356048 | BB17: 0.0007674934909 | BC17: 0.003564120284 | BD17: 0.0007578403125 | BE17: 0.004125738268 | BF17: 0.0007555656882 | BG17: 0.00337276293 | BH17: 0.0007432000028 | BI17: 0.003813455787 | BJ17: 0.0007449860716 | BK17: 0.004613186239 | BL17: 0.0007981559993 | BM17: 0.004511850029 | BN17: 0.0007743886272 | BO17: 0.004677573511 | BP17: 0.0007792576148
C18: 0.005215443996 | D18: 0.0007392113795 | E18: 0.004902886814 | F18: 0.0007706698839 | I18: 0.001112025689 | J18: 0.0006908638767 | K18: -0.002263085954 | L18: 0.000692516497 | M18: 0.0007074268709 | N18: 0.0006933317129 | O18: 6.988331486e-05 | P18: 0.0007011016214 | Q18: -0.001331764287 | R18: 0.0007184182284 | S18: -0.0004426274655 | T18: 0.0007189408606 | U18: 0.002341085696 | V18: 0.0007123419668 | W18: -0.00249110261 | X18: 0.0007466639697 | Y18: 0.004818803586 | Z18: 0.0007075156969 | AA18: 0.003740684488 | AB18: 0.0007148467169 | AC18: 0.00206880747 | AD18: 0.0006922212468 | AE18: 0.002665876111 | AF18: 0.0007015384041 | AG18: 0.002359113747 | AH18: 0.0007303899071 | AI18: 0.002163786008 | AJ18: 0.000731898994 | AK18: 0.003239605372 | AL18: 0.0007357452576 | AM18: 0.004104484101 | AN18: 0.0007088652921 | AO18: 0.001381314213 | AP18: 0.0007406990616 | AQ18: 0.004817506158 | AR18: 0.0007327860019 | AS18: 0.002941244229 | AT18: 0.0007092899554 | AU18: 0.004896151813 | AV18: 0.000733890675 | AW18: 0.003702463906 | AX18: 0.00074206676 | AY18: 0.004918424272 | AZ18: 0.0007359040911 | BA18: 0.001151368481 | BB18: 0.0007616120705 | BC18: 0.003532491609 | BD18: 0.0007519590645 | BE18: 0.004096558349 | BF18: 0.00074914025 | BG18: 0.003397506228 | BH18: 0.0007384096728 | BI18: 0.003832815095 | BJ18: 0.0007410293364 | BK18: 0.004525289146 | BL18: 0.0007902965658 | BM18: 0.004484425368 | BN18: 0.0007686426998 | BO18: 0.004645202129 | BP18: 0.0007733944813
C19: 0.003288536949 | D19: 0.0007423452131 | E19: 0.004990823033 | F19: 0.0007844633675 | I19: 0.0009734307164 | J19: 0.0006855418294 | K19: -0.002376817987 | L19: 0.0006885859658 | M19: 0.0006892158888 | N19: 0.0006890282034 | O19: 4.719546266e-05 | P19: 0.0006955000971 | Q19: -0.001409557886 | R19: 0.0007120921319 | S19: -0.0004668910836 | T19: 0.000713433572 | U19: 0.002319755213 | V19: 0.0007066300442 | W19: -0.002811838603 | X19: 0.0007414796617 | Y19: 0.004799590634 | Z19: 0.0007023327114 | AA19: 0.003724574083 | AB19: 0.0007099348599 | AC19: 0.002104646567 | AD19: 0.000687227273 | AE19: 0.002706506263 | AF19: 0.0006973410117 | AG19: 0.002325844794 | AH19: 0.0007250900275 | AI19: 0.002123326847 | AJ19: 0.0007266591795 | AK19: 0.003182911589 | AL19: 0.0007299822329 | AM19: 0.004146063597 | AN19: 0.0007055518719 | AO19: 0.001305496477 | AP19: 0.0007360439994 | AQ19: 0.004800619431 | AR19: 0.0007279456287 | AS19: 0.002981415514 | AT19: 0.0007048403749 | AU19: 0.004868089299 | AV19: 0.0007263492904 | AW19: 0.003679912682 | AX19: 0.0007358583062 | AY19: 0.004902048646 | AZ19: 0.0007307744214 | BA19: 0.001122058178 | BB19: 0.0007555243195 | BC19: 0.003513227551 | BD19: 0.0007461505101 | BE19: 0.004078832083 | BF19: 0.0007429589363 | BG19: 0.003437415634 | BH19: 0.0007346031635 | BI19: 0.003863907329 | BJ19: 0.000738280559 | BK19: 0.004449307878 | BL19: 0.0007821166196 | BM19: 0.004467756263 | BN19: 0.000763117315 | BO19: 0.004625492795 | BP19: 0.000767693825
C20: 0.005556604851 | D20: 0.0007436688134 | E20: 0.005078766948 | F20: 0.0007982570412 | I20: 0.000859176063 | J20: 0.0006797674266 | K20: -0.002415076411 | L20: 0.0006845486381 | M20: 0.0006831063617 | N20: 0.0006846756554 | O20: 3.957612295e-05 | P20: 0.0006897935576 | Q20: -0.001435725771 | R20: 0.0007056041442 | S20: -0.0004750509852 | T20: 0.0007077814968 | U20: 0.002312643429 | V20: 0.0007010130166 | W20: -0.0030762559 | X20: 0.0007357422883 | Y20: 0.004793235753 | Z20: 0.0006974689473 | AA20: 0.003719254677 | AB20: 0.0007052568544 | AC20: 0.002152465604 | AD20: 0.0006837123253 | AE20: 0.002760811664 | AF20: 0.000694262608 | AG20: 0.002314676741 | AH20: 0.0007197946868 | AI20: 0.002109732052 | AJ20: 0.000721395109 | AK20: 0.003163855298 | AL20: 0.0007242115765 | AM20: 0.004201637742 | AN20: 0.0007033368495 | AO20: 0.001279995196 | AP20: 0.000731311326 | AQ20: 0.004795048037 | AR20: 0.0007234125557 | AS20: 0.00303500948 | AT20: 0.0007020299358 | AU20: 0.004858807695 | AV20: 0.0007192803373 | AW20: 0.003672428746 | AX20: 0.0007298888373 | AY20: 0.004896682919 | AZ20: 0.0007260468658 | BA20: 0.001112224647 | BB20: 0.0007493962959 | BC20: 0.003506853582 | BD20: 0.0007405730913 | BE20: 0.004073042997 | BF20: 0.0007371903574 | BG20: 0.003490746915 | BH20: 0.0007319468375 | BI20: 0.003905373609 | BJ20: 0.0007368598741 | BK20: 0.004386721322 | BL20: 0.0007737753741 | BM20: 0.004462297405 | BN20: 0.0007579631913 | BO20: 0.004618983128 | BP20: 0.0007623111449
C21: 0.004232285442 | D21: 0.0007446195858 | E21: 0.005166718558 | F21: 0.000812050905 | I21: 0.000771485566 | J21: 0.0006736530602 | K21: -0.002376817635 | L21: 0.0006805146404 | M21: 0.0006892649414 | N21: 0.0006803927951 | O21: 4.723313147e-05 | P21: 0.0006841376622 | Q21: -0.00140955415 | R21: 0.0006991312409 | S21: -0.0004668845894 | T21: 0.0007021388086 | U21: 0.002319944335 | V21: 0.000695644102 | W21: -0.003279207918 | X21: 0.0007295635208 | Y21: 0.004799912287 | Z21: 0.0006930570756 | AA21: 0.003724871368 | AB21: 0.0007009403042 | AC21: 0.002210174659 | AD21: 0.0006818300236 | AE21: 0.002826418907 | AF21: 0.000692437734 | AG21: 0.002325914224 | AH21: 0.0007146483279 | AI21: 0.002123372454 | AJ21: 0.0007162503726 | AK21: 0.003182956304 | AL21: 0.0007185906967 | AM21: 0.004268777681 | AN21: 0.000702317032 | AO21: 0.001305505978 | AP21: 0.0007266301366 | AQ21: 0.004800943949 | AR21: 0.0007193104336 | AS21: 0.003099683813 | AT21: 0.0007009814677 | AU21: 0.004868560177 | AV21: 0.0007128766382 | AW21: 0.003680216242 | AX21: 0.0007243211848 | AY21: 0.004902473455 | AZ21: 0.0007218503795 | BA21: 0.001122136121 | BB21: 0.0007433951563 | BC21: 0.003513543569 | BD21: 0.0007353789458 | BE21: 0.004079349002 | BF21: 0.000731991865 | BG21: 0.00355516924 | BH21: 0.0007305567892 | BI21: 0.003955401661 | BJ21: 0.0007368293725 | BK21: 0.004338747656 | BL21: 0.0007654351822 | BM21: 0.004468197696 | BN21: 0.0007533209185 | BO21: 0.004625850695 | BP21: 0.0007573932664
C22: 0.005305675914 | D22: 0.0007455160794 | E22: 0.005254677865 | F22: 0.0008258449589 | I22: 0.0007120660211 | J22: 0.0006673177396 | K22: -0.002263085261 | L22: 0.0006765940109 | M22: 0.000707523638 | N22: 0.0006762964479 | O22: 6.995762497e-05 | P22: 0.0006786866893 | Q22: -0.001331756918 | R22: 0.0006928499857 | S22: -0.0004426146543 | T22: 0.0006966594254 | U22: 0.002341458781 | V22: 0.0006906697502 | W22: -0.003416744426 | X22: 0.000723063622 | Y22: 0.004819438117 | Z22: 0.0006892174407 | AA22: 0.003741270947 | AB22: 0.0006971029536 | AC22: 0.00227525157 | AD22: 0.0006816626337 | AE22: 0.00290046064 | AF22: 0.0006919461454 | AG22: 0.002359250714 | AH22: 0.0007097913302 | AI22: 0.002163875979 | AJ22: 0.0007113653055 | AK22: 0.003239693582 | AL22: 0.0007132729165 | AM22: 0.004344549074 | AN22: 0.0007025369905 | AO22: 0.001381332956 | AP22: 0.0007221281218 | AQ22: 0.004818146341 | AR22: 0.0007157511573 | AS22: 0.003172611934 | AT22: 0.0007017407938 | AU22: 0.004897080725 | AV22: 0.0007073128694 | AW22: 0.003703062747 | AX22: 0.0007193072197 | AY22: 0.004919262303 | AZ22: 0.0007182994319 | BA22: 0.001151522242 | BB22: 0.000737684596 | BC22: 0.003533115026 | BD22: 0.0007307097561 | BE22: 0.004097578086 | BF22: 0.0007275052604 | BG22: 0.003627867043 | BH22: 0.0007304937702 | BI22: 0.004011805017 | BJ22: 0.0007381903871 | BK22: 0.004306320632 | BL22: 0.0007572583761 | BM22: 0.004485296192 | BN22: 0.000749317127 | BO22: 0.004645908167 | BP22: 0.0007530743366
C23: 0.001836084334 | D23: 0.0007540479116 | E23: 0.005342644868 | F23: 0.0008396392029 | I23: 0.0006820739621 | J23: 0.0006608847746 | K23: -0.00207698161 | L23: 0.0006728936937 | M23: 0.0007373844019 | N23: 0.0006724983514 | O23: 0.0001071297385 | P23: 0.0006735893269 | Q23: -0.00120445618 | R23: 0.0006869317149 | S23: -0.0004029032004 | T23: 0.0006914928104 | U23: 0.002376599909 | V23: 0.0006862256487 | W23: -0.003486188434 | X23: 0.0007163691049 | Y23: 0.00485128063 | Z23: 0.0006860547776 | AA23: 0.003768006078 | AB23: 0.0006938494754 | AC23: 0.002344852164 | AD23: 0.0006832174713 | AE23: 0.002979700885 | AF23: 0.0006928093271 | AG23: 0.002413776878 | AH23: 0.0007053561799 | AI23: 0.002230137795 | AJ23: 0.0007068731594 | AK23: 0.003332519486 | AL23: 0.0007084032912 | AM23: 0.004425640349 | AN23: 0.0007039871116 | AO23: 0.001505407768 | AP23: 0.0007179280848 | AQ23: 0.004846185978 | AR23: 0.0007128318147 | AS23: 0.003250606534 | AT23: 0.0007042747279 | AU23: 0.004943591372 | AV23: 0.000702740796 | AW23: 0.003740345067 | AX23: 0.00071498371 | AY23: 0.004946591507 | AZ23: 0.0007154908834 | BA23: 0.001199581432 | BB23: 0.0007324203844 | BC23: 0.003565034094 | BD23: 0.0007266928857 | BE23: 0.004127233008 | BF23: 0.0007238529266 | BG23: 0.003705663082 | BH23: 0.0007317605348 | BI23: 0.004072118582 | BJ23: 0.0007408834353 | BK23: 0.004290071405 | BL23: 0.0007494041082 | BM23: 0.004513126491 | BN23: 0.0007460610294 | BO23: 0.004678608429 | BP23: 0.0007494721644
C24: 0.003985783336 | D24: 0.0007546240367 | E24: 0.00543061957 | F24: 0.0008534336371 | I24: 0.0006820931505 | J24: 0.0006544793754 | K24: -0.001823583105 | L24: 0.0006695146239 | M24: 0.0007780327092 | N24: 0.0006691021077 | O24: 0.0001577355138 | P24: 0.000668984618 | Q24: -0.001031124367 | R24: 0.0006815378636 | S24: -0.0003488334527 | T24: 0.0006867798954 | U24: 0.00242440916 | V24: 0.000682433021 | W24: -0.003486188292 | X24: 0.0007096102708 | Y24: 0.004894571244 | Z24: 0.0006836553557 | AA24: 0.003804347495 | AB24: 0.000691268616 | AC24: 0.002415934559 | AD24: 0.0006864265825 | AE24: 0.003060676463 | AF24: 0.0006949895538 | AG24: 0.002488005384 | AH24: 0.0007014638564 | AI24: 0.002320350454 | AJ24: 0.0007028964684 | AK24: 0.003458901969 | AL24: 0.0007041146513 | AM24: 0.004508507427 | AN24: 0.000706604018 | AO24: 0.001674345975 | AP24: 0.0007141445917 | AQ24: 0.004884298011 | AR24: 0.000710632038 | AS24: 0.003330258876 | AT24: 0.0007084725249 | AU24: 0.005006823429 | AV24: 0.0006992851321 | AW24: 0.003791046238 | AX24: 0.0007114685898 | AY24: 0.004983715598 | AZ24: 0.0007135013441 | BA24: 0.001265002762 | BB24: 0.0007277461153 | BC24: 0.003608430105 | BD24: 0.0007234379042 | BE24: 0.004167504859 | BF24: 0.0007211344897 | BG24: 0.003785157295 | BH24: 0.0007343017193 | BI24: 0.004133706362 | BJ24: 0.0007447908177 | BK24: 0.004290316248 | BL24: 0.0007420252527 | BM24: 0.004550929455 | BN24: 0.0007436414435 | BO24: 0.004723059501 | BP24: 0.0007466850079
C25: 0.004516453804 | D25: 0.0007580899546 | E25: 0.00551860197 | F25: 0.0008672282614 | I25: 0.0007121232127 | J25: 0.0006482262159 | K25: -0.001509801796 | L25: 0.0006665489736 | M25: 0.0008283597801 | N25: 0.0006662003576 | O25: 0.000220394557 | P25: 0.000664998167 | Q25: -0.0008164895206 | R25: 0.000676815562 | S25: -0.0002818802929 | T25: 0.0006826492364 | U25: 0.002483582424 | V25: 0.00067939532 | W25: -0.003416744003 | X25: 0.0007029186727 | Y25: 0.004948129105 | Z25: 0.0006820846248 | AA25: 0.0038493039 | AB25: 0.0006894307747 | AC25: 0.002485392116 | AD25: 0.0006911497137 | AE25: 0.003139848352 | AF25: 0.0006983915392 | AG25: 0.002579911473 | AH25: 0.000698220532 | AI25: 0.002432053188 | AJ25: 0.0006995437063 | AK25: 0.003615393645 | AL25: 0.0007005239798 | AM25: 0.004589528621 | AN25: 0.0007102733385 | AO25: 0.001883539385 | AP25: 0.0007108808463 | AQ25: 0.004931442843 | AR25: 0.0007092118311 | AS25: 0.003408087769 | AT25: 0.0007141507208 | AU25: 0.005085052089 | AV25: 0.0006970401394 | AW25: 0.003853783264 | AX25: 0.0007088577423 | AY25: 0.005029621927 | AZ25: 0.0007123850832 | BA25: 0.001346001708 | BB25: 0.0007237892907 | BC25: 0.003662119328 | BD25: 0.0007210335992 | BE25: 0.004217295127 | BF25: 0.0007194241015 | BG25: 0.003862875405 | BH25: 0.0007380062617 | BI25: 0.004193876676 | BJ25: 0.0007497417632 | BK25: 0.004307050396 | BL25: 0.0007352654308 | BM25: 0.004597673917 | BN25: 0.0007421243693 | BO25: 0.004778048875 | BP25: 0.0007447888932
C26: 0.003744518659 | D26: 0.0007609202596 | E26: 0.005606592068 | F26: 0.0008810230758 | I26: 0.0007715796477 | J26: 0.0006422470068 | K26: -0.00114419682 | L26: 0.0006640776381 | M26: 0.0008869928232 | N26: 0.0006638722532 | O26: 0.000293397693 | P26: 0.0006617387138 | Q26: -0.0005664063193 | R26: 0.0006728936221 | S26: -0.0002038700286 | T26: 0.0006792135072 | U26: 0.002552505607 | V26: 0.0006771954063 | W26: -0.003279207221 | X26: 0.0006964245549 | Y26: 0.005010493294 | Z26: 0.0006813854306 | AA26: 0.003901648998 | AB26: 0.0006883860829 | AC26: 0.002550189204 | AD26: 0.0006971804415 | AE26: 0.00321375636 | AF26: 0.0007028666002 | AG26: 0.002686988185 | AH26: 0.0006957146762 | AI26: 0.00256219904 | AJ26: 0.0006969063277 | AK26: 0.00379772583 | AL26: 0.0006977292208 | AM26: 0.004665162914 | AN26: 0.0007148347061 | AO26: 0.002127281746 | AP26: 0.000708225875 | AQ26: 0.004986334487 | AR26: 0.0007086099337 | AS26: 0.003480691718 | AT26: 0.0007210611514 | AU26: 0.00517614348 | AV26: 0.0006960670554 | AW26: 0.003926844843 | AX26: 0.0007072223846 | AY26: 0.005083058289 | AZ26: 0.0007121725496 | BA26: 0.001440368831 | BB26: 0.0007206578424 | BC26: 0.003724637261 | BD26: 0.0007195455537 | BE26: 0.004275245665 | BF26: 0.0007187684169 | BG26: 0.003935420758 | BH26: 0.0007427122558 | BI26: 0.004249999792 | BJ26: 0.0007555198915 | BK26: 0.004339948137 | BL26: 0.0007292562147 | BM26: 0.00465208481 | BN26: 0.0007415511886 | BO26: 0.004842076585 | BP26: 0.0007438355417
C27: 0.004101273632 | D27: 0.0007686683552 | E27: 0.005694589867 | F27: 0.0008948180804 | I27: 0.0008593052036 | J27: 0.0006366581264 | K27: -0.0007367409275 | L27: 0.0006621680289 | M27: 0.0009523324821 | N27: 0.0006621812991 | O27: 0.0003747535865 | P27: 0.0006592951678 | Q27: -0.000287696381 | R27: 0.0006698790243 | S27: -0.0001169305766 | T27: 0.0006765664253 | U27: 0.002629298665 | V27: 0.0006758932879 | W27: -0.003076254944 | X27: 0.000690254318 | Y27: 0.005079962679 | Z27: 0.0006815768451 | AA27: 0.003959954953 | AB27: 0.000688163037 | AC27: 0.002607493881 | AD27: 0.0007042551942 | AE27: 0.003279170354 | AF27: 0.0007082191552 | AG27: 0.002806314748 | AH27: 0.0006940146422 | AI27: 0.002707237968 | AJ27: 0.0006950562734 | AK27: 0.004000924977 | AL27: 0.0006958066082 | AM27: 0.004732104726 | AN27: 0.0007200887672 | AO27: 0.002398924403 | AP27: 0.0007062520986 | AQ27: 0.00504747564 | AR27: 0.000708842764 | AS27: 0.003544897581 | AT27: 0.0007289017976 | AU27: 0.005277612865 | AV27: 0.0006963924233 | AW27: 0.004008238046 | AX27: 0.0007066071252 | AY27: 0.005142567079 | AZ27: 0.0007128695405 | BA27: 0.001545530041 | BB27: 0.0007184371881 | BC27: 0.003794278579 | BD27: 0.0007190143578 | BE27: 0.004339775731 | BF27: 0.0007191853215 | BG27: 0.003999622772 | BH27: 0.0007482140271 | BI27: 0.004299622862 | BJ27: 0.0007618726708 | BK27: 0.004388369155 | BL27: 0.0007241145669 | BM27: 0.004712677947 | BN27: 0.0007419375363 | BO27: 0.004913396121 | BP27: 0.000743850958
C28: 0.005137491593 | D28: 0.0007738295021 | E28: 0.005782595366 | F28: 0.0009086132751 | I28: 0.0009735924023 | J28: 0.0006315683561 | K28: -0.0002985484529 | L28: 0.0006608722353 | M28: 0.001022596461 | N28: 0.0006611736201 | O28: 0.0004622430607 | P28: 0.0006577341827 | Q28: 1.203781373e-05 | R28: 0.0006678539989 | S28: -2.343341843e-05 | T28: 0.0006747801963 | U28: 0.002711866884 | V28: 0.0006755244831 | W28: -0.002811837407 | X28: 0.0006845280586 | Y28: 0.005154642315 | Z28: 0.000682653647 | AA28: 0.004022631328 | AB28: 0.0006887677212 | AC28: 0.002654801657 | AD28: 0.0007120647709 | AE28: 0.003333231428 | AF28: 0.0007142152718 | AG28: 0.002934636243 | AH28: 0.0006931668025 | AI28: 0.002863213689 | AJ28: 0.000694044008 | AK28: 0.004219448342 | AL28: 0.0006948085857 | AM28: 0.004787428378 | AN28: 0.000725805894 | AO28: 0.00269105765 | AP28: 0.0007050133566 | AQ28: 0.005113198533 | AR28: 0.000709903971 | AS28: 0.003597899254 | AT28: 0.0007373299856 | AU28: 0.005386692424 | AV28: 0.0006980073678 | AW28: 0.004095742677 | AX28: 0.0007070287465 | AY28: 0.005206525053 | AZ28: 0.0007144570439 | BA28: 0.001658616815 | BB28: 0.0007171879015 | BC28: 0.003869143647 | BD28: 0.0007194545011 | BE28: 0.004409125115 | BF28: 0.000720663443 | BG28: 0.004052675513 | BH28: 0.0007542711216 | BI28: 0.004340577119 | BJ28: 0.0007685224541 | BK28: 0.004451370988 | BL28: 0.0007199405638 | BM28: 0.004777800505 | BN28: 0.0007432728739 | BO28: 0.004990062071 | BP28: 0.0007448347219
C29: 0.004878728313 | D29: 0.0007767278788 | E29: 0.005870608566 | F29: 0.0009224086599 | I29: 0.001112216773 | J29: 0.0006270767625 | K29: 0.0001584278555 | L29: 0.000660225603 | M29: 0.001095868142 | N29: 0.0006608767032 | O29: 0.0005534796308 | P29: 0.000657098338 | Q29: 0.0003246202974 | R29: 0.0006668737832 | S29: 7.407108714e-05 | T29: 0.0006739035439 | U29: 0.002797958017 | V29: 0.0006760990519 | W29: -0.002491101195 | X29: 0.000679357232 | Y29: 0.005232495137 | Z29: 0.0006845864641 | AA29: 0.004087968477 | AB29: 0.0006901836413 | AC29: 0.002690044955 | AD29: 0.0007202678559 | AE29: 0.003373576854 | AF29: 0.0007205928909 | AG29: 0.003068452395 | AH29: 0.000693194284 | AI29: 0.003025871593 | AJ29: 0.0006938971435 | AK29: 0.004447335178 | AL29: 0.0006947623768 | AM29: 0.00482871596 | AN29: 0.0007317362208 | AO29: 0.002995712856 | AP29: 0.0007045434385 | AQ29: 0.005181710415 | AR29: 0.0007117646076 | AS29: 0.003637380311 | AT29: 0.000745977363 | AU29: 0.005500406751 | AV29: 0.0007008678375 | AW29: 0.004186971839 | AX29: 0.000708475748 | AY29: 0.005273187604 | AZ29: 0.0007168917569 | BA29: 0.001776544441 | BB29: 0.0007169440599 | BC29: 0.003947190342 | BD29: 0.0007208539777 | BE29: 0.004481402145 | BF29: 0.0007231624622 | BG29: 0.004092260321 | BH29: 0.0007606188155 | BI29: 0.004371072665 | BJ29: 0.000775178614 | BK29: 0.004527727378 | BL29: 0.0007168154476 | BM29: 0.004845676111 | BN29: 0.0007455207768 | BO29: 0.00506998319 | BP29: 0.0007467599986
C30: 0.005109397809 | D30: 0.0007793509576 | E30: 0.005958629468 | F30: 0.0009362042349 | I30: 0.001272480151 | J30: 0.0006232707692 | K30: 0.000621722875 | L30: 0.0006602457706 | M30: 0.001170148865 | N30: 0.0006612986474 | O30: 0.0006459746012 | P30: 0.0006574049778 | Q30: 0.0006415246348 | R30: 0.0006669651152 | S30: 0.0001729232714 | T30: 0.0006739603808 | U30: 0.002885223723 | V30: 0.0006776013217 | W30: -0.002120289075 | X30: 0.0006748424823 | Y30: 0.005311397523 | Z30: 0.000687322574 | AA30: 0.004154184173 | AB30: 0.0006923721746 | AC30: 0.002711683475 | AD30: 0.0007285059349 | AE30: 0.003398443342 | AF30: 0.0007270732801 | AG30: 0.003204113048 | AH30: 0.0006940963371 | AI30: 0.003190774795 | AJ30: 0.0006946196861 | AK30: 0.004678369327 | AL30: 0.000695669242 | AM30: 0.004854163008 | AN30: 0.0007376205637 | AO30: 0.00330457982 | AP30: 0.0007048551626 | AQ30: 0.005251142461 | AR30: 0.0007143739207 | AS30: 0.003661615238 | AT30: 0.0007544659981 | AU30: 0.005615654016 | AV30: 0.0007048958063 | AW30: 0.004279437038 | AX30: 0.0007109086591 | AY30: 0.005340736352 | AZ30: 0.0007201072667 | BA30: 0.001896096159 | BB30: 0.0007177123147 | BC30: 0.004026289753 | BD30: 0.0007231746135 | BE30: 0.004554635294 | BF30: 0.0007266142123 | BG30: 0.004116647149 | BH30: 0.0007669796838 | BI30: 0.004389776699 | BJ30: 0.0007815502443 | BK30: 0.004615952136 | BL30: 0.0007148000451 | BM30: 0.004914453295 | BN30: 0.0007486199281 | BO30: 0.005150979437 | BP30: 0.0007495742718
C31: IsoLine | D31: IsoLine | E31: 0.006046658073 | F31: 0.00095 | I31: 0.001451263192 | J31: 0.0006202244556 | K31: 0.001078699125 | L31: 0.0006609321878 | M31: 0.001243412444 | N31: 0.0006624279432 | O31: 0.00073720495 | P31: 0.000658645738 | Q31: 0.0009541065015 | R31: 0.0006681255033 | S31: 0.0002704267044 | T31: 0.0006749491567 | U31: 0.002971283621 | V31: 0.0006799903144 | W31: -0.001706618483 | X31: 0.000671071684 | Y31: 0.005389197221 | Z31: 0.0006907873429 | AA31: 0.004219472223 | AB31: 0.0006952736238 | AC31: 0.002718771508 | AD31: 0.0007364189643 | AE31: 0.003406744108 | AF31: 0.0007333732151 | AG31: 0.003337917733 | AH31: 0.000695848356 | AI31: 0.003353425166 | AJ31: 0.0006961919265 | AK31: 0.004906248778 | AL31: 0.0006975044443 | AM31: 0.004862657364 | AN31: 0.0007432017487 | AO31: 0.003609233457 | AP31: 0.0007059400258 | AQ31: 0.005319600747 | AR31: 0.0007176607348 | AS31: 0.003669544854 | AT31: 0.0007624248967 | AU31: 0.005729290573 | AV31: 0.0007099814017 | AW31: 0.004370616064 | AX31: 0.0007142611165 | AY31: 0.005407328742 | AZ31: 0.0007240158627 | BA31: 0.002014010911 | BB31: 0.0007194717098 | BC31: 0.004104284255 | BD31: 0.0007263531075 | BE31: 0.004626826951 | BF31: 0.0007309245386 | BG31: 0.004124770176 | BH31: 0.0007730757263 | BI31: 0.004395871764 | BJ31: 0.0007873588743 | BK31: 0.004714328066 | BL31: 0.0007139335838 | BM31: 0.004982255994 | BN31: 0.000752485791 | BO31: 0.005230841445 | BP31: 0.0007532007753
E32: 0.006046658073 | F32: 0.00095 | I32: 0.001645086086 | J32: 0.0006179971148 | K32: 0.001516891485 | L32: 0.0006622661312 | M32: 0.001313660441 | N32: 0.0006642337864 | O32: 0.0008246821512 | P32: 0.0006607867737 | Q32: 0.001253839479 | R32: 0.0006703232954 | S32: 0.0003639217467 | T32: 0.0006768429004 | U32: 0.003053790221 | V32: 0.0006832008645 | W32: -0.001258141047 | X32: 0.0006681182315 | Y32: 0.005463772059 | Z32: 0.0006948862609 | AA32: 0.004282051739 | AB32: 0.0006988088447 | AG32: 0.003466216607 | AH32: 0.0006984025503 | AI32: 0.003509386028 | AJ32: 0.0006985709783 | AK32: 0.005124757575 | AL32: 0.0007002179242 | AO32: 0.003901363609 | AP32: 0.0007077684358 | AQ32: 0.005385217907 | AR32: 0.0007215353944 | AU32: 0.005838216714 | AV32: 0.0007159859018 | AW32: 0.004458021792 | AX32: 0.0007184416737 | AY32: 0.005471148308 | AZ32: 0.0007285109286 | BA32: 0.00212707229 | BB32: 0.0007221742535 | BC32: 0.004179046361 | BD32: 0.0007303027588 | BE32: 0.004696007916 | BF32: 0.0007359758667 | BK32: 0.004820940392 | BL32: 0.0007142329284 | BM32: 0.005047234728 | BN32: 0.0007570129149 | BO32: 0.005307390787 | BP32: 0.0007575405876
E33: IsoLine | F33: IsoLine | I33: 0.001850176292 | J33: 0.0006166320994 | K33: 0.00192434721 | L33: 0.000664211214 | M33: 0.001378976674 | N33: 0.0006666669181 | O33: 0.0009060200549 | P33: 0.0006637696831 | Q33: 0.001532547634 | R33: 0.0006734985413 | S33: 0.0004508580972 | T33: 0.0006795899554 | U33: 0.003130492958 | V33: 0.0006871453965 | W33: -0.0007835858688 | X33: 0.0006660396102 | Y33: 0.005533087829 | Z33: 0.0006995075202 | AA33: 0.004340215717 | AB33: 0.0007028814059 | AG33: 0.003585510011 | AH33: 0.0007016892483 | AI33: 0.003654403175 | AJ33: 0.000701691947 | AK33: 0.005327935367 | AL33: 0.0007037356651 | AO33: 0.004173001728 | AP33: 0.0007102905185 | AQ33: 0.005446204078 | AR33: 0.0007258922088 | AU33: 0.005939461218 | AV33: 0.0007227455196 | AW33: 0.00453927002 | AX33: 0.0007233362962 | AY33: 0.005530454219 | AZ33: 0.0007334698506 | BA33: 0.002232196276 | BB33: 0.0007257462276 | BC33: 0.004248536755 | BD33: 0.0007349158311 | BE33: 0.004760291113 | BF33: 0.0007416304094 | BK33: 0.004933714027 | BL33: 0.0007156922526 | BM33: 0.005107617046 | BN33: 0.0007620778116 | BO33: 0.005378539398 | BP33: 0.00076247533
I34: 0.002062541962 | J34: 0.0006161559778 | K34: 0.00228995197 | L34: 0.0006667143796 | M34: 0.001437579485 | N34: 0.0006696609691 | O34: 0.0009789999749 | P34: 0.0006675131002 | Q34: 0.001782628533 | R34: 0.0006775646286 | S34: 0.000528864359 | T34: 0.0006831153893 | U34: 0.003199299582 | V34: 0.000691716314 | W34: -0.0002921896259 | X34: 0.0006648762783 | Y34: 0.005595253778 | Z34: 0.0007045250649 | AA34: 0.004392377594 | AB34: 0.0007073802184 | AG34: 0.003692543932 | AH34: 0.0007056187973 | AI34: 0.003784520918 | AJ34: 0.0007054697008 | AK34: 0.005510239993 | AL34: 0.0007079617121 | AO34: 0.004416738234 | AP34: 0.0007134374779 | AQ34: 0.005500895715 | AR34: 0.0007306123354 | AU34: 0.006030262398 | AV34: 0.0007300758703 | AW34: 0.004612144509 | AX34: 0.0007288114713 | AY34: 0.005583628763 | AZ34: 0.0007387573624 | BA34: 0.002326515361 | BB34: 0.0007300901978 | BC34: 0.004310859921 | BD34: 0.0007400664919 | BE34: 0.004817923064 | BF34: 0.0007477339256 | BK34: 0.005050453961 | BL34: 0.0007182831522 | BM34: 0.005161755876 | BN34: 0.0007675423239 | BO34: 0.005442346527 | BP34: 0.0007678703955
I35: 0.00227804964 | J35: 0.0006165780173 | K35: 0.002603733019 | L35: 0.0006697073481 | M35: 0.001487870343 | N35: 0.0006731342693 | O35: 0.001041631209 | P35: 0.0006719149143 | Q35: 0.001997260622 | R35: 0.0006824106451 | S35: 0.0005958127246 | T35: 0.0006873230375 | U35: 0.003258333228 | V35: 0.0006967889343 | W35: 0.0002064832128 | X35: 0.0006646508786 | Y35: 0.005648574181 | Z35: 0.0007098020294 | AA35: 0.00443711453 | AB35: 0.0007121825663 | AG35: 0.003784398764 | AH35: 0.0007100840095 | AI35: 0.003896189983 | AJ35: 0.0007098011924 | AK35: 0.005666698659 | AL35: 0.0007127807898 | AO35: 0.00462592463 | AP35: 0.0007171234733 | AQ35: 0.005547800974 | AR35: 0.0007355670216 | AU35: 0.006108143435 | AV35: 0.000737777001 | AW35: 0.004674657433 | AX35: 0.0007347178506 | AY35: 0.005629221478 | AZ35: 0.0007442292344 | BA35: 0.002407456766 | BB35: 0.0007350876721 | BC35: 0.004364315845 | BD35: 0.0007456142446 | BE35: 0.004867331719 | BF35: 0.0007541199273 | BK35: 0.005168887984 | BL35: 0.0007219551983 | BM35: 0.005208174453 | BN35: 0.0007732573943 | BO35: 0.005497071683 | BP35: 0.0007735786208
I36: 0.002492504714 | J36: 0.0006178900033 | K36: 0.002857131229 | L36: 0.0006731084792 | M36: 0.001528477444 | N36: 0.0006769920762 | O36: 0.001092205341 | P36: 0.0006768550555 | Q36: 0.002170589296 | R36: 0.0006879044041 | S36: 0.000649877017 | T36: 0.0006920981262 | U36: 0.00330598361 | V36: 0.0007022248894 | W36: 0.0007027265478 | X36: 0.0006653677983 | Y36: 0.005691594596 | Z36: 0.0007151944719 | AA36: 0.004473206218 | AB36: 0.0007171574542 | AG36: 0.003858568946 | AH36: 0.0007149630856 | AI36: 0.00398636433 | AJ36: 0.00071456827 | AK36: 0.00579304358 | AL36: 0.0007180614461 | AO36: 0.004794854856 | AP36: 0.0007212479602 | AQ36: 0.005585640401 | AR36: 0.0007406211163 | AU36: 0.006170979937 | AV36: 0.000745638845 | AW36: 0.004725103603 | AX36: 0.0007408943234 | AY36: 0.005665988714 | AZ36: 0.0007497362081 | BA36: 0.002472812621 | BB36: 0.0007406023322 | BC36: 0.004407446389 | BD36: 0.0007514077609 | BE36: 0.00490716934 | BF36: 0.000760614221 | BK36: 0.005286710911 | BL36: 0.0007266369187 | BM36: 0.005245606597 | BN36: 0.0007790671304 | BO36: 0.005541222106 | BP36: 0.0007794443004
I37: 0.00270173306 | J37: 0.0006200663995 | K37: 0.003043234557 | L37: 0.0006768249988 | M37: 0.001558293133 | N37: 0.0006811291588 | O37: 0.001129342841 | P37: 0.0006821987695 | Q37: 0.002297886602 | R37: 0.00069389605 | S37: 0.0006895825034 | T37: 0.0006973104034 | U37: 0.003340950952 | V37: 0.0007078759006 | W37: 0.001186881567 | X37: 0.0006670130833 | Y37: 0.005723141538 | Z37: 0.0007205553007 | AA37: 0.00449966817 | AB37: 0.0007221691801 | AG37: 0.00391303131 | AH37: 0.000720122937 | AI37: 0.004052584237 | AJ37: 0.0007196409001 | AK37: 0.005885828396 | AL37: 0.0007236596387 | AO37: 0.004918920937 | AP37: 0.0007256984335 | AQ37: 0.005613381834 | AR37: 0.0007456367571 | AU37: 0.006217057888 | AV37: 0.0007534469517 | AW37: 0.004762106977 | AX37: 0.0007471724116 | AY37: 0.005692927555 | AZ37: 0.0007551280677 | BA37: 0.002520800187 | BB37: 0.0007464837526 | BC37: 0.004439075064 | BD37: 0.0007572890089 | BE37: 0.004936349259 | BF37: 0.0007670396593 | BK37: 0.005401629455 | BL37: 0.0007322371891 | BM37: 0.005273031258 | BN37: 0.0007848130578 | BO37: 0.005573593489 | BP37: 0.0007853074339
I38: 0.002901662286 | J38: 0.0006230648448 | K38: 0.00315696659 | L38: 0.00068075553 | M38: 0.001576504115 | N38: 0.0006854326684 | O38: 0.001152030693 | P38: 0.0006878002937 | Q38: 0.002375680201 | R38: 0.0007002221465 | S38: 0.0007138461215 | T38: 0.0007028176919 | U38: 0.003362281435 | V38: 0.0007135878232 | W38: 0.001649524744 | X38: 0.0006695547102 | Y38: 0.005742354489 | Z38: 0.0007257382862 | AA38: 0.004515778575 | AB38: 0.0007270810371 | AG38: 0.003946300263 | AH38: 0.0007254228166 | AI38: 0.004093043398 | AJ38: 0.0007248807147 | AK38: 0.005942522179 | AL38: 0.0007294226633 | AO38: 0.004994738673 | AP38: 0.0007303534958 | AQ38: 0.005630268561 | AR38: 0.0007504771303 | AU38: 0.006245120402 | AV38: 0.0007609883363 | AW38: 0.004784658202 | AX38: 0.0007533808654 | AY38: 0.005709303182 | AZ38: 0.0007602577374 | BA38: 0.00255011049 | BB38: 0.0007525715037 | BC38: 0.004458339122 | BD38: 0.0007630975633 | BE38: 0.004954075525 | BF38: 0.0007732209729 | BK38: 0.005511406855 | BL38: 0.0007386470065 | BM38: 0.005289700362 | BN38: 0.0007903384426 | BO38: 0.005593302823 | BP38: 0.0007910080902
I39: 0.003088400998 | J39: 0.0006268269779 | K39: 0.003195225014 | L39: 0.0006847928577 | M39: 0.001582613642 | N39: 0.0006897852164 | O39: 0.001159650033 | P39: 0.0006935068333 | Q39: 0.002401848086 | R39: 0.0007067101342 | S39: 0.0007220060231 | T39: 0.0007084697672 | U39: 0.003369393219 | V39: 0.0007192048508 | W39: 0.002081651255 | X39: 0.0006729432089 | Y39: 0.00574870937 | Z39: 0.0007306020503 | AA39: 0.004521097982 | AB39: 0.0007317590426 | AG39: 0.003957468316 | AH39: 0.0007307181573 | AI39: 0.004106638193 | AJ39: 0.0007301447852 | AK39: 0.005961578471 | AL39: 0.0007351933198 | AO39: 0.005020239955 | AP39: 0.0007350861691 | AQ39: 0.005635839955 | AR39: 0.0007550102032 | AU39: 0.006254402007 | AV39: 0.0007680572894 | AW39: 0.004792142137 | AX39: 0.0007593503344 | AY39: 0.005714668908 | AZ39: 0.000764985293 | BA39: 0.002559944021 | BB39: 0.0007586995272 | BC39: 0.00446471309 | BD39: 0.0007686749821 | BE39: 0.004959864611 | BF39: 0.0007789895519 | BK39: 0.00561390642 | BL39: 0.0007457416112 | BM39: 0.005295159221 | BN39: 0.0007954925663 | BO39: 0.00559981249 | BP39: 0.0007963907703
I40: 0.003258314538 | J40: 0.0006312795732 | W40: 0.002474850249 | X40: 0.0006771126262 | BK40: 0.005707133112 | BL40: 0.0007533829147
I41: 0.003408095734 | J41: 0.0006363359659 | W41: 0.002821468556 | X41: 0.0006819818092 | BK41: 0.00578927238 | BL41: 0.0007614221879
I42: 0.003534829263 | J42: 0.0006418977392 | W42: 0.003114759643 | X42: 0.0006874559847 | BK42: 0.005858725476 | BL42: 0.0007697029552
I43: 0.003636048403 | J43: 0.0006478566393 | W43: 0.003349014934 | X43: 0.0006934286042 | BK43: 0.005914140576 | BL43: 0.0007780640411
I44: 0.003709783038 | J44: 0.0006540966832 | W44: 0.003519674917 | X44: 0.0006997834173 | BK44: 0.005954439086 | BL44: 0.0007863427065
I45: 0.003754598007 | J45: 0.0006604964155 | W45: 0.003623417887 | X45: 0.000706396735 | BK45: 0.005978836643 | BL45: 0.0007943778167
I46: 0.003769621038 | J46: 0.0006669312726 | W46: 0.003658224607 | X46: 0.0007131398364 | BK46: 0.005986858375 | BL46: 0.0008020129772

Sheet PlotDat15 (hidden)
A1: Source sheet | B1: U-Pb datatable ALL SAMPLES | C1: 0.3 | D1: 68.08214399 | E1: 1 | F1: 65.47544653 | G1: 1.4719871
A2: Plot name | B2: Average10 | C2: 23.7 | D2: 68.08214399 | E2: 2 | F2: 66.34528327 | G2: 2.077962073
A3: Plot Type | B3: 15 | E3: 3 | F3: 66.49883769 | G3: 1.966364824
A4: 1st free col | B4: 8 | E4: 4 | F4: 67.2643916 | G4: 2.012246606
A5: Sigma Level | B5: 1 | E5: 5 | F5: 67.4593891 | G5: 1.27484059
A6: Absolute Errs | B6: TRUE | E6: 6 | F6: 67.63866372 | G6: 1.377621343
A7: Symbol Type | B7: 1 | E7: 7 | F7: 67.7508714 | G7: 1.832077718
A8: Inverse Plot | B8: FALSE | E8: 8 | F8: 67.77929192 | G8: 1.563949889
A9: Color Plot | B9: TRUE | E9: 9 | F9: 67.87762314 | G9: 1.954998083
A10: 3D plot | B10: FALSE | E10: 10 | F10: 68.01076194 | G10: 1.703509165
A11: Linear | B11: FALSE | E11: 11 | F11: 68.05562824 | G11: 1.652851977
A12: Data Range | B12: R143:S165 | E12: 12 | F12: 68.06233667 | G12: 2.069188144
A13: Filled Symbols | B13: FALSE | E13: 13 | F13: 68.12535572 | G13: 1.773931668
A14: ConcAge | B14: FALSE | E14: 14 | F14: 68.12996845 | G14: 1.302875815
A15: ConcSwap | B15: FALSE | E15: 15 | F15: 68.13812812 | G15: 1.389020664
A16: 1st Symbol-row | B16: 1 | E16: 16 | F16: 68.16165771 | G16: 2.055963512
E17: 17 | F17: 68.18293379 | G17: 2.302988896
E18: 18 | F18: 68.80290284 | G18: 1.722377172
E19: 19 | F19: 69.00505939 | G19: 1.657157668
E20: 20 | F20: 69.15678948 | G20: 1.579023562
E21: 21 | F21: 69.4882661 | G21: 1.459169577
E22: 22 | F22: 69.69514455 | G22: 1.43465624
E23: 23 | F23: 70.5268608 | G23: 2.043075352
E24: IsoLine | F24: IsoLine | G24: IsoLine | H24: IsoLine

Sheet PlotDat16 (hidden)
A1: Source sheet | B1: U-Pb datatable ALL SAMPLES | C1: 0.3 | D1: 68.57501246 | E1: 1 | F1: 66.61433056 | G1: 1.67199448
A2: Plot name | B2: Average11 | C2: 22.7 | D2: 68.57501246 | E2: 2 | F2: 66.72697384 | G2: 1.806721366
A3: Plot Type | B3: 15 | E3: 3 | F3: 67.14208193 | G3: 1.54682395
A4: 1st free col | B4: 8 | E4: 4 | F4: 67.49004537 | G4: 1.629588706
A5: Sigma Level | B5: 1 | E5: 5 | F5: 67.72143636 | G5: 1.430058225
A6: Absolute Errs | B6: TRUE | E6: 6 | F6: 68.12717627 | G6: 1.707155641
A7: Symbol Type | B7: 1 | E7: 7 | F7: 68.24997809 | G7: 1.680303667
A8: Inverse Plot | B8: FALSE | E8: 8 | F8: 68.33250228 | G8: 2.157342202
A9: Color Plot | B9: TRUE | E9: 9 | F9: 68.41268154 | G9: 1.538978244
A10: 3D plot | B10: FALSE | E10: 10 | F10: 68.52961227 | G10: 1.575628612
A11: Linear | B11: FALSE | E11: 11 | F11: 68.64580348 | G11: 1.645516383
A12: Data Range | B12: R112:S133 | E12: 12 | F12: 68.69038252 | G12: 1.871054789
A13: Filled Symbols | B13: FALSE | E13: 13 | F13: 68.78385246 | G13: 2.072039108
A14: ConcAge | B14: FALSE | E14: 14 | F14: 68.84970614 | G14: 1.868511598
A15: ConcSwap | B15: FALSE | E15: 15 | F15: 69.24551942 | G15: 1.65921562
A16: 1st Symbol-row | B16: 1 | E16: 16 | F16: 69.25779213 | G16: 1.877602492
E17: 17 | F17: 69.28851185 | G17: 1.546832637
E18: 18 | F18: 69.47524723 | G18: 1.791213203
E19: 19 | F19: 69.84383454 | G19: 2.04610551
E20: 20 | F20: 69.9148746 | G20: 1.95006864
E21: 21 | F21: 70.3647623 | G21: 1.96449429
E22: 22 | F22: 70.62931513 | G22: 1.624488926
E23: IsoLine | F23: IsoLine | G23: IsoLine | H23: IsoLine

Sheet PlotDat19 (hidden)
A1: Source sheet | B1: U-Pb datatable ALL SAMPLES | C1: 0.001116471764 | D1: 0.0005885781927 | E1: 0.002860378433 | F1: 0.00045 | G1: 0.002958918985 | H1: 0.0004654833037 | I1: 0.001494377627 | J1: 0.0005972114229 | K1: 0.005734892808 | L1: 0.0005965733059 | M1: 0.007148790645 | N1: 0.0005985367516 | O1: 0.002981839188 | P1: 0.000622343577 | Q1: 0.00705458206 | R1: 0.0006051374222 | S1: 0.003689386608 | T1: 0.0006084424785 | U1: 0.001071633906 | V1: 0.0006126544164 | W1: 0.003840934774 | X1: 0.0006341398995 | Y1: 0.005452905213 | Z1: 0.0006200050807 | AA1: 0.003986466288 | AB1: 0.0006175897547 | AC1: 0.001996154805 | AD1: 0.0006190917598 | AE1: 0.001371418759 | AF1: 0.000619892018 | AG1: 0.003159139506 | AH1: 0.0006281947195 | AI1: 0.0007429677369 | AJ1: 0.0006354838725 | AK1: 0.001558921792 | AL1: 0.0006364459588 | AM1: 0.003777821799 | AN1: 0.0006640137206 | AO1: 0.007325475081 | AP1: 0.0006453910286 | AQ1: 0.004652542121 | AR1: 0.0006603469038 | AS1: 0.004376915028 | AT1: 0.0006454443887 | AU1: 0.001321957938 | AV1: 0.0006570456608 | AW1: 0.004253021236 | AX1: 0.0006751383534 | AY1: 0.004188682828 | AZ1: 0.0006838372124 | BA1: 0.003483546618 | BB1: 0.0007022155161 | BC1: 0.004631295087 | BD1: 0.0007083784641 | BE1: 0.004524397 | BF1: 0.0007106005354
A2: Plot name | B2: Concordia14 | C2: 0.001246174833 | D2: 0.0005958518552 | E2: 0.002860378433 | F2: 0.00045 | G2: 0.00315649126 | H2: 0.0004965232269 | I2: 0.001485927961 | J2: 0.0006054060875 | K2: 0.005691208033 | L2: 0.0006020416083 | M2: 0.00710908984 | N2: 0.0006044269931 | O2: 0.002973890801 | P2: 0.0006303292822 | Q2: 0.007017518782 | R2: 0.0006113276752 | S2: 0.003678279477 | T2: 0.0006132718415 | U2: 0.001064152829 | V2: 0.0006215163703 | W2: 0.003832808789 | X2: 0.0006396856723 | Y2: 0.005430253117 | Z2: 0.0006260658454 | AA2: 0.003955086231 | AB2: 0.0006227304882 | AC2: 0.00198499524 | AD2: 0.0006243004981 | AE2: 0.001360105089 | AF2: 0.0006261240623 | AG2: 0.003145487748 | AH2: 0.0006347033683 | AI2: 0.0007326989308 | AJ2: 0.0006453697098 | AK2: 0.001547547856 | AL2: 0.0006436100341 | AM2: 0.00377064278 | AN2: 0.000669224691 | AO2: 0.007278003693 | AP2: 0.0006510056329 | AQ2: 0.004643437667 | AR2: 0.0006655533351 | AS2: 0.004339539743 | AT2: 0.0006518746283 | AU2: 0.001314547226 | AV2: 0.000665370359 | AW2: 0.004242425719 | AX2: 0.0006836234976 | AY2: 0.004179630469 | AZ2: 0.0006900977688 | BA2: 0.003475201488 | BB2: 0.0007090983755 | BC2: 0.004620346653 | BD2: 0.0007155821776 | BE2: 0.00451629042 | BF2: 0.0007170519927
A3: Plot Type | B3: 1 | C3: 0.003069693497 | D3: 0.0005962520438 | E3: 0.002937175405 | F3: 0.0004620669277 | G3: 0.003354102455 | H3: 0.000527564113 | I3: 0.001461331287 | J3: 0.0006128652923 | K3: 0.005561005744 | L3: 0.0006073894341 | M3: 0.00699076678 | N3: 0.0006101581186 | O3: 0.002950913238 | P3: 0.0006374983794 | Q3: 0.006907059608 | R3: 0.0006173422164 | S3: 0.003645213902 | T3: 0.0006179170624 | U3: 0.001042425587 | V3: 0.0006296767158 | W3: 0.00380939847 | X3: 0.0006441838842 | Y3: 0.005362759947 | Z3: 0.0006319261949 | AA3: 0.00386155851 | AB3: 0.0006277609675 | AC3: 0.001951749253 | AD3: 0.0006293747766 | AE3: 0.001326495843 | AF3: 0.0006321442591 | AG3: 0.003104840372 | AH3: 0.000640997582 | AI3: 0.0007024324343 | AJ3: 0.0006547296987 | AK3: 0.001513664718 | AL3: 0.0006506072936 | AM3: 0.00375040888 | AN3: 0.0006730642713 | AO3: 0.007136516446 | AP3: 0.0006564861402 | AQ3: 0.004616941321 | AR3: 0.0006698596401 | AS3: 0.004228142908 | AT3: 0.0006581706961 | AU3: 0.00129306274 | AV3: 0.0006729725038 | AW3: 0.004211515013 | AX3: 0.0006911923396 | AY3: 0.004153701734 | AZ3: 0.0006950256242 | BA3: 0.00345149294 | BB3: 0.0007146572007 | BC3: 0.004588944987 | BD3: 0.000721183862 | BE3: 0.004492690358 | BF3: 0.0007227464471
A4: 1st free col | B4: 59 | C4: 0.002422915268 | D4: 0.0006003921074 | E4: 0.003013978258 | F4: 0.0004741340009 | G4: 0.003551752578 | H4: 0.0005586059622 | I4: 0.001421662596 | J4: 0.0006192630344 | K4: 0.005346820178 | L4: 0.0006125126941 | M4: 0.006796124489 | N4: 0.0006156185782 | O4: 0.002913533267 | P4: 0.0006436553142 | Q4: 0.0067253545 | R4: 0.0006230639797 | S4: 0.003590833468 | T4: 0.0006222877272 | U4: 0.001007401765 | V4: 0.0006367788065 | W4: 0.003771726962 | X4: 0.0006474379418 | Y4: 0.005251739381 | Z4: 0.0006374720643 | AA4: 0.003707703534 | AB4: 0.0006325832801 | AC4: 0.001897063938 | AD4: 0.0006342158303 | AE4: 0.001271507792 | AF4: 0.0006377883932 | AG4: 0.003037988534 | AH4: 0.0006469548508 | AI4: 0.0006534910383 | AJ4: 0.0006631547619 | AK4: 0.001457931874 | AL4: 0.0006573015436 | AM4: 0.003718004418 | AN4: 0.0006753646533 | AO4: 0.006903767228 | AP4: 0.0006617258788 | AQ4: 0.004574211101 | AR4: 0.000673077612 | AS4: 0.004044892736 | AT4: 0.0006642100461 | AU4: 0.001258443454 | AV4: 0.0006795198448 | AW4: 0.004161132282 | AX4: 0.0006976384212 | AY4: 0.004112029833 | AZ4: 0.0006984054077 | BA4: 0.003413457151 | BB4: 0.0007186490442 | BC4: 0.004538462492 | BD4: 0.0007249386967 | BE4: 0.004454240559 | BF4: 0.0007275285677
A5: Sigma Level | B5: 1 | C5: 0.003246638476 | D5: 0.0006023000886 | E5: 0.003090786993 | F5: 0.0004862012196 | G5: 0.003749441635 | H5: 0.0005896487745 | I5: 0.001368655601 | J5: 0.0006243197016 | K5: 0.005052820215 | L5: 0.0006173116698 | M5: 0.006528951458 | N5: 0.0006207020902 | O5: 0.002862770515 | P5: 0.0006486321414 | Q5: 0.006475940142 | R5: 0.0006283815974 | S5: 0.003516196627 | T5: 0.0006262987659 | U5: 0.0009606120726 | V5: 0.0006425122471 | W5: 0.003721440688 | X5: 0.0006493056272 | Y5: 0.005099352308 | Z5: 0.0006425955094 | AA5: 0.003496515917 | AB5: 0.000637103565 | AC5: 0.001822003683 | AD5: 0.0006387294336 | AE5: 0.001196640868 | AF5: 0.0006429025071 | AG5: 0.002946233429 | AH5: 0.0006524592232 | AI5: 0.0005880137167 | AJ5: 0.0006702766838 | AK5: 0.001381434102 | AL5: 0.0006635624881 | AM5: 0.003674845625 | AN5: 0.0006760252995 | AO5: 0.006584286238 | AP5: 0.0006666228631 | AQ5: 0.004517114523 | AR5: 0.0006750666102 | AS5: 0.003793355983 | AT5: 0.0006698751294 | AU5: 0.001212202397 | AV5: 0.000684726232 | AW5: 0.004092651836 | AX5: 0.0007027859101 | AY5: 0.004056436027 | AZ5: 0.0007000894065 | BA5: 0.003362756468 | BB5: 0.0007208994433 | BC5: 0.004471105497 | BD5: 0.0007266825776 | BE5: 0.004401989836 | BF5: 0.0007312679108
A6: Absolute Errs | B6: FALSE | C6: 0.002550114731 | D6: 0.0006038111235 | E6: 0.003167601609 | F6: 0.0004982685839 | G6: 0.003947169635 | H6: 0.0006206925499 | I6: 0.001304626963 | J6: 0.0006278142934 | K6: 0.00468472823 | L6: 0.0006216929546 | M6: 0.006194447905 | N6: 0.0006253097099 | O6: 0.002800009659 | P6: 0.0006522931064 | Q6: 0.006163671101 | R6: 0.0006331915683 | S6: 0.003422756101 | T6: 0.0006298721083 | U6: 0.000904101443 | V6: 0.0006466264586 | W6: 0.003660737402 | X6: 0.0006497053134 | Y6: 0.004908564769 | Z6: 0.0006471968082 | AA6: 0.003232106184 | AB6: 0.0006412338402 | AC6: 0.001728029451 | AD6: 0.0006428277343 | AE6: 0.001103937245 | AF6: 0.0006473471014 | AG6: 0.002831360965 | AH6: 0.0006574035629 | AI6: 0.0005088621428 | AJ6: 0.0006757842022 | AK6: 0.001285660342 | AL6: 0.0006692682649 | AM6: 0.003622818746 | AN6: 0.0006750173362 | AO6: 0.006184291811 | AP6: 0.0006710817789 | AQ6: 0.00444814698 | AR6: 0.0006757397058 | AS6: 0.003478428526 | AT6: 0.0006750556816 | AU6: 0.001156360525 | AV6: 0.000688364121 | AW6: 0.004007941642 | AX6: 0.0007064943962 | AY6: 0.003989350033 | AZ6: 0.0007000040217 | BA6: 0.003301606754 | BB6: 0.0007213100449 | BC6: 0.004389817824 | BD6: 0.0007263392885 | BE6: 0.004337363452 | BF6: 0.0007338624769
A7: Symbol Type | B7: 1 | C7: 0.0007381894272 | D7: 0.0006054630194 | E7: 0.003244422108 | F7: 0.0005103360938 | G7: 0.004144936586 | H7: 0.0006517372885 | I7: 0.001232375039 | J7: 0.0006295940792 | K7: 0.004249708714 | L7: 0.0006255712718 | M7: 0.005799124562 | N7: 0.0006293517551 | O7: 0.002726962651 | P7: 0.0006545383473 | Q7: 0.005794625337 | R7: 0.0006374002717 | S7: 0.003312330604 | T7: 0.0006329382032 | U7: 0.0008403396621 | V7: 0.0006489416304 | W7: 0.003592270127 | X7: 0.0006486195324 | Y7: 0.004683090226 | Z7: 0.0006511864018 | AA7: 0.002919620771 | AB7: 0.0006448937144 | AC7: 0.001616970343 | AD7: 0.0006464309636 | AE7: 0.0009959256371 | AF7: 0.0006510009389 | AG7: 0.002695607005 | AH7: 0.0006616916341 | AI7: 0.00041949562 | AJ7: 0.0006794366122 | AK7: 0.001172474723 | AL7: 0.0006743078176 | AM7: 0.003564197606 | AN7: 0.0006723848165 | AO7: 0.005711569382 | AP7: 0.0006750158384 | AQ7: 0.004370322686 | AR7: 0.0006750674814 | AS7: 0.003106240069 | AT7: 0.0006796508689 | AU7: 0.001093358397 | AV7: 0.0006902745189 | AW7: 0.003909312373 | AX7: 0.0007086627217 | AY7: 0.003913703831 | AZ7: 0.0006981529852 | BA7: 0.003232680544 | BB7: 0.0007198629036 | BC7: 0.004298152136 | BD7: 0.0007239238329 | BE7: 0.004262124245 | BF7: 0.000735241493
A8: Inverse Plot | B8: FALSE | C8: 0.003483091275 | D8: 0.0006157166593 | E8: 0.00332124849 | F8: 0.0005224037492 | G8: 0.004342742494 | H8: 0.0006827829903 | I8: 0.001155057587 | J8: 0.0006295812741 | K8: 0.003756228828 | L8: 0.0006288711343 | M8: 0.005350675948 | N8: 0.0006327495521 | O8: 0.002645622023 | P8: 0.00065530662 | Q8: 0.005375985907 | R8: 0.0006409257899 | S8: 0.003187069441 | T8: 0.0006354373727 | U8: 0.0007721134258 | V8: 0.0006493565782 | W8: 0.003519031213 | X8: 0.000646095738 | Y8: 0.004427317285 | Z8: 0.0006544866371 | AA8: 0.002565141851 | AB8: 0.0006480119524 | AC8: 0.001490987998 | AD8: 0.0006494689888 | AE8: 0.0008755523182 | AF8: 0.0006537643526 | AG8: 0.002541613845 | AH8: 0.0006652399741 | AI8: 0.0003238198943 | AJ8: 0.0006810742859 | AK8: 0.001044080273 | AL8: 0.0006785830571 | AM8: 0.003501544231 | AN8: 0.000668242794 | AO8: 0.005175319957 | AP8: 0.0006783484696 | AQ8: 0.004287042935 | AR8: 0.0006730793164 | AS8: 0.002684034837 | AT8: 0.0006835712515 | AU8: 0.001025949507 | AV8: 0.0006903739319 | AW8: 0.00379945438 | AX8: 0.0007092317402 | AY8: 0.003832803523 | AZ8: 0.000694617196 | BA8: 0.003158990246 | BB8: 0.0007166212664 | BC8: 0.004200114662 | BD8: 0.0007195417779 | BE8: 0.004178324546 | BF8: 0.0007353673432
A9: Color Plot | B9: TRUE | C9: 0.003126441432 | D9: 0.0006157690633 | E9: 0.003398080754 | F9: 0.0005344715501 | G9: 0.004540587368 | H9: 0.0007138296552 | I9: 0.001076053748 | J9: 0.0006277764375 | K9: 0.003213893596 | L9: 0.0006315283142 | M9: 0.004857830605 | N9: 0.0006354369666 | O9: 0.002558206535 | P9: 0.0006545769679 | Q9: 0.004915901152 | R9: 0.0006436995028 | S9: 0.00304941068 | T9: 0.0006373209732 | U9: 0.0007024045479 | V9: 0.0006478531668 | W9: 0.00344422155 | X9: 0.000642244232 | Y9: 0.004146224275 | Z9: 0.000657033279 | AA9: 0.002175568952 | AB9: 0.0006505278613 | AC9: 0.00135253452 | AD9: 0.0006518826783 | AE9: 0.0007461007592 | AF9: 0.0006555619637 | AG9: 0.002372378785 | AH9: 0.0006679795187 | AI9: 0.000226016454 | AJ9: 0.000680625649 | AK9: 0.0009029760449 | AL9: 0.0006820107707 | AM9: 0.003437596873 | AN9: 0.000662772295 | AO9: 0.00458598102 | AP9: 0.0006810148068 | AQ9: 0.004201947453 | AR9: 0.0006698621031 | AS9: 0.002220030576 | AT9: 0.0006867405235 | AU9: 0.0009570799475 | AV9: 0.0006886580154 | AW9: 0.003681364301 | AX9: 0.0007081859306 | AY9: 0.003750184841 | AZ9: 0.0006895511852 | BA9: 0.003083756477 | BB9: 0.0007117268085 | BC9: 0.00409999011 | BD9: 0.0007133846401 | BE9: 0.004088250191 | BF9: 0.0007342365944
A10: 3D plot | B10: FALSE | C10: 0.0007621092651 | D10: 0.0006170659284 | E10: 0.003474918903 | F10: 0.0005465394967 | G10: 0.004738471216 | H10: 0.0007448772834 | I10: 0.0009988163714 | J10: 0.0006242584495 | K10: 0.002633258956 | L10: 0.0006334910924 | M10: 0.004330181207 | N10: 0.0006373616912 | O10: 0.002467100654 | P10: 0.0006523692941 | Q10: 0.004423326097 | R10: 0.0006456674231 | S10: 0.002902033691 | T10: 0.0006385523426 | U10: 0.000634259641 | V10: 0.0006444971026 | W10: 0.003371110682 | X10: 0.0006372333438 | Y10: 0.003845282352 | Z10: 0.0006587767597 | AA10: 0.001758484668 | AB10: 0.0006523924717 | AC10: 0.001204304748 | AD10: 0.0006536250521 | AE10: 0.0006111020611 | AF10: 0.0006563447381 | AG10: 0.002191195796 | AH10: 0.0006698569457 | AI10: 0.0001303597787 | AJ10: 0.0006781103093 | AK10: 0.0007519084717 | AL10: 0.0006845242418 | AM10: 0.003375150338 | AN10: 0.0006562124065 | AO10: 0.003955023383 | AP10: 0.0006829629525 | AQ10: 0.00411875532 | AR10: 0.0006655564491 | AS10: 0.001723258599 | AT10: 0.0006890969985 | AU10: 0.0008897596486 | AV10: 0.0006852017629 | AW10: 0.003558263327 | AX10: 0.0007055538196 | AY10: 0.003669458617 | AZ10: 0.0006831763617 | BA10: 0.003010267316 | BB10: 0.0007053934412 | BC10: 0.004002154405 | BD10: 0.0007057215162 | BE10: 0.003994358174 | BF10: 0.0007318800907
A11: Linear | B11: FALSE | C11: 0.0008502552756 | D11: 0.0006173923232 | E11: 0.003551762935 | F11: 0.0005586075887 | G11: 0.004936394044 | H11: 0.0007759258749 | I11: 0.0009267210995 | J11: 0.0006191810631 | K11: 0.002025626302 | L11: 0.0006347212656 | M11: 0.00377799785 | N11: 0.0006384862633 | O11: 0.002374789511 | P11: 0.0006487438181 | Q11: 0.003907848157 | R11: 0.0006467912477 | S11: 0.002747806999 | T11: 0.0006391075136 | U11: 0.0005706569645 | V11: 0.0006394350617 | W11: 0.003302893902 | X11: 0.0006312820733 | Y11: 0.003530349008 | Z11: 0.0006596831446 | AA11: 0.001322007071 | AB11: 0.0006535694911 | AC11: 0.001049183805 | AD11: 0.0006546621972 | AE11: 0.0004742386364 | AF11: 0.0006560913238 | AG11: 0.002001591396 | AH11: 0.0006708357132 | AI11: 4.103052412e-05 | AJ11: 0.0006736381991 | AK11: 0.0005938179118 | AL11: 0.0006860745485 | AM11: 0.003316933841 | AN11: 0.0006488498272 | AO11: 0.003294727919 | AP11: 0.0006841549885 | AQ11: 0.004041102432 | AR11: 0.0006603505324 | AS11: 0.001203388009 | AT11: 0.0006905948106 | AU11: 0.0008269308304 | AV11: 0.0006801562295 | AW11: 0.00343350933 | AX11: 0.0007014072045 | AY11: 0.003594152974 | AZ11: 0.0006757713359 | BA11: 0.002941734591 | BB11: 0.0006978979629 | BC11: 0.003910883435 | BD11: 0.0006968873213 | BE11: 0.003899209625 | BF11: 0.0007283621113
A12: Data Range | B12: G46:K70 | C12: 0.0005427404505 | D12: 0.0006183576491 | E12: 0.003628612852 | F12: 0.0005706758264 | G12: IsoLine | H12: IsoLine | I12: 0.0008629188423 | J12: 0.0006127661844 | K12: 0.001402822512 | L12: 0.00063519489 | M12: 0.003212028154 | N12: 0.0006387887943 | O12: 0.002283791114 | P12: 0.0006437994335 | Q12: 0.003379500522 | R12: 0.0006470491024 | S12: 0.002589732453 | T12: 0.0006389756806 | U12: 0.0005143762604 | V12: 0.0006328882795 | W12: 0.003242552613 | X12: 0.0006246505194 | Y12: 0.003207554063 | Z12: 0.0006597347919 | AA12: 0.0008746316992 | AB12: 0.0006540360102 | AC12: 0.0008901909446 | AD12: 0.0006549739265 | AE12: 0.0003392437627 | AF12: 0.0006548086331 | AG12: 0.001807256021 | AH12: 0.0006708967705 | AI12: -3.806719262e-05 | AJ12: 0.000667404771 | AK12: 0.0004317814183 | AL12: 0.0006866315159 | AM12: 0.00326549172 | AN12: 0.0006410063371 | AO12: 0.002617946529 | AP12: 0.0006845677131 | AQ12: 0.003972382592 | AR12: 0.0006544718762 | AS12: 0.0006705374952 | AT12: 0.0006912048065 | AU12: 0.0007713394139 | AV12: 0.0006737419291 | AW12: 0.003310505276 | AX12: 0.0006958591941 | AY12: 0.003527559132 | AZ12: 0.0006676597429 | BA12: 0.002881153511 | BB12: 0.0006895679622 | BC12: 0.003830166181 | BD12: 0.0006872681523 | BE12: 0.003805399949 | BF12: 0.0007237786175
A13: Filled Symbols | B13: FALSE | C13: 0.001758526802 | D13: 0.0006236862763 | E13: 0.003705468654 | F13: 0.0005827442096 | I13: 0.0008101980644 | J13: 0.0006052941744 | K13: 0.0007769697521 | L13: 0.0006349027469 | M13: 0.002643288076 | N13: 0.0006382633958 | O13: 0.00219658766 | P13: 0.0006376710102 | Q13: 0.002848566878 | R13: 0.0006464359685 | S13: 0.002430886793 | T13: 0.0006381594095 | U13: 0.0004678772658 | V13: 0.0006251428818 | W13: 0.003192724017 | X13: 0.0006176285131 | Y13: 0.002883180353 | Z13: 0.0006589306963 | AA13: 0.0004250662065 | AB13: 0.0006537829487 | AC13: 0.000730420782 | AD13: 0.0006545541727 | AE13: 0.0002097997481 | AF13: 0.0006525316547 | AG13: 0.001611972187 | AH13: 0.0006700389292 | AI13: -0.0001034764218 | AJ13: 0.0006596824559 | AK13: 0.0002689528471 | AL13: 0.0006861843033 | AM13: 0.003223072244 | AN13: 0.0006330247344 | AO13: 0.001937851991 | AP13: 0.0006841930931 | AQ13: 0.003915599187 | AR13: 0.0006481774063 | AS13: 0.0001350783867 | AT13: 0.0006909151133 | AU13: 0.0007254150105 | AV13: 0.0006662391974 | AW13: 0.003192606393 | AX13: 0.0006890611237 | AY13: 0.003472587559 | AZ13: 0.0006591960984 | BA13: 0.002831171761 | BB13: 0.0006807674998 | BC13: 0.003763530373 | BD13: 0.0006772844128 | BE13: 0.003715488027 | BF13: 0.0007182546351
A14: ConcAge | B14: TRUE | C14: 0.0002751361182 | D14: 0.0006333378687 | E14: 0.003782330341 | F14: 0.0005948127383 | I14: 0.0007708629168 | J14: 0.0005970915958 | K14: 0.0001602495358 | L14: 0.0006338505227 | M14: 0.002082847495 | N14: 0.0006369202942 | O14: 0.002115557834 | P14: 0.0006305257156 | Q14: 0.002325381245 | R14: 0.0006449637799 | S14: 0.002274361768 | T14: 0.0006366745881 | U14: 0.0004331922097 | V14: 0.0006165373797 | W14: 0.003155585863 | X14: 0.0006105229495 | Y14: 0.002563541443 | Z14: 0.0006572865085 | AA14: -1.793912643e-05 | AB14: 0.0006528152322 | AC14: 0.0005729830615 | AD14: 0.0006534111058 | AE14: 8.943748796e-05 | AF14: 0.0006493224984 | AG14: 0.001419540871 | AH14: 0.0006682788863 | AI14: -0.0001523384661 | AJ14: 0.0006508087558 | AK14: 0.0001085014711 | AL14: 0.0006847416152 | AM14: 0.003191529348 | AN14: 0.0006252538533 | AO14: 0.001267681574 | AP14: 0.0006830384199 | AQ14: 0.003873233925 | AR14: 0.000641742221 | AS14: -0.0003925672139 | AT14: 0.0006897313695 | AU14: 0.0006911647372 | AV14: 0.0006579759398 | AW14: 0.003083028655 | AX14: 0.0006811984269 | AY14: 0.003431640778 | AZ14: 0.0006507503041 | BA14: 0.002793973781 | BB14: 0.0006718811984 | BC14: 0.003713888316 | BD14: 0.0006673724404 | BE14: 0.003631926424 | BF14: 0.0007119408439
A15: ConcSwap | B15: FALSE | C15: 0.000391086634 | D15: 0.0006350394935 | E15: 0.003859197915 | F15: 0.0006068814126 | I15: 0.0007466325343 | J15: 0.0005885169406 | K15: -0.0004353343797 | L15: 0.0006320586976 | M15: 0.001541614748 | N15: 0.0006347856313 | O15: 0.002042911917 | P15: 0.0006225584547 | Q15: 0.001820126837 | R15: 0.000642661191 | S15: 0.002123203962 | T15: 0.0006345501167 | U15: 0.0004118369955 | V15: 0.000607447875 | W15: 0.003132761268 | X15: 0.000603644376 | Y15: 0.002254858741 | Z15: 0.000654834231 | AA15: -0.0004457617047 | AB15: 0.0006511516961 | AC15: 0.0004209421292 | AD15: 0.0006515669742 | AE15: -1.855984902e-05 | AF15: 0.0006452687018 | AG15: 0.001233707532 | AH15: 0.0006656508989 | AI15: -0.0001825178199 | AJ15: 0.0006411714942 | AK15: -4.644970616e-05 | AL15: 0.0006823315318 | AM15: 0.003172241607 | AN15: 0.0006180333187 | AO15: 0.0006204793804 | AP15: 0.0006811261681 | AQ15: 0.003847138371 | AR15: 0.0006354475689 | AS15: -0.0009021292853 | AT15: 0.0006876766155 | AU15: 0.0006700854952 | AV15: 0.0006493133002 | AW15: 0.002984761059 | AX15: 0.0006724855775 | AY15: 0.00340650836 | AZ15: 0.0006426914818 | BA15: 0.002771185303 | BB15: 0.0006632974319 | BC15: 0.003683409606 | BD15: 0.0006579654356 | BE15: 0.003556994482 | BF15: 0.0007050094677
A16: 1st Symbol-row | B16: 1 | C16: 0.003471936893 | D16: 0.0006378462116 | E16: 0.003936071374 | F16: 0.0006189502325 | I16: 0.0007385659008 | J16: 0.0005799449624 | K16: -0.0009981896312 | L16: 0.0006295621475 | M16: 0.001030124317 | N16: 0.000631900956 | O16: 0.001980631501 | P16: 0.0006139865537 | Q16: 0.001342637854 | R16: 0.0006395730192 | S16: 0.001980355488 | T16: 0.0006318273457 | U16: 0.0004047449487 | V16: 0.0005982716225 | W16: 0.003125247775 | X16: 0.0005972934191 | Y16: 0.001963140404 | Z16: 0.0006516215943 | AA16: -0.0008500744485 | AB16: 0.0006488247194 | AC16: 0.000277257289 | AD16: 0.0006490576719 | AE16: -0.000111246377 | AF16: 0.0006404808418 | AG16: 0.001058089202 | AH16: 0.0006622061179 | AI16: -0.0001926955005 | AJ16: 0.0006311918663 | AK16: -0.0001928847362 | AL16: 0.0006790009627 | AM16: 0.003166051988 | AN16: 0.0006116787026 | AO16: 8.842466244e-06 | AP16: 0.0006784935575 | AQ16: 0.003838453025 | AR16: 0.0006295685569 | AS16: -0.001383689781 | AT16: 0.0006847908446 | AU16: 0.0006630985485 | AV16: 0.0006406298777 | AW16: 0.002900484088 | AX16: 0.0006631602394 | AY16: 0.003398288711 | AZ16: 0.0006353718408 | BA16: 0.002763802292 | BB16: 0.0006553913522 | BC16: 0.003673426309 | BD16: 0.0006494745298 | BE16: 0.003492736149 | BF16: 0.0006976495764
C17: 0.002447726106 | D17: 0.0006441161004 | E17: 0.004012950721 | F17: 0.000631019198 | I17: 0.0007470155669 | J17: 0.0005717502978 | K17: -0.001517360881 | L17: 0.0006264094649 | M17: 0.0005583317788 | N17: 0.0006283224151 | O17: 0.001930415433 | P17: 0.0006050438316 | Q17: 0.0009022080786 | R17: 0.0006357593722 | S17: 0.00184859673 | T17: 0.0006285592709 | U17: 0.0004122260255 | V17: 0.0005894096685 | W17: 0.00313337376 | X17: 0.0005917476463 | Y17: 0.001694064399 | Z17: 0.000647711129 | AA17: -0.00122300787 | AB17: 0.0006458795939 | AC17: 0.0001447252028 | AD17: 0.0006459320396 | AE17: -0.0001860938492 | AF17: 0.0006350895188 | AG17: 0.0008961040935 | AH17: 0.000658011592 | AI17: -0.0001824266945 | AJ17: 0.0006213060275 | AK17: -0.0003279534278 | AL17: 0.0006748147336 | AM17: 0.003173231007 | AN17: 0.0006064677322 | AO17: -0.0005553243521 | AP17: 0.0006751918287 | AQ17: 0.003847557479 | AR17: 0.0006243621248 | AS17: -0.001827875675 | AT17: 0.0006811302251 | AU17: 0.0006705092603 | AV17: 0.0006323051795 | AW17: 0.002832496597 | AX17: 0.0006534767835 | AY17: 0.00340734107 | AZ17: 0.0006291112844 | BA17: 0.002772147422 | BB17: 0.0006485084927 | BC17: 0.003684374743 | BD17: 0.0006422708163 | BE17: 0.003440904225 | BF17: 0.0006900619285
C18: 0.004245497573 | D18: 0.0006449577299 | E18: 0.004089835955 | F18: 0.000643088309 | I18: 0.0007716122417 | J18: 0.000564291093 | K18: -0.001982743052 | L18: 0.0006226620132 | M18: 0.0001354200403 | N18: 0.000624119661 | O18: 0.001893633477 | P18: 0.0005959742226 | Q18: 0.0005074099737 | R18: 0.0006312944784 | S18: 0.001730492221 | T18: 0.0006248095015 | U18: 0.0004339532672 | V18: 0.0005812493231 | W18: 0.003156784079 | X18: 0.0005872494344 | Y18: 0.001452867983 | Z18: 0.0006431789476 | AA18: -0.001557303245 | AB18: 0.0006423736431 | AC18: 2.592545695e-05 | AD18: 0.0006422509142 | AE18: -0.0002410606216 | AF18: 0.000629241794 | AG18: 0.000750905062 | AH18: 0.0006531489628 | AI18: -0.0001521601979 | AJ18: 0.0006119460387 | AK18: -0.0004490268225 | AL18: 0.0006698543246 | AM18: 0.003193464907 | AN18: 0.0006026281519 | AO18: -0.001061040209 | AP18: 0.0006712852462 | AQ18: 0.003874053825 | AR18: 0.0006200558198 | AS18: -0.002226041392 | AT18: 0.0006767660068 | AU18: 0.0006919937468 | AV18: 0.0006247030347 | AW18: 0.002782653109 | AX18: 0.0006436993493 | AY18: 0.003433269805 | AZ18: 0.000624183429 | BA18: 0.00279585597 | BB18: 0.0006429496675 | BC18: 0.003715776409 | BD18: 0.000636669132 | BE18: 0.00340291255 | BF18: 0.0006824534954
C19: 0.000536515041 | D19: 0.0006449812434 | E19: 0.004166727076 | F19: 0.0006551575656 | I19: 0.0008112809325 | J19: 0.000557893351 | K19: -0.002385278009 | L19: 0.0006183927323 | M19: -0.0002303794031 | N19: 0.0006193744953 | O19: 0.001871288948 | P19: 0.000587025122 | Q19: 0.0001659278358 | R19: 0.0006262652416 | S19: 0.001628340733 | T19: 0.0006206510226 | U19: 0.0004689770889 | V19: 0.0005741472323 | W19: 0.003194455588 | X19: 0.0005839953768 | Y19: 0.001244245771 | Z19: 0.0006381132641 | AA19: -0.001846453893 | AB19: 0.0006383751065 | AC19: -7.682964664e-05 | AD19: 0.0006380859446 | AE19: -0.000274647344 | AF19: 0.0006230971781 | AG19: 0.0006253182416 | AH19: 0.000647712876 | AI19: -0.0001032188019 | AJ19: 0.0006035209755 | AK19: -0.0005537483644 | AL19: 0.0006642162846 | AM19: 0.003225869369 | AN19: 0.0006003277699 | AO19: -0.001498461921 | AP19: 0.0006668498472 | AQ19: 0.003916784045 | AR19: 0.0006168378479 | AS19: -0.002570437091 | AT19: 0.0006717831342 | AU19: 0.000726613033 | AV19: 0.0006181556937 | AW19: 0.002752313223 | AX19: 0.0006340946396 | AY19: 0.003474941707 | AZ19: 0.0006208036455 | BA19: 0.002833891759 | BB19: 0.000638957824 | BC19: 0.003766258904 | BD19: 0.0006329142972 | BE19: 0.003379797437 | BF19: 0.0006750318153
C20: 0.0009925282433 | D20: 0.0006488377692 | E20: 0.004243624086 | F20: 0.0006672269678 | I20: 0.0008642879271 | J20: 0.0005528366837 | K20: -0.002717130867 | L20: 0.0006136847189 | M20: -0.0005319466812 | N20: 0.0006141792775 | O20: 0.001863991347 | P20: 0.0005784406378 | Q20: -0.0001155917738 | R20: 0.0006207695505 | S20: 0.001544130527 | T20: 0.0006161647742 | U20: 0.0005157667817 | V20: 0.0005684137918 | W20: 0.003244741861 | X20: 0.0005821276914 | Y20: 0.001072258357 | Z20: 0.0006326126761 | AA20: -0.002084831827 | AB20: 0.000633961811 | AC20: -0.0001615400968 | AD20: 0.0006335181972 | AE20: -0.0002859378581 | AF20: 0.0006168232802 | AG20: 0.0005217880368 | AH20: 0.0006418091387 | AI20: -3.774148036e-05 | AJ20: 0.0005963990536 | AK20: -0.0006400797677 | AL20: 0.0006580103516 | AM20: 0.003269028162 | AN20: 0.0005996671238 | AO20: -0.001859075572 | AP20: 0.0006619719617 | AQ20: 0.003973880624 | AR20: 0.0006148488497 | AS20: -0.002854359501 | AT20: 0.0006662785934 | AU20: 0.0007728540898 | AV20: 0.0006129493065 | AW20: 0.002742304534 | AX20: 0.0006249246459 | AY20: 0.003530535512 | AZ20: 0.0006191196468 | BA20: 0.002884592442 | BB20: 0.0006367074249 | BC20: 0.003833615899 | BD20: 0.0006311704164 | BE20: 0.003372189407 | BF20: 0.0006679993332
C21: 0.003497662885 | D21: 0.0006500314997 | E21: 0.004320526984 | F21: 0.0006792965155 | I21: 0.0009283165654 | J21: 0.000549342092 | K21: -0.002971842488 | L21: 0.000608629609 | M21: -0.0007634121301 | N21: 0.0006086351265 | O21: 0.001871939734 | P21: 0.0005704549326 | Q21: -0.0003316693961 | R21: 0.0006149143723 | S21: 0.001479500659 | T21: 0.0006114380761 | U21: 0.0005722774114 | V21: 0.0005642995802 | W21: 0.003305445147 | X21: 0.0005817280052 | Y21: 0.0009402532793 | Z21: 0.0006267842463 | AA21: -0.002267797291 | AB21: 0.0006292196564 | AC21: -0.0002265571009 | AD21: 0.000628636578 | AE21: -0.0002746241882 | AF21: 0.0006105912359 | AG21: 0.0004423295453 | AH21: 0.0006355526606 | AI21: 4.141009359e-05 | AJ21: 0.0005908915351 | AK21: -0.00070634069 | AL21: 0.0006513573169 | AM21: 0.003321055041 | AN21: 0.000600675087 | AO21: -0.002135862227 | AP21: 0.0006567465322 | AQ21: 0.004042848166 | AR21: 0.000614175754 | AS21: -0.003072282394 | AT21: 0.0006603595238 | AU21: 0.0008286959613 | AV21: 0.0006093114175 | AW21: 0.002752900051 | AX21: 0.0006164395018 | AY21: 0.003597621506 | AZ21: 0.0006192050315 | BA21: 0.002945742156 | BB21: 0.0006362968233 | BC21: 0.003914903572 | BD21: 0.0006315137055 | BE21: 0.003380295986 | BF21: 0.0006615478741
C22: 0.00379348577 | D22: 0.0006596045266 | E22: 0.004397435772 | F22: 0.0006913662088 | I22: 0.001000568489 | J22: 0.0005475623061 | K22: -0.0031444552 | L22: 0.0006033257947 | M22: -0.000920270538 | N22: 0.0006028499528 | O22: 0.001894917297 | P22: 0.0005632858354 | Q22: -0.0004780993259 | R22: 0.0006088136714 | S22: 0.001435709076 | T22: 0.0006065629279 | U22: 0.0006360391922 | V22: 0.0005619844085 | W22: 0.003373912422 | X22: 0.0005828137862 | Y22: 0.0008507998674 | Z22: 0.0006207414185 | AA22: -0.00239178907 | AB22: 0.0006242409432 | AC22: -0.0002706151769 | AD22: 0.0006235361022 | AE22: -0.0002410149416 | AF22: 0.0006045710391 | AG22: 0.0003884893363 | AH22: 0.0006290652168 | AI22: 0.0001307766163 | AJ22: 0.0005872391252 | AK22: -0.0007512414377 | AL22: 0.0006443866743 | AM22: 0.00337967618 | AN22: 0.0006033076067 | AO22: -0.002323434548 | AP22: 0.0006512752657 | AQ22: 0.00412067246 | AR22: 0.0006148479785 | AS22: -0.003219964151 | AT22: 0.0006541411335 | AU22: 0.0008916980897 | AV22: 0.0006074010196 | AW22: 0.002783810756 | AX22: 0.0006088706598 | AY22: 0.003673267708 | AZ22: 0.0006210560681 | BA22: 0.003014668365 | BB22: 0.0006377439646 | BC22: 0.00400656926 | BD22: 0.000633929161 | BE22: 0.003403896049 | BF22: 0.0006558534198
C23: 0.003123674455 | D23: 0.0006788034341 | E23: 0.004474350448 | F23: 0.0007034360478 | I23: 0.001077885942 | J23: 0.0005475751112 | K23: -0.003231609293 | L23: 0.0005978765087 | M23: -0.0009994688346 | N23: 0.0005969363583 | O23: 0.001932297269 | P23: 0.0005571289006 | Q23: -0.0005520314712 | R23: 0.000602586191 | S23: 0.001413608132 | T23: 0.0006016342191 | U23: 0.0007042654286 | V23: 0.0005615694607 | W23: 0.003447151337 | X23: 0.0005853375806 | Y23: 0.0008056392301 | Z23: 0.0006146018095 | AA23: -0.002454393805 | AB23: 0.0006191225766 | AC23: -0.0002928567846 | AD23: 0.0006183160447 | AE23: -0.000186026891 | AF23: 0.0005989269051 | AG23: 0.0003613153481 | AH23: 0.000622473078 | AI23: 0.0002264523421 | AJ23: 0.0005856014515 | AK23: -0.0007739080689 | AL23: 0.0006372340995 | AM23: 0.003442329556 | AN23: 0.0006074496292 | AO23: -0.002418141655 | AP23: 0.0006456646541 | AQ23: 0.004203952211 | AR23: 0.0006168361435 | AS23: -0.003294530313 | AT23: 0.0006477444563 | AU23: 0.0009591069796 | AV23: 0.0006073016066 | AW23: 0.002834193487 | AX23: 0.0006024245781 | AY23: 0.003754168016 | AZ23: 0.0006245918572 | BA23: 0.003088358664 | BB23: 0.0006409856018 | BC23: 0.004104606734 | BD23: 0.0006383112161 | BE23: 0.003442345847 | BF23: 0.0006510712992
C24: 0.004152360698 | D24: 0.000678926497 | E24: 0.004551271015 | F24: 0.0007155060322 | I24: 0.00115688978 | J24: 0.0005493799478 | K24: -0.00323160841 | L24: 0.000592387815 | M24: -0.0009994655149 | N24: 0.0005910094444 | O24: 0.00198306002 | P24: 0.0005521520734 | Q24: -0.0005520268269 | R24: 0.0005963531419 | S24: 0.001413627996 | T24: 0.0005967478812 | U24: 0.0007739743064 | V24: 0.000563072872 | W24: 0.003521960999 | X24: 0.0005891890866 | Y24: 0.0008056503677 | Z24: 0.0006084849198 | AA24: -0.002454392967 | AB24: 0.0006139641796 | AC24: -0.0002928490163 | AD24: 0.000613078008 | AE24: -0.0001111599671 | AF24: 0.0005938127911 | AG24: 0.0003613364916 | AH24: 0.0006159045527 | AI24: 0.0003242557824 | AJ24: 0.0005860500883 | AK24: -0.0007738994034 | AL24: 0.0006300388092 | AM24: 0.003506276914 | AN24: 0.0006129201282 | AO24: -0.002418140181 | AP24: 0.0006400239017 | AQ24: 0.004289047693 | AR24: 0.0006200533568 | AS24: -0.003294529535 | AT24: 0.0006412939964 | AU24: 0.001027976539 | AV24: 0.0006090175231 | AW24: 0.002902673934 | AX24: 0.0005972770893 | AY24: 0.003836786698 | AZ24: 0.000629657868 | BA24: 0.003163592433 | BB24: 0.0006458800597 | BC24: 0.004204731286 | BD24: 0.0006444683538 | BE24: 0.00349459657 | BF24: 0.000647331956
C25: 0.003948293203 | D25: 0.0006892999334 | E25: 0.004628197473 | F25: 0.0007275761623 | I25: 0.001234127157 | J25: 0.0005528979358 | K25: -0.003144452571 | L25: 0.000586966545 | M25: -0.0009202606436 | N25: 0.0005851845718 | O25: 0.002045820876 | P25: 0.0005484911084 | Q25: -0.0004780854834 | R25: 0.0005902358435 | S25: 0.001435768281 | T25: 0.0005919990213 | U25: 0.0008421192133 | V25: 0.0005664289362 | W25: 0.003595071867 | X25: 0.0005941999748 | Y25: 0.0008508330635 | Z25: 0.0006025098076 | AA25: -0.002391786572 | AB25: 0.0006088661547 | AC25: -0.0002705920232 | AD25: 0.0006079239446 | AE25: -1.845634445e-05 | AF25: 0.0005893681969 | AG25: 0.0003885523552 | AH25: 0.0006094874898 | AI25: 0.0004199124577 | AJ25: 0.000588565428 | AK25: -0.0007512156098 | AL25: 0.0006229408516 | AM25: 0.003568723449 | AN25: 0.0006194800167 | AO25: -0.002323430154 | AP25: 0.0006344627994 | AQ25: 0.004372239826 | AR25: 0.0006243590107 | AS25: -0.003219961833 | AT25: 0.0006349153045 | AU25: 0.001095296838 | AV25: 0.0006124737756 | AW25: 0.002987384128 | AX25: 0.0005935686032 | AY25: 0.003917512922 | AZ25: 0.0006360326916 | BA25: 0.003237081594 | BB25: 0.000652213427 | BC25: 0.004302566991 | BD25: 0.0006521314778 | BE25: 0.003559222955 | BF25: 0.0006447373899
C26: IsoLine | D26: IsoLine | E26: 0.004705129821 | F26: 0.0007396464379 | I26: 0.001306222429 | J26: 0.0005579753222 | K26: -0.002971838163 | L26: 0.0005817182175 | M26: -0.0007633958536 | N26: 0.0005795751149 | O26: 0.002118867884 | P26: 0.0005462458675 | Q26: -0.0003316466248 | R26: 0.0005843533618 | S26: 0.001479598053 | T26: 0.0005874800705 | U26: 0.0009057218899 | V26: 0.0005714909772 | W26: 0.003663288647 | X26: 0.0006001512453 | Y26: 0.0009403078877 | Z26: 0.0005967927717 | AA26: -0.002267793182 | AB26: 0.000603927729 | AC26: -0.0002265190123 | AD26: 0.0006029541723 | AE26: 8.955526388e-05 | AF26: 0.0005857143594 | AG26: 0.000442433213 | AH26: 0.0006033467902 | AI26: 0.0005092417123 | AJ26: 0.0005930375383 | AK26: -0.0007062982023 | AL26: 0.0006160783802 | AM26: 0.003626939946 | AN26: 0.000626842596 | AO26: -0.002135854998 | AP26: 0.0006290895875 | AQ26: 0.004449892715 | AR26: 0.0006295649275 | AS26: -0.00307227858 | AT26: 0.0006287325346 | AU26: 0.001158125656 | AV26: 0.000617519309 | AW26: 0.003086013396 | AX26: 0.0005914002777 | AY26: 0.003992818565 | AZ26: 0.0006434377174 | BA26: 0.003305614319 | BB26: 0.0006597089053 | BC26: 0.004393837961 | BD26: 0.0006609656726 | BE26: 0.003634462161 | BF26: 0.0006433583738
E27: 0.00478206806 | F27: 0.0007517168592 | I27: 0.001370024686 | J27: 0.0005643902009 | K27: -0.00271712493 | L27: 0.0005767449851 | M27: -0.0005319243393 | N27: 0.0005742902555 | O27: 0.002200208512 | P27: 0.0005454775948 | Q27: -0.000115560517 | R27: 0.0005788201927 | S27: 0.001544264214 | T27: 0.0005832789851 | U27: 0.0009620025939 | V27: 0.0005780377594 | W27: 0.003723629936 | X27: 0.0006067827992 | Y27: 0.001072333315 | Z27: 0.0005914450878 | AA27: -0.002084826187 | AB27: 0.0005992450234 | AC27: -0.0001614878148 | AD27: 0.0005982654223 | AE27: 0.0002099285827 | AF27: 0.0005829509457 | AG27: 0.0005219303356 | AH27: 0.0005976019755 | AI27: 0.000588339429 | AJ27: 0.0005992709663 | AK27: -0.0006400214473 | AL27: 0.0006095849653 | AM27: 0.003678382067 | AN27: 0.0006346860861 | AO27: -0.001859065649 | AP27: 0.0006240088496 | AQ27: 0.004518612554 | AR27: 0.0006354435836 | AS27: -0.002854354265 | AT27: 0.0006228660274 | AU27: 0.001213717073 | AV27: 0.0006239336094 | AW27: 0.00319587139 | AX27: 0.0005908312591 | AY27: 0.004059412408 | AZ27: 0.0006515493103 | BA27: 0.003366195398 | BB27: 0.0006680389061 | BC27: 0.004474555215 | BD27: 0.0006705848417 | BE27: 0.003718261861 | BF27: 0.0006432325237
E28: 0.004859012191 | F28: 0.000763787426 | I28: 0.001422745464 | J28: 0.0005718622109 | K28: -0.002385270576 | L28: 0.0005721436462 | M28: -0.0002303514307 | N28: 0.0005694328573 | O28: 0.002287624 | P28: 0.0005462072469 | Q28: 0.0001659669698 | R28: 0.0005737440331 | S28: 0.001628508111 | T28: 0.0005794775344 | U28: 0.001008501589 | V28: 0.000585783157 | W28: 0.003773458532 | X28: 0.0006138048055 | Y28: 0.00124433962 | Z28: 0.0005865708424 | AA28: -0.001846446832 | AB28: 0.0005949091815 | AC28: -7.676418888e-05 | AD28: 0.0005939489556 | AE28: 0.0003393801418 | AF28: 0.0005811533345 | AG28: 0.0006254964018 | AH28: 0.0005923648621 | AI28: 0.0006537486581 | AJ28: 0.0006069932815 | AK28: -0.0005536753464 | AL28: 0.0006035869939 | AM28: 0.003720801543 | AN28: 0.0006426676889 | AO28: -0.001498449498 | AP28: 0.0006193194765 | AQ28: 0.004575395959 | AR28: 0.0006417380536 | AS28: -0.002570430536 | AT28: 0.0006174299678 | AU28: 0.001259641476 | AV28: 0.0006314363411 | AW28: 0.003313961468 | AX28: 0.0005918770688 | AY28: 0.00411438398 | AZ28: 0.0006600129548 | BA28: 0.003416177149 | BB28: 0.0006768393684 | BC28: 0.004541191023 | BD28: 0.0006805685811 | BE28: 0.003808336216 | BF28: 0.0006443632724
E29: 0.004935962215 | F29: 0.0007758581384 | I29: 0.001462080611 | J29: 0.0005800647895 | K29: -0.001982734267 | L29: 0.0005680037606 | M29: 0.0001354530987 | N29: 0.000565097464 | O29: 0.002378729881 | P29: 0.0005484149207 | Q29: 0.0005074562232 | R29: 0.0005692236847 | S29: 0.001730690033 | T29: 0.0005761497093 | U29: 0.001043186645 | V29: 0.0005943886591 | W29: 0.003810596686 | X29: 0.0006209103691 | Y29: 0.001452978896 | Z29: 0.0005822649072 | AA29: -0.001557294899 | AB29: 0.0005910045954 | AC29: 2.600281646e-05 | AD29: 0.0005900887874 | AE29: 0.0004743788399 | AF29: 0.0005803705601 | AG29: 0.0007511156159 | AH29: 0.0005877373843 | AI29: 0.0007026107025 | AJ29: 0.0006158669815 | AK29: -0.0004489405281 | AL29: 0.0005982012096 | AM29: 0.003752344439 | AN29: 0.0006504385699 | AO29: -0.001061025527 | AP29: 0.0006151127415 | AQ29: 0.004617761221 | AR29: 0.0006481732389 | AS29: -0.002226033645 | AT29: 0.0006125301623 | AU29: 0.001293891749 | AV29: 0.0006396995987 | AW29: 0.003437062443 | AX29: 0.0005945091797 | AY29: 0.004155330761 | AZ29: 0.0006684587491 | BA29: 0.003453375129 | BB29: 0.0006857256698 | BC29: 0.00459083308 | BD29: 0.0006904805536 | BE29: 0.003902228232 | BF29: 0.0006467197761
E30: 0.005012918131 | F30: 0.0007879289964 | I30: 0.001486310994 | J30: 0.0005886394447 | K30: -0.001517350916 | L30: 0.0005644059066 | M30: 0.0005583692798 | N30: 0.0005613684592 | O30: 0.002471041024 | P30: 0.0005520403967 | Q30: 0.0009022605434 | R30: 0.0005653471308 | S30: 0.001848821124 | T30: 0.0005733602822 | U30: 0.001064541859 | V30: 0.0006034781639 | W30: 0.003833421281 | X30: 0.0006277889426 | Y30: 0.001694190216 | Z30: 0.0005786110922 | AA30: -0.001222998403 | AB30: 0.0005876072636 | AC30: 0.0001448129583 | AD30: 0.0005867600515 | AE30: 0.0006112422646 | AF30: 0.0005806239745 | AG30: 0.0008963429428 | AH30: 0.0005838096109 | AI30: 0.0007327900563 | AJ30: 0.0006255042431 | AK30: -0.0003278555367 | AL30: 0.0005935324406 | AM30: 0.00377163218 | AN30: 0.0006576591045 | AO30: -0.0005553076968 | AP30: 0.0006114705239 | AQ30: 0.004643856776 | AR30: 0.000654467891 | AS30: -0.001827866887 | AT30: 0.0006082619803 | AU30: 0.001314970991 | AV30: 0.0006483622383 | AW30: 0.003561816439 | AX30: 0.0005986557948 | AY30: 0.00418046318 | AZ30: 0.0006765175714 | BA30: 0.003476163607 | BB30: 0.0006943094363 | BC30: 0.00462131179 | BD30: 0.0006998875583 | BE30: 0.003997376781 | BF30: 0.0006502377555
E31: 0.00508987994 | F31: 0.0008 | I31: 0.001494377627 | J31: 0.0005972114229 | K31: -0.000998178679 | L31: 0.0005614201121 | M31: 0.00103016553 | N31: 0.0005583184237 | O31: 0.002562039422 | P31: 0.0005569847813 | Q31: 0.001342695513 | R31: 0.0005621898242 | S31: 0.001980602098 | T31: 0.0005711635461 | U31: 0.001071633906 | V31: 0.0006126544164 | W31: 0.003840934774 | X31: 0.0006341398995 | Y31: 0.001963278677 | Z31: 0.0005756805149 | AA31: -0.0008500640444 | AB31: 0.0005847833111 | AC31: 0.0002773537325 | AD31: 0.0005840275379 | AE31: 0.0007462371383 | AF31: 0.0005819066651 | AG31: 0.001058351698 | AH31: 0.0005806579914 | AI31: 0.0007429677369 | AJ31: 0.0006354838711 | AK31: -0.0001927771537 | AL31: 0.0005896715592 | AM31: 0.003777821799 | AN31: 0.0006640137206 | AO31: 8.860770388e-06 | AP31: 0.0006084637152 | AQ31: 0.004652542122 | AR31: 0.000660346903 | AS31: -0.001383680123 | AT31: 0.0006047084969 | AU31: 0.001321957938 | AV31: 0.0006570456608 | AW31: 0.003684820494 | AX31: 0.0006042038052 | AY31: 0.004188682828 | AZ31: 0.0006838372124 | BA31: 0.003483546618 | BB31: 0.0007022155161 | BC31: 0.004631295087 | BD31: 0.0007083784641 | BE31: 0.004091186458 | BF31: 0.0006548212493
E32: 0.00508987994 | F32: 0.0008 | K32: -0.0004353226541 | L32: 0.0005591044924 | M32: 0.001541658873 | N32: 0.000556006723 | O32: 0.002649242875 | P32: 0.0005631132046 | Q32: 0.001820188567 | R32: 0.0005598132183 | S32: 0.002123467987 | T32: 0.000569602258 | Y32: 0.002255006779 | Z32: 0.0005735302156 | AA32: -0.0004457505659 | AB32: 0.0005825877031 | AC32: 0.0004210453835 | AD32: 0.0005819444319 | AE32: 0.0008756811529 | AF32: 0.0005841836436 | AG32: 0.001233988565 | AH32: 0.0005783438685 | AK32: -4.633452615e-05 | AL32: 0.000586693713 | AO32: 0.0006204989772 | AP32: 0.0006061508397 | AS32: -0.0009021189455 | AT32: 0.0006019388768 | AW32: 0.003802719377 | AX32: 0.0006110018757 | BE32: 0.004181098379 | BF32: 0.0006603452317
E33: IsoLine | F33: IsoLine | K33: 0.0001602618066 | L33: 0.0005575041182 | M33: 0.002082893671 | N33: 0.0005544783516 | O33: 0.002730272702 | P33: 0.0005702584992 | Q33: 0.002325445846 | R33: 0.000558263571 | S33: 0.00227463807 | T33: 0.0005687068065 | Y33: 0.002563696364 | Z33: 0.0005722020474 | AA33: -1.792746965e-05 | AB33: 0.0005810631745 | AC33: 0.0005730911169 | AD33: 0.0005805512788 | AE33: 0.000996043413 | AF33: 0.0005873927998 | AG33: 0.001419834972 | AH33: 0.000576912284 | AK33: 0.0001086220067 | AL33: 0.0005846568624 | AO33: 0.001267702082 | AP33: 0.0006045769149 | AS33: -0.0003925563933 | AT33: 0.0006000070273 | AW33: 0.003912297114 | AX33: 0.0006188645725 | BE33: 0.004264659982 | BF33: 0.0006666590229
K34: 0.0007769823293 | L34: 0.0005566501392 | M34: 0.002643335405 | N34: 0.0005537630577 | O34: 0.002802918619 | P34: 0.0005782257601 | Q34: 0.002848633092 | R34: 0.0005575710444 | S34: 0.002431169993 | T34: 0.0005684946206 | Y34: 0.002883339143 | Z34: 0.0005717218616 | AA34: 0.0004250781543 | AB34: 0.0005802393986 | AC34: 0.0007305315353 | AD34: 0.0005798751947 | AE34: 0.00110404075 | AF34: 0.0005914465965 | AG34: 0.00161227363 | AH34: 0.000576391102 | AK34: 0.0002690763922 | AL34: 0.0005836006524 | AO34: 0.001937873011 | AP34: 0.0006037725752 | AS34: 0.0001350894774 | AT34: 0.0005989505498 | AW34: 0.004010564711 | AX34: 0.0006275774219 | BE34: 0.004339591924 | BF34: 0.0006735903991
K35: 0.00140283515 | L35: 0.0005565591769 | M35: 0.003212075715 | N35: 0.0005538747635 | O35: 0.002865199035 | P35: 0.0005867976611 | Q35: 0.00337956706 | R35: 0.0005577491177 | S35: 0.00259001704 | T35: 0.0005689698302 | Y35: 0.00320771363 | Z35: 0.0005720990045 | AA35: 0.0008746437055 | AB35: 0.0005801324091 | AC35: 0.0008903022402 | AD35: 0.0005799293388 | AE35: 0.001196727278 | AF35: 0.0005962344564 | AG35: 0.00180755894 | AH35: 0.0005767904669 | AK35: 0.0004319055683 | AL35: 0.000583545641 | AO35: 0.002617967652 | AP35: 0.0006037534765 | AS35: 0.0006705486402 | AT35: 0.0005987900074 | AW35: 0.004094841682 | AX35: 0.00063690276 | BE35: 0.004403850257 | BF35: 0.0006809502905
K36: 0.002025638756 | L36: 0.000557233002 | M36: 0.003778044717 | N36: 0.0005548112949 | O36: 0.002915415103 | P36: 0.0005957403832 | Q36: 0.003907913724 | R36: 0.0005587943251 | S36: 0.002748087434 | T36: 0.000570123186 | Y36: 0.003530506247 | Z36: 0.0005733261354 | AA36: 0.001322018902 | AB36: 0.0005807442887 | AC36: 0.001049293476 | AD36: 0.0005807126574 | AE36: 0.00127157475 | AF36: 0.0006016257795 | AG36: 0.002001889895 | AH36: 0.0005781026053 | AK36: 0.0005939402502 | AL36: 0.0005844928988 | AO36: 0.003294748734 | AP36: 0.0006045199902 | AS36: 0.001203398991 | AT36: 0.0005995285248 | AW36: 0.004162829173 | AX36: 0.0006465862158 | BE36: 0.004455682181 | BF36: 0.0006885379383
K37: 0.002633270984 | L37: 0.0005586584991 | M37: 0.004330226468 | N37: 0.0005565544234 | O37: 0.002952197059 | P37: 0.0006048099922 | Q37: 0.004423389417 | R37: 0.0005606863226 | S37: 0.002902304514 | T37: 0.0005719322392 | Y37: 0.003845434202 | Z37: 0.0005753793696 | AA37: 0.001758496094 | AB37: 0.0005820631276 | AC37: 0.001204410661 | AD37: 0.0005822099038 | AE37: 0.001326541523 | AF37: 0.0006074735042 | AG37: 0.002191484065 | AH37: 0.000580301978 | AK37: 0.0007520266173 | AL37: 0.0005864239886 | AO37: 0.003955043484 | AP37: 0.0006060571973 | AS37: 0.001723269205 | AT37: 0.0006011517278 | AW37: 0.004212672661 | AX37: 0.0006563636501 | BE37: 0.004493673857 | BF37: 0.0006961463714
K38: 0.003213904963 | L38: 0.0005608079226 | M38: 0.004857873378 | N38: 0.0005590702208 | O38: 0.002974541587 | P38: 0.0006137590928 | Q38: 0.004915960992 | R38: 0.0005633882848 | S38: 0.003049666621 | T38: 0.0005743617786 | Y38: 0.00414636778 | Z38: 0.0005782187433 | AA38: 0.00217557975 | AB38: 0.0005840632562 | AC38: 0.001352634613 | AD38: 0.0005843919361 | AE38: 0.001360128245 | AF38: 0.0006136181201 | AG38: 0.002372651214 | AH38: 0.0005833457767 | AK38: 0.0009030876981 | AL38: 0.000589301324 | AO38: 0.004586000016 | AP38: 0.0006083351775 | AS38: 0.002220040599 | AT38: 0.0006036280224 | AW38: 0.004243012546 | AX38: 0.0006659683597 | BE38: 0.00451678897 | BF38: 0.0007035680515
K39: 0.003756239313 | L39: 0.0005636394363 | M39: 0.005350715401 | N39: 0.0005623097202 | O39: 0.002981839188 | P39: 0.000622343577 | Q39: 0.005376041103 | R39: 0.000566847621 | S39: 0.003187305518 | T39: 0.000577364516 | Y39: 0.004427449652 | Z39: 0.0005817889912 | AA39: 0.00256515181 | AB39: 0.0005867057443 | AC39: 0.001491080323 | AD39: 0.0005872162834 | AE39: 0.001371418759 | AF39: 0.000619892018 | AG39: 0.002541865129 | AH39: 0.0005871747574 | AK39: 0.001044183261 | AL39: 0.0005930689007 | AO39: 0.005175337479 | AP39: 0.0006113095928 | AS39: 0.002684044083 | AT39: 0.0006069092104 | AW39: 0.004253021236 | AX39: 0.0006751383534 | BE39: 0.004524397 | BF39: 0.0007106005337
K40: 0.004249718113 | L40: 0.0005670979282 | M40: 0.005799159928 | N40: 0.0005662098682 | Q40: 0.005794674814 | R40: 0.0005709969991 | S40: 0.003312542222 | T40: 0.0005808820065 | Y40: 0.004683208879 | Z40: 0.0005860206226 | AA40: 0.002919629699 | AB40: 0.0005899391588 | AC40: 0.001617053102 | AD40: 0.0005906279729 | AG40: 0.002695832255 | AH40: 0.0005917143932 | AK40: 0.00117256704 | AL40: 0.0005976533873 | AO40: 0.005711585089 | AP40: 0.0006149225494 | AS40: 0.003106248357 | AT40: 0.0006109314272
K41: 0.004684736359 | L41: 0.0005711160825 | M41: 0.006194478495 | N41: 0.0005706947531 | Q41: 0.006163713897 | R41: 0.0005757556562 | S41: 0.003422939142 | T41: 0.0005848457862 | Y41: 0.004908667399 | Z41: 0.0005908312736 | AA41: 0.003232113906 | AB41: 0.0005937005651 | AC41: 0.001728101034 | AD41: 0.0005945606001 | AG41: 0.002831555797 | AH41: 0.0005968763254 | AK41: 0.001285740193 | AL41: 0.0006029655519 | AO41: 0.006184305396 | AP41: 0.0006191037252 | AS41: 0.003478435694 | AT41: 0.0006156163849
K42: 0.005052826917 | L42: 0.0005756156905 | M42: 0.006528976677 | N42: 0.0005756770815 | Q42: 0.006475975424 | R42: 0.0005810309705 | S42: 0.003516347527 | T42: 0.0005891787047 | Y42: 0.005099436917 | Z42: 0.0005961273102 | AA42: 0.003496522283 | AB42: 0.0005979167516 | AC42: 0.001822062697 | AD42: 0.0005989376208 | AG42: 0.00294639405 | AH42: 0.0006025600828 | AK42: 0.001381499931 | AL42: 0.0006089019994 | AO42: 0.006584297438 | AP42: 0.0006237717385 | AS42: 0.003793361893 | AT42: 0.0006208728963
K43: 0.005346825322 | L43: 0.0005805091724 | M43: 0.006796143846 | N43: 0.0005810598782 | Q43: 0.006725381581 | R43: 0.0005867202641 | S43: 0.00359094929 | T43: 0.0005937964265 | Y43: 0.005251804322 | Z43: 0.0006018056513 | AA43: 0.00370770842 | AB43: 0.000602505655 | AC43: 0.001897109234 | AD43: 0.0006036738413 | AG43: 0.003038111818 | AH43: 0.0006086550375 | AK43: 0.001457982401 | AL43: 0.0006153471834 | AO43: 0.006903775824 | AP43: 0.0006288357317 | AS43: 0.004044897272 | AT43: 0.0006265986491
K44: 0.005561009229 | L44: 0.0005857012822 | M44: 0.006990779898 | N44: 0.0005867383731 | Q44: 0.00690707796 | R44: 0.0005927128011 | S44: 0.003645292393 | T44: 0.000598609073 | Y44: 0.005362803957 | Z44: 0.0006077557742 | AA44: 0.003861561821 | AB44: 0.0006073779576 | AC44: 0.001951779949 | AD44: 0.0006086770764 | AG44: 0.003104923919 | AH44: 0.0006150425582 | AK44: 0.001513698959 | AL44: 0.0006221756558 | AO44: 0.007136522271 | AP44: 0.0006341971399 | AS44: 0.004228145982 | AT44: 0.0006326821983
K45: 0.005691209794 | L45: 0.0005910909614 | M45: 0.007109096463 | N45: 0.0005926020407 | Q45: 0.007017528048 | R45: 0.0005988919439 | S45: 0.003678319108 | T45: 0.0006035229715 | Y45: 0.005430275338 | Z45: 0.0006138618668 | AA45: 0.003955087903 | AB45: 0.0006124388255 | AC45: 0.001985010739 | AD45: 0.0006138499439 | AG45: 0.003145529932 | AH45: 0.000621598319 | AK45: 0.001547565145 | AL45: 0.0006292545082 | AO45: 0.007278006634 | AP45: 0.0006397516093 | AS45: 0.004339541295 | AT45: 0.0006390051344
K46: 0.005734892808 | L46: 0.0005965733059 | M46: 0.007148790645 | N46: 0.0005985367516 | Q46: 0.00705458206 | R46: 0.0006051374222 | S46: 0.003689386608 | T46: 0.0006084424785 | Y46: 0.005452905213 | Z46: 0.0006200050807 | AA46: 0.003986466288 | AB46: 0.0006175897547 | AC46: 0.001996154805 | AD46: 0.0006190917598 | AG46: 0.003159139506 | AH46: 0.0006281947195 | AK46: 0.001558921792 | AL46: 0.0006364459588 | AO46: 0.007325475081 | AP46: 0.0006453910286 | AS46: 0.004376915028 | AT46: 0.0006454443887

Sheet U-Pb datatable ALL SAMPLES
A1: Table DR-1. U-Pb geochronologic analyses.
H2: Isotope ratios | N2: Apparent ages (Ma)
A4: Analysis | B4: U | C4: 206Pb | D4: U/Th | E4: 206Pb* | F4: ± | G4: 207Pb* | H4: ± | I4: 206Pb* | J4: ± | K4: error | L4: 206Pb* | M4: ± | N4: 207Pb* | O4: ± | P4: 206Pb* | Q4: ± | R4: Best age | S4: ± | T4: Conc
B5: (ppm) | C5: 204Pb | E5: 207Pb* | F5: (%) | G5: 235U* | H5: (%) | I5: 238U | J5: (%) | K5: corr. | L5: 238U* | M5: (Ma) | N5: 235U | O5: (Ma) | P5: 207Pb* | Q5: (Ma) | R5: (Ma) | S5: (Ma) | T5: (%)
A9: -DAG.Calico Pk 071216 Spot 30 | B9: 609.910197 | C9: 206.0418405 | D9: 2.484299294 | E9: 41.04297249 | F9: 45.64364942 | G9: 0.002223969732 | H9: 45.87476065 | I9: 0.0006623010343 | J9: 4.599014251 | K9: 0.1002515149 | L9: 4.268053568 | M9: 0.1962234268 | N9: 2.255673831 | O9: 1.033636791 | P9: NA | Q9: NA | R9: 4.268053568 | S9: 0.1962234268 | T9: NA
A10: -DAG.Calico Pk 071216 Spot 24 | B10: 894.9411643 | C10: 354.8237415 | D10: 1.139745345 | E10: 241.9060218 | F10: 474.6731124 | G10: 0.0003900743015 | H10: 474.6789981 | I10: 0.0006846707479 | J10: 2.36381821 | K10: 0.004979824722 | L10: 4.412160953 | M10: 0.1042597804 | N10: 0.3959976061 | O10: 1.879353119 | P10: NA | Q10: NA | R10: 4.412160953 | S10: 0.1042597804 | T10: NA
A11: -DAG.Calico Pk 071216 Spot 22 | B11: 736.4732309 | C11: 308.2008177 | D11: 2.043181912 | E11: 83.60618126 | F11: 26.08276938 | G11: 0.001132860002 | H11: 26.2053295 | I11: 0.0006872304359 | J11: 2.531488765 | K11: 0.09660205822 | L11: 4.428650451 | M11: 0.1120722877 | N11: 1.149635782 | O11: 0.3010953685 | P11: NA | Q11: NA | R11: 4.428650451 | S11: 0.1120722877 | T11: NA
A12: -DAG.Calico Pk 071216 Spot 19 | B12: 987.2506386 | C12: 351.7248587 | D12: 1.461107812 | E12: 158.9745679 | F12: 61.56220134 | G12: 0.0005996130778 | H12: 61.65052158 | I12: 0.0006916501954 | J12: 3.298814424 | K12: 0.05350829709 | L12: 4.457122422 | M12: 0.1469813792 | N12: 0.6086544973 | O12: 0.3751262464 | P12: NA | Q12: NA | R12: 4.457122422 | S12: 0.1469813792 | T12: NA
A13: -DAG.Calico Pk 071216 Spot 23 | B13: 637.4354105 | C13: 304.6521017 | D13: 2.209969188 | E13: 201.4705082 | F13: 262.1639632 | G13: 0.0004830611578 | H13: 262.1897989 | I13: 0.0007061571392 | J13: 3.680628141 | K13: 0.01403802954 | L13: 4.550574876 | M13: 0.1674306372 | N13: 0.4903736826 | O13: 1.285400045 | P13: NA | Q13: NA | R13: 4.550574876 | S13: 0.1674306372 | T13: NA
A14: -DAG.Calico Pk 071216 Spot 16 | B14: 646.4073497 | C14: 295.8027559 | D14: 1.830721895 | E14: 790.377677 | F14: 319.9384233 | G14: 0.000123477519 | H14: 319.9544101 | I14: 0.000708125632 | J14: 3.198411016 | K14: 0.009996458606 | L14: 4.563255628 | M14: 0.1459000251 | N14: 0.1253692402 | O14: 0.4010996715 | P14: NA | Q14: NA | R14: 4.563255628 | S14: 0.1459000251 | T14: NA
A15: -DAG.Calico Pk 071216 Spot 8 | B15: 597.6402679 | C15: 638.4745219 | D15: 1.983423453 | E15: 34.44793454 | F15: 11.84753329 | G15: 0.002841018324 | H15: 12.27607558 | I15: 0.0007101089337 | J15: 3.215273951 | K15: 0.2619138283 | L15: 4.576031753 | M15: 0.147079748 | N15: 2.880631831 | O15: 0.3531274086 | P15: NA | Q15: NA | R15: 4.576031753 | S15: 0.147079748 | T15: NA
A16: -DAG.Calico Pk 071216 Spot 14 | B16: 464.5827618 | C16: 333.8791616 | D16: 1.817653537 | E16: 1203.431489 | F16: 2890.924018 | G16: 8.166195896e-05 | H16: 2890.927497 | I16: 0.0007130646706 | J16: 4.484561999 | K16: 0.001551253708 | L16: 4.595072108 | M16: 0.2059954311 | N16: 0.08291478378 | O16: 2.39691287 | P16: NA | Q16: NA | R16: 4.595072108 | S16: 0.2059954311 | T16: NA
A17: -DAG.Calico Pk 071216 Spot 27 | B17: 892.5362241 | C17: 8968.665105 | D17: 1.662839943 | E17: 18.66986999 | F17: 5.163461481 | G17: 0.005270972562 | H17: 5.982600649 | I17: 0.0007140354988 | J17: 3.021618119 | K17: 0.5050676614 | L17: 4.601326006 | M17: 0.1389848921 | N17: 5.338000313 | O17: 0.3185132855 | P17: 352.6675376 | Q17: 116.7165873 | R17: 4.601326006 | S17: 0.1389848921 | T17: NA
A18: -DAG.Calico Pk 071216 Spot 6 | B18: 1068.797359 | C18: 1334.348038 | D18: 1.480856573 | E18: 24.03410863 | F18: 5.785496009 | G18: 0.004120176329 | H18: 6.422971098 | I18: 0.0007185079485 | J18: 2.789730034 | K18: 0.4343363829 | L18: 4.630136633 | M18: 0.1291219358 | N18: 4.174962325 | O18: 0.2676060931 | P18: NA | Q18: NA | R18: 4.630136633 | S18: 0.1291219358 | T18: NA
A19: -DAG.Calico Pk 071216 Spot 15 | B19: 723.531096 | C19: 564.4400027 | D19: 1.708306172 | E19: 41.77714185 | F19: 8.712887969 | G19: 0.002378756963 | H19: 9.435038242 | I19: 0.0007210685464 | J19: 3.620156057 | K19: 0.3836927805 | L19: 4.646631435 | M19: 0.1681546984 | N19: 2.412481291 | O19: 0.2273483471 | P19: NA | Q19: NA | R19: 4.646631435 | S19: 0.1681546984 | T19: NA
A20: -DAG.Calico Pk 071216 Spot 3 | B20: 679.8844516 | C20: 529.9986197 | D20: 1.709822153 | E20: 32.99859925 | F20: 7.980176675 | G20: 0.003019406654 | H20: 8.467592265 | I20: 0.0007229443488 | J20: 2.831412898 | K20: 0.3343822907 | L20: 4.65871491 | M20: 0.1318598027 | N20: 3.061235113 | O20: 0.2588225607 | P20: NA | Q20: NA | R20: 4.65871491 | S20: 0.1318598027 | T20: NA
A21: -DAG.Calico Pk 071216 Spot 5 | B21: 822.1970757 | C21: 674.3218108 | D21: 1.809270358 | E21: 31.87261748 | F21: 17.0385303 | G21: 0.003136072529 | H21: 17.28850916 | I21: 0.0007252564221 | J21: 2.92934023 | K21: 0.1694385677 | L21: 4.673608707 | M21: 0.1368562841 | N21: 3.179332193 | O21: 0.5487995514 | P21: NA | Q21: NA | R21: 4.673608707 | S21: 0.1368562841 | T21: NA
A22: -DAG.Calico Pk 071216 Spot 13 | B22: 1082.313867 | C22: 661.213278 | D22: 1.786473834 | E22: 32.1813567 | F22: 21.00403249 | G22: 0.003108185122 | H22: 21.20371415 | I22: 0.0007257699471 | J22: 2.903121188 | K22: 0.1369156917 | L22: 4.676916702 | M22: 0.1357273183 | N22: 3.151103925 | O22: 0.6671154782 | P22: NA | Q22: NA | R22: 4.676916702 | S22: 0.1357273183 | T22: NA
A23: -DAG.Calico Pk 071216 Spot 35 | B23: 712.4902997 | C23: 748.6660125 | D23: 1.900061202 | E23: 22.04116406 | F23: 19.9870906 | G23: 0.004562716884 | H23: 20.23682527 | I23: 0.0007297024481 | J23: 3.169433079 | K23: 0.1566171095 | L23: 4.702248798 | M23: 0.1489802864 | N23: 4.622368123 | O23: 0.9332948745 | P23: NA | Q23: NA | R23: 4.702248798 | S23: 0.1489802864 | T23: NA
A24: -DAG.Calico Pk 071216 Spot 2 | B24: 1065.21972 | C24: 1513.383042 | D24: 1.542528637 | E24: 22.5474123 | F24: 5.265128263 | G24: 0.00446627213 | H24: 5.858201988 | I24: 0.0007306840746 | J24: 2.568453797 | K24: 0.4384372205 | L24: 4.708572151 | M24: 0.1208933435 | N24: 4.524879864 | O24: 0.2644868504 | P24: NA | Q24: NA | R24: 4.708572151 | S24: 0.1208933435 | T24: NA
A25: -DAG.Calico Pk 071216 Spot 33 | B25: 771.5768232 | C25: 633.4856377 | D25: 1.925621457 | E25: 32.07799359 | F25: 39.10128341 | G25: 0.003150117575 | H25: 39.18631459 | I25: 0.0007331987476 | J25: 2.580094432 | K25: 0.06584172202 | L25: 4.724770918 | M25: 0.1218588889 | N25: 3.193548612 | O25: 1.249468714 | P25: NA | Q25: NA | R25: 4.724770918 | S25: 0.1218588889 | T25: NA
A26: -DAG.Calico Pk 071216 Spot 31 | B26: 1270.740546 | C26: 1770.636068 | D26: 1.163433583 | E26: 19.53392892 | F26: 4.564200531 | G26: 0.005215443996 | H26: 5.320587599 | I26: 0.0007392113795 | J26: 2.734360239 | K26: 0.5139207255 | L26: 4.763502319 | M26: 0.1302032014 | N26: 5.281911633 | O26: 0.2802990679 | P26: 249.5337979 | Q26: 105.0746435 | R26: 4.763502319 | S26: 0.1302032014 | T26: NA
A27: -DAG.Calico Pk 071216 Spot 11 | B27: 651.6232666 | C27: 986.7194449 | D27: 1.495679952 | E27: 31.11110468 | F27: 6.704880001 | G27: 0.003288536949 | H27: 7.647647342 | I27: 0.0007423452131 | J27: 3.678463544 | K27: 0.4809928308 | L27: 4.783689355 | M27: 0.1759009955 | N27: 3.333646278 | O27: 0.2545274628 | P27: NA | Q27: NA | R27: 4.783689355 | S27: 0.1759009955 | T27: NA
A28: -DAG.Calico Pk 071216 Spot 26 | B28: 504.7905658 | C28: 1994.255287 | D28: 1.939791719 | E28: 18.44515466 | F28: 7.12943128 | G28: 0.005556604851 | H28: 8.289183443 | I28: 0.0007436688134 | J28: 4.228684402 | K28: 0.510144869 | L28: 4.792215496 | M28: 0.2025723645 | N28: 5.626464815 | O28: 0.4650982257 | P28: 379.9603047 | Q28: 160.4668676 | R28: 4.792215496 | S28: 0.2025723645 | T28: NA
A29: -DAG.Calico Pk 071216 Spot 32 | B29: 684.7467589 | C29: 1506.384994 | D29: 1.90281255 | E29: 24.24776701 | F29: 8.055037706 | G29: 0.004232285442 | H29: 8.731596778 | I29: 0.0007446195858 | J29: 3.37003707 | K29: 0.3859588522 | L29: 4.798340011 | M29: 0.1616456698 | N29: 4.288322599 | O29: 0.3736494723 | P29: NA | Q29: NA | R29: 4.798340011 | S29: 0.1616456698 | T29: NA
A30: -DAG.Calico Pk 071216 Spot 34 | B30: 1101.103173 | C30: 33613.28055 | D30: 1.329876053 | E30: 19.3654923 | F30: 4.142201221 | G30: 0.005305675914 | H30: 5.088250332 | I30: 0.0007455160794 | J30: 2.955073685 | K30: 0.5807642101 | L30: 4.804114877 | M30: 0.1419122488 | N30: 5.373052143 | O30: 0.2726722707 | P30: 269.4008394 | Q30: 95.02418731 | R30: 4.804114877 | S30: 0.1419122488 | T30: NA
A31: -DAG.Calico Pk 071216 Spot 25 | B31: 621.679029 | C31: 581.5889815 | D31: 2.060443541 | E31: 56.60027769 | F31: 25.81886987 | G31: 0.001836084334 | H31: 26.0227354 | I31: 0.0007540479116 | J31: 3.250956287 | K31: 0.1249275388 | L31: 4.859073394 | M31: 0.1579068323 | N31: 1.862619477 | O31: 0.4842602753 | P31: NA | Q31: NA | R31: 4.859073394 | S31: 0.1579068323 | T31: NA
A32: -DAG.Calico Pk 071216 Spot 29 | B32: 998.1966798 | C32: 977.4917218 | D32: 1.403291121 | E32: 26.09331114 | F32: 7.294155315 | G32: 0.003985783336 | H32: 7.93140563 | I32: 0.0007546240367 | J32: 3.114882584 | K32: 0.3927276865 | L32: 4.862784536 | M32: 0.1514129131 | N32: 4.039052795 | O32: 0.3197173542 | P32: NA | Q32: NA | R32: 4.862784536 | S32: 0.1514129131 | T32: NA
A33: -DAG.Calico Pk 071216 Spot 21 | B33: 828.364596 | C33: 2180.82794 | D33: 2.411515092 | E33: 23.13318415 | F33: 5.501794368 | G33: 0.004516453804 | H33: 6.480411465 | I33: 0.0007580899546 | J33: 3.424323508 | K33: 0.5284114329 | L33: 4.885110392 | M33: 0.1672186162 | N33: 4.575605658 | O33: 0.2958509869 | P33: NA | Q33: NA | R33: 4.885110392 | S33: 0.1672186162 | T33: NA
A34: -DAG.Calico Pk 071216 Spot 10 | B34: 806.573775 | C34: 964.3599745 | D34: 1.78084304 | E34: 28.00627791 | F34: 6.156327397 | G34: 0.003744518659 | H34: 6.702970695 | I34: 0.0007609202596 | J34: 2.65131083 | K34: 0.3955426557 | L34: 4.903341864 | M34: 0.1299534043 | N34: 3.795019953 | O34: 0.2539042982 | P34: NA | Q34: NA | R34: 4.903341864 | S34: 0.1299534043 | T34: NA
A35: -DAG.Calico Pk 071216 Spot 7 | B35: 787.7892639 | C35: 2501.179167 | D35: 1.692077356 | E35: 25.83048151 | F35: 3.86399394 | G35: 0.004101273632 | H35: 4.741428363 | I35: 0.0007686683552 | J35: 2.747852572 | K35: 0.5795410921 | L35: 4.953251127 | M35: 0.136055761 | N35: 4.155847423 | O35: 0.1966438359 | P35: NA | Q35: NA | R35: 4.953251127 | S35: 0.136055761 | T35: NA
A36: -DAG.Calico Pk 071216 Spot 20 | B36: 255.800608 | C36: 1731.152998 | D36: 3.285190289 | E36: 20.75899883 | F36: 9.641383354 | G36: 0.005137491593 | H36: 10.9128009 | I36: 0.0007738295021 | J36: 5.112039756 | K36: 0.4684443347 | L36: 4.986496376 | M36: 0.2548131118 | N36: 5.2031677 | O36: 0.566359043 | P36: 107.7423942 | Q36: 228.1751075 | R36: 4.986496376 | S36: 0.2548131118 | T36: NA
A37: -DAG.Calico Pk 071216 Spot 28 | B37: 933.6488018 | C37: 3720.914692 | D37: 0.9828895895 | E37: 21.94191383 | F37: 4.775487503 | G37: 0.004878728313 | H37: 5.634167197 | I37: 0.0007767278788 | J37: 2.989742315 | K37: 0.5306449402 | L37: 5.005166039 | M37: 0.1495834893 | N37: 4.941733142 | O37: 0.2777490826 | P37: NA | Q37: NA | R37: 5.005166039 | S37: 0.1495834893 | T37: NA
A38: -DAG.Calico Pk 071216 Spot 18 | B38: 487.839825 | C38: 4495.032634 | D38: 2.097629218 | E38: 21.02207599 | F38: 5.570755731 | G38: 0.005109397809 | H38: 6.33557402 | I38: 0.0007793509576 | J38: 3.017644571 | K38: 0.4763016834 | L38: 5.022062345 | M38: 0.1514889755 | N38: 5.174787153 | O38: 0.3270184673 | P38: 77.86613509 | Q38: 132.3856585 | R38: 5.022062345 | S38: 0.1514889755 | T38: NA
A39: -DAG.Calico Pk 071216 Spot 12 | B39: 1566.188064 | C39: 1362.81853 | D39: 1.749041114 | E39: 20.30452506 | F39: 9.285096553 | G39: 0.00553585009 | H39: 9.59904209 | I39: 0.0008155768892 | J39: 2.434869822 | K39: 0.2536575836 | L39: 5.255403624 | M39: 0.1279100908 | N39: 5.60550702 | O39: 0.5365925136 | P39: 159.743457 | Q39: 217.599247 | R39: 5.255403624 | S39: 0.1279100908 | T39: NA
A40: -DAG.Calico Pk 071216 Spot 17 | B40: 3145.386599 | C40: 1535.770006 | D40: 2.355227792 | E40: 23.11214933 | F40: 3.253477553 | G40: 0.004943724918 | H40: 4.013701506 | I40: 0.0008290531746 | J40: 2.350464549 | K40: 0.5856102017 | L40: 5.342205962 | M40: 0.1255146425 | N40: 5.007407053 | O40: 0.2004876118 | P40: NA | Q40: NA | R40: 5.342205962 | S40: 0.1255146425 | T40: NA
A41: -DAG.Calico Pk 071216 Spot 1 | B41: 1853.984489 | C41: 7765.265874 | D41: 0.7280191379 | E41: 6.43635552 | F41: 6.857130343 | G41: 0.01858102645 | H41: 7.56939811 | I41: 0.0008677557115 | J41: 3.205550064 | K41: 0.4234881053 | L41: 5.591487053 | M41: 0.1791602057 | N41: 18.69371804 | O41: 1.402056947 | P41: 2405.843673 | Q41: 116.6781417 | R41: 5.591487053 | S41: 0.1791602057 | T41: NA
A45: -DAG.Preist Ck 072316 Spot 6 | B45: 423.2431677 | C45: 112.7209924 | D45: 1.514032337 | E45: 7.891405729 | F45: 16.20446485 | G45: 0.009308106272 | H45: 16.74261292 | I45: 0.0005329708545 | J45: 4.210748917 | K45: 0.251498911 | L45: 3.434835622 | M45: 0.1445937785 | N45: 9.407577609 | O45: 1.567801459 | P45: NA | Q45: NA | R45: 3.434835622 | S45: 0.1445937785 | T45: NA
A46: -DAG.Preist Ck 072316 Spot 25 | B46: 497.8695305 | C46: 281.9052487 | D46: 1.735392995 | E46: 72.65552889 | F46: 21.85850265 | G46: 0.001116471764 | H46: 22.34232337 | I46: 0.0005885781927 | J46: 4.624421642 | K46: 0.2069803379 | L46: 3.793102649 | M46: 0.1753574642 | N46: 1.133014137 | O46: 0.2530005062 | P46: NA | Q46: NA | R46: 3.793102649 | S46: 0.1753574642 | T46: NA
A47: -DAG.Preist Ck 072316 Spot 5 | B47: 423.0675264 | C47: 230.3223682 | D47: 1.563165086 | E47: 65.89789853 | F47: 237.7176899 | G47: 0.001246174833 | H47: 237.7576506 | I47: 0.0005958518552 | J47: 4.358934531 | K47: 0.01833351953 | L47: 3.839963938 | M47: 0.1673316716 | N47: 1.26455704 | O47: 3.004718461 | P47: NA | Q47: NA | R47: 3.839963938 | S47: 0.1673316716 | T47: NA
A48: -DAG.Preist Ck 072316 Spot 7 | B48: 449.4545713 | C48: 180.1520553 | D48: 1.634683864 | E48: 26.76992239 | F48: 87.58569771 | G48: 0.003069693497 | H48: 87.71223782 | I48: 0.0005962520438 | J48: 4.709800507 | K48: 0.05369604771 | L48: 3.842542183 | M48: 0.1809221444 | N48: 3.112140537 | O48: 2.725555629 | P48: NA | Q48: NA | R48: 3.842542183 | S48: 0.1809221444 | T48: NA
A49: -DAG.Preist Ck 072316 Spot 12 | B49: 175.7867262 | C49: 446.2274197 | D49: 1.201155993 | E49: 34.15143788 | F49: 13.97876485 | G49: 0.002422915268 | H49: 15.22678949 | I49: 0.0006003921074 | J49: 6.037321546 | K49: 0.3964934007 | L49: 3.869214789 | M49: 0.2335268484 | N49: 2.457211495 | O49: 0.3737020796 | P49: NA | Q49: NA | R49: 3.869214789 | S49: 0.2335268484 | T49: NA
A50: -DAG.Preist Ck 072316 Spot 21 | B50: 372.3479628 | C50: 176.4863057 | D50: 1.799450674 | E50: 25.56767525 | F50: 77.26342173 | G50: 0.003246638476 | H50: 77.41903103 | I50: 0.0006023000886 | J50: 4.906121447 | K50: 0.06337100041 | L50: 3.881507034 | M50: 0.1903741295 | N50: 3.291241839 | O50: 2.543927727 | P50: NA | Q50: NA | R50: 3.881507034 | S50: 0.1903741295 | T50: NA
A51: -DAG.Preist Ck 072316 Spot 10 | B51: 502.7427011 | C51: 154.7962698 | D51: 1.526861815 | E51: 32.63274707 | F51: 29.23491767 | G51: 0.002550114731 | H51: 29.4889166 | I51: 0.0006038111235 | J51: 3.862096706 | K51: 0.1309677381 | L51: 3.89124192 | M51: 0.1502381774 | N51: 2.586047323 | O51: 0.7616271873 | P51: NA | Q51: NA | R51: 3.89124192 | S51: 0.1502381774 | T51: NA
A52: -DAG.Preist Ck 072316 Spot 13 | B52: 535.6434988 | C52: 339.3604595 | D52: 1.68629898 | E52: 113.0399736 | F52: 29.4280571 | G52: 0.0007381894272 | H52: 29.81594483 | I52: 0.0006054630194 | J52: 4.793748181 | K52: 0.1607780068 | L52: 3.901884291 | M52: 0.186989911 | N52: 0.7492685174 | O52: 0.2233190858 | P52: NA | Q52: NA | R52: 3.901884291 | S52: 0.186989911 | T52: NA
A53: -DAG.Preist Ck 072316 Spot 16 | B53: 733.6814892 | C53: 1329.706027 | D53: 1.102552218 | E53: 24.36286141 | F53: 5.71666379 | G53: 0.003483091275 | H53: 6.781458574 | I53: 0.0006157166593 | J53: 3.648004319 | K53: 0.5379380083 | L53: 3.967943166 | M53: 0.1447061982 | N53: 3.530526843 | O53: 0.2390054632 | P53: NA | Q53: NA | R53: 3.967943166 | S53: 0.1447061982 | T53: NA
A54: -DAG.Preist Ck 072316 Spot 32 | B54: 391.595564 | C54: 221.5963682 | D54: 2.225853647 | E54: 27.14437298 | F54: 48.89011656 | G54: 0.003126441432 | H54: 49.11760201 | I54: 0.0006157690633 | J54: 4.721793092 | K54: 0.09613240262 | L54: 3.968280776 | M54: 0.1873163476 | N54: 3.169583466 | O54: 1.554397271 | P54: NA | Q54: NA | R54: 3.968280776 | S54: 0.1873163476 | T54: NA
A55: -DAG.Preist Ck 072316 Spot 35 | B55: 420.5839588 | C55: 233.0858994 | D55: 1.403810371 | E55: 111.5903324 | F55: 279.2373264 | G55: 0.0007621092651 | H55: 279.2653408 | I55: 0.0006170659284 | J55: 3.955518458 | K55: 0.01416401493 | L55: 3.976635755 | M55: 0.1572480551 | N55: 0.7735381096 | O55: 2.159404453 | P55: NA | Q55: NA | R55: 3.976635755 | S55: 0.1572480551 | T55: NA
A56: -DAG.Preist Ck 072316 Spot 27 | B56: 553.8468101 | C56: 363.8526436 | D56: 1.621183308 | E56: 100.0746628 | F56: 88.86789221 | G56: 0.0008502552756 | H56: 88.95868683 | I56: 0.0006173923232 | J56: 4.018170785 | K56: 0.04516895346 | L56: 3.978738533 | M56: 0.1598231828 | N56: 0.8629679782 | O56: 0.7673589942 | P56: NA | Q56: NA | R56: 3.978738533 | S56: 0.1598231828 | T56: NA
A57: -DAG.Preist Ck 072316 Spot 22 | B57: 557.4735736 | C57: 245.6676192 | D57: 1.224960114 | E57: 157.0217424 | F57: 100.7007014 | G57: 0.0005427404505 | H57: 100.7824563 | I57: 0.0006183576491 | J57: 4.05859966 | K57: 0.04027089446 | L57: 3.984957581 | M57: 0.1616834961 | N57: 0.5509399606 | O57: 0.5551002697 | P57: NA | Q57: NA | R57: 3.984957581 | S57: 0.1616834961 | T57: NA
A58: -DAG.Preist Ck 072316 Spot 26 | B58: 379.034758 | C58: 208.1294852 | D58: 1.87676702 | E58: 48.8798024 | F58: 52.33384747 | G58: 0.001758526802 | H58: 52.57269361 | I58: 0.0006236862763 | J58: 5.005648983 | K58: 0.09521385798 | L58: 4.0192868 | M58: 0.2011286813 | N58: 1.784010158 | O58: 0.9370790038 | P58: NA | Q58: NA | R58: 4.0192868 | S58: 0.2011286813 | T58: NA
A59: -DAG.Preist Ck 072316 Spot 29 | B59: 416.6377805 | C59: 264.1850893 | D59: 1.973046186 | E59: 317.248879 | F59: 112.1255378 | G59: 0.0002751361182 | H59: 112.2362556 | I59: 0.0006333378687 | J59: 4.9840603 | K59: 0.04440686543 | L59: 4.081465882 | M59: 0.203358337 | N59: 0.2793301266 | O59: 0.3134665659 | P59: NA | Q59: NA | R59: 4.081465882 | S59: 0.203358337 | T59: NA
A60: -DAG.Preist Ck 072316 Spot 30 | B60: 315.4558037 | C60: 293.6594546 | D60: 1.573053564 | E60: 223.7896552 | F60: 197.0329816 | G60: 0.000391086634 | H60: 197.1059479 | I60: 0.0006350394935 | J60: 5.36272662 | K60: 0.02720733026 | L60: 4.092428308 | M60: 0.2193960945 | N60: 0.39702511 | O60: 0.7824072867 | P60: NA | Q60: NA | R60: 4.092428308 | S60: 0.2193960945 | T60: NA
A61: -DAG.Preist Ck 072316 Spot 17 | B61: 757.6099301 | C61: 127922.7212 | D61: 1.541634448 | E61: 25.31957451 | F61: 4.266516162 | G61: 0.003471936893 | H61: 5.815546323 | I61: 0.0006378462116 | J61: 3.951888013 | K61: 0.6795385668 | L61: 4.110510067 | M61: 0.1623909754 | N61: 3.519240123 | O61: 0.2043087785 | P61: NA | Q61: NA | R61: 4.110510067 | S61: 0.1623909754 | T61: NA
A62: -DAG.Preist Ck 072316 Spot 23 | B62: 523.2177656 | C62: 232.4680658 | D62: 1.742794923 | E62: 36.26716271 | F62: 131.4716176 | G62: 0.002447726106 | H62: 131.5369549 | I62: 0.0006441161004 | J62: 4.145389369 | K62: 0.031515017 | L62: 4.150902477 | M62: 0.1720156829 | N62: 2.482342797 | O62: 3.261221317 | P62: NA | Q62: NA | R62: 4.150902477 | S62: 0.1720156829 | T62: NA
A63: -DAG.Preist Ck 072316 Spot 2 | B63: 1001.208477 | C63: 1305.268268 | D63: 0.9770789651 | E63: 20.93702159 | F63: 5.488738329 | G63: 0.004245497573 | H63: 6.328573582 | I63: 0.0006449577299 | J63: 3.150332543 | K63: 0.4977950407 | L63: 4.156324474 | M63: 0.1308958405 | N63: 4.301681347 | O63: 0.2716592258 | P63: 87.53408641 | Q63: 130.2131493 | R63: 4.156324474 | S63: 0.1308958405 | T63: NA
A64: -DAG.Preist Ck 072316 Spot 1 | B64: 435.3827129 | C64: 280.2470885 | D64: 1.635070902 | E64: 165.6828014 | F64: 472.4587899 | G64: 0.000536515041 | H64: 472.4824861 | I64: 0.0006449812434 | J64: 4.731970503 | K64: 0.01001512361 | L64: 4.156475954 | M64: 0.1966198218 | N64: 0.5446221945 | O64: 2.572560005 | P64: NA | Q64: NA | R64: 4.156475954 | S64: 0.1966198218 | T64: NA
A65: -DAG.Preist Ck 072316 Spot 19 | B65: 421.1243127 | C65: 338.5971189 | D65: 2.007824183 | E65: 90.09599673 | F65: 21.49353082 | G65: 0.0009925282433 | H65: 21.90852327 | I65: 0.0006488377692 | J65: 4.243998679 | K65: 0.1937145022 | L65: 4.181320645 | M65: 0.1773976543 | N65: 1.007296556 | O65: 0.2205743768 | P65: NA | Q65: NA | R65: 4.181320645 | S65: 0.1773976543 | T65: NA
A66: -DAG.Preist Ck 072316 Spot 20 | B66: 325.7376522 | C66: 581.1773482 | D66: 1.752021622 | E66: 25.61348656 | F66: 12.92462437 | G66: 0.003497662885 | H66: 14.25500759 | I66: 0.0006500314997 | J66: 6.013262545 | K66: 0.4218350993 | L66: 4.189010931 | M66: 0.2518143995 | N66: 3.545271146 | O66: 0.5044974585 | P66: NA | Q66: NA | R66: 4.189010931 | S66: 0.2518143995 | T66: NA
A67: -DAG.Preist Ck 072316 Spot 31 | B67: 475.9583072 | C67: 2723.80092 | D67: 1.285942531 | E67: 23.96389531 | F67: 5.543081021 | G67: 0.00379348577 | H67: 6.876571724 | I67: 0.0006596045266 | J67: 4.06958124 | K67: 0.5918037946 | L67: 4.250682244 | M67: 0.1729279477 | N67: 3.844553635 | O67: 0.2638736254 | P67: NA | Q67: NA | R67: 4.250682244 | S67: 0.1729279477 | T67: NA
A68: -DAG.Preist Ck 072316 Spot 3 | B68: 450.4670534 | C68: 1211.015275 | D68: 1.681351143 | E68: 29.94956441 | F68: 6.378726743 | G68: 0.003123674455 | H68: 7.604709365 | I68: 0.0006788034341 | J68: 4.140464909 | K68: 0.5444606375 | L68: 4.374363586 | M68: 0.181057552 | N68: 3.166782677 | O68: 0.2404494708 | P68: NA | Q68: NA | R68: 4.374363586 | S68: 0.181057552 | T68: NA
A69: -DAG.Preist Ck 072316 Spot 8 | B69: 621.6311835 | C69: 2782.122063 | D69: 1.295471573 | E69: 22.53408521 | F69: 6.024860932 | G69: 0.004152360698 | H69: 7.613374738 | I69: 0.000678926497 | J69: 4.654516694 | K69: 0.6113605141 | L69: 4.375156362 | M69: 0.2035732933 | N69: 4.207507173 | O69: 0.3196705219 | P69: NA | Q69: NA | R69: 4.375156362 | S69: 0.2035732933 | T69: NA
A70: -DAG.Preist Ck 072316 Spot 24 | B70: 459.3097285 | C70: 820.1587595 | D70: 2.215009473 | E70: 24.06085666 | F70: 8.556612886 | G70: 0.003948293203 | H70: 9.631279775 | I70: 0.0006892999334 | J70: 4.421077474 | K70: 0.459033231 | L70: 4.441982113 | M70: 0.196315826 | N70: 4.001136366 | O70: 0.3846023918 | P70: NA | Q70: NA | R70: 4.441982113 | S70: 0.196315826 | T70: NA
A71: -DAG.Preist Ck 072316 Spot 14 | B71: 273.4106946 | C71: 219.0880023 | D71: 1.840158439 | E71: 3.936887503 | F71: 34.53846555 | G71: 0.02811350152 | H71: 35.12358032 | I71: 0.0008030742474 | J71: 6.384378697 | K71: 0.1817690178 | L71: 5.174871593 | M71: 0.3302508274 | N71: 28.15207491 | O71: 9.752499169 | P71: 3209.912943 | Q71: 565.79871 | R71: 5.174871593 | S71: 0.3302508274 | T71: NA
A72: -DAG.Preist Ck 072316 Spot 18 | B72: 289.2301298 | C72: 297.5475702 | D72: 2.672453985 | E72: 6.433194172 | F72: 31.92370832 | G72: 0.01723371912 | H72: 32.18303883 | I72: 0.0008044395689 | J72: 4.07735648 | K72: 0.1266927123 | L72: 5.183665952 | M72: 0.2112715848 | N72: 17.34975171 | O72: 5.536298863 | P72: 2406.678644 | Q72: 558.4445384 | R72: 5.183665952 | S72: 0.2112715848 | T72: NA
A73: -DAG.Preist Ck 072316 Spot 4 | B73: 228.6200477 | C73: 16872.81271 | D73: 1.636710145 | E73: 2.809590069 | F73: 50 | G73: 0.05287750627 | H73: 50.54413614 | I73: 0.0010779576 | J73: 7.396600419 | K73: 0.1463394369 | L73: 6.945218509 | M73: 0.5134334321 | N73: 52.31953907 | O73: 25.78024934 | P73: 3732.545676 | Q73: NA | R73: 6.945218509 | S73: 0.5134334321 | T73: NA
A77: -DAG.Elloitt Pk 082016 Spot 70 | B77: 878.6745382 | C77: 5055.138555 | D77: 8.272384238 | E77: 21.2019263 | F77: 1.422508201 | G77: 0.06779912623 | H77: 2.421568565 | I77: 0.01043006877 | J77: 1.95971037 | K77: 0.809273129 | L77: 66.88832157 | M77: 1.304040298 | N77: 66.60876153 | O77: 1.561210844 | P77: 57.59280896 | Q77: 33.92473326 | R77: 66.88832157 | S77: 1.304040298 | T77: NA
A78: -DAG.Elloitt Pk 082016 Spot 47 | B78: 589.1409111 | C78: 12128.51686 | D78: 6.186332887 | E78: 19.92171844 | F78: 1.511840384 | G78: 0.07276844676 | H78: 3.243769579 | I78: 0.01051859315 | J78: 2.869909359 | K78: 0.8847451368 | L78: 67.453071 | M78: 1.925749294 | N78: 71.32318679 | O78: 2.234177748 | P78: 204.0791867 | Q78: 35.10677268 | R78: 67.453071 | S78: 1.925749294 | T78: NA
A79: -DAG.Elloitt Pk 082016 Spot 61 | B79: 638.812257 | C79: 4235.842674 | D79: 7.478232204 | E79: 22.3434585 | F79: 2.751603513 | G79: 0.06494654613 | H79: 3.56809529 | I79: 0.01052917181 | J79: 2.271559399 | K79: 0.6366308113 | L79: 67.52055524 | M79: 1.525765071 | N79: 63.89257905 | O79: 2.209506539 | P79: NA | Q79: NA | R79: 67.52055524 | S79: 1.525765071 | T79: NA
A80: -DAG.Elloitt Pk 082016 Spot 48 | B80: 453.7441311 | C80: 5499.383679 | D80: 6.861525592 | E80: 21.296829 | F80: 1.644338284 | G80: 0.06847939148 | H80: 3.587089332 | I80: 0.01058187411 | J80: 3.188002742 | K80: 0.8887436156 | L80: 67.85674745 | M80: 2.151929277 | N80: 67.25542799 | O80: 2.334353431 | P80: 46.9615896 | Q80: 39.31099527 | R80: 67.85674745 | S80: 2.151929277 | T80: NA
A81: -DAG.Elloitt Pk 082016 Spot 46 | B81: 240.9919291 | C81: 38887.17158 | D81: 7.395332416 | E81: 20.23637204 | F81: 2.462901823 | G81: 0.07213511006 | H81: 3.596882126 | I81: 0.01059173505 | J81: 2.621388114 | K81: 0.7287945564 | L81: 67.91964919 | M81: 1.771091132 | N81: 70.72355202 | O81: 2.457277164 | P81: 167.5927238 | Q81: 57.55387777 | R81: 67.91964919 | S81: 1.771091132 | T81: NA
A82: -DAG.Elloitt Pk 082016 Spot 67 | B82: 438.2700944 | C82: 30904.74091 | D82: 11.77938179 | E82: 20.12573989 | F82: 1.891845417 | G82: 0.07264383388 | H82: 3.390015016 | I82: 0.0106081186 | J82: 2.813027325 | K82: 0.8297978951 | L82: 68.02415658 | M82: 1.903477522 | N82: 71.20523295 | O82: 2.331178408 | P82: 180.3834839 | Q82: 44.0945025 | R82: 68.02415658 | S82: 1.903477522 | T82: NA
A83: -DAG.Elloitt Pk 082016 Spot 68 | B83: 248.3643734 | C83: 3196.214192 | D83: 6.270367783 | E83: 19.98023221 | F83: 3.472168828 | G83: 0.07318742159 | H83: 4.618149905 | I83: 0.0106102284 | J83: 3.044889518 | K83: 0.6593310266 | L83: 68.03761444 | M83: 2.060776071 | N83: 71.71967206 | O83: 3.197865885 | P83: 197.2910149 | Q83: 80.6926393 | R83: 68.03761444 | S83: 2.060776071 | T83: NA
A84: -DAG.Elloitt Pk 082016 Spot 50 | B84: 389.6942274 | C84: 4656.44514 | D84: 7.114769767 | E84: 20.81107534 | F84: 3.31463764 | G84: 0.07048188508 | H84: 4.163283638 | I84: 0.01064289523 | J84: 2.519148261 | K84: 0.605086869 | L84: 68.2459841 | M84: 1.710149207 | N84: 69.15662992 | O84: 2.783333115 | P84: 101.8198552 | Q84: 78.38330215 | R84: 68.2459841 | S84: 1.710149207 | T84: NA
A85: -DAG.Elloitt Pk 082016 Spot 52 | B85: 354.6544665 | C85: 18832.22056 | D85: 9.809287429 | E85: 20.15730848 | F85: 1.489841534 | G85: 0.0729558673 | H85: 3.134426462 | I85: 0.01067039561 | J85: 2.757716709 | K85: 0.879815412 | L85: 68.42139367 | M85: 1.876890107 | N85: 71.50056619 | O85: 2.164048646 | P85: 176.7295353 | Q85: 34.7401946 | R85: 68.42139367 | S85: 1.876890107 | T85: NA
A86: -DAG.Elloitt Pk 082016 Spot 65 | B86: 286.2531051 | C86: 1727.510867 | D86: 9.611067234 | E86: 24.27839774 | F86: 3.08417823 | G86: 0.06070199082 | H86: 3.996004356 | I86: 0.01069327439 | J86: 2.540845422 | K86: 0.6358465096 | L86: 68.56732101 | M86: 1.732957037 | N86: 59.83748227 | O86: 2.322021152 | P86: NA | Q86: NA | R86: 68.56732101 | S86: 1.732957037 | T86: NA
A87: -DAG.Elloitt Pk 082016 Spot 66 | B87: 539.7714837 | C87: 4821.815857 | D87: 15.65224553 | E87: 20.9754552 | F87: 2.66780563 | G87: 0.07028396275 | H87: 3.938768006 | I87: 0.01069683726 | J87: 2.897707116 | K87: 0.7356887004 | L87: 68.59004571 | M87: 1.977002363 | N87: 68.96887751 | O87: 2.626325212 | P87: 83.13805253 | Q87: 63.32966789 | R87: 68.59004571 | S87: 1.977002363 | T87: NA
A88: -DAG.Elloitt Pk 082016 Spot 56 | B88: 522.722747 | C88: 2439.531829 | D88: 8.439226467 | E88: 23.15785336 | F88: 1.698324668 | G88: 0.063737181 | H88: 2.951316992 | I88: 0.01070973945 | J88: 2.413703649 | K88: 0.8178395124 | L88: 68.67233775 | M88: 1.648749271 | N88: 62.73884354 | O88: 1.795579893 | P88: NA | Q88: NA | R88: 68.67233775 | S88: 1.648749271 | T88: NA
A89: -DAG.Elloitt Pk 082016 Spot 39 | B89: 339.6859733 | C89: 3152.941871 | D89: 7.325528661 | E89: 22.77840218 | F89: 2.002941894 | G89: 0.06481367094 | H89: 3.579347521 | I89: 0.01071217431 | J89: 2.966471379 | K89: 0.82877434 | L89: 68.68786753 | M89: 2.026788897 | N89: 63.76588008 | O89: 2.212215678 | P89: NA | Q89: NA | R89: 68.68786753 | S89: 2.026788897 | T89: NA
A90: -DAG.Elloitt Pk 082016 Spot 36 | B90: 374.3670651 | C90: 2185.614116 | D90: 7.768964979 | E90: 23.1570373 | F90: 2.078624382 | G90: 0.06382969718 | H90: 3.301159387 | I90: 0.01072490697 | J90: 2.564561166 | K90: 0.7768668112 | L90: 68.76907706 | M90: 1.754251447 | N90: 62.8271504 | O90: 2.011164741 | P90: NA | Q90: NA | R90: 68.76907706 | S90: 1.754251447 | T90: NA
A91: -DAG.Elloitt Pk 082016 Spot 58 | B91: 758.5982643 | C91: 6503.689438 | D91: 5.883052751 | E91: 21.21018623 | F91: 2.666488822 | G91: 0.06977970107 | H91: 3.456900794 | I91: 0.01073893814 | J91: 2.200000105 | K91: 0.6364082269 | L91: 68.85856743 | M91: 1.506826533 | N91: 68.49036953 | O91: 2.289561507 | P91: 56.6887722 | Q91: 63.57933824 | R91: 68.85856743 | S91: 1.506826533 | T91: NA
A92: -DAG.Elloitt Pk 082016 Spot 37 | B92: 526.7358811 | C92: 3869.244528 | D92: 6.022793723 | E92: 22.31138932 | F92: 2.51319245 | G92: 0.06653389572 | H92: 3.225627115 | I92: 0.01077103215 | J92: 2.022012361 | K92: 0.6268586819 | L92: 69.06325723 | M92: 1.389013778 | N92: 65.40492524 | O92: 2.043209733 | P92: NA | Q92: NA | R92: 69.06325723 | S92: 1.389013778 | T92: NA
A93: -DAG.Elloitt Pk 082016 Spot 57 | B93: 339.1702597 | C93: 6110.837578 | D93: 7.854527372 | E93: 21.90224361 | F93: 2.140137441 | G93: 0.06809770783 | H93: 3.654468225 | I93: 0.01082203299 | J93: 2.962254165 | K93: 0.8105841898 | L93: 69.38851807 | M93: 2.044441521 | N93: 66.89264668 | O93: 2.365791121 | P93: NA | Q93: NA | R93: 69.38851807 | S93: 2.044441521 | T93: NA
A94: -DAG.Elloitt Pk 082016 Spot 53 | B94: 357.07895 | C94: 35159.70682 | D94: 8.694630234 | E94: 20.41108004 | F94: 1.916914558 | G94: 0.07322819605 | H94: 3.458704651 | I94: 0.01084506292 | J94: 2.878901951 | K94: 0.8323642059 | L94: 69.53538743 | M94: 1.991097719 | N94: 71.75824959 | O94: 2.396240789 | P94: 147.5170249 | Q94: 44.96824559 | R94: 69.53538743 | S94: 1.991097719 | T94: NA
A95: -DAG.Elloitt Pk 082016 Spot 49 | B95: 312.6509833 | C95: 2696.872108 | D95: 10.3506987 | E95: 23.77651107 | F95: 2.637725815 | G95: 0.06295206338 | H95: 3.545109095 | I95: 0.01086040075 | J95: 2.368586292 | K95: 0.6681278991 | L95: 69.63319994 | M95: 1.640446584 | N95: 61.98913819 | O95: 2.131849017 | P95: NA | Q95: NA | R95: 69.63319994 | S95: 1.640446584 | T95: NA
A96: -DAG.Elloitt Pk 082016 Spot 42 | B96: 467.5074108 | C96: 6793.518148 | D96: 7.833719908 | E96: 20.99945836 | F96: 2.035107297 | G96: 0.07136308829 | H96: 2.985964483 | I96: 0.01087350312 | J96: 2.185022238 | K96: 0.7317643096 | L96: 69.71675527 | M96: 1.515119004 | N96: 69.99213283 | O96: 2.019538225 | P96: 80.42230789 | Q96: 48.32610171 | R96: 69.71675527 | S96: 1.515119004 | T96: NA
A97: -DAG.Elloitt Pk 082016 Spot 43 | B97: 697.5466608 | C97: 15515.14183 | D97: 4.454884748 | E97: 18.27579431 | F97: 1.914192737 | G97: 0.09185904229 | H97: 3.587696607 | I97: 0.01218108375 | J97: 3.034375242 | K97: 0.8457725317 | L97: 78.04990407 | M97: 2.354047509 | N97: 89.23367705 | O97: 3.064800979 | P97: 400.6638315 | Q97: 42.88823543 | R97: 78.04990407 | S97: 2.354047509 | T97: NA
A98: -DAG.Elloitt Pk 082016 Spot 62 | B98: 127.5979185 | C98: 27336.72405 | D98: 5.110170081 | E98: 11.24461631 | F98: 0.9459584295 | G98: 2.439788008 | H98: 3.231881366 | I98: 0.1990602238 | J98: 3.090342992 | K98: 0.956205579 | L98: 1170.269802 | M98: 33.07289341 | N98: 1254.414219 | O98: 23.2799382 | P98: 1402.665441 | Q98: 18.122519 | R98: 1402.665441 | S98: 18.122519 | T98: 83.43185541
A99: -DAG.Elloitt Pk 082016 Spot 55 | B99: 49.47437836 | C99: 18912.51312 | D99: 0.6323940321 | E99: 10.98613408 | F99: 1.082380385 | G99: 2.916426931 | H99: 3.227109237 | I99: 0.232479011 | J99: 3.040178734 | K99: 0.9420749376 | L99: 1347.478467 | M99: 36.96802936 | N99: 1386.180374 | O99: 24.40553155 | P99: 1447.082879 | Q99: 20.61175672 | R99: 1447.082879 | S99: 20.61175672 | T99: 93.1168827
A100: -DAG.Elloitt Pk 082016 Spot 45 | B100: 397.6718251 | C100: 222592.6817 | D100: 4.572903388 | E100: 10.94109078 | F100: 0.8274463637 | G100: 3.063477054 | H100: 3.488132452 | I100: 0.2431996848 | J100: 3.388569095 | K100: 0.9714565437 | L100: 1403.309892 | M100: 42.73296517 | N100: 1423.606665 | O100: 26.70790604 | P100: 1454.902231 | Q100: 15.74026235 | R100: 1454.902231 | S100: 15.74026235 | T100: 96.4538965
A101: -DAG.Elloitt Pk 082016 Spot 60 | B101: 55.69042506 | C101: 6004.596131 | D101: 1.243547719 | E101: 10.7712566 | F101: 0.8871077851 | G101: 3.189771973 | H101: 2.759873431 | I101: 0.2492951127 | J101: 2.613415607 | K101: 0.9469331373 | L101: 1434.839532 | M101: 33.61857852 | N101: 1454.684785 | O101: 21.33792827 | P101: 1484.602119 | Q101: 16.80806251 | R101: 1484.602119 | S101: 16.80806251 | T101: 96.64808597
A102: -DAG.Elloitt Pk 082016 Spot 41 | B102: 429.3056359 | C102: 44780.17502 | D102: 2.635599215 | E102: 10.58607523 | F102: 0.96596454 | G102: 3.446330828 | H102: 2.676538573 | I102: 0.2647156973 | J102: 2.496151286 | K102: 0.9326042638 | L102: 1513.923299 | M102: 33.68060211 | N102: 1515.031957 | O102: 21.06788434 | P102: 1517.386972 | Q102: 18.22090488 | R102: 1517.386972 | S102: 18.22090488 | T102: 99.77173433
A103: -DAG.Elloitt Pk 082016 Spot 44 | B103: 96.29819838 | C103: 53584.07221 | D103: 3.126629207 | E103: 10.14488907 | F103: 1.203641041 | G103: 3.736146907 | H103: 2.962687998 | I103: 0.2750166587 | J103: 2.707169817 | K103: 0.9137546102 | L103: 1566.215917 | M103: 37.64278812 | N103: 1579.148009 | O103: 23.73524402 | P103: 1597.262118 | Q103: 22.46946504 | R103: 1597.262118 | S103: 22.46946504 | T103: 98.05628644
A104: -DAG.Elloitt Pk 082016 Spot 69 | B104: 319.8890579 | C104: 70565.82116 | D104: 3.548264467 | E104: 9.94236165 | F104: 0.8347043362 | G104: 3.810760562 | H104: 2.545971437 | I104: 0.2749090094 | J104: 2.405252425 | K104: 0.9447287547 | L104: 1565.671625 | M104: 33.43432376 | N104: 1595.019742 | O104: 20.48048552 | P104: 1634.810678 | Q104: 15.50480902 | R104: 1634.810678 | S104: 15.50480902 | T104: 95.77082205
A105: -DAG.Elloitt Pk 082016 Spot 54 | B105: 48.58051535 | C105: 50026.61809 | D105: 3.01992692 | E105: 9.923467041 | F105: 1.186254774 | G105: 3.823422855 | H105: 2.877418126 | I105: 0.2752982926 | J105: 2.621513815 | K105: 0.9110646073 | L105: 1567.639686 | M105: 36.48099979 | N105: 1597.688797 | O105: 23.16355482 | P105: 1638.343609 | Q105: 22.02597793 | R105: 1638.343609 | S105: 22.02597793 | T105: 95.68442647
A106: -DAG.Elloitt Pk 082016 Spot 38 | B106: 24.68152902 | C106: 14269.33734 | D106: 1.796889457 | E106: 9.731411502 | F106: 1.307922588 | G106: 3.762135601 | H106: 2.699939599 | I106: 0.2656427925 | J106: 2.361993299 | K106: 0.8748319034 | L106: 1518.647088 | M106: 31.95856801 | N106: 1584.704496 | O106: 21.66120048 | P106: 1674.545124 | Q106: 24.1732122 | R106: 1674.545124 | S106: 24.1732122 | T106: 90.69012631
A107: -DAG.Elloitt Pk 082016 Spot 64 | B107: 40.67460168 | C107: 4314.491674 | D107: 1.544594644 | E107: 9.711487218 | F107: 1.079268995 | G107: 4.223473939 | H107: 2.619935811 | I107: 0.2976071192 | J107: 2.387308545 | K107: 0.9112087919 | L107: 1679.432012 | M107: 35.29646355 | N107: 1678.593376 | O107: 21.51274968 | P107: 1678.332275 | Q107: 19.93704279 | R107: 1678.332275 | S107: 19.93704279 | T107: 100.0655256
A108: -DAG.Elloitt Pk 082016 Spot 40 | B108: 529.9549771 | C108: 64523.07066 | D108: 4.246023786 | E108: 9.350021864 | F108: 0.7807652898 | G108: 4.468771937 | H108: 2.134565198 | I108: 0.3031716392 | J108: 1.986648975 | K108: 0.930704284 | L108: 1707.017023 | M108: 29.79403937 | N108: 1725.190722 | O108: 17.71257747 | P108: 1748.08939 | Q108: 14.29604395 | R108: 1748.08939 | S108: 14.29604395 | T108: 97.65044238
A112: -DAG Expectation Pk 081616 Spot 61 | B112: 585.7946676 | C112: 14324.47785 | D112: 6.150818092 | E112: 20.00092856 | F112: 1.683288676 | G112: 0.07157434512 | H112: 3.032944403 | I112: 0.01038712352 | J112: 2.52295283 | K112: 0.8318493501 | L112: 66.61433056 | M112: 1.67199448 | N112: 70.1923315 | O112: 2.056979814 | P112: 194.908217 | Q112: 39.14010713 | R112: 66.61433056 | S112: 1.67199448 | T112: NA
A113: -DAG Expectation Pk 081616 Spot 60 | B113: 345.8924982 | C113: 898.246452 | D113: 8.533658463 | E113: 30.82066559 | F113: 2.502689539 | G113: 0.04652679004 | H113: 3.697423907 | I113: 0.01040477896 | J113: 2.72167019 | K113: 0.7360990404 | L113: 66.72697384 | M113: 1.806721366 | N113: 46.17643522 | O113: 1.669099732 | P113: NA | Q113: NA | R113: 66.72697384 | S113: 1.806721366 | T113: NA
A114: -DAG Expectation Pk 081616 Spot 36 | B114: 359.5009374 | C114: 852.6124419 | D114: 9.614096334 | E114: 31.6945348 | F114: 2.379924146 | G114: 0.04552690254 | H114: 3.320705602 | I114: 0.0104698447 | J114: 2.315825285 | K114: 0.6973895198 | L114: 67.14208193 | M114: 1.54682395 | N114: 45.20583977 | O114: 1.468227925 | P114: NA | Q114: NA | R114: 67.14208193 | S114: 1.54682395 | T114: NA
A115: -DAG Expectation Pk 081616 Spot 41 | B115: 601.6472738 | C115: 6066.510044 | D115: 9.600915938 | E115: 22.21365679 | F115: 1.560724116 | G115: 0.06529637716 | H115: 2.88570124 | I115: 0.01052438914 | J115: 2.42722308 | K115: 0.8411207114 | L115: 67.49004537 | M115: 1.629588706 | N115: 64.22607388 | O115: 1.795975325 | P115: NA | Q115: NA | R115: 67.49004537 | S115: 1.629588706 | T115: NA
A116: -DAG Expectation Pk 081616 Spot 62 | B116: 801.0604654 | C116: 179065.7577 | D116: 4.184914877 | E116: 20.45164006 | F116: 1.478906048 | G116: 0.07116644165 | H116: 2.587159561 | I116: 0.01056066209 | J116: 2.122788613 | K116: 0.8205093512 | L116: 67.72143636 | M116: 1.430058225 | N116: 69.80574412 | O116: 1.745307062 | P116: 142.8338619 | Q116: 34.6955506 | R116: 67.72143636 | S116: 1.430058225 | T116: NA
A117: -DAG Expectation Pk 081616 Spot 42 | B117: 386.7451862 | C117: 1685.508977 | D117: 21.8559416 | E117: 25.60245756 | F117: 2.282875785 | G117: 0.05719125891 | H117: 3.399616314 | I117: 0.01062426919 | J117: 2.519100877 | K117: 0.7409956433 | L117: 68.12717627 | M117: 1.707155641 | N117: 56.47117385 | O117: 1.867395887 | P117: NA | Q117: NA | R117: 68.12717627 | S117: 1.707155641 | T117: NA
A118: -DAG Expectation Pk 081616 Spot 47 | B118: 327.2199177 | C118: 1318.225621 | D118: 6.880014036 | E118: 26.21031308 | F118: 2.563322178 | G118: 0.05596614255 | H118: 3.563206912 | I118: 0.01064352139 | J118: 2.475039982 | K118: 0.6946102324 | L118: 68.24997809 | M118: 1.680303667 | N118: 55.29382422 | O118: 1.917550675 | P118: NA | Q118: NA | R118: 68.24997809 | S118: 1.680303667 | T118: NA
A119: -DAG Expectation Pk 081616 Spot 38 | B119: 485.839409 | C119: 3244.048322 | D119: 6.052871296 | E119: 22.20368109 | F119: 2.025582438 | G119: 0.06614548342 | H119: 3.76517491 | I119: 0.01065645929 | J119: 3.173886874 | K119: 0.8429586806 | L119: 68.33250228 | M119: 2.157342202 | N119: 65.03507381 | O119: 2.371917505 | P119: NA | Q119: NA | R119: 68.33250228 | S119: 2.157342202 | T119: NA
A120: -DAG Expectation Pk 081616 Spot 63 | B120: 755.3112822 | C120: 965616.3108 | D120: 4.461156387 | E120: 20.63847418 | F120: 1.413680969 | G120: 0.07124585197 | H120: 2.667005127 | I120: 0.01066902972 | J120: 2.261508891 | K120: 0.8479582091 | L120: 68.41268154 | M120: 1.538978244 | N120: 69.88101618 | O120: 1.801045347 | P120: 121.4424052 | Q120: 33.30839364 | R120: 68.41268154 | S120: 1.538978244 | T120: NA
A121: -DAG Expectation Pk 081616 Spot 52 | B121: 645.6265668 | C121: 4370.173268 | D121: 4.685986141 | E121: 21.82361586 | F121: 1.628588835 | G121: 0.06749258602 | H121: 2.827550144 | I121: 0.01068736229 | J121: 2.311436399 | K121: 0.8174696401 | L121: 68.52961227 | M121: 1.575628612 | N121: 66.31722691 | O121: 1.815230961 | P121: NA | Q121: NA | R121: 68.52961227 | S121: 1.575628612 | T121: NA
A122: -DAG Expectation Pk 081616 Spot 58 | B122: 1410.263129 | C122: 52889.13313 | D122: 4.536955055 | E122: 20.7942171 | F122: 0.9535802298 | G122: 0.07095448339 | H122: 2.591701949 | I122: 0.01070557925 | J122: 2.409897039 | K122: 0.9298511504 | L122: 68.64580348 | M122: 1.645516383 | N122: 69.60480417 | O122: 1.743509114 | P122: 103.6902779 | Q122: 22.56474334 | R122: 68.64580348 | S122: 1.645516383 | T122: NA
A123: -DAG Expectation Pk 081616 Spot 70 | B123: 360.1689398 | C123: 9059.429296 | D123: 7.78300223 | E123: 20.3300298 | F123: 2.3085827 | G123: 0.07262194021 | H123: 3.581700275 | I123: 0.01071256863 | J123: 2.738434367 | K123: 0.7645626814 | L123: 68.69038252 | M123: 1.871054789 | N123: 71.18450782 | O123: 2.462301184 | P123: 156.8274373 | Q123: 54.05348732 | R123: 68.69038252 | S123: 1.871054789 | T123: NA
A124: -DAG Expectation Pk 081616 Spot 37 | B124: 751.3168502 | C124: 8195.043979 | D124: 11.20655559 | E124: 20.86658551 | F124: 1.615341679 | G124: 0.07085135966 | H124: 3.432359171 | I124: 0.01072722359 | J124: 3.028491496 | K124: 0.8823352525 | L124: 68.78385246 | M124: 2.072039108 | N124: 69.50702679 | O124: 2.305910151 | P124: 95.47185316 | Q124: 38.24586611 | R124: 68.78385246 | S124: 2.072039108 | T124: NA
A125: -DAG Expectation Pk 081616 Spot 48 | B125: 313.1566772 | C125: 125167.3037 | D125: 4.817368985 | E125: 14.73804157 | F125: 2.693698496 | G125: 0.1004101505 | H125: 3.834093606 | I125: 0.01073754878 | J125: 2.728417526 | K125: 0.7116199567 | L125: 68.84970614 | M125: 1.868511598 | N125: 97.15487071 | O125: 3.552363708 | P125: 864.0451645 | Q125: 55.89939282 | R125: 68.84970614 | S125: 1.868511598 | T125: NA
A126: -DAG Expectation Pk 081616 Spot 56 | B126: 296.052647 | C126: 1153.468721 | D126: 6.582529825 | E126: 28.18350191 | F126: 5.676397937 | G126: 0.05281112067 | H126: 6.166433527 | I126: 0.01079961051 | J126: 2.409026546 | K126: 0.3906677231 | L126: 69.24551942 | M126: 1.65921562 | N126: 52.25551554 | O126: 3.14079991 | P126: NA | Q126: NA | R126: 69.24551942 | S126: 1.65921562 | T126: NA
A127: -DAG Expectation Pk 081616 Spot 59 | B127: 487.098859 | C127: 4850.197283 | D127: 23.8179279 | E127: 21.19553094 | F127: 1.402976786 | G127: 0.07023497268 | H127: 3.06551252 | I127: 0.01080153487 | J127: 2.725623443 | K127: 0.889124877 | L127: 69.25779213 | M127: 1.877602492 | N127: 68.92239935 | O127: 2.042715434 | P127: 58.35850632 | Q127: 33.43005433 | R127: 69.25779213 | S127: 1.877602492 | T127: NA
A128: -DAG Expectation Pk 081616 Spot 44 | B128: 742.0255256 | C128: 1663371.687 | D128: 4.023520356 | E128: 20.34664019 | F128: 1.59913914 | G128: 0.07319790318 | H128: 2.7558838 | I128: 0.01080635175 | J128: 2.24447088 | K128: 0.814428707 | L128: 69.28851185 | M128: 1.546832637 | N128: 71.72958904 | O128: 1.908579036 | P128: 154.9274 | Q128: 37.45674885 | R128: 69.28851185 | S128: 1.546832637 | T128: NA
A129: -DAG Expectation Pk 081616 Spot 40 | B129: 356.6465957 | C129: 18212.84277 | D129: 7.007273426 | E129: 20.69348172 | F129: 2.198822265 | G129: 0.0721660519 | H129: 3.399104699 | I129: 0.01083563254 | J129: 2.59212141 | K129: 0.7625894579 | L129: 69.47524723 | M129: 1.791213203 | N129: 70.75285558 | O129: 2.323090371 | P129: 115.203041 | Q129: 51.85988903 | R129: 69.47524723 | S129: 1.791213203 | T129: NA
A130: -DAG Expectation Pk 081616 Spot 68 | B130: 757.57253 | C130: 6173.013588 | D130: 3.858804469 | E130: 20.78773923 | F130: 1.641788865 | G130: 0.07222202581 | H130: 3.372106194 | I130: 0.01089343084 | J130: 2.945442158 | K130: 0.8734725387 | L130: 69.84383454 | M130: 2.04610551 | N130: 70.80586367 | O130: 2.30630554 | P130: 104.4339168 | Q130: 38.81214658 | R130: 69.84383454 | S130: 2.04610551 | T130: NA
A131: -DAG Expectation Pk 081616 Spot 45 | B131: 620.9287942 | C131: 10668.73167 | D131: 4.981816705 | E131: 21.50566742 | F131: 2.133215838 | G131: 0.06988241525 | H131: 3.523496323 | I131: 0.01090457104 | J131: 2.804356704 | K131: 0.7959016974 | L131: 69.9148746 | M131: 1.95006864 | N131: 68.58785616 | O131: 2.336879706 | P131: 23.56674391 | Q131: 51.17231618 | R131: 69.9148746 | S131: 1.95006864 | T131: NA
A132: -DAG Expectation Pk 081616 Spot 43 | B132: 621.0351889 | C132: 1624.241269 | D132: 5.748557507 | E132: 24.4274559 | F132: 2.236503034 | G132: 0.06192177795 | H132: 3.589145309 | I132: 0.01097512335 | J132: 2.807137017 | K132: 0.7821185198 | L132: 70.3647623 | M132: 1.96449429 | N132: 61.0044826 | O132: 2.125066263 | P132: NA | Q132: NA | R132: 70.3647623 | S132: 1.96449429 | T132: NA
A133: -DAG Expectation Pk 081616 Spot 67 | B133: 566.3902891 | C133: 28735.45349 | D133: 4.800063834 | E133: 21.01007121 | F133: 2.04136634 | G133: 0.07226580237 | H133: 3.084719977 | I133: 0.01101661337 | J133: 2.312643683 | K133: 0.7497094387 | L133: 70.62931513 | M133: 1.624488926 | N133: 70.84731877 | O133: 2.110943727 | P133: 79.22248289 | Q133: 48.49178832 | R133: 70.62931513 | S133: 1.624488926 | T133: NA
A134: -DAG Expectation Pk 081616 Spot 69 | B134: 893.7275086 | C134: 31314.00749 | D134: 3.887921471 | E134: 11.47944017 | F134: 1.505825895 | G134: 0.3852203394 | H134: 3.84995806 | I134: 0.03208615468 | J134: 3.543256333 | K134: 0.9203363459 | L134: 203.591599 | M134: 7.101051688 | N134: 330.8719265 | O134: 10.87158471 | P134: 1362.960442 | Q134: 29.00855408 | R134: 203.591599 | S134: 7.101051688 | T134: NA | U134: discordant
A135: -DAG Expectation Pk 081616 Spot 55 | B135: 159.6266397 | C135: 26350.46393 | D135: 1.991112217 | E135: 11.3710586 | F135: 1.009695566 | G135: 2.437383482 | H135: 2.643518409 | I135: 0.201100206 | J135: 2.443093212 | K135: 0.9241824093 | L135: 1181.227881 | M135: 26.36901692 | N135: 1253.704185 | O135: 19.03526822 | P135: 1381.212384 | Q135: 19.40170272 | R135: 1381.212384 | S135: 19.40170272 | T135: 85.52108967
A136: -DAG Expectation Pk 081616 Spot 46 | B136: 22.32704329 | C136: 11343.52487 | D136: 6.997504808 | E136: 11.05038912 | F136: 1.373259726 | G136: 2.977625648 | H136: 3.036972657 | I136: 0.2387456253 | J136: 2.708756291 | K136: 0.8919264666 | L136: 1380.172604 | M136: 33.65467281 | N136: 1401.924223 | O136: 23.08829283 | P136: 1435.969557 | Q136: 26.19070987 | R136: 1435.969557 | S136: 26.19070987 | T136: 96.11433592
A137: -DAG Expectation Pk 081616 Spot 57 | B137: 292.5566444 | C137: 51682.94053 | D137: 2.057396248 | E137: 11.00630829 | F137: 1.004300998 | G137: 2.936836851 | H137: 2.824167748 | I137: 0.2345358568 | J137: 2.639564921 | K137: 0.9346346099 | L137: 1358.22772 | M137: 32.32657804 | N137: 1391.458162 | O137: 21.3952355 | P137: 1443.588433 | Q137: 19.1338384 | R137: 1443.588433 | S137: 19.1338384 | T137: 94.08690793
A138: -DAG Expectation Pk 081616 Spot 54 | B138: 67.63554996 | C138: 6492.462744 | D138: 2.076076917 | E138: 10.9983584 | F138: 1.166614953 | G138: 2.514757207 | H138: 3.550324151 | I138: 0.2006835079 | J138: 3.353179258 | K138: 0.9444712974 | L138: 1178.991036 | M138: 36.12955913 | N138: 1276.306493 | O138: 25.79835927 | P138: 1444.964893 | Q138: 22.22228802 | R138: 1444.964893 | S138: 22.22228802 | T138: 81.59305756
A139: -DAG Expectation Pk 081616 Spot 39 | B139: 188.3632955 | C139: 148448.7275 | D139: 2.475182733 | E139: 10.26651161 | F139: 1.057270456 | G139: 3.485666509 | H139: 3.121691121 | I139: 0.259654881 | J139: 2.937198433 | K139: 0.9408997623 | L139: 1488.075935 | M139: 39.03028452 | N139: 1523.975319 | O139: 24.63564273 | P139: 1574.983553 | Q139: 19.79264784 | R139: 1574.983553 | S139: 19.79264784 | T139: 94.48199841
A143: -DAG Scotch CK 071216 Spot 23 | B143: 966.1705766 | C143: 6738.154477 | D143: 8.152684681 | E143: 21.36541725 | F143: 2.548021424 | G143: 0.06585193416 | H143: 3.405605626 | I143: 0.01020863481 | J143: 2.259587684 | K143: 0.6634907069 | L143: 65.47544653 | M143: 1.4719871 | N143: 64.75546282 | O143: 2.136468844 | P143: 39.29294364 | Q143: 60.95079455 | R143: 65.47544653 | S143: 1.4719871 | T143: NA
A144: -DAG Scotch CK 071216 Spot 20 | B144: 323.9369103 | C144: 3118.057986 | D144: 16.8947135 | E144: 21.92916823 | F144: 2.822044541 | G144: 0.06501576678 | H144: 4.227885343 | I144: 0.01034495492 | J144: 3.148186634 | K144: 0.7446244111 | L144: 66.34528327 | M144: 2.077962073 | N144: 63.95857596 | O144: 2.620696494 | P144: NA | Q144: NA | R144: 66.34528327 | S144: 2.077962073 | T144: NA
A145: -DAG Scotch CK 071216 Spot 2 | B145: 749.3041998 | C145: 4033.918526 | D145: 6.509736156 | E145: 22.30797528 | F145: 4.326121713 | G145: 0.064060434 | H145: 5.24878197 | I145: 0.01036902176 | J145: 2.972269014 | K145: 0.5662778586 | L145: 66.49883769 | M145: 1.966364824 | N145: 63.04735562 | O145: 3.208584426 | P145: NA | Q145: NA | R145: 66.49883769 | S145: 1.966364824 | T145: NA
A146: -DAG Scotch CK 071216 Spot 31 | B146: 378.5478544 | C146: 1417.719763 | D146: 16.99446197 | E146: 24.92559524 | F146: 2.819236995 | G146: 0.05799646042 | H146: 4.122043719 | I146: 0.01048901682 | J146: 3.007182599 | K146: 0.7295368037 | L146: 67.2643916 | M146: 2.012246606 | N146: 57.2442381 | O146: 2.29435448 | P146: NA | Q146: NA | R146: 67.2643916 | S146: 2.012246606 | T146: NA
A147: -DAG Scotch CK 071216 Spot 3 | B147: 554.0552938 | C147: 20558.01443 | D147: 9.028460144 | E147: 20.16350018 | F147: 2.199999734 | G147: 0.07190264548 | H147: 2.906688764 | I147: 0.01051958355 | J147: 1.899694907 | K147: 0.6535597931 | L147: 67.4593891 | M147: 1.27484059 | N147: 70.50336878 | O147: 1.979787235 | P147: 176.012762 | Q147: 51.32305493 | R147: 67.4593891 | S147: 1.27484059 | T147: NA
A148: -DAG Scotch CK 071216 Spot 19 | B148: 722.8685097 | C148: 3962.695997 | D148: 11.38896549 | E148: 22.52138883 | F148: 1.852363046 | G148: 0.06454673644 | H148: 2.761025299 | I148: 0.01054768647 | J148: 2.047440317 | K148: 0.7415507265 | L148: 67.63866372 | M148: 1.377621343 | N148: 63.51130525 | O148: 1.699848665 | P148: NA | Q148: NA | R148: 67.63866372 | S148: 1.377621343 | T148: NA
A149: -DAG Scotch CK 071216 Spot 21 | B149: 719.6414778 | C149: 8404.597901 | D149: 5.995629692 | E149: 21.89102632 | F149: 1.442697309 | G149: 0.06651613207 | H149: 3.077487916 | I149: 0.01056527643 | J149: 2.718373843 | K149: 0.8833093474 | L149: 67.7508714 | M149: 1.832077718 | N149: 65.3880134 | O149: 1.948885653 | P149: NA | Q149: NA | R149: 67.7508714 | S149: 1.832077718 | T149: NA
A150: -DAG Scotch CK 071216 Spot 16 | B150: 786.4952222 | C150: 28968.72695 | D150: 7.585402346 | E150: 21.06565063 | F150: 1.391877182 | G150: 0.06915145685 | H150: 2.705127284 | I150: 0.01056973175 | J150: 2.3195671 | K150: 0.8574705945 | L150: 67.77929192 | M150: 1.563949889 | N150: 67.89389539 | O150: 1.776561149 | P150: 72.98106315 | Q150: 33.07019337 | R150: 67.77929192 | S150: 1.563949889 | T150: NA
A151: -DAG Scotch CK 071216 Spot 24 | B151: 537.7480921 | C151: 10890.74826 | D151: 10.74039016 | E151: 21.2766241 | F151: 1.743360585 | G151: 0.06856561995 | H151: 3.379715442 | I151: 0.01058514673 | J151: 2.895370502 | K151: 0.8566906153 | L151: 67.87762314 | M151: 1.954998083 | N151: 67.33736817 | O151: 2.201993018 | P151: 49.20121919 | Q151: 41.64599773 | R151: 67.87762314 | S151: 1.954998083 | T151: NA
A152: -DAG Scotch CK 071216 Spot 8 | B152: 338.0151738 | C152: 9331.12712 | D152: 11.84704997 | E152: 20.75003082 | F152: 2.603468515 | G152: 0.07044430498 | H152: 3.62192946 | I152: 0.01060601872 | J152: 2.51800014 | K152: 0.6952096025 | L152: 68.01076194 | M152: 1.703509165 | N152: 69.12098348 | O152: 2.420207117 | P152: 108.721525 | Q152: 61.47584981 | R152: 68.01076194 | S152: 1.703509165 | T152: NA
A153: -DAG Scotch CK 071216 Spot 6 | B153: 490.3950371 | C153: 2053.060116 | D153: 18.25575164 | E153: 24.10380373 | F153: 2.19933717 | G153: 0.06068299028 | H153: 3.286047072 | I153: 0.01061305244 | J153: 2.441520299 | K153: 0.7429961426 | L153: 68.05562824 | M153: 1.652851977 | N153: 59.81929338 | O153: 1.908910522 | P153: NA | Q153: NA | R153: 68.05562824 | S153: 1.652851977 | T153: NA
A154: -DAG Scotch CK 071216 Spot 7 | B154: 469.950995 | C154: 68466.94042 | D154: 8.072510633 | E154: 20.12621836 | F154: 1.945501778 | G154: 0.07268309452 | H154: 3.62290238 | I154: 0.01061410413 | J154: 3.056214077 | K154: 0.8435816803 | L154: 68.06233667 | M154: 2.069188144 | N154: 71.24239707 | O154: 2.49258162 | P154: 180.3281416 | Q154: 45.34371767 | R154: 68.06233667 | S154: 2.069188144 | T154: NA
A155: -DAG Scotch CK 071216 Spot 34 | B155: 1563.916231 | C155: 71735.91504 | D155: 7.02679503 | E155: 20.62191993 | F155: 1.260048372 | G155: 0.0710019944 | H155: 2.905186176 | I155: 0.01062398377 | J155: 2.617706022 | K155: 0.9010458756 | L155: 68.12535572 | M155: 1.773931668 | N155: 69.64984886 | O155: 1.955620968 | P155: 123.3236719 | Q155: 29.66634411 | R155: 68.12535572 | S155: 1.773931668 | T155: NA
A156: -DAG Scotch CK 071216 Spot 22 | B156: 535.4030306 | C156: 7307.8582 | D156: 12.04617361 | E156: 21.32040965 | F156: 1.564438467 | G156: 0.06868053345 | H156: 2.478573752 | I156: 0.01062470693 | J156: 1.922461996 | K156: 0.7756323548 | L156: 68.12996845 | M156: 1.302875815 | N156: 67.44655655 | O156: 1.617401663 | P156: 44.28883438 | Q156: 37.38583694 | R156: 68.12996845 | S156: 1.302875815 | T156: NA
A157: -DAG Scotch CK 071216 Spot 27 | B157: 582.4030018 | C157: 3850.561623 | D157: 9.468739608 | E157: 22.02722566 | F157: 1.489877341 | G157: 0.06648469638 | H157: 2.533670127 | I157: 0.01062598614 | J157: 2.049329115 | K157: 0.8088381723 | L157: 68.13812812 | M157: 1.389020664 | N157: 65.35808442 | O157: 1.603789644 | P157: NA | Q157: NA | R157: 68.13812812 | S157: 1.389020664 | T157: NA
A158: -DAG Scotch CK 071216 Spot 28 | B158: 518.4768613 | C158: 16108.22373 | D158: 17.35571473 | E158: 20.07006396 | F158: 1.609263573 | G158: 0.0729933799 | H158: 3.432848499 | I158: 0.01062967496 | J158: 3.032279599 | K158: 0.8833129689 | L158: 68.16165771 | M158: 2.055963512 | N158: 71.53606531 | O158: 2.37121956 | P158: 186.8359326 | Q158: 37.47893251 | R158: 68.16165771 | S158: 2.055963512 | T158: NA
A159: -DAG Scotch CK 071216 Spot 26 | B159: 166.3480278 | C159: 2443.908612 | D159: 2.081407512 | E159: 22.70628155 | F159: 7.48159183 | G159: 0.06453903534 | H159: 8.216082686 | I159: 0.0106330105 | J159: 3.395555683 | K159: 0.413281586 | L159: 68.18293379 | M159: 2.302988896 | N159: 63.50395979 | O159: 5.05777124 | P159: NA | Q159: NA | R159: 68.18293379 | S159: 2.302988896 | T159: NA
A160: -DAG Scotch CK 071216 Spot 25 | B160: 297.1906794 | C160: 8506.182289 | D160: 3.62357687 | E160: 19.47977215 | F160: 2.49122471 | G160: 0.07591657628 | H160: 3.541206411 | I160: 0.01073021048 | J160: 2.516732462 | K160: 0.7106991715 | L160: 68.80290284 | M160: 1.722377172 | N160: 74.29855044 | O160: 2.537114525 | P160: 255.9134878 | Q160: 57.28411011 | R160: 68.80290284 | S160: 1.722377172 | T160: NA
A161: -DAG Scotch CK 071216 Spot 33 | B161: 386.9748506 | C161: 997.5770091 | D161: 12.47999766 | E161: 27.64894293 | F161: 2.821265188 | G161: 0.05364422168 | H161: 3.713321679 | I161: 0.01076190701 | J161: 2.414377898 | K161: 0.6501935751 | L161: 69.00505939 | M161: 1.657157668 | N161: 53.05868157 | O161: 1.919649588 | P161: NA | Q161: NA | R161: 69.00505939 | S161: 1.657157668 | T161: NA
A162: -DAG Scotch CK 071216 Spot 4 | B162: 592.1301949 | C162: 13818.09814 | D162: 21.19446931 | E162: 21.11213034 | F162: 1.904621072 | G162: 0.07040904144 | H162: 2.982783491 | I162: 0.01078569772 | J162: 2.29552084 | K162: 0.7695901653 | L162: 69.15678948 | M162: 1.579023562 | N162: 69.08753327 | O162: 1.992190486 | P162: 67.74997594 | Q162: 45.3420184 | R162: 69.15678948 | S162: 1.579023562 | T162: NA
A163: -DAG Scotch CK 071216 Spot 18 | B163: 538.7770544 | C163: 9181.473252 | D163: 11.61279265 | E163: 21.39213657 | F163: 1.382353906 | G163: 0.06982230231 | H163: 2.523517364 | I163: 0.01083767397 | J163: 2.111217082 | K163: 0.8366168236 | L163: 69.4882661 | M163: 1.459169577 | N163: 68.53080376 | O163: 1.67231898 | P163: 36.25519435 | Q163: 33.09998791 | R163: 69.4882661 | S163: 1.459169577 | T163: NA
A164: -DAG Scotch CK 071216 Spot 30 | B164: 693.7783024 | C164: 23209.75823 | D164: 9.736341663 | E164: 20.6133651 | F164: 1.327321321 | G164: 0.07267707858 | H164: 2.458681395 | I164: 0.01087011432 | J164: 2.069621297 | K164: 0.8417606693 | L164: 69.69514455 | M164: 1.43465624 | N164: 71.23670247 | O164: 1.69145726 | P164: 124.3006254 | Q164: 31.27557133 | R164: 69.69514455 | S164: 1.43465624 | T164: NA
A165: -DAG Scotch CK 071216 Spot 29 | B165: 136.205192 | C165: 2516.714718 | D165: 6.019068333 | E165: 20.89326774 | F165: 2.97346779 | G165: 0.07256381121 | H165: 4.162406576 | I165: 0.01100054517 | J165: 2.912750901 | K165: 0.6997756821 | L165: 70.5268608 | M165: 2.043075352 | N165: 71.12947929 | O165: 2.859384134 | P165: 92.47851633 | Q165: 70.44120474 | R165: 70.5268608 | S165: 2.043075352 | T165: NA
A166: -DAG Scotch CK 071216 Spot 9 | B166: 608.4396603 | C166: 246.553198 | D166: 4.851120307 | E166: 4.900795484 | F166: 19.01383053 | G166: 0.3737778359 | H166: 20.01637118 | I166: 0.0132913128 | J166: 6.255346835 | K166: 0.3125115326 | L166: 85.11689451 | M166: 5.289361591 | N166: 322.4496007 | O166: 55.35313409 | P166: 2858.844451 | Q166: 312.6269182 | R166: 85.11689451 | S166: 5.289361591 | T166: NA | U166: discordant
A167: -DAG Scotch CK 071216 Spot 35 | B167: 233.5136226 | C167: 51629.32959 | D167: 3.463852364 | E167: 11.36171826 | F167: 1.01433787 | G167: 2.925291359 | H167: 2.794471467 | I167: 0.2411575697 | J167: 2.603879695 | K167: 0.9317968444 | L167: 1392.712123 | M167: 32.61495656 | N167: 1388.475991 | O167: 21.1489893 | P167: 1382.791088 | Q167: 19.48671424 | R167: 1382.791088 | S167: 19.48671424 | T167: 100.7174645
A168: -DAG Scotch CK 071216 Spot 1 | B168: 223.2735198 | C168: 362341.3562 | D168: 3.799672929 | E168: 11.17644073 | F168: 1.037017235 | G168: 2.844751675 | H168: 2.536681638 | I168: 0.2306936475 | J168: 2.315026779 | K168: 0.9126201508 | L168: 1338.13345 | M168: 27.97451897 | N168: 1367.425514 | O168: 19.06000227 | P168: 1414.306631 | Q168: 19.83567634 | R168: 1414.306631 | S168: 19.83567634 | T168: 94.61409719
A169: -DAG Scotch CK 071216 Spot 10 | B169: 1616.557123 | C169: 231628.3678 | D169: 24.53201785 | E169: 10.70571252 | F169: 0.7879085528 | G169: 3.17995566 | H169: 2.703554064 | I169: 0.2470156081 | J169: 2.586195022 | K169: 0.9565908284 | L169: 1423.066451 | M169: 33.02446439 | N169: 1452.30303 | O169: 20.88697803 | P169: 1496.157629 | Q169: 14.90543048 | R169: 1496.157629 | S169: 14.90543048 | T169: 95.1147408
A170: -DAG Scotch CK 071216 Spot 11 | B170: 1087.23788 | C170: 133584.5045 | D170: 3.811254661 | E170: 10.04519647 | F170: 0.8448841615 | G170: 3.941761468 | H170: 2.673546058 | I170: 0.2873005978 | J170: 2.536536867 | K170: 0.948753757 | L170: 1628.025567 | M170: 36.49392562 | N170: 1622.29968 | O170: 21.6566855 | P170: 1615.674859 | Q170: 15.73267772 | R170: 1615.674859 | S170: 15.73267772 | T170: 100.7644303
A174: 1. 1. Analyses with >10% uncertainty (1-sigma) in 206Pb/238U age are not included.
A175: 2. Analyses with >10% uncertainty (1-sigma) in 206Pb/207Pb age are not included, unless 206Pb/238U age is <400 Ma.
A176: 3. Best age is determined from 206Pb/238U age for analyses with 206Pb/238U age <900 Ma and from 206Pb/207Pb age for analyses with 206Pb/238Uage >900 Ma.
A177: 4. Concordance is based on 206Pb/238U age / 206Pb/207Pb age. Value is not reported for 206Pb/238U ages <400 Ma because of large uncertainty in 206Pb/207Pb age.
A178: 5. Analyses with 206Pb/238U age >400 Ma and with >20% discordance (<80% concordance) are not included.
A179: 6. Analyses with 206Pb/238U age >400 Ma and with >5% reverse discordance (<105% concordance) are not included.
A180: 7. All uncertainties are reported at the 1-sigma level, and include only measurement errors.
A181: 8. Systematic errors are as follows (at 2-sigma level): [samples: Calico Peak, Priest Ck, and Elliott Pk: 0.8% (206Pb/238U) & 0.7% (206Pb/207Pb); samples: Expectation Pk and Scotch CK: 0.8% (206Pb/238U) & 0.6% (206Pb/207Pb)]
A182: 9. Analyses conducted by LA-ICPMS, as described by Gehrels et al. (2008) and Gehrels and Pecha (2014).
A183: 10. U concentration and U/Th are calibrated relative to FC-1 zircon standard and are accurate to ~20%.
A184: 11. Common Pb correction is from measured 204Pb with common Pb composition interpreted from Stacey and Kramers (1975).
A185: 12. Common Pb composition assigned uncertainties of 1.5 for 206Pb/204Pb, 0.3 for 207Pb/204Pb, and 2.0 for 208Pb/204Pb.
A186: 13. U/Pb and 206Pb/207Pb fractionation is calibrated relative to fragments of large Sri Lanka zircons and individual crystals of FC-1, and R33.
A187: 14. U decay constants and composition as follows: 238U = 9.8485 x 10-10, 235U = 1.55125 x 10-10, 238U/235U = 137.82.
A188: 15. U-Th disequilibrium correction is applied to 206/238 ages assuming a value of 2.3 for the magma.
A189: 16. Weighted mean and concordia plots determined with Isoplot (Ludwig, 2008).
A191: References:
A193: Gehrels, G.E., Valencia, V., Ruiz, J., 2008, Enhanced precision, accuracy, efficiency, and spatial resolution of U-Pb ages by laser ablation-multicollector-inductively coupled plasma-mass spectrometry: Geochemistry, Geophysics, Geosystems, v. 9, Q03017, doi:10.1029/2007GC001805.
A195: Gehrels, G. and Pecha, M., 2014, Detrital zircon U-Pb geochronology and Hf isotope geochemistry of Paleozoic and Triassic passive margin strata of western North America: Geosphere, v. 10 (1), p. 49-65.
A197: Ludwig, K., 2008, Isoplot 3.6: Berkeley Geochrono9logy Center Special Publication 4, 77 p.
A199: Stacey, J.S., and Kramers, J.D., 1975, Approximation of terrestrial lead isotope evolution by a two stage model: Earth and Planetary Science Letters, v. 26, p. 207-221.

Sheet PlotDat4 (hidden)
A1: Source sheet | B1: datatable | C1: 0.3 | D1: 4.693822062 | E1: 1 | F1: 4.268053568 | G1: 0.3924468535 | H1: 31 | I1: 5.255403624 | J1: 0.2558201816
A2: Plot name | B2: Average3 | C2: 33.7 | D2: 4.693822062 | E2: 2 | F2: 4.412160953 | G2: 0.2085195608 | H2: 32 | I2: 5.342205962 | J2: 0.251029285
A3: Plot Type | B3: 15 | E3: 3 | F3: 4.428650451 | G3: 0.2241445754 | H3: 33 | I3: 5.591487053 | J3: 0.3583204114
A4: 1st free col | B4: 11 | E4: 4 | F4: 4.457122422 | G4: 0.2939627585 | H4: IsoLine | I4: IsoLine | J4: IsoLine | K4: IsoLine
A5: Sigma Level | B5: 1 | E5: 5 | F5: 4.550574876 | G5: 0.3348612744
A6: Absolute Errs | B6: TRUE | E6: 6 | F6: 4.563255628 | G6: 0.2918000503
A7: Symbol Type | B7: 1 | E7: 7 | F7: 4.576031753 | G7: 0.294159496
A8: Inverse Plot | B8: FALSE | E8: 8 | F8: 4.595072108 | G8: 0.4119908622
A9: Color Plot | B9: TRUE | E9: 9 | F9: 4.601326006 | G9: 0.2779697842
A10: 3D plot | B10: FALSE | E10: 10 | F10: 4.630136633 | G10: 0.2582438717
A11: Linear | B11: FALSE | E11: 11 | F11: 4.646631435 | G11: 0.3363093968
A12: Data Range | B12: R9:S41 | E12: 12 | F12: 4.65871491 | G12: 0.2637196054
A13: Filled Symbols | B13: FALSE | E13: 13 | F13: 4.673608707 | G13: 0.2737125683
A14: ConcAge | B14: FALSE | E14: 14 | F14: 4.676916702 | G14: 0.2714546365
A15: ConcSwap | B15: FALSE | E15: 15 | F15: 4.702248798 | G15: 0.2979605729
A16: 1st Symbol-row | B16: 1 | E16: 16 | F16: 4.708572151 | G16: 0.2417866871
E17: 17 | F17: 4.724770918 | G17: 0.2437177779
E18: 18 | F18: 4.763502319 | G18: 0.2604064029
E19: 19 | F19: 4.783689355 | G19: 0.351801991
E20: 20 | F20: 4.792215496 | G20: 0.405144729
E21: 21 | F21: 4.798340011 | G21: 0.3232913397
E22: 22 | F22: 4.804114877 | G22: 0.2838244975
E23: 23 | F23: 4.859073394 | G23: 0.3158136647
E24: 24 | F24: 4.862784536 | G24: 0.3028258262
E25: 25 | F25: 4.885110392 | G25: 0.3344372324
E26: 26 | F26: 4.903341864 | G26: 0.2599068086
E27: 27 | F27: 4.953251127 | G27: 0.272111522
E28: 28 | F28: 4.986496376 | G28: 0.5096262236
E29: 29 | F29: 5.005166039 | G29: 0.2991669785
E30: 30 | F30: 5.022062345 | G30: 0.3029779511
E31: IsoLine | F31: IsoLine | G31: IsoLine | H31: IsoLine

Sheet PlotDat5 (hidden)
A1: Source sheet | B1: datatable | C1: 0.3 | D1: 68.71900429 | E1: 1 | F1: 66.88832157 | G1: 2.608080596
A2: Plot name | B2: Average4 | C2: 21.7 | D2: 68.71900429 | E2: 2 | F2: 67.453071 | G2: 3.851498588
A3: Plot Type | B3: 15 | E3: 3 | F3: 67.52055524 | G3: 3.051530141
A4: 1st free col | B4: 8 | E4: 4 | F4: 67.85674745 | G4: 4.303858554
A5: Sigma Level | B5: 1 | E5: 5 | F5: 67.91964919 | G5: 3.542182264
A6: Absolute Errs | B6: TRUE | E6: 6 | F6: 68.02415658 | G6: 3.806955045
A7: Symbol Type | B7: 1 | E7: 7 | F7: 68.03761444 | G7: 4.121552141
A8: Inverse Plot | B8: FALSE | E8: 8 | F8: 68.2459841 | G8: 3.420298414
A9: Color Plot | B9: TRUE | E9: 9 | F9: 68.42139367 | G9: 3.753780213
A10: 3D plot | B10: FALSE | E10: 10 | F10: 68.56732101 | G10: 3.465914075
A11: Linear | B11: FALSE | E11: 11 | F11: 68.59004571 | G11: 3.954004727
A12: Data Range | B12: R45:S65 | E12: 12 | F12: 68.67233775 | G12: 3.297498543
A13: Filled Symbols | B13: FALSE | E13: 13 | F13: 68.68786753 | G13: 4.053577793
A14: ConcAge | B14: FALSE | E14: 14 | F14: 68.76907706 | G14: 3.508502894
A15: ConcSwap | B15: FALSE | E15: 15 | F15: 68.85856743 | G15: 3.013653065
A16: 1st Symbol-row | B16: 1 | E16: 16 | F16: 69.06325723 | G16: 2.778027556
E17: 17 | F17: 69.38851807 | G17: 4.088883041
E18: 18 | F18: 69.53538743 | G18: 3.982195438
E19: 19 | F19: 69.63319994 | G19: 3.280893168
E20: 20 | F20: 69.71675527 | G20: 3.030238007
E21: 21 | F21: 78.04990407 | G21: 4.708095019
E22: IsoLine | F22: IsoLine | G22: IsoLine | H22: IsoLine

Sheet PlotDat7 (hidden)
A1: Source sheet | B1: datatable | C1: 0.3 | D1: 4.050769948 | E1: 2 | F1: 3.793102649 | G1: 0.3507149283 | H1: 1 | I1: 3.434835622 | J1: 0.289187557
A2: Plot name | B2: Average6 | C2: 29.7 | D2: 4.050769948 | E2: 3 | F2: 3.839963938 | G2: 0.3346633432 | H2: 27 | I2: 5.174871593 | J2: 0.6605016547
A3: Plot Type | B3: 15 | E3: 4 | F3: 3.842542183 | G3: 0.3618442888 | H3: 28 | I3: 5.183665952 | J3: 0.4225431697
A4: 1st free col | B4: 11 | E4: 5 | F4: 3.869214789 | G4: 0.4670536969 | H4: 29 | I4: 6.945218509 | J4: 1.026866864
A5: Sigma Level | B5: 1 | E5: 6 | F5: 3.881507034 | G5: 0.3807482589 | H5: IsoLine | I5: IsoLine | J5: IsoLine | K5: IsoLine
A6: Absolute Errs | B6: TRUE | E6: 7 | F6: 3.89124192 | G6: 0.3004763549
A7: Symbol Type | B7: 1 | E7: 8 | F7: 3.901884291 | G7: 0.3739798219
A8: Inverse Plot | B8: FALSE | E8: 9 | F8: 3.967943166 | G8: 0.2894123964
A9: Color Plot | B9: TRUE | E9: 10 | F9: 3.968280776 | G9: 0.3746326952
A10: 3D plot | B10: FALSE | E10: 11 | F10: 3.976635755 | G10: 0.3144961102
A11: Linear | B11: FALSE | E11: 12 | F11: 3.978738533 | G11: 0.3196463655
A12: Data Range | B12: R80:S108 | E12: 13 | F12: 3.984957581 | G12: 0.3233669921
A13: Filled Symbols | B13: FALSE | E13: 14 | F13: 4.0192868 | G13: 0.4022573626
A14: ConcAge | B14: FALSE | E14: 15 | F14: 4.081465882 | G14: 0.4067166741
A15: ConcSwap | B15: FALSE | E15: 16 | F15: 4.092428308 | G15: 0.438792189
A16: 1st Symbol-row | B16: 1 | E16: 17 | F16: 4.110510067 | G16: 0.3247819509
E17: 18 | F17: 4.150902477 | G17: 0.3440313657
E18: 19 | F18: 4.156324474 | G18: 0.2617916809
E19: 20 | F19: 4.156475954 | G19: 0.3932396435
E20: 21 | F20: 4.181320645 | G20: 0.3547953086
E21: 22 | F21: 4.189010931 | G21: 0.5036287991
E22: 23 | F22: 4.250682244 | G22: 0.3458558955
E23: 24 | F23: 4.374363586 | G23: 0.3621151039
E24: 25 | F24: 4.375156362 | G24: 0.4071465866
E25: 26 | F25: 4.441982113 | G25: 0.392631652
E26: IsoLine | F26: IsoLine | G26: IsoLine | H26: IsoLine

Sheet CONCS (hidden)
B1: FC plot | C1: min age | D1: max age | J1: SL plot | K1: min age | L1: max age | R1: R33 plot | S1: min age | T1: max age | Z1: CONC plot | AA1: min age | AB1: max age
C2: 950 | D2: 1250 | E2: =0.01*(D2-C2) -> 3 | K2: 460 | L2: 660 | M2: =0.01*(L2-K2) -> 2 | S2: 320 | T2: 520 | U2: =0.01*(T2-S2) -> 2 | AA2: 0 | AB2: 3600 | AC2: =0.01*(AB2-AA2) -> 36
B3: 0.001 | C3: =EXP(0.00098485*E3)-1 -> 1.549514516 | D3: =EXP(0.000155125*(E3))-1 -> 0.1588351129 | E3: =$C$2+B3*($D$2-$C$2) -> 950.3 | F3: =$E14 -> 980 | G3: =EXP(0.00098485*F3)-1 -> 1.62518928 | H3: =EXP(0.000155125*F3)-1 -> 0.1641864303 | J3: 0.001 | K3: =EXP(0.00098485*M3)-1 -> 0.5733828297 | L3: =EXP(0.000155125*(M3))-1 -> 0.07399842005 | M3: =$K$2+J3*($L$2-$K$2) -> 460.2 | N3: =$M14 -> 480 | O3: =EXP(0.00098485*N3)-1 -> 0.6043649364 | P3: =EXP(0.000155125*N3)-1 -> 0.07730225057 | R3: 0.001 | S3: =EXP(0.00098485*U3)-1 -> 0.3707375738 | T3: =EXP(0.000155125*(U3))-1 -> 0.05092531135 | U3: =$S$2+R3*($T$2-$S$2) -> 320.2 | V3: =$U14 -> 340 | W3: =EXP(0.00098485*V3)-1 -> 0.3977293122 | X3: =EXP(0.000155125*V3)-1 -> 0.05415816444 | Z3: 0.0005 | AA3: =EXP(0.00098485*AC3)-1 -> 0.001774302215 | AB3: =EXP(0.000155125*(AC3))-1 -> 0.0002792639869 | AC3: =$AA$2+Z3*($AB$2-$AA$2) -> 1.8 | AD3: 400 | AE3: =EXP(0.00098485*AD3)-1 -> 0.4828115773 | AF3: =EXP(0.000155125*AD3)-1 -> 0.06401554418
B4: 0.005 | C4: 1.552529364 | D4: 0.1590508501 | E4: 951.5 | F4: =$E24 -> 1010 | G4: 1.70390899 | H4: 0.1696168891 | J4: 0.005 | K4: 0.5746229551 | L4: 0.07413171153 | M4: 461 | N4: =$M24 -> 500 | O4: 0.6362793902 | P4: 0.08064977096 | R4: 0.005 | S4: 0.3718179761 | T4: 0.05105573927 | U4: 321 | V4: =$U24 -> 360 | W4: 0.4255333152 | X4: 0.0574337688 | Z4: 0.001 | AA4: 0.003551752578 | AB4: 0.0005586059622 | AC4: 3.6 | AD4: 800 | AE4: 1.198730174 | AF4: 0.1321290782
B5: 0.01 | C5: 1.556302938 | D5: 0.1593205781 | E5: 953 | F5: =$E34 -> 1040 | G5: 1.784989213 | H5: 0.1750726788 | J5: 0.01 | K5: 0.5761744864 | L5: 0.07429834913 | M5: 462 | N5: =$M34 -> 520 | O5: 0.6688286948 | P5: 0.08400769316 | R5: 0.01 | S5: 0.3731696765 | T5: 0.05121879694 | U5: 322 | V5: =$U34 -> 380 | W5: 0.4538904029 | X5: 0.0607195515 | Z5: 0.005 | AA5: 0.0178853612 | AB5: 0.002796151961 | AC5: 18 | AD5: 1200 | AE5: 2.260302557 | AF5: 0.2046029373
B6: =B5+0.01 -> 0.02 | C6: 1.563866832 | D6: 0.1598602225 | E6: 956 | F6: =$E44 -> 1070 | G6: 1.868500731 | H6: 0.1805539176 | J6: =J5+0.01 -> 0.02 | K6: 0.5792821368 | L6: 0.07463170191 | M6: 464 | N6: =$M44 -> 540 | O6: 0.7020254789 | P6: 0.08737604949 | R6: =R5+0.01 -> 0.02 | S6: 0.3758770743 | T6: 0.05154498817 | U6: 324 | V6: =$U44 -> 400 | W6: 0.4828115773 | X6: 0.06401554418 | Z6: 0.01 | AA6: 0.03609060855 | AB6: 0.005600122388 | AC6: 36 | AD6: 1600 | AE6: 3.834414377 | AF6: 0.2817162498
B7: 0.03 | C7: 1.571453106 | D7: 0.1604001181 | E7: 959 | F7: =$E54 -> 1100 | G7: 1.954516451 | H7: 0.1860607241 | J7: 0.03 | K7: 0.5823959144 | L7: 0.07496515812 | M7: 466 | N7: =$M54 -> 560 | O7: 0.7358826222 | P7: 0.09075487237 | R7: 0.03 | S7: 0.3785898102 | T7: 0.05187128062 | U7: 326 | V7: =$U54 -> 420 | W7: 0.5123080594 | X7: 0.06732177855 | Z7: =Z6+0.01 -> 0.02 | AA7: 0.07348374912 | AB7: 0.01123160615 | AC7: 72 | AD7: 2000 | AE7: 6.168525608 | AF7: 0.363766013
B8: 0.04 | C8: 1.579061827 | D8: 0.1609402649 | E8: 962 | F8: =$E64 -> 1130 | G8: 2.043111464 | H8: 0.1915932176 | J8: 0.04 | K8: 0.5855158313 | L8: 0.0752987178 | M8: 468 | N8: =$M64 -> 580 | O8: 0.7704132608 | P8: 0.09414419433 | R8: 0.04 | S8: 0.3813078945 | T8: 0.05219767431 | U8: 328 | V8: =$U64 -> 440 | W8: 0.5423912934 | X8: 0.07063828644 | Z8: 0.03 | AA8: 0.1122264309 | AB8: 0.0168946269 | AC8: 108 | AD8: 2400 | AE8: 9.629572764 | AF8: 0.4510682365
B9: 0.05 | C9: 1.586693062 | D9: 0.1614806632 | E9: 965 | F9: =$E74 -> 1160 | G9: 2.134363114 | H9: 0.197151518 | J9: 0.05 | K9: 0.5886418995 | L9: 0.07563238098 | M9: 470 | N9: =$M74 -> 600 | O9: 0.805630792 | P9: 0.09754404798 | R9: 0.05 | S9: 0.384031338 | T9: 0.05252416928 | U9: 330 | V9: =$U74 -> 460 | W9: 0.573072951 | X9: 0.07396509977 | Z9: 0.04 | AA9: =EXP(0.00098485*AC9)-1 -> 0.1523673596 | AB9: =EXP(0.000155125*(AC9))-1 -> 0.02258936127 | AC9: =$AA$2+Z9*($AB$2-$AA$2) -> 144 | AD9: 2800 | AE9: 14.76165356 | AF9: 0.5439591593
B10: 0.06 | C10: 1.594346878 | D10: 0.1620213131 | E10: 968 | F10: =$E84 -> 1190 | G10: 2.228351063 | H10: 0.2027357456 | J10: 0.06 | K10: 0.5917741312 | L10: 0.0759661477 | M10: 472 | N10: =$M84 -> 620 | O10: 0.8415488798 | P10: 0.1009544661 | R10: 0.06 | S10: 0.3867601511 | T10: 0.05285076557 | U10: 332 | V10: =$U84 -> 480 | W10: 0.6043649364 | X10: 0.07730225057 | Z10: 0.05 | AA10: 0.1939569989 | AB10: 0.02831598684 | AC10: 180 | AD10: 3200 | AE10: 22.37156237 | AF10: 0.642796545
B11: 0.07 | C11: 1.60202334 | D11: 0.1625622146 | E11: 971 | F11: =$E94 -> 1220 | G11: 2.325157362 | H11: 0.2083460213 | J11: 0.07 | K11: 0.5949125386 | L11: 0.07630001799 | M11: 474 | N11: =$M94 -> 640 | O11: 0.8781814596 | P11: 0.1043754814 | R11: 0.07 | S11: 0.3894943445 | T11: 0.05317746319 | U11: 334 | V11: =$U94 -> 500 | W11: 0.6362793902 | X11: 0.08064977096 | Z11: 0.06 | AA11: 0.2370476336 | AB11: 0.03407468222 | AC11: 216 | AD11: 3600 | AE11: 33.65562326 | AF11: 0.7479610598
B12: 0.08 | C12: 1.609722516 | D12: 0.1631033679 | E12: 974 | F12: =$E104 -> 1250 | G12: 2.424866524 | H12: 0.2139824668 | J12: 0.08 | K12: 0.5980571338 | L12: 0.07663399187 | M12: 476 | N12: =$M104 -> 660 | O12: 0.9155427446 | P12: 0.1078071269 | R12: 0.08 | S12: 0.3922339287 | T12: 0.05350426219 | U12: 336 | V12: =$U104 -> 520 | W12: 0.6688286948 | X12: 0.08400769316 | Z12: 0.07 | AA12: 0.2816934355 | AB12: 0.039865627 | AC12: 252
B13: 0.09 | C13: 1.617444474 | D13: 0.1636447731 | E13: 977 | J13: 0.09 | K13: 0.6012079289 | L13: 0.07696806939 | M13: 478 | R13: 0.09 | S13: 0.3949789144 | T13: 0.0538311626 | U13: 338 | Z13: 0.08 | AA13: 0.3279505315 | AB13: 0.04568900178 | AC13: 288
B14: 0.1 | C14: 1.62518928 | D14: 0.1641864303 | E14: 980 | J14: 0.1 | K14: 0.6043649364 | L14: 0.07730225057 | M14: 480 | R14: 0.1 | S14: 0.3977293122 | T14: 0.05415816444 | U14: 340 | Z14: 0.09 | AA14: 0.3758770743 | AB14: 0.05154498817 | AC14: 324 | AD14: 20 | AE14: =EXP(0.00098485*AD14)-1 -> 0.01989226585 | AF14: =EXP(0.000155125*AD14)-1 -> 0.003107317734
B15: 0.11 | C15: 1.632957002 | D15: 0.1647283397 | E15: 983 | J15: 0.11 | K15: 0.6075281683 | L15: 0.07763653545 | M15: 482 | R15: 0.11 | S15: 0.4004851328 | T15: 0.05448526775 | U15: 342 | Z15: 0.1 | AA15: 0.4255333152 | AB15: 0.0574337688 | AC15: 360 | AD15: 40 | AE15: 0.04018023394 | AF15: 0.006224290892
B16: 0.12 | C16: 1.640747709 | D16: 0.1652705013 | E16: 986 | J16: 0.12 | K16: 0.6106976369 | L16: 0.07797092405 | M16: 484 | R16: 0.12 | S16: 0.4032463869 | T16: 0.05481247256 | U16: 344 | Z16: 0.11 | AA16: 0.4769816801 | AB16: 0.06335552732 | AC16: 396 | AD16: 120 | AE16: 0.1254489244 | AF16: 0.01878933921
B17: 0.13 | C17: 1.648561467 | D17: 0.1658129152 | E17: 989 | J17: 0.13 | K17: 0.6138733546 | L17: 0.07830541642 | M17: 486 | R17: 0.13 | S17: 0.4060130852 | T17: 0.0551397789 | U17: 346 | Z17: 0.12 | AA17: 0.5302868477 | AB17: 0.06931044842 | AC17: 432 | AD17: 200 | AE17: 0.2177075089 | AF17: 0.03151129135
B18: 0.14 | C18: 1.656398346 | D18: 0.1663555817 | E18: 992 | J18: 0.14 | K18: 0.6170553337 | L18: 0.07864001257 | M18: 488 | R18: 0.14 | S18: 0.4087852384 | T18: 0.0554671868 | U18: 348 | Z18: 0.13 | AA18: 0.5855158313 | AB18: 0.0752987178 | AC18: 468 | AD18: 10 | AE18: 0.009897156075 | AF18: 0.001552453811
B19: 0.15 | C19: 1.664258413 | D19: 0.1668985007 | E19: 995 | J19: 0.15 | K19: 0.6202435865 | L19: 0.07897471255 | M19: 490 | R19: 0.15 | S19: 0.4115628573 | T19: 0.0557946963 | U19: 350 | Z19: 0.14 | AA19: 0.6427380625 | AB19: 0.08132052222 | AC19: 504 | AD19: 70 | AE19: 0.07137138922 | AF19: 0.0109179202
B20: 0.16 | C20: 1.672141738 | D20: 0.1674416725 | E20: 998 | J20: 0.16 | K20: 0.6234381254 | L20: 0.07930951639 | M20: 492 | R20: 0.16 | S20: 0.4143459527 | T20: 0.05612230742 | U20: 352 | Z20: 0.15 | AA20: 0.7020254789 | AB20: 0.08737604949 | AC20: 540 | AD20: 5 | AE20: 0.004936394044 | AF20: =EXP(0.000155125*AD20)-1 -> 0.0007759258749
B21: 0.17 | C21: 1.680048389 | D21: 0.1679850971 | E21: 1001 | J21: 0.17 | K21: 0.6266389628 | L21: 0.07964442412 | M21: 494 | R21: 0.17 | S21: 0.4171345354 | T21: 0.0564500202 | U21: 354 | Z21: 0.16 | AA21: 0.7634526142 | AB21: 0.09346548844 | AC21: 576 | AD21: 2 | AE21: 0.001971641133 | AF21: =EXP(0.000155125*AD21)-1 -> 0.0003102981325
B22: 0.18 | C22: 1.687978435 | D22: 0.1685287747 | E22: 1004 | J22: 0.18 | K22: 0.6298461111 | L22: 0.07997943577 | M22: 496 | R22: 0.18 | S22: 0.4199286161 | T22: 0.05677783467 | U22: 356 | Z22: 0.17 | AA22: 0.8270966922 | AB22: 0.09958902901 | AC22: 612
B23: 0.19 | C23: 1.695931946 | D23: 0.1690727053 | E23: 1007 | J23: 0.19 | K23: 0.6330595827 | L23: 0.08031455137 | M23: 498 | R23: 0.19 | S23: 0.4227282058 | T23: 0.05710575086 | U23: 358 | Z23: 0.18 | AA23: 0.8930377236 | AB23: 0.1057468621 | AC23: 648
B24: 0.2 | C24: 1.70390899 | D24: 0.1696168891 | E24: 1010 | J24: 0.2 | K24: 0.6362793902 | L24: 0.08064977096 | M24: 500 | R24: 0.2 | S24: 0.4255333152 | T24: 0.0574337688 | U24: 360 | Z24: 0.19 | AA24: 0.9613586071 | AB24: 0.1119391799 | AC24: 684
B25: 0.21 | C25: 1.711909637 | D25: 0.1701613263 | E25: 1013 | J25: 0.21 | K25: 0.6395055459 | L25: 0.08098509456 | M25: 502 | R25: 0.21 | S25: 0.4283439553 | T25: 0.05776188852 | U25: 362 | Z25: 0.2 | AA25: 1.032145233 | AB25: 0.1181661754 | AC25: 720
B26: 0.22 | C26: 1.719933958 | D26: 0.1707060168 | E26: 1016 | J26: 0.22 | K26: 0.6427380625 | L26: 0.08132052222 | M26: 504 | R26: 0.22 | S26: 0.431160137 | T26: 0.05809011006 | U26: 364 | Z26: 0.21 | AA26: 1.105486591 | AB26: 0.1244280428 | AC26: 756
B27: 0.23 | C27: 1.727982023 | D27: 0.1712509609 | E27: 1019 | J27: 0.23 | K27: 0.6459769524 | L27: 0.08165605396 | M27: 506 | R27: 0.23 | S27: 0.4339818712 | T27: 0.05841843345 | U27: 366 | Z27: 0.22 | AA27: 1.181474883 | AB27: 0.1307249775 | AC27: 792
B28: 0.24 | C28: 1.7360539 | D28: 0.1717961587 | E28: 1022 | J28: 0.24 | K28: 0.6492222283 | L28: 0.08199168981 | M28: 508 | R28: 0.24 | S28: 0.4368091689 | T28: 0.05874685871 | U28: 368 | Z28: 0.23 | AA28: 1.260205639 | AB28: 0.1370571757 | AC28: 828
B29: 0.25 | C29: 1.744149662 | D29: 0.1723416102 | E29: 1025 | J29: 0.25 | K29: 0.6524739027 | L29: 0.08232742981 | M29: 510 | R29: 0.25 | S29: 0.4396420409 | T29: 0.05907538588 | U29: 370 | Z29: 0.24 | AA29: 1.341777836 | AB29: 0.1434248351 | AC29: 864
B30: 0.26 | C30: 1.752269379 | D30: 0.1728873157 | E30: 1028 | J30: 0.26 | K30: 0.6557319882 | L30: 0.08266327399 | M30: 512 | R30: 0.26 | S30: 0.4424804984 | T30: 0.059404015 | U30: 372 | Z30: 0.25 | AA30: 1.426294023 | AB30: 0.1498281541 | AC30: 900
B31: 0.27 | C31: 1.760413121 | D31: 0.1734332752 | E31: 1031 | J31: 0.27 | K31: 0.6589964975 | L31: 0.08299922239 | M31: 514 | R31: 0.27 | S31: 0.4453245523 | T31: 0.05973274609 | U31: 374 | Z31: 0.26 | AA31: 1.513860451 | AB31: 0.1562673325 | AC31: 936
B32: 0.28 | C32: 1.76858096 | D32: 0.1739794887 | E32: 1034 | J32: 0.28 | K32: 0.6622674432 | L32: 0.08333527502 | M32: 516 | R32: 0.28 | S32: 0.4481742136 | T32: 0.06006157918 | U32: 376 | Z32: 0.27 | AA32: 1.604587205 | AB32: 0.1627425711 | AC32: 972
B33: 0.29 | C33: 1.776772966 | D33: 0.1745259566 | E33: 1037 | J33: 0.29 | K33: 0.6655448381 | L33: 0.08367143193 | M33: 518 | R33: 0.29 | S33: 0.4510294935 | T33: 0.06039051431 | U33: 378 | Z33: 0.28 | AA33: 1.698588342 | AB33: 0.1692540718 | AC33: 1008
B34: 0.3 | C34: 1.784989213 | D34: 0.1750726788 | E34: 1040 | J34: 0.3 | K34: 0.6688286948 | L34: 0.08400769316 | M34: 520 | R34: 0.3 | S34: 0.4538904029 | T34: 0.0607195515 | U34: 380 | Z34: 0.29 | AA34: 1.795982038 | AB34: 0.1758020377 | AC34: 1044
B35: 0.31 | C35: =EXP(0.00098485*E35)-1 -> 1.79322977 | D35: =EXP(0.000155125*(E35))-1 -> 0.1756196555 | E35: =$C$2+B35*($D$2-$C$2) -> 1043 | J35: 0.31 | K35: =EXP(0.00098485*M35)-1 -> 0.6721190261 | L35: =EXP(0.000155125*(M35))-1 -> 0.08434405872 | M35: =$K$2+J35*($L$2-$K$2) -> 522 | R35: 0.31 | S35: =EXP(0.00098485*U35)-1 -> 0.456756953 | T35: =EXP(0.000155125*(U35))-1 -> 0.0610486908 | U35: =$S$2+R35*($T$2-$S$2) -> 382 | Z35: 0.3 | AA35: 1.896890731 | AB35: 0.182386673 | AC35: 1080
B36: 0.32 | C36: 1.801494711 | D36: 0.1761668869 | E36: 1046 | J36: 0.32 | K36: 0.6754158448 | L36: 0.08468052866 | M36: 524 | R36: 0.32 | S36: 0.459629155 | T36: 0.06137793223 | U36: 384 | Z36: 0.31 | AA36: 2.00144128 | AB36: 0.1890081831 | AC36: 1116
B37: 0.33 | C37: 1.809784107 | D37: 0.1767143729 | E37: 1049 | J37: 0.33 | K37: 0.6787191636 | L37: 0.085017103 | M37: 526 | R37: 0.33 | S37: 0.4625070198 | T37: 0.06170727582 | U37: 386 | Z37: 0.32 | AA37: 2.109765122 | AB37: 0.1956667744 | AC37: 1152
B38: 0.34 | C38: 1.81809803 | D38: 0.1772621138 | E38: 1052 | J38: 0.34 | K38: 0.6820289953 | L38: 0.08535378178 | M38: 528 | R38: 0.34 | S38: 0.4653905588 | T38: 0.0620367216 | U38: 388 | Z38: 0.33 | AA38: 2.221998438 | AB38: 0.2023626547 | AC38: 1188
B39: 0.35 | C39: 1.826436554 | D39: 0.1778101097 | E39: 1055 | J39: 0.35 | K39: 0.6853453529 | L39: 0.08569056503 | M39: 530 | R39: 0.35 | S39: 0.4682797831 | T39: 0.06236626961 | U39: 390 | Z39: 0.34 | AA39: 2.338282322 | AB39: 0.2090960327 | AC39: 1224
B40: 0.36 | C40: 1.834799751 | D40: 0.1783583606 | E40: 1058 | J40: 0.36 | K40: 0.6886682491 | L40: 0.08602745279 | M40: 532 | R40: 0.36 | S40: 0.471174704 | T40: 0.06269591988 | U40: 392 | Z40: 0.35 | AA40: 2.458762963 | AB40: 0.2158671185 | AC40: 1260
B41: 0.37 | C41: 1.843187693 | D41: 0.1789068667 | E41: 1061 | J41: 0.37 | K41: 0.6919976969 | L41: 0.08636444508 | M41: 534 | R41: 0.37 | S41: 0.4740753325 | T41: 0.06302567244 | U41: 394 | Z41: 0.36 | AA41: 2.583591823 | AB41: 0.2226761231 | AC41: 1296
B42: 0.38 | C42: 1.851600456 | D42: 0.1794556282 | E42: 1064 | J42: 0.38 | K42: 0.6953337091 | L42: 0.08670154193 | M42: 536 | R42: 0.38 | S42: 0.4769816801 | T42: 0.06335552732 | U42: 396 | Z42: =Z41+0.01 -> 0.37 | AA42: =EXP(0.00098485*AC42)-1 -> 2.712925833 | AB42: =EXP(0.000155125*(AC42))-1 -> 0.2295232591 | AC42: =$AA$2+Z42*($AB$2-$AA$2) -> 1332
B43: 0.39 | C43: 1.86003811 | D43: 0.1800046451 | E43: 1067 | J43: 0.39 | K43: 0.6986762988 | L43: 0.08703874339 | M43: 538 | R43: 0.39 | S43: 0.4798937579 | T43: 0.06368548456 | U43: 398 | Z43: 0.38 | AA43: 2.846927586 | AB43: 0.2364087398 | AC43: 1368
B44: 0.4 | C44: 1.868500731 | D44: 0.1805539176 | E44: 1070 | J44: 0.4 | K44: 0.7020254789 | L44: 0.08737604949 | M44: 540 | R44: 0.4 | S44: 0.4828115773 | T44: 0.06401554418 | U44: 400 | Z44: 0.39 | AA44: 2.985765543 | AB44: 0.2433327801 | AC44: 1404
B45: 0.41 | C45: 1.876988393 | D45: 0.1811034457 | E45: 1073 | J45: 0.41 | K45: 0.7053812623 | L45: 0.08771346024 | M45: 542 | R45: 0.41 | S45: 0.4857351496 | T45: 0.06434570621 | U45: 402 | Z45: 0.4 | AA45: 3.129614247 | AB45: 0.2502955958 | AC45: 1440
B46: 0.42 | C46: 1.885501168 | D46: 0.1816532296 | E46: 1076 | J46: 0.42 | K46: 0.7087436622 | L46: 0.0880509757 | M46: 544 | R46: 0.42 | S46: 0.4886644861 | T46: 0.0646759707 | U46: 404 | Z46: 0.41 | AA46: 3.278654538 | AB46: 0.2572974042 | AC46: 1476
B47: 0.43 | C47: 1.894039132 | D47: 0.1822032695 | E47: 1079 | J47: 0.43 | K47: 0.7121126915 | L47: 0.08838859588 | M47: 546 | R47: 0.43 | S47: 0.4915995983 | T47: 0.06500633766 | U47: 406 | Z47: 0.42 | AA47: 3.433073785 | AB47: 0.2643384235 | AC47: 1512
B48: 0.44 | C48: 1.90260236 | D48: 0.1827535654 | E48: 1082 | J48: 0.44 | K48: 0.7154883633 | L48: 0.08872632083 | M48: 548 | R48: 0.44 | S48: 0.4945404974 | T48: 0.06533680714 | U48: 408 | Z48: 0.43 | AA48: 3.593066115 | AB48: 0.2714188734 | AC48: 1548
B49: 0.45 | C49: 1.911190925 | D49: 0.1833041174 | E49: 1085 | J49: 0.45 | K49: 0.7188706907 | L49: 0.08906415058 | M49: 550 | R49: 0.45 | S49: 0.4974871949 | T49: 0.06566737916 | U49: 410 | Z49: 0.44 | AA49: 3.758832666 | AB49: 0.2785389747 | AC49: 1584
B50: 0.46 | C50: 1.919804903 | D50: 0.1838549257 | E50: 1088 | J50: 0.46 | K50: 0.7222596868 | L50: 0.08940208515 | M50: 552 | R50: 0.46 | S50: 0.5004397023 | T50: 0.06599805376 | U50: 412 | Z50: 0.45 | AA50: 3.930581833 | AB50: 0.2856989494 | AC50: 1620
B51: 0.47 | C51: 1.928444369 | D51: 0.1844059904 | E51: 1091 | J51: 0.47 | K51: 0.7256553649 | L51: 0.08974012458 | M51: 554 | R51: 0.47 | S51: 0.5033980309 | T51: 0.06632883096 | U51: 414 | Z51: 0.46 | AA51: 4.108529532 | AB51: 0.2928990209 | AC51: 1656
B52: 0.48 | C52: 1.937109399 | D52: 0.1849573116 | E52: 1094 | J52: 0.48 | K52: 0.729057738 | L52: 0.09007826891 | M52: 556 | R52: 0.48 | S52: 0.5063621923 | T52: 0.06665971081 | U52: 416 | Z52: 0.47 | AA52: 4.292899472 | AB52: 0.3001394137 | AC52: 1692
B53: 0.49 | C53: 1.945800068 | D53: 0.1855088895 | E53: 1097 | J53: 0.49 | K53: 0.7324668193 | L53: 0.09041651816 | M53: 558 | R53: 0.49 | S53: 0.509332198 | T53: 0.06699069333 | U53: 418 | Z53: 0.48 | AA53: 4.483923435 | AB53: 0.3074203535 | AC53: 1728
B54: 0.5 | C54: 1.954516451 | D54: 0.1860607241 | E54: 1100 | J54: 0.5 | K54: 0.7358826222 | L54: 0.09075487237 | M54: 560 | R54: 0.5 | S54: 0.5123080594 | T54: 0.06732177855 | U54: 420 | Z54: 0.49 | AA54: 4.681841569 | AB54: 0.3147420675 | AC54: 1764
B55: 0.51 | C55: 1.963258626 | D55: 0.1866128155 | E55: 1103 | J55: 0.51 | K55: 0.7393051598 | L55: 0.09109333157 | M55: 562 | R55: 0.51 | S55: 0.5152897882 | T55: 0.0676529665 | U55: 422 | Z55: 0.5 | AA55: 4.886902688 | AB55: 0.322104784 | AC55: 1800
B56: 0.52 | C56: 1.972026668 | D56: 0.187165164 | E56: 1106 | J56: 0.52 | K56: 0.7427344454 | L56: 0.09143189579 | M56: 564 | R56: 0.52 | S56: 0.5182773959 | T56: 0.06798425722 | U56: 424 | Z56: 0.51 | AA56: 5.099364589 | AB56: 0.3295087326 | AC56: 1836
B57: 0.53 | C57: 1.980820654 | D57: 0.1877177696 | E57: 1109 | J57: 0.53 | K57: 0.7461704923 | L57: 0.09177056507 | M57: 566 | R57: 0.53 | S57: 0.521270894 | T57: 0.06831565074 | U57: 426 | Z57: 0.52 | AA57: 5.319494369 | AB57: 0.3369541442 | AC57: 1872
B58: 0.54 | C58: 1.989640661 | D58: 0.1882706323 | E58: 1112 | J58: 0.54 | K58: 0.7496133138 | L58: 0.09210933944 | M58: 568 | R58: 0.54 | S58: 0.5242702943 | T58: 0.06864714709 | U58: 428 | Z58: 0.53 | AA58: 5.547568766 | AB58: 0.344441251 | AC58: 1908
B59: 0.55 | C59: 1.998486766 | D59: 0.1888237525 | E59: 1115 | J59: 0.55 | K59: 0.7530629234 | L59: 0.09244821893 | M59: 570 | R59: 0.55 | S59: 0.5272756083 | T59: 0.06897874631 | U59: 430 | Z59: 0.54 | AA59: 5.783874507 | AB59: 0.3519702866 | AC59: 1944
B60: 0.56 | C60: 2.007359045 | D60: 0.1893771301 | E60: 1118 | J60: 0.56 | K60: 0.7565193344 | L60: 0.09278720357 | M60: 572 | R60: 0.56 | S60: 0.5302868477 | T60: 0.06931044842 | U60: 432 | Z60: 0.55 | AA60: 6.028708667 | AB60: 0.3595414857 | AC60: 1980
B61: 0.57 | C61: 2.016257577 | D61: 0.1899307653 | E61: 1121 | J61: 0.57 | K61: 0.7599825602 | L61: 0.0931262934 | M61: 574 | R61: 0.57 | S61: 0.5333040242 | T61: 0.06964225345 | U61: 434 | Z61: 0.56 | AA61: 6.28237904 | AB61: 0.3671550844 | AC61: 2016
B62: 0.58 | C62: 2.025182439 | D62: 0.1904846582 | E62: 1124 | J62: 0.58 | K62: 0.7634526142 | L62: 0.09346548844 | M62: 576 | R62: 0.58 | S62: 0.5363271495 | T62: 0.06997416145 | U62: 436 | Z62: 0.57 | AA62: 6.545204531 | AB62: 0.3748113202 | AC62: 2052
B63: 0.59 | C63: 2.034133709 | D63: 0.1910388089 | E63: 1127 | J63: 0.59 | K63: 0.7669295099 | L63: 0.09380478874 | M63: 578 | R63: 0.59 | S63: 0.5393562353 | T63: 0.07030617243 | U63: 438 | Z63: 0.58 | AA63: 6.817515554 | AB63: 0.3825104318 | AC63: 2088
B64: 0.6 | C64: 2.043111464 | D64: 0.1915932176 | E64: 1130 | J64: 0.6 | K64: 0.7704132608 | L64: 0.09414419433 | M64: 580 | R64: 0.6 | S64: 0.5423912934 | T64: 0.07063828644 | U64: 440 | Z64: 0.59 | AA64: 7.099654448 | AB64: 0.3902526594 | AC64: 2124
B65: 0.61 | C65: 2.052115785 | D65: 0.1921478844 | E65: 1133 | J65: 0.61 | K65: 0.7739038804 | L65: 0.09448370523 | M65: 582 | R65: 0.61 | S65: 0.5454323355 | T65: 0.0709705035 | U65: 442 | Z65: 0.6 | AA65: 7.391975906 | AB65: 0.3980382445 | AC65: 2160
B66: 0.62 | C66: 2.061146748 | D66: 0.1927028093 | E66: 1136 | J66: 0.62 | K66: 0.7774013822 | L66: 0.09482332148 | M66: 584 | R66: 0.62 | S66: 0.5484793734 | T66: 0.07130282364 | U66: 444 | Z66: 0.61 | AA66: 7.694847423 | AB66: 0.4058674297 | AC66: 2196
B67: 0.63 | C67: =EXP(0.00098485*E67)-1 -> 2.070204433 | D67: =EXP(0.000155125*(E67))-1 -> 0.1932579925 | E67: =$C$2+B67*($D$2-$C$2) -> 1139 | J67: 0.63 | K67: =EXP(0.00098485*M67)-1 -> 0.7809057799 | L67: =EXP(0.000155125*(M67))-1 -> 0.09516304311 | M67: =$K$2+J67*($L$2-$K$2) -> 586 | R67: 0.63 | S67: =EXP(0.00098485*U67)-1 -> 0.5515324191 | T67: =EXP(0.000155125*(U67))-1 -> 0.07163524691 | U67: =$S$2+R67*($T$2-$S$2) -> 446 | Z67: 0.62 | AA67: 8.008649758 | AB67: 0.4137404594 | AC67: 2232
B68: 0.64 | C68: 2.079288919 | D68: 0.1938134342 | E68: 1142 | J68: 0.64 | K68: 0.784417087 | L68: 0.09550287016 | M68: 588 | R68: 0.64 | S68: 0.5545914842 | T68: 0.07196777333 | U68: 448 | Z68: 0.63 | AA68: 8.33377741 | AB68: 0.421657579 | AC68: 2268
B69: 0.65 | C69: 2.088400286 | D69: 0.1943691344 | E69: 1145 | J69: 0.65 | K69: 0.7879353171 | L69: 0.09584280265 | M69: 590 | R69: 0.65 | S69: 0.5576565807 | T69: 0.07230040292 | U69: 450 | Z69: 0.64 | AA69: 8.670639117 | AB69: 0.4296190354 | AC69: 2304
B70: =B69+0.01 -> 0.66 | C70: 2.097538612 | D70: 0.1949250933 | E70: 1148 | J70: =J69+0.01 -> 0.66 | K70: 0.791460484 | L70: 0.09618284063 | M70: 592 | R70: =R69+0.01 -> 0.66 | S70: 0.5607277205 | T70: 0.07263313574 | U70: 452 | Z70: 0.65 | AA70: 9.019658367 | AB70: 0.437625077 | AC70: 2340
B71: 0.67 | C71: 2.106703978 | D71: 0.195481311 | E71: 1151 | J71: 0.67 | K71: 0.7949926011 | L71: 0.09652298411 | M71: 594 | R71: 0.67 | S71: 0.5638049155 | T71: 0.07296597179 | U71: 454 | Z71: 0.66 | AA71: 9.381273935 | AB71: 0.4456759534 | AC71: 2376
B72: 0.68 | C72: 2.115896463 | D72: 0.1960377876 | E72: 1154 | J72: 0.68 | K72: 0.7985316824 | L72: 0.09686323315 | M72: 596 | R72: 0.68 | S72: 0.5668881776 | T72: 0.07329891113 | U72: 456 | Z72: 0.67 | AA72: 9.755940429 | AB72: 0.4537719157 | AC72: 2412
B73: 0.69 | C73: 2.125116148 | D73: 0.1965945232 | E73: 1157 | J73: 0.69 | K73: 0.8020777414 | L73: 0.09720358776 | M73: 598 | R73: 0.69 | S73: 0.5699775188 | T73: 0.07363195378 | U73: 458 | Z73: 0.68 | AA73: 10.14412886 | AB73: 0.4619132163 | AC73: 2448
B74: 0.7 | C74: 2.134363114 | D74: 0.197151518 | E74: 1160 | J74: 0.7 | K74: 0.805630792 | L74: 0.09754404798 | M74: 600 | R74: 0.7 | S74: 0.573072951 | T74: 0.07396509977 | U74: 460 | Z74: 0.69 | AA74: 10.54632726 | AB74: 0.4701001092 | AC74: 2484
B75: 0.71 | C75: 2.14363744 | D75: 0.197708772 | E75: 1163 | J75: 0.71 | K75: 0.809190848 | L75: 0.09788461385 | M75: 602 | R75: 0.71 | S75: 0.5761744864 | T75: 0.07429834913 | U75: 462 | Z75: 0.7 | AA75: 10.96304123 | AB75: 0.4783328498 | AC75: 2520
B76: 0.72 | C76: 2.152939209 | D76: 0.1982662855 | E76: 1166 | J76: 0.72 | K76: 0.8127579231 | L76: 0.0982252854 | M76: 604 | R76: 0.72 | S76: 0.5792821368 | T76: 0.07463170191 | U76: 464 | Z76: 0.71 | AA76: 11.39479467 | AB76: 0.4866116947 | AC76: 2556
B77: 0.73 | C77: 2.162268501 | D77: 0.1988240584 | E77: 1169 | J77: 0.73 | K77: 0.8163320311 | L77: 0.09856606265 | M77: 606 | R77: 0.73 | S77: 0.5823959144 | T77: 0.07496515812 | U77: 466 | Z77: 0.72 | AA77: 11.84213036 | AB77: 0.4949369021 | AC77: 2592
B78: 0.74 | C78: 2.171625397 | D78: 0.199382091 | E78: 1172 | J78: 0.74 | K78: 0.8199131861 | L78: 0.09890694565 | M78: 608 | R78: 0.74 | S78: 0.5855158313 | T78: 0.0752987178 | U78: 468 | Z78: 0.73 | AA78: 12.30561065 | AB78: 0.5033087317 | AC78: 2628
B79: 0.75 | C79: 2.18100998 | D79: 0.1999403833 | E79: 1175 | J79: 0.75 | K79: 0.8235014018 | L79: 0.09924793442 | M79: 610 | R79: 0.75 | S79: 0.5886418995 | T79: 0.07563238098 | U79: 470 | Z79: 0.74 | AA79: 12.78581824 | AB79: 0.5117274446 | AC79: 2664
B80: 0.76 | C80: 2.19042233 | D80: 0.2004989355 | E80: 1178 | J80: 0.76 | K80: 0.8270966922 | L80: 0.09958902901 | M80: 612 | R80: 0.76 | S80: 0.5917741312 | T80: 0.0759661477 | U80: 472 | Z80: 0.75 | AA80: 13.28335681 | AB80: 0.5201933033 | AC80: 2700
B81: 0.77 | C81: 2.199862532 | D81: 0.2010577478 | E81: 1181 | J81: 0.77 | K81: 0.8306990711 | L81: 0.09993022943 | M81: 614 | R81: 0.77 | S81: 0.5949125386 | T81: 0.07630001799 | U81: 474 | Z81: 0.76 | AA81: 13.79885185 | AB81: 0.5287065719 | AC81: 2736
B82: 0.78 | C82: 2.209330666 | D82: 0.2016168201 | E82: 1184 | J82: 0.78 | K82: 0.8343085527 | L82: 0.1002715357 | M82: 616 | R82: 0.78 | S82: 0.5980571338 | T82: 0.07663399187 | U82: 476 | Z82: 0.77 | AA82: 14.33295142 | AB82: 0.5372675158 | AC82: 2772
B83: 0.79 | C83: 2.218826815 | D83: 0.2021761526 | E83: 1187 | J83: 0.79 | K83: 0.8379251509 | L83: 0.1006129479 | M83: 618 | R83: 0.79 | S83: 0.6012079289 | T83: 0.07696806939 | U83: 478 | Z83: 0.78 | AA83: 14.88632697 | AB83: 0.545876402 | AC83: 2808
B84: 0.8 | C84: 2.228351063 | D84: 0.2027357456 | E84: 1190 | J84: 0.8 | K84: 0.8415488798 | L84: 0.1009544661 | M84: 620 | R84: 0.8 | S84: 0.6043649364 | T84: 0.07730225057 | U84: 480 | Z84: 0.79 | AA84: 15.45967417 | AB84: 0.554533499 | AC84: 2844
B85: 0.81 | C85: 2.237903492 | D85: 0.203295599 | E85: 1193 | J85: 0.81 | K85: 0.8451797533 | L85: 0.1012960902 | M85: 622 | R85: 0.81 | S85: 0.6075281683 | T85: 0.07763653545 | U85: 482 | Z85: 0.8 | AA85: 16.05371383 | AB85: 0.5632390769 | AC85: 2880
B86: 0.82 | C86: 2.247484186 | D86: 0.203855713 | E86: 1196 | J86: 0.82 | K86: 0.8488177856 | L86: 0.1016378203 | M86: 624 | R86: 0.82 | S86: 0.6106976369 | T86: 0.07797092405 | U86: 484 | Z86: 0.81 | AA86: 16.66919274 | AB86: 0.571993407 | AC86: 2916
B87: 0.83 | C87: 2.257093229 | D87: 0.2044160877 | E87: 1199 | J87: 0.83 | K87: 0.8524629908 | L87: 0.1019796565 | M87: 626 | R87: 0.83 | S87: 0.6138733546 | T87: 0.07830541642 | U87: 486 | Z87: 0.82 | AA87: 17.30688466 | AB87: 0.5807967625 | AC87: 2952
B88: 0.84 | C88: 2.266730704 | D88: 0.2049767233 | E88: 1202 | J88: 0.84 | K88: 0.856115383 | L88: 0.1023215987 | M88: 628 | R88: 0.84 | S88: 0.6170553337 | T88: 0.07864001257 | U88: 488 | Z88: 0.83 | AA88: 17.96759127 | AB88: 0.5896494178 | AC88: 2988
B89: 0.85 | C89: 2.276396695 | D89: 0.2055376199 | E89: 1205 | J89: 0.85 | K89: 0.8597749764 | L89: 0.102663647 | M89: 630 | R89: 0.85 | S89: 0.6202435865 | T89: 0.07897471255 | U89: 490 | Z89: 0.84 | AA89: 18.65214318 | AB89: 0.5985516491 | AC89: 3024
B90: 0.86 | C90: 2.286091288 | D90: 0.2060987775 | E90: 1208 | J90: 0.86 | K90: 0.8634417853 | L90: 0.1030058015 | M90: 632 | R90: 0.86 | S90: 0.6234381254 | T90: 0.07930951639 | U90: 492 | Z90: 0.85 | AA90: 19.36140099 | AB90: 0.607503734 | AC90: 3060
B91: 0.87 | C91: 2.295814566 | D91: 0.2066601963 | E91: 1211 | J91: 0.87 | K91: 0.8671158238 | L91: 0.1033480621 | M91: 634 | R91: 0.87 | S91: 0.6266389628 | T91: 0.07964442412 | U91: 494 | Z91: 0.86 | AA91: 20.09625634 | AB91: 0.6165059517 | AC91: 3096
B92: 0.88 | C92: 2.305566614 | D92: 0.2072218765 | E92: 1214 | J92: 0.88 | K92: 0.8707971061 | L92: 0.103690429 | M92: 636 | R92: 0.88 | S92: 0.6298461111 | T92: 0.07997943577 | U92: 496 | Z92: 0.87 | AA92: 20.85763307 | AB92: 0.6255585828 | AC92: 3132
B93: 0.89 | C93: 2.315347518 | D93: 0.2077838181 | E93: 1217 | J93: 0.89 | K93: 0.8744856466 | L93: 0.1040329021 | M93: 638 | R93: 0.89 | S93: 0.6330595827 | T93: 0.08031455137 | U93: 498 | Z93: 0.88 | AA93: 21.64648835 | AB93: 0.6346619098 | AC93: 3168
B94: 0.9 | C94: 2.325157362 | D94: 0.2083460213 | E94: 1220 | J94: 0.9 | K94: 0.8781814596 | L94: 0.1043754814 | M94: 640 | R94: 0.9 | S94: 0.6362793902 | T94: 0.08064977096 | U94: 500 | Z94: 0.89 | AA94: 22.46381389 | AB94: 0.6438162166 | AC94: 3204
B95: 0.91 | C95: 2.334996234 | D95: 0.2089084862 | E95: 1223 | J95: 0.91 | K95: 0.8818845595 | L95: 0.1047181671 | M95: 642 | R95: 0.91 | S95: 0.6395055459 | T95: 0.08098509456 | U95: 502 | Z95: 0.9 | AA95: 23.31063721 | AB95: 0.6530217886 | AC95: 3240
B96: 0.92 | C96: 2.344864217 | D96: 0.209471213 | E96: 1226 | J96: 0.92 | K96: 0.8855949605 | L96: 0.105060959 | M96: 644 | R96: 0.92 | S96: 0.6427380625 | T96: 0.08132052222 | U96: 504 | Z96: 0.91 | AA96: 24.18802291 | AB96: 0.6622789129 | AC96: 3276
B97: 0.93 | C97: 2.354761399 | D97: 0.2100342016 | E97: 1229 | J97: 0.93 | K97: 0.8893126771 | L97: 0.1054038574 | M97: 646 | R97: 0.93 | S97: 0.6459769524 | T97: 0.08165605396 | U97: 506 | Z97: 0.92 | AA97: 25.09707398 | AB97: 0.6715878783 | AC97: 3312
B98: 0.94 | C98: 2.364687867 | D98: 0.2105974523 | E98: 1232 | J98: 0.94 | K98: 0.8930377236 | L98: 0.1057468621 | M98: 648 | R98: 0.94 | S98: 0.6492222283 | T98: 0.08199168981 | U98: 508 | Z98: 0.93 | AA98: 26.03893326 | AB98: 0.680948975 | AC98: 3348
B99: 0.95 | C99: =EXP(0.00098485*E99)-1 -> 2.374643705 | D99: =EXP(0.000155125*(E99))-1 -> 0.2111609652 | E99: =$C$2+B99*($D$2-$C$2) -> 1235 | J99: 0.95 | K99: =EXP(0.00098485*M99)-1 -> 0.8967701147 | L99: =EXP(0.000155125*(M99))-1 -> 0.1060899733 | M99: =$K$2+J99*($L$2-$K$2) -> 650 | R99: 0.95 | S99: =EXP(0.00098485*U99)-1 -> 0.6524739027 | T99: =EXP(0.000155125*(U99))-1 -> 0.08232742981 | U99: =$S$2+R99*($T$2-$S$2) -> 510 | Z99: 0.94 | AA99: 27.01478482 | AB99: 0.690362495 | AC99: 3384
B100: 0.96 | C100: 2.384629003 | D100: 0.2117247404 | E100: 1238 | J100: 0.96 | K100: 0.9005098647 | L100: 0.106433191 | M100: 652 | R100: 0.96 | S100: 0.6557319882 | T100: 0.08266327399 | U100: 512 | Z100: 0.95 | AA100: 28.02585545 | AB100: 0.6998287318 | AC100: 3420
B101: 0.97 | C101: 2.394643846 | D101: 0.2122887781 | E101: 1241 | J101: 0.97 | K101: 0.9042569881 | L101: 0.1067765151 | M101: 654 | R101: 0.97 | S101: 0.6589964975 | T101: 0.08299922239 | U101: 514 | Z101: 0.96 | AA101: 29.07341624 | AB101: 0.7093479808 | AC101: 3456
B102: 0.98 | C102: 2.404688322 | D102: 0.2128530783 | E102: 1244 | J102: 0.98 | K102: 0.9080114995 | L102: 0.1071199458 | M102: 656 | R102: 0.98 | S102: 0.6622674432 | T102: 0.08333527502 | U102: 516 | Z102: 0.97 | AA102: 30.15878413 | AB102: 0.7189205387 | AC102: 3492
B103: 0.99 | C103: 2.414762519 | D103: 0.2134176411 | E103: 1247 | J103: 0.99 | K103: 0.9117734135 | L103: 0.1074634831 | M103: 658 | R103: 0.99 | S103: 0.6655448381 | T103: 0.08367143193 | U103: 518 | Z103: 0.98 | AA103: 31.28332361 | AB103: 0.728546704 | AC103: 3528
B104: 1 | C104: 2.424866524 | D104: 0.2139824668 | E104: 1250 | J104: 1 | K104: 0.9155427446 | L104: 0.1078071269 | M104: 660 | R104: 1 | S104: 0.6688286948 | T104: 0.08400769316 | U104: 520 | Z104: 0.99 | AA104: 32.44844841 | AB104: 0.7382267771 | AC104: 3564
B105: 1.01 | J105: 1.01 | R105: 1.01 | Z105: 1 | AA105: 33.65562326 | AB105: 0.7479610598 | AC105: 3600
B106: 1.02 | J106: 1.02 | R106: 1.02 | Z106: =Z105+0.01 -> 1.01
B107: 1.03 | J107: 1.03 | R107: 1.03 | Z107: 1.02
B108: 1.04 | J108: 1.04 | R108: 1.04 | Z108: 1.03
B109: 1.05 | J109: 1.05 | R109: 1.05 | Z109: 1.04
B110: 1.06 | J110: 1.06 | R110: 1.06 | Z110: 1.05
B111: 1.07 | J111: 1.07 | R111: 1.07 | Z111: 1.06
B112: 1.08 | J112: 1.08 | R112: 1.08 | Z112: 1.07
B113: 1.09 | J113: 1.09 | R113: 1.09 | Z113: 1.08
B114: 1.1 | J114: 1.1 | R114: 1.1 | Z114: 1.09
B115: 1.11 | J115: 1.11 | R115: 1.11 | Z115: 1.1
B116: 1.12 | J116: 1.12 | R116: 1.12 | Z116: 1.11
B117: 1.13 | J117: 1.13 | R117: 1.13 | Z117: 1.12
B118: 1.14 | J118: 1.14 | R118: 1.14 | Z118: 1.13
B119: 1.15 | J119: 1.15 | R119: 1.15 | Z119: 1.14
B120: 1.16 | J120: 1.16 | R120: 1.16 | Z120: 1.15
B121: 1.17 | J121: 1.17 | R121: 1.17 | Z121: 1.16
B122: 1.18 | J122: 1.18 | R122: 1.18 | Z122: 1.17
B123: 1.19 | J123: 1.19 | R123: 1.19 | Z123: 1.18
B124: 1.2 | J124: 1.2 | R124: 1.2 | Z124: 1.19
B125: 1.21 | J125: 1.21 | R125: 1.21 | Z125: 1.2
B126: 1.22 | J126: 1.22 | R126: 1.22 | Z126: 1.21
B127: 1.23 | J127: 1.23 | R127: 1.23 | Z127: 1.22
B128: 1.24 | J128: 1.24 | R128: 1.24 | Z128: 1.23
B129: 1.25 | J129: 1.25 | R129: 1.25 | Z129: 1.24
B130: 1.26 | J130: 1.26 | R130: 1.26 | Z130: 1.25
B131: 1.27 | J131: 1.27 | R131: 1.27 | Z131: 1.26
B132: 1.28 | J132: 1.28 | R132: 1.28 | Z132: 1.27
B133: 1.29 | J133: 1.29 | R133: 1.29 | Z133: 1.28
